Workbook

Sheet RESUMO MODULO TOTAL
E1: Ministério do Desenvolvimento Regional
E2: Companhia de Desenvolvimento dos Vales do São Francisco e do Parnaíba
B5: OBRA: | C5: =B55 -> EXECUÇÃO DE SERVIÇOS DE IMPLANTAÇÃO DE PAVIMENTAÇÃO EM BLOCO DE CONCRETO INTERTRAVADO, EM VIAS URBANAS E RURAIS INSERIDAS NA ÁREA DE ATUAÇÃO DA CODEVASF, NO ESTADO DO PIAUÍ - REGIÃO SUL | I5: BDI Serviços (%): | L5: =BDI!C14 -> 0.2339
B6: DATA: | C6: 2025-10-01 | I6: BDI Diferenciado Serviços (%): | L6: =BDI!C69 -> 0.15
B7: PRAZO DE EXECUÇÃO: | G7: R$/m² | H7: =L52/H23 -> 169.23 | I7: BDI Fornecimentos (%): | L7: =L6 -> 0.15
B8: PLANILHA DE ORÇAMENTAÇÃO | N8: 2327014.69 | O8: 0.08784565301
B9: ITEM | C9: CÓDIGO | D9: FONTE | E9: DISCRIMINAÇÃO | F9: TIPO | G9: UNID. | H9: QUANT. | I9: VR.UNIT.S/BDI | J9: PR. UNIT.C/BDI | K9: C. TOT.S/BDI | L9: P. TOT.C/BDI | M9: =L52 -> 20138370
B10: 1 | E10: SERVIÇOS PRELIMINARES | K10: =SUM(K11:K12) -> 192053.86 | L10: =SUM(L11:L12) -> 236971.5 | M10: =L10/$L$52 -> 0.01176716388
B11: 1.1 | C11: CPU.1 | D11: Codevasf | E11: Mobilização | F11: SERV | G11: kmxfrente | H11: =Mob!B66*Mob!H6 -> 425 | I11: =Mob!B63 -> 225.9457367 | J11: =TRUNC(_xlfn.IFS(F11="SERV",I11*(1+$L$5),F11="SERV DIF",I11*(1+$L$6),F11="FORN",I11*(1+$L$7)),2) -> 278.79 | K11: =TRUNC(H11*I11,2) -> 96026.93 | L11: =TRUNC(H11*J11,2) -> 118485.75 | M11: 0.005883581938 | N11: INCC | P11: TERRAPLENAGEM | Q11: =(SUMIF(N:N,"TERRAPLENAGEM",L:L)/$L$52) -> 0.02211310051 | R11: =(SUMIF(N:N,"TERRAPLENAGEM",L:L)) -> 445321.8
B12: 1.2 | C12: CPU.2 | D12: Codevasf | E12: Desmobilização | F12: SERV | G12: kmxfrente | H12: =Mob!B66*Mob!H6 -> 425 | I12: =Mob!B63 -> 225.9457367 | J12: =TRUNC(_xlfn.IFS(F12="SERV",I12*(1+$L$5),F12="SERV DIF",I12*(1+$L$6),F12="FORN",I12*(1+$L$7)),2) -> 278.79 | K12: =TRUNC(H12*I12,2) -> 96026.93 | L12: =TRUNC(H12*J12,2) -> 118485.75 | M12: 0.005883581938 | N12: INCC | P12: PAVIMENTAÇÃO | Q12: =SUMIF(N:N,"PAVIMENTAÇÃO",L:L)/$L$52 -> 0.7652281942 | R12: =(SUMIF(N:N,"PAVIMENTAÇÃO",L:L)) -> 15410448.51
B13: 2 | E13: INSTALAÇÃO DE CANTEIRO | K13: =SUM(K14:K15) -> 168691.34 | L13: =SUM(L14:L15) -> 208146.13 | M13: 0.01033579828 | P13: CONSULTORIA | R13: =(SUMIF(N:N,"CONSULTORIA",M:M)) -> 0
B14: 2.1 | C14: Canteiro | D14: Codevasf | E14: Canteiro de Obras | F14: SERV | G14: und | H14: ='MC MODULO'!D10 -> 17 | I14: =' Canteiro'!F11 -> 2491.66 | J14: =TRUNC(_xlfn.IFS(F14="SERV",I14*(1+$L$5),F14="SERV DIF",I14*(1+$L$6),F14="FORN",I14*(1+$L$7)),2) -> 3074.45 | K14: =TRUNC(H14*I14,2) -> 42358.22 | L14: =TRUNC(H14*J14,2) -> 52265.65 | M14: 0.002595326732 | N14: INCC | P14: DRENAGEM | Q14: =SUMIF(N:N,"DRENAGEM",L:L)/$L$52 -> 0.06221456851 | R14: =(SUMIF(N:N,"DRENAGEM",L:L)) -> 1252900
B15: 2.2 | C15: 103689 | D15: SINAPI | E15: Fornecimento e instalação de placa de obra com chapa galvanizada e estrutura de madeira. af_03/2022_ps | F15: SERV | G15: m² | H15: ='MC MODULO'!H25 -> 272 | I15: =VLOOKUP(C15,'COMP Sint. Sinapi'!$A:$E,4,0) -> 464.46 | J15: =TRUNC(_xlfn.IFS(F15="SERV",I15*(1+$L$5),F15="SERV DIF",I15*(1+$L$6),F15="FORN",I15*(1+$L$7)),2) -> 573.09 | K15: 126333.12 | L15: 155880.48 | M15: 0.007740471548 | N15: INCC | P15: ADMINISTRAÇÃO LOCAL | R15: =(SUMIF(N:N,"ADMINISTRAÇÃO LOCAL",M:M)) -> 0
B16: 3 | E16: ADMINISTRAÇÃO LOCAL DA OBRA | K16: =SUM(K17:K17) -> 1269123.21 | L16: =SUM(L17:L17) -> 1565971.13 | M16: 0.07776057 | P16: SINALIZAÇÃO VERTICAL | R16: =(SUMIF(N:N,"SINALIZAÇÃO VERTICAL",M:M)) -> 0
B17: 3.1 | C17: Adm Local | D17: Codevasf | E17: Administração Local da Obra | F17: SERV | G17: und | H17: 1 | I17: ='Adm Local'!J243 -> 1269123.218 | J17: =TRUNC(_xlfn.IFS(F17="SERV",I17*(1+$L$5),F17="SERV DIF",I17*(1+$L$6),F17="FORN",I17*(1+$L$7)),2) -> 1565971.13 | K17: =TRUNC(H17*I17,2) -> 1269123.21 | L17: =TRUNC(H17*J17,2) -> 1565971.13 | M17: 0.07776057 | N17: INCC | P17: SINALIZAÇÃO HORIZONTAL | R17: =(SUMIF(N:N,"SINALIZAÇÃO HORIZONTAL",M:M)) -> 0
B18: 4 | E18: TERRAPLANAGEM | K18: =SUM(K19:K20) -> 361141.2 | L18: =SUM(L19:L20) -> 445321.8 | M18: 0.02211310051 | P18: CAP | R18: =(SUMIF(N:N,"CAP",M:M)) -> 0
B19: 4.1 | C19: 5502114 | D19: SICRO | E19: Escavação, carga e transporte de material de 1ª categoria - DMT de 1.000 a 1.200 m - caminho de serviço em leito natural - com escavadeira e caminhão basculante de 14 m³ | F19: SERV | G19: m³ | H19: ='MC MODULO'!H37 -> 32130 | I19: =ROUND(IF(D19="CODEVASF",VLOOKUP(C19,'CPU CODEVASF'!E:I,5,FALSE),VLOOKUP(C19,'SINTÉTICO SICRO'!A:D,4,FALSE)),6) -> 8.49 | J19: =TRUNC(_xlfn.IFS(F19="SERV",I19*(1+$L$5),F19="SERV DIF",I19*(1+$L$6),F19="FORN",I19*(1+$L$7)),2) -> 10.47 | K19: =TRUNC(H19*I19,2) -> 272783.7 | L19: =TRUNC(H19*J19,2) -> 336401.1 | M19: 0.01670448502 | N19: TERRAPLENAGEM | P19: IMPRIMAÇÃO | R19: =(SUMIF(N:N,"IMPRIMAÇÃO",M:M)) -> 0
B20: 4.2 | C20: 4413942 | D20: SICRO | E20: Espalhamento de material em bota-fora | F20: SERV | G20: m³ | H20: ='MC MODULO'!H44 -> 32130 | I20: =ROUND(IF(D20="CODEVASF",VLOOKUP(C20,'CPU CODEVASF'!E:I,5,FALSE),VLOOKUP(C20,'SINTÉTICO SICRO'!A:D,4,FALSE)),6) -> 2.75 | J20: =TRUNC(_xlfn.IFS(F20="SERV",I20*(1+$L$5),F20="SERV DIF",I20*(1+$L$6),F20="FORN",I20*(1+$L$7)),2) -> 3.39 | K20: 88357.5 | L20: 108920.7 | M20: 0.005408615494 | N20: TERRAPLENAGEM | P20: EMULSÃO ASFÁLTICA | R20: =(SUMIF(N:N,"EMULSÃO ASFÁLTICA",M:M)) -> 0
B21: 5 | E21: PAVIMENTAÇÃO | K21: =SUM(K22:K29) -> 11160084.18 | L21: =SUM(L22:L29) -> 13196282.47 | M21: 0.6552805649 | P21: OBRAS COMPLEMENTARES | R21: =(SUMIF(N:N,"OBRAS COMPLEMENTARES",M:M)) -> 0
B22: 5.1 | C22: 36170 | D22: SINAPI | E22: bloquete/piso intertravado de concreto - modelo onda/16 faces/retangular/t ijolinho/paver/holandes/paralelepipedo, *22 cm x 11* cm, e = 8 cm, resistencia de 35 mpa (nbr 9781), cor natural | F22: FORN | G22: m² | H22: =H23*'CPU SINAPI'!E8 -> 119476 | I22: =ROUND(VLOOKUP(C22,'INSUMOS SINAPI'!$A:$E,5,0),6) -> 55 | J22: =TRUNC(_xlfn.IFS(F22="SERV",I22*(1+$L$5),F22="SERV DIF",I22*(1+$L$6),F22="FORN",I22*(1+$L$7)),2) -> 63.25 | K22: =TRUNC(H22*I22,2) -> 6571180 | L22: =TRUNC(H22*J22,2) -> 7556857 | M22: 0.3752467057 | N22: PAVIMENTAÇÃO | P22: MOBILIZAÇÃO | R22: =(SUMIF(N:N,"MOBILIZAÇÃO",M:M)) -> 0
B23: 5.2 | C23: 92404 ADAPTADA | D23: SINAPI | E23: execução de pavimento em piso intertravado, com bloco 16 faces de 22 x 11 cm, espessura 8 cm. af_10/2022 - exclusive fornecimento de bloquete | F23: SERV | G23: m² | H23: ='MC MODULO'!H51 -> 119000 | I23: =ROUND('CPU SINAPI'!G15,6) -> 17.87 | J23: =TRUNC(_xlfn.IFS(F23="SERV",I23*(1+$L$5),F23="SERV DIF",I23*(1+$L$6),F23="FORN",I23*(1+$L$7)),2) -> 22.04 | K23: 2126530 | L23: 2622760 | M23: 0.1302369556 | N23: PAVIMENTAÇÃO | P23: INCC | Q23: =(SUMIF(N:N,"INCC",L:L))/$L$52 -> 0.1504441367 | R23: =(SUMIF(N:N,"INCC",L:L)) -> 3029699.69
B24: 5.3 | C24: 5914640 | D24: SICRO | E24: Transporte com cavalo mecânico com semirreboque com capacidade de 30 t - rodovia pavimentada | F24: SERV | G24: tkm | H24: ='MC MODULO'!H56 -> 2094400 | I24: =ROUND(IF(D24="CODEVASF",VLOOKUP(C24,'CPU CODEVASF'!E:I,5,FALSE),VLOOKUP(C24,'SINTÉTICO SICRO'!A:D,4,FALSE)),6) -> 0.59 | J24: =TRUNC(_xlfn.IFS(F24="SERV",I24*(1+$L$5),F24="SERV DIF",I24*(1+$L$6),F24="FORN",I24*(1+$L$7)),2) -> 0.72 | K24: 1235696 | L24: 1507968 | M24: 0.07488034037 | N24: PAVIMENTAÇÃO
B25: 5.4 | C25: 5915373 | D25: SICRO | E25: Carga, manobra e descarga de materiais diversos em caminhão carroceria com capacidade de 7 t e com guindauto de 20 t.m | F25: SERV | G25: t | H25: ='MC MODULO'!H62 -> 20944 | I25: =ROUND(IF(D25="CODEVASF",VLOOKUP(C25,'CPU CODEVASF'!E:I,5,FALSE),VLOOKUP(C25,'SINTÉTICO SICRO'!A:D,4,FALSE)),6) -> 18.87 | J25: =TRUNC(_xlfn.IFS(F25="SERV",I25*(1+$L$5),F25="SERV DIF",I25*(1+$L$6),F25="FORN",I25*(1+$L$7)),2) -> 23.28 | K25: 395213.28 | L25: 487576.32 | M25: 0.02421131005 | N25: PAVIMENTAÇÃO
B26: 5.5 | C26: 5915321 | D26: SICRO | E26: Transporte com caminhão basculante de 14 m³ - rodovia pavimentada (areia) | F26: SERV | G26: tkm | H26: ='MC MODULO'!H68 -> 357000 | I26: =ROUND(IF(D26="CODEVASF",VLOOKUP(C26,'CPU CODEVASF'!E:I,5,FALSE),VLOOKUP(C26,'SINTÉTICO SICRO'!A:D,4,FALSE)),6) -> 0.68 | J26: =TRUNC(_xlfn.IFS(F26="SERV",I26*(1+$L$5),F26="SERV DIF",I26*(1+$L$6),F26="FORN",I26*(1+$L$7)),2) -> 0.83 | K26: 242760 | L26: 296310 | M26: 0.01471370324 | N26: PAVIMENTAÇÃO
B27: 5.6 | C27: 5915321 | D27: SICRO | E27: Transporte com caminhão basculante de 14 m³ - rodovia pavimentada (pó de pedra) | F27: SERV | G27: tkm | H27: ='MC MODULO'!H73 -> 112455 | I27: =ROUND(IF(D27="CODEVASF",VLOOKUP(C27,'CPU CODEVASF'!E:I,5,FALSE),VLOOKUP(C27,'SINTÉTICO SICRO'!A:D,4,FALSE)),6) -> 0.68 | J27: =TRUNC(_xlfn.IFS(F27="SERV",I27*(1+$L$5),F27="SERV DIF",I27*(1+$L$6),F27="FORN",I27*(1+$L$7)),2) -> 0.83 | K27: 76469.4 | L27: 93337.65 | M27: 0.004634816522 | N27: PAVIMENTAÇÃO
B28: 5.7 | C28: 4011219 | D28: SICRO | E28: Base de solo estabilizado granulometricamente sem mistura com material de jazida - 100% Proctor modificado | F28: SERV | G28: m³ | H28: ='MC MODULO'!H78 -> 17850 | I28: =ROUND(IF(D28="CODEVASF",VLOOKUP(C28,'CPU CODEVASF'!E:I,5,FALSE),VLOOKUP(C28,'SINTÉTICO SICRO'!A:D,4,FALSE)),6) -> 16.63 | J28: =TRUNC(_xlfn.IFS(F28="SERV",I28*(1+$L$5),F28="SERV DIF",I28*(1+$L$6),F28="FORN",I28*(1+$L$7)),2) -> 20.51 | K28: 296845.5 | L28: 366103.5 | M28: 0.01817940082 | N28: PAVIMENTAÇÃO
B29: 5.8 | C29: 4011209 | D29: SICRO | E29: Regularização do subleito - 100% Proctor intermediário | F29: SERV | G29: m² | H29: ='MC MODULO'!H83 -> 119000 | I29: =ROUND(IF(D29="CODEVASF",VLOOKUP(C29,'CPU CODEVASF'!E:I,5,FALSE),VLOOKUP(C29,'SINTÉTICO SICRO'!A:D,4,FALSE)),6) -> 1.81 | J29: =TRUNC(_xlfn.IFS(F29="SERV",I29*(1+$L$5),F29="SERV DIF",I29*(1+$L$6),F29="FORN",I29*(1+$L$7)),2) -> 2.23 | K29: 215390 | L29: 265370 | M29: 0.01317733262 | N29: PAVIMENTAÇÃO
B30: 6 | E30: SINALIZAÇÃO | K30: =SUM(K31:K34) -> 163912.98 | L30: =SUM(L31:L34) -> 202226.73 | M30: 0.01004186188
B31: 6.1 | C31: 5213440 | D31: SICRO | E31: Placa de regulamentação em aço D = 0,60 m - película retrorrefletiva tipo I + SI - fornecimento e implantação | F31: SERV | G31: und | H31: ='MC MODULO'!H90 -> 51 | I31: =ROUND(IF(D31="CODEVASF",VLOOKUP(C31,'CPU CODEVASF'!E:I,5,FALSE),VLOOKUP(C31,'SINTÉTICO SICRO'!A:D,4,FALSE)),6) -> 288.75 | J31: =TRUNC(_xlfn.IFS(F31="SERV",I31*(1+$L$5),F31="SERV DIF",I31*(1+$L$6),F31="FORN",I31*(1+$L$7)),2) -> 356.28 | K31: =TRUNC(H31*I31,2) -> 14726.25 | L31: =TRUNC(H31*J31,2) -> 18170.28 | M31: 0.0009022716337 | N31: INCC
B32: 6.2 | C32: 5213464 | D32: SICRO | E32: Placa de advertência em aço, lado de 0,60 m - película retrorrefletiva tipo I + SI - fornecimento e implantação | F32: SERV | G32: und | H32: ='MC MODULO'!H95 -> 51 | I32: =ROUND(IF(D32="CODEVASF",VLOOKUP(C32,'CPU CODEVASF'!E:I,5,FALSE),VLOOKUP(C32,'SINTÉTICO SICRO'!A:D,4,FALSE)),6) -> 288.79 | J32: =TRUNC(_xlfn.IFS(F32="SERV",I32*(1+$L$5),F32="SERV DIF",I32*(1+$L$6),F32="FORN",I32*(1+$L$7)),2) -> 356.33 | K32: 14728.29 | L32: 18172.83 | M32: 0.0009023982577 | N32: INCC
B33: 6.3 | C33: 5213863 | D33: SICRO | E33: Suporte metálico galvanizado para placa de advertência ou regulamentação - lado ou diâmetro de 0,60 m - fornecimento e implantação | F33: SERV | G33: und | H33: ='MC MODULO'!H101 -> 102 | I33: =ROUND(IF(D33="CODEVASF",VLOOKUP(C33,'CPU CODEVASF'!E:I,5,FALSE),VLOOKUP(C33,'SINTÉTICO SICRO'!A:D,4,FALSE)),6) -> 475.82 | J33: =TRUNC(_xlfn.IFS(F33="SERV",I33*(1+$L$5),F33="SERV DIF",I33*(1+$L$6),F33="FORN",I33*(1+$L$7)),2) -> 587.11 | K33: 48533.64 | L33: 59885.22 | M33: 0.002973687543 | N33: INCC
B34: 6.4 | C34: 5213400 | D34: SICRO | E34: Pintura de faixa com tinta acrílica - espessura de 0,4 mm | F34: SERV | G34: m² | H34: ='MC MODULO'!H106+'MC MODULO'!H111 -> 4080 | I34: =ROUND(IF(D34="CODEVASF",VLOOKUP(C34,'CPU CODEVASF'!E:I,5,FALSE),VLOOKUP(C34,'SINTÉTICO SICRO'!A:D,4,FALSE)),6) -> 21.06 | J34: =TRUNC(_xlfn.IFS(F34="SERV",I34*(1+$L$5),F34="SERV DIF",I34*(1+$L$6),F34="FORN",I34*(1+$L$7)),2) -> 25.98 | K34: 85924.8 | L34: 105998.4 | M34: 0.005263504445 | N34: INCC
B35: 7 | E35: DRENAGEM | K35: =SUM(K36:K37) -> 1024311.2 | L35: =SUM(L36:L37) -> 1263671.2 | M35: 0.06274942808
B36: 7.1 | C36: 2003943 | D36: SICRO | E36: Meio-fio de concreto - MFC 03 moldado no local com extrusora e concreto usinado - areia e brita comerciais | F36: SERV | G36: m | H36: ='MC MODULO'!H118 -> 34000 | I36: =ROUND(IF(D36="CODEVASF",VLOOKUP(C36,'CPU CODEVASF'!E:I,5,FALSE),VLOOKUP(C36,'SINTÉTICO SICRO'!A:D,4,FALSE)),6) -> 29.87 | J36: =TRUNC(_xlfn.IFS(F36="SERV",I36*(1+$L$5),F36="SERV DIF",I36*(1+$L$6),F36="FORN",I36*(1+$L$7)),2) -> 36.85 | K36: =TRUNC(H36*I36,2) -> 1015580 | L36: =TRUNC(H36*J36,2) -> 1252900 | M36: 0.06221456851 | N36: DRENAGEM
B37: 7.2 | C37: 4915724 | D37: SICRO | E37: Caiação mecanizada com fixador de cal | F37: SERV | G37: m² | H37: ='MC MODULO'!H123 -> 4080 | I37: =ROUND(IF(D37="CODEVASF",VLOOKUP(C37,'CPU CODEVASF'!E:I,5,FALSE),VLOOKUP(C37,'SINTÉTICO SICRO'!A:D,4,FALSE)),6) -> 2.14 | J37: =TRUNC(_xlfn.IFS(F37="SERV",I37*(1+$L$5),F37="SERV DIF",I37*(1+$L$6),F37="FORN",I37*(1+$L$7)),2) -> 2.64 | K37: 8731.2 | L37: 10771.2 | M37: 0.000534859574 | N37: INCC
B38: 8 | E38: SERVIÇOS COMPLEMENTARES | K38: =SUM(K39:K39) -> 36645.89 | L38: =SUM(L39:L39) -> 45203 | M38: 0.002244620592
B39: 8.1 | C39: CPU-02 | D39: Codevasf | E39: Conserto de quebra no ramal na rua sem pavimento com fornecimento de material hidráulico | F39: SERV | G39: m | H39: ='MC MODULO'!H130 -> 1700 | I39: =ROUND(IF(D39="CODEVASF",VLOOKUP(C39,'CPU CODEVASF'!E:I,5,FALSE),VLOOKUP(C39,'SINTÉTICO SICRO'!A:D,4,FALSE)),6) -> 21.55641 | J39: =TRUNC(_xlfn.IFS(F39="SERV",I39*(1+$L$5),F39="SERV DIF",I39*(1+$L$6),F39="FORN",I39*(1+$L$7)),2) -> 26.59 | K39: =TRUNC(H39*I39,2) -> 36645.89 | L39: =TRUNC(H39*J39,2) -> 45203 | M39: 0.002244620592 | N39: INCC
B40: 9 | E40: PROJETO EXECUTIVO | K40: =SUM(K41:K41) -> 616420 | L40: =SUM(L41:L41) -> 760410 | M40: 0.03775926254
B41: 9.1 | C41: CPU.7 | D41: Codevasf | E41: Projeto Executivo | F41: SERV | G41: m² | H41: ='MC MODULO'!H137 -> 119000 | I41: =('Projeto Executivo'!G28) -> 5.18 | J41: =TRUNC(_xlfn.IFS(F41="SERV",I41*(1+$L$5),F41="SERV DIF",I41*(1+$L$6),F41="FORN",I41*(1+$L$7)),2) -> 6.39 | K41: =TRUNC(H41*I41,2) -> 616420 | L41: =TRUNC(H41*J41,2) -> 760410 | M41: 0.03775926254 | N41: INCC
B42: 10 | E42: MOMENTO DE TRANSPORTE | K42: =SUM(K43:K51) -> 1798629.5 | L42: =SUM(L43:L51) -> 2214166.04 | M42: 0.1099476293
B43: 10.1 | C43: 5914359 | D43: SICRO | E43: Transporte com caminhão basculante de 10 m³ - rodovia em leito natural | F43: SERV | G43: tkm | H43: =SUMIF('MOMENTO DE TRANSPORTE - PRINC'!A:A,'RESUMO MODULO TOTAL'!C43,'MOMENTO DE TRANSPORTE - PRINC'!K:K)+SUMIF('MOMENTO DE TRANSPORTE - AUX'!A:A,'RESUMO MODULO TOTAL'!C43,'MOMENTO DE TRANSPORTE - AUX'!K:K) -> 187054.7981 | I43: =ROUND(IF(D43="CODEVASF",VLOOKUP(C43,'CPU CODEVASF'!E:I,5,FALSE),VLOOKUP(C43,'SINTÉTICO SICRO'!A:D,4,FALSE)),6) -> 1.25 | J43: =TRUNC(_xlfn.IFS(F43="SERV",I43*(1+$L$5),F43="SERV DIF",I43*(1+$L$6),F43="FORN",I43*(1+$L$7)),2) -> 1.54 | K43: =TRUNC(H43*I43,2) -> 233818.49 | L43: =TRUNC(H43*J43,2) -> 288064.38 | M43: 0.01430425501 | N43: PAVIMENTAÇÃO
B44: 10.2 | C44: 5914374 | D44: SICRO | E44: Transporte com caminhão basculante de 10 m³ - rodovia em revestimento primário | F44: SERV | G44: tkm | H44: =SUMIF('MOMENTO DE TRANSPORTE - PRINC'!A:A,'RESUMO MODULO TOTAL'!C44,'MOMENTO DE TRANSPORTE - PRINC'!K:K)+SUMIF('MOMENTO DE TRANSPORTE - AUX'!A:A,'RESUMO MODULO TOTAL'!C44,'MOMENTO DE TRANSPORTE - AUX'!K:K) -> 187054.7981 | I44: =ROUND(IF(D44="CODEVASF",VLOOKUP(C44,'CPU CODEVASF'!E:I,5,FALSE),VLOOKUP(C44,'SINTÉTICO SICRO'!A:D,4,FALSE)),6) -> 1 | J44: =TRUNC(_xlfn.IFS(F44="SERV",I44*(1+$L$5),F44="SERV DIF",I44*(1+$L$6),F44="FORN",I44*(1+$L$7)),2) -> 1.23 | K44: 187054.79 | L44: 230077.4 | M44: 0.01142482733 | N44: PAVIMENTAÇÃO
B45: 10.3 | C45: 5914389 | D45: SICRO | E45: Transporte com caminhão basculante de 10 m³ - rodovia pavimentada | F45: SERV | G45: tkm | H45: =SUMIF('MOMENTO DE TRANSPORTE - PRINC'!A:A,'RESUMO MODULO TOTAL'!C45,'MOMENTO DE TRANSPORTE - PRINC'!K:K)+SUMIF('MOMENTO DE TRANSPORTE - AUX'!A:A,'RESUMO MODULO TOTAL'!C45,'MOMENTO DE TRANSPORTE - AUX'!K:K) -> 1496438.385 | I45: =ROUND(IF(D45="CODEVASF",VLOOKUP(C45,'CPU CODEVASF'!E:I,5,FALSE),VLOOKUP(C45,'SINTÉTICO SICRO'!A:D,4,FALSE)),6) -> 0.82 | J45: =TRUNC(_xlfn.IFS(F45="SERV",I45*(1+$L$5),F45="SERV DIF",I45*(1+$L$6),F45="FORN",I45*(1+$L$7)),2) -> 1.01 | K45: 1227079.47 | L45: 1511402.76 | M45: 0.07505089836 | N45: PAVIMENTAÇÃO
B46: 10.4 | C46: 5914449 | D46: SICRO | E46: Transporte com caminhão carroceria de 15 t - rodovia em leito natural | F46: SERV | G46: tkm | H46: =SUMIF('MOMENTO DE TRANSPORTE - PRINC'!A:A,'RESUMO MODULO TOTAL'!C46,'MOMENTO DE TRANSPORTE - PRINC'!K:K)+SUMIF('MOMENTO DE TRANSPORTE - AUX'!A:A,'RESUMO MODULO TOTAL'!C46,'MOMENTO DE TRANSPORTE - AUX'!K:K) -> 405.144 | I46: =ROUND(IF(D46="CODEVASF",VLOOKUP(C46,'CPU CODEVASF'!E:I,5,FALSE),VLOOKUP(C46,'SINTÉTICO SICRO'!A:D,4,FALSE)),6) -> 1.1 | J46: =TRUNC(_xlfn.IFS(F46="SERV",I46*(1+$L$5),F46="SERV DIF",I46*(1+$L$6),F46="FORN",I46*(1+$L$7)),2) -> 1.35 | K46: 445.65 | L46: 546.94 | M46: 2.715909977e-05 | N46: PAVIMENTAÇÃO
B47: 10.5 | C47: 5914464 | D47: SICRO | E47: Transporte com caminhão carroceria de 15 t - rodovia em revestimento primário | F47: SERV | G47: tkm | H47: =SUMIF('MOMENTO DE TRANSPORTE - PRINC'!A:A,'RESUMO MODULO TOTAL'!C47,'MOMENTO DE TRANSPORTE - PRINC'!K:K)+SUMIF('MOMENTO DE TRANSPORTE - AUX'!A:A,'RESUMO MODULO TOTAL'!C47,'MOMENTO DE TRANSPORTE - AUX'!K:K) -> 405.144 | I47: =ROUND(IF(D47="CODEVASF",VLOOKUP(C47,'CPU CODEVASF'!E:I,5,FALSE),VLOOKUP(C47,'SINTÉTICO SICRO'!A:D,4,FALSE)),6) -> 0.88 | J47: =TRUNC(_xlfn.IFS(F47="SERV",I47*(1+$L$5),F47="SERV DIF",I47*(1+$L$6),F47="FORN",I47*(1+$L$7)),2) -> 1.08 | K47: 356.52 | L47: 437.55 | M47: 2.17271805e-05 | N47: PAVIMENTAÇÃO
B48: 10.6 | C48: 5914479 | D48: SICRO | E48: Transporte com caminhão carroceria de 15 t - rodovia pavimentada | F48: SERV | G48: tkm | H48: =SUMIF('MOMENTO DE TRANSPORTE - PRINC'!A:A,'RESUMO MODULO TOTAL'!C48,'MOMENTO DE TRANSPORTE - PRINC'!K:K)+SUMIF('MOMENTO DE TRANSPORTE - AUX'!A:A,'RESUMO MODULO TOTAL'!C48,'MOMENTO DE TRANSPORTE - AUX'!K:K) -> 3241.152 | I48: =ROUND(IF(D48="CODEVASF",VLOOKUP(C48,'CPU CODEVASF'!E:I,5,FALSE),VLOOKUP(C48,'SINTÉTICO SICRO'!A:D,4,FALSE)),6) -> 0.72 | J48: =TRUNC(_xlfn.IFS(F48="SERV",I48*(1+$L$5),F48="SERV DIF",I48*(1+$L$6),F48="FORN",I48*(1+$L$7)),2) -> 0.88 | K48: 2333.62 | L48: 2852.21 | M48: 0.0001416306285 | N48: PAVIMENTAÇÃO
B49: 10.7 | C49: 5914569 | D49: SICRO | E49: Transporte com caminhão betoneira - rodovia pavimentada | F49: SERV | G49: tkm | H49: =SUMIF('MOMENTO DE TRANSPORTE - PRINC'!A:A,'RESUMO MODULO TOTAL'!C49,'MOMENTO DE TRANSPORTE - PRINC'!K:K)+SUMIF('MOMENTO DE TRANSPORTE - AUX'!A:A,'RESUMO MODULO TOTAL'!C49,'MOMENTO DE TRANSPORTE - AUX'!K:K) -> 137088 | I49: =ROUND(IF(D49="CODEVASF",VLOOKUP(C49,'CPU CODEVASF'!E:I,5,FALSE),VLOOKUP(C49,'SINTÉTICO SICRO'!A:D,4,FALSE)),6) -> 0.8 | J49: =TRUNC(_xlfn.IFS(F49="SERV",I49*(1+$L$5),F49="SERV DIF",I49*(1+$L$6),F49="FORN",I49*(1+$L$7)),2) -> 0.98 | K49: 109670.4 | L49: 134346.24 | M49: 0.006671157596 | N49: PAVIMENTAÇÃO
B50: 10.8 | C50: 5914554 | D50: SICRO | E50: Transporte com caminhão betoneira - rodovia em revestimento primário | F50: SERV | G50: tkm | H50: =SUMIF('MOMENTO DE TRANSPORTE - PRINC'!A:A,'RESUMO MODULO TOTAL'!C50,'MOMENTO DE TRANSPORTE - PRINC'!K:K)+SUMIF('MOMENTO DE TRANSPORTE - AUX'!A:A,'RESUMO MODULO TOTAL'!C50,'MOMENTO DE TRANSPORTE - AUX'!K:K) -> 17136 | I50: =ROUND(IF(D50="CODEVASF",VLOOKUP(C50,'CPU CODEVASF'!E:I,5,FALSE),VLOOKUP(C50,'SINTÉTICO SICRO'!A:D,4,FALSE)),6) -> 0.98 | J50: =TRUNC(_xlfn.IFS(F50="SERV",I50*(1+$L$5),F50="SERV DIF",I50*(1+$L$6),F50="FORN",I50*(1+$L$7)),2) -> 1.2 | K50: 16793.28 | L50: 20563.2 | M50: 0.00102109555 | N50: PAVIMENTAÇÃO
B51: 10.9 | C51: 5914539 | D51: SICRO | E51: Transporte com caminhão betoneira - rodovia em leito natural | F51: SERV | G51: tkm | H51: =SUMIF('MOMENTO DE TRANSPORTE - PRINC'!A:A,'RESUMO MODULO TOTAL'!C51,'MOMENTO DE TRANSPORTE - PRINC'!K:K)+SUMIF('MOMENTO DE TRANSPORTE - AUX'!A:A,'RESUMO MODULO TOTAL'!C51,'MOMENTO DE TRANSPORTE - AUX'!K:K) -> 17136 | I51: =ROUND(IF(D51="CODEVASF",VLOOKUP(C51,'CPU CODEVASF'!E:I,5,FALSE),VLOOKUP(C51,'SINTÉTICO SICRO'!A:D,4,FALSE)),6) -> 1.23 | J51: =TRUNC(_xlfn.IFS(F51="SERV",I51*(1+$L$5),F51="SERV DIF",I51*(1+$L$6),F51="FORN",I51*(1+$L$7)),2) -> 1.51 | K51: 21077.28 | L51: 25875.36 | M51: 0.001284878568 | N51: PAVIMENTAÇÃO
B52: TOTAL GERAL DA OBRA COM BDI | K52: =SUM(K10,K13,K16,K18,K21,K30,K35,K38,K40,K42) -> 16791013.36 | L52: =SUM(L10,L13,L16,L18,L21,L30,L35,L38,L40,L42) -> 20138370
B55: EXECUÇÃO DE SERVIÇOS DE IMPLANTAÇÃO DE PAVIMENTAÇÃO EM BLOCO DE CONCRETO INTERTRAVADO, EM VIAS URBANAS E RURAIS INSERIDAS NA ÁREA DE ATUAÇÃO DA CODEVASF, NO ESTADO DO PIAUÍ - REGIÃO SUL
L59: 20138370

Sheet CRONOGRAMA TOTAL
A2: ='RESUMO MODULO TOTAL'!B55 -> EXECUÇÃO DE SERVIÇOS DE IMPLANTAÇÃO DE PAVIMENTAÇÃO EM BLOCO DE CONCRETO INTERTRAVADO, EM VIAS URBANAS E RURAIS INSERIDAS NA ÁREA DE ATUAÇÃO DA CODEVASF, NO ESTADO DO PIAUÍ - REGIÃO SUL
A3: Cronograma Físico e Financeiro
A4: Item | B4: Descrição | C4: Total Por Etapa | D4: 30 DIAS | E4: 60 DIAS | F4: 90 DIAS | G4: 120 DIAS | H4: 150 DIAS | I4: 180 DIAS | J4: 210 DIAS | K4: 240 DIAS | L4: 270 DIAS | M4: 300 DIAS | N4: 330 DIAS | O4: 360 DIAS
B5: ='RESUMO MODULO TOTAL'!E10 -> SERVIÇOS PRELIMINARES | C5: =SUM(D5:O5) -> 1 | G5: 0.5 | O5: 0.5
C6: ='RESUMO MODULO TOTAL'!L10 -> 236971.5 | G6: =$C$6*G5 -> 118485.75 | O6: =$C$6*O5 -> 118485.75 | P6: =SUM(D6:O6) -> 236971.5 | Q6: =IF(P6=C6,"OK","") -> OK
B7: ='RESUMO MODULO TOTAL'!E13 -> INSTALAÇÃO DE CANTEIRO | C7: =SUM(D7:O7) -> 1 | G7: 0.1 | H7: 0.5 | I7: 0.4
C8: ='RESUMO MODULO TOTAL'!L13 -> 208146.13 | D8: =$C$8*D7 -> 0 | E8: =$C$8*E7 -> 0 | F8: 0 | G8: 20814.613 | H8: 104073.065 | I8: 83258.452 | J8: 0 | K8: 0 | L8: 0 | M8: 0 | N8: 0 | O8: 0 | P8: =SUM(D8:O8) -> 208146.13 | Q8: =IF(P8=C8,"OK","") -> OK
B9: ='RESUMO MODULO TOTAL'!E16 -> ADMINISTRAÇÃO LOCAL DA OBRA | C9: =SUM(D9:O9) -> 1 | D9: =(D6+D8+D12+D14+D16+D18+D20+D22+D24)/($O$31-$C$10) -> 0.01433005515 | E9: =(E6+E8+E12+E14+E16+E18+E20+E22+E24)/($O$31-$C$10) -> 0.01433005515 | F9: 0.02420471406 | G9: 0.0254166099 | H9: 0.02351985449 | I9: 0.1467820199 | J9: 0.1363382018 | K9: 0.1303437985 | L9: 0.1303437985 | M9: 0.1303437985 | N9: 0.1655808782 | O9: 0.05846621589
C10: ='RESUMO MODULO TOTAL'!L16 -> 1565971.13 | D10: =$C$10*D9 -> 22440.45265 | E10: =$C$10*E9 -> 22440.45265 | F10: =$C$10*F9 -> 37903.88342 | G10: 39801.67733 | H10: 36831.41312 | I10: 229856.4055 | J10: 213501.688 | K10: 204114.6254 | L10: 204114.6254 | M10: 204114.6254 | N10: 259294.875 | O10: 91556.40617 | P10: =SUM(D10:O10) -> 1565971.13 | Q10: =IF(P10=C10,"OK","") -> OK
B11: ='RESUMO MODULO TOTAL'!E18 -> TERRAPLANAGEM | C11: =SUM(D11:O11) -> 1 | G11: =1/4 -> 0.25 | H11: =1/4 -> 0.25 | I11: =1/4 -> 0.25 | J11: 0.25
C12: ='RESUMO MODULO TOTAL'!L18 -> 445321.8 | D12: =$C$14*D11 -> 0 | E12: =$C$12*E11 -> 0 | F12: 0 | G12: 111330.45 | H12: 111330.45 | I12: 111330.45 | J12: 111330.45 | K12: 0 | L12: 0 | M12: 0 | N12: 0 | O12: 0 | P12: =SUM(D12:O12) -> 445321.8 | Q12: =IF(P12=C12,"OK","") -> OK
B13: ='RESUMO MODULO TOTAL'!E21 -> PAVIMENTAÇÃO | C13: =SUM(D13:O13) -> 1 | I13: =1/6 -> 0.1666666667 | J13: =1/6 -> 0.1666666667 | K13: 0.1666666667 | L13: 0.1666666667 | M13: 0.1666666667 | N13: 0.1666666667
C14: ='RESUMO MODULO TOTAL'!L21 -> 13196282.47 | D14: =$C$14*D13 -> 0 | E14: =$C$14*E13 -> 0 | F14: 0 | G14: 0 | H14: 0 | I14: 2199380.412 | J14: 2199380.412 | K14: 2199380.412 | L14: 2199380.412 | M14: 2199380.412 | N14: 2199380.412 | O14: 0 | P14: =SUM(D14:O14) -> 13196282.47 | Q14: =IF(P14=C14,"OK","") -> OK
B15: ='RESUMO MODULO TOTAL'!E30 -> SINALIZAÇÃO | C15: =SUM(D15:O15) -> 1 | O15: 1
C16: ='RESUMO MODULO TOTAL'!L30 -> 202226.73 | D16: =$C$16*D15 -> 0 | E16: =$C$16*E15 -> 0 | F16: 0 | G16: 0 | H16: 0 | I16: 0 | J16: 0 | K16: 0 | L16: 0 | M16: 0 | N16: 0 | O16: 202226.73 | P16: =SUM(D16:O16) -> 202226.73 | Q16: =IF(P16=C16,"OK","") -> OK
B17: ='RESUMO MODULO TOTAL'!E35 -> DRENAGEM | C17: =SUM(D17:O17) -> 1 | N17: 0.5 | O17: 0.5
C18: ='RESUMO MODULO TOTAL'!L35 -> 1263671.2 | D18: =$C$18*D17 -> 0 | E18: =$C$18*E17 -> 0 | F18: 0 | G18: 0 | H18: 0 | I18: 0 | J18: 0 | K18: 0 | L18: 0 | M18: 0 | N18: 631835.6 | O18: 631835.6 | P18: =SUM(D18:O18) -> 1263671.2 | Q18: =IF(P18=C18,"OK","") -> OK
B19: ='RESUMO MODULO TOTAL'!E38 -> SERVIÇOS COMPLEMENTARES | C19: =SUM(D19:O19) -> 1 | N19: 0.5 | O19: 0.5
C20: ='RESUMO MODULO TOTAL'!L38 -> 45203 | D20: =$C$20*D19 -> 0 | E20: =$C$20*E19 -> 0 | F20: 0 | G20: 0 | H20: 0 | I20: 0 | J20: 0 | K20: 0 | L20: 0 | M20: 0 | N20: 22601.5 | O20: 22601.5 | P20: =SUM(D20:O20) -> 45203 | Q20: =IF(P20=C20,"OK","") -> OK
B21: ='RESUMO MODULO TOTAL'!E40 -> PROJETO EXECUTIVO | C21: =SUM(D21:O21) -> 1 | D21: 0.35 | E21: 0.35 | F21: 0.3
C22: ='RESUMO MODULO TOTAL'!L40 -> 760410 | D22: =$C$22*D21 -> 266143.5 | E22: =$C$22*E21 -> 266143.5 | F22: 228123 | G22: 0 | H22: 0 | I22: 0 | J22: 0 | K22: 0 | L22: 0 | M22: 0 | N22: 0 | O22: 0 | P22: =SUM(D22:O22) -> 760410 | Q22: =IF(P22=C22,"OK","") -> OK
B23: ='RESUMO MODULO TOTAL'!E42 -> MOMENTO DE TRANSPORTE | C23: =SUM(D23:O23) -> 1 | F23: 0.1 | G23: 0.1 | H23: 0.1 | I23: 0.15 | J23: 0.1 | K23: 0.1 | L23: 0.1 | M23: 0.1 | N23: 0.1 | O23: 0.05
C24: ='RESUMO MODULO TOTAL'!L42 -> 2214166.04 | D24: =$C$24*D23 -> 0 | E24: =$C$24*E23 -> 0 | F24: 221416.604 | G24: 221416.604 | H24: 221416.604 | I24: 332124.906 | J24: 221416.604 | K24: 221416.604 | L24: 221416.604 | M24: 221416.604 | N24: 221416.604 | O24: 110708.302 | P24: =SUM(D24:O24) -> 2214166.04 | Q24: =IF(P24=C24,"OK","") -> OK
A26: Porcentagem | D26: =SUM(D6+D8+D10+D12+D14+D16+D18+D20+D22+D24)/$O$31 -> 0.01433005515 | E26: =SUM(E6+E8+E10+E12+E14+E16+E18+E20+E22+E24)/$O$31 -> 0.01433005515 | F26: 0.02420471406 | G26: 0.0254166099 | H26: 0.02351985449 | I26: 0.1467820199 | J26: 0.1363382018 | K26: 0.1303437985 | L26: 0.1303437985 | M26: 0.1303437985 | N26: 0.1655808782 | O26: 0.05846621589
A27: Custo | D27: =$O$31*D26 -> 288583.9526 | E27: =$O$31*E26 -> 288583.9526 | F27: =$O$31*F26 -> 487443.4874 | G27: 511849.0943 | H27: 473651.5321 | I27: 2955950.625 | J27: 2745629.154 | K27: 2624911.641 | L27: 2624911.641 | M27: 2624911.641 | N27: 3334528.991 | O27: 1177414.288
A28: Porcentagem Acumulado | D28: =D26 -> 0.01433005515 | E28: =D28+E26 -> 0.02866011029 | F28: =E28+F26 -> 0.05286482435 | G28: 0.07828143425 | H28: 0.1018012887 | I28: 0.2485833086 | J28: 0.3849215104 | K28: 0.5152653089 | L28: 0.6456091074 | M28: 0.7759529059 | N28: 0.9415337841 | O28: =N28+O26 -> 1
A29: Custo Acumulado | D29: =D27 -> 288583.9526 | E29: =D29+E27 -> 577167.9053 | F29: 1064611.393 | G29: 1576460.487 | H29: 2050112.019 | I29: 5006062.644 | J29: 7751691.798 | K29: 10376603.44 | L29: 13001515.08 | M29: 15626426.72 | N29: 18960955.71 | O29: =INT(N29+O27) -> 20138370
D31: Total Geral | N31: R$ | O31: =C6+C8+C10+C12+C14+C16+C18+C20+C22+C24 -> 20138370
O34: =O29-O31 -> 0
O36: =#REF! -> 

Sheet Mob
A4: ='RESUMO MODULO TOTAL'!B55 -> EXECUÇÃO DE SERVIÇOS DE IMPLANTAÇÃO DE PAVIMENTAÇÃO EM BLOCO DE CONCRETO INTERTRAVADO, EM VIAS URBANAS E RURAIS INSERIDAS NA ÁREA DE ATUAÇÃO DA CODEVASF, NO ESTADO DO PIAUÍ - REGIÃO SUL
A5: MOBILIZAÇÃO/DESMOBILIZAÇÃO (MOB) | F5: Frentes de serviços | H5: ='MC MODULO'!G1 -> 17
F6: Distância da Capital ao Canteiro: | H6: 25 | I6: Fica a cargo de cada SR colocar a distancia adequada de acordo com o historico de mobilização
F8: Velocidade média de transporte (pavim.): | H8: 60
A10: Transporte dos equipamentos
A11: CODIGO | B11: EQUIPAMENTO | C11: VEÍCULO TRANSPORTADOR | D11: QTDE | E11: K | F11: FU | G11: CUSTO DO TRANSPORTE
G12: (R$/h) | H12: (R$)/km
A13: E9524 | B13: =VLOOKUP(A13,Equipamentos!$A:$K,2,FALSE) -> Motoniveladora - 93 kW | C13: =IFERROR(INDEX('Tabelas 2 e 3 mob'!A:K,MATCH(A13,'Tabelas 2 e 3 mob'!A:A,0),9),"ERRO") -> E9665 | D13: 1 | E13: 2 | F13: 1 | G13: =IF(C13="Veículo(s) da própria frota.",0,INDEX(Equipamentos!B:K,MATCH(C13,Equipamentos!A:A,0),9)) -> 422.4322 | H13: =((D13*E13*F13)/$H$8)*G13 -> 14.08107333
A14: E9526 | B14: =VLOOKUP(A14,Equipamentos!$A:$K,2,FALSE) -> Retroescavadeira de pneus - capacidade da caçamba da pá-carregadeira de 0,76 m³ e da retroescavadeira de 0,29 m³ - 58 kW | C14: =IFERROR(INDEX('Tabelas 2 e 3 mob'!A:K,MATCH(A14,'Tabelas 2 e 3 mob'!A:A,0),9),"ERRO") -> E9665 | D14: 1 | E14: 2 | F14: 1 | G14: =IF(C14="Veículo(s) da própria frota.",0,INDEX(Equipamentos!B:K,MATCH(C14,Equipamentos!A:A,0),9)) -> 422.4322 | H14: =((D14*E14*F14)/$H$8)*G14 -> 14.08107333
A15: E9577 | B15: =VLOOKUP(A15,Equipamentos!$A:$K,2,FALSE) -> Trator agrícola sobre pneus - 77 kW | C15: =IFERROR(INDEX('Tabelas 2 e 3 mob'!A:K,MATCH(A15,'Tabelas 2 e 3 mob'!A:A,0),9),"ERRO") -> E9665 | D15: 1 | E15: 2 | F15: 0.5 | G15: =IF(C15="Veículo(s) da própria frota.",0,INDEX(Equipamentos!B:K,MATCH(C15,Equipamentos!A:A,0),9)) -> 422.4322 | H15: 7.040536667
A16: E9518 | B16: =VLOOKUP(A16,Equipamentos!$A:$K,2,FALSE) -> Grade de 24 discos rebocável de D = 60 cm (24") | C16: =IFERROR(INDEX('Tabelas 2 e 3 mob'!A:K,MATCH(A16,'Tabelas 2 e 3 mob'!A:A,0),9),"ERRO") -> Veículo(s) da própria frota. | D16: 1 | E16: 2 | F16: 0 | G16: =IF(C16="Veículo(s) da própria frota.",0,INDEX(Equipamentos!B:K,MATCH(C16,Equipamentos!A:A,0),9)) -> 0 | H16: 0
A17: E9615 | B17: =VLOOKUP(A17,Equipamentos!$A:$K,2,FALSE) -> Usina misturadora de solos com capacidade de 300 t/h - 44 kW | C17: =IFERROR(INDEX('Tabelas 2 e 3 mob'!A:K,MATCH(A17,'Tabelas 2 e 3 mob'!A:A,0),9),"ERRO") -> E9018 | D17: 0 | E17: 2 | F17: 2 | G17: =IF(C17="Veículo(s) da própria frota.",0,INDEX(Equipamentos!B:K,MATCH(C17,Equipamentos!A:A,0),9)) -> 561.7271 | H17: 0 | I17: E9686
A18: E9530 | B18: =VLOOKUP(A18,Equipamentos!$A:$K,2,FALSE) -> Rolo compactador liso vibratório autopropelido por pneus de 11 t - 97 kW | C18: =IFERROR(INDEX('Tabelas 2 e 3 mob'!A:K,MATCH(A18,'Tabelas 2 e 3 mob'!A:A,0),9),"ERRO") -> E9666 | D18: 1 | E18: 2 | F18: 0.5 | G18: =IF(C18="Veículo(s) da própria frota.",0,INDEX(Equipamentos!B:K,MATCH(C18,Equipamentos!A:A,0),9)) -> 472.1302 | H18: 7.868836667
A19: E9558 | B19: =VLOOKUP(A19,Equipamentos!$A:$K,2,FALSE) -> Tanque de estocagem de asfalto com capacidade de 30.000 l | C19: =IFERROR(INDEX('Tabelas 2 e 3 mob'!A:K,MATCH(A19,'Tabelas 2 e 3 mob'!A:A,0),9),"ERRO") -> E9665 | D19: 0 | E19: 2 | F19: 1 | G19: =IF(C19="Veículo(s) da própria frota.",0,INDEX(Equipamentos!B:K,MATCH(C19,Equipamentos!A:A,0),9)) -> 422.4322 | H19: 0
A20: E9758 | B20: =VLOOKUP(A20,Equipamentos!$A:$K,2,FALSE) -> Vibroacabadora de asfalto sobre pneus - 97 kW | C20: =IFERROR(INDEX('Tabelas 2 e 3 mob'!A:K,MATCH(A20,'Tabelas 2 e 3 mob'!A:A,0),9),"ERRO") -> E9018 | D20: 0 | E20: 2 | F20: 0.5 | G20: =IF(C20="Veículo(s) da própria frota.",0,INDEX(Equipamentos!B:K,MATCH(C20,Equipamentos!A:A,0),9)) -> 561.7271 | H20: 0
A21: E9685 | B21: =VLOOKUP(A21,Equipamentos!$A:$K,2,FALSE) -> Rolo compactador pé de carneiro vibratório autopropelido por pneus de 11,6 t - 82 kW | C21: =IFERROR(INDEX('Tabelas 2 e 3 mob'!A:K,MATCH(A21,'Tabelas 2 e 3 mob'!A:A,0),9),"ERRO") -> E9666 | D21: 1 | E21: 2 | F21: 0.5 | G21: =IF(C21="Veículo(s) da própria frota.",0,INDEX(Equipamentos!B:K,MATCH(C21,Equipamentos!A:A,0),9)) -> 472.1302 | H21: 7.868836667
A22: E9605 | B22: =VLOOKUP(A22,Equipamentos!$A:$K,2,FALSE) -> Caminhão tanque com capacidade de 6.000 l - 136 kW | C22: =IFERROR(INDEX('Tabelas 2 e 3 mob'!A:K,MATCH(A22,'Tabelas 2 e 3 mob'!A:A,0),9),"ERRO") -> E9605 | D22: 1 | E22: 1 | F22: 1 | G22: =IF(C22="Veículo(s) da própria frota.",0,INDEX(Equipamentos!B:K,MATCH(C22,Equipamentos!A:A,0),9)) -> 276.8761 | H22: 4.614601667
A23: E9579 | B23: =VLOOKUP(A23,Equipamentos!$A:$K,2,FALSE) -> Caminhão basculante com capacidade de 10 m³ - 210 kW | C23: =IFERROR(INDEX('Tabelas 2 e 3 mob'!A:K,MATCH(A23,'Tabelas 2 e 3 mob'!A:A,0),9),"ERRO") -> E9579 | D23: 5 | E23: 1 | F23: 1 | G23: =IF(C23="Veículo(s) da própria frota.",0,INDEX(Equipamentos!B:K,MATCH(C23,Equipamentos!A:A,0),9)) -> 305.7457 | H23: 25.47880833
A24: E9509 | B24: =VLOOKUP(A24,Equipamentos!$A:$K,2,FALSE) -> Caminhão tanque distribuidor de asfalto com capacidade de 6.000 l - 7 kW/136 kW | C24: =IFERROR(INDEX('Tabelas 2 e 3 mob'!A:K,MATCH(A24,'Tabelas 2 e 3 mob'!A:A,0),9),"ERRO") -> E9509 | D24: 0 | E24: 1 | F24: 1 | G24: =IF(C24="Veículo(s) da própria frota.",0,INDEX(Equipamentos!B:K,MATCH(C24,Equipamentos!A:A,0),9)) -> 331.719 | H24: 0
A25: E9762 | B25: =VLOOKUP(A25,Equipamentos!$A:$K,2,FALSE) -> Rolo compactador de pneus autopropelido de 27 t - 85 kW | C25: =IFERROR(INDEX('Tabelas 2 e 3 mob'!A:K,MATCH(A25,'Tabelas 2 e 3 mob'!A:A,0),9),"ERRO") -> E9666 | D25: 1 | E25: 2 | F25: 0.5 | G25: =IF(C25="Veículo(s) da própria frota.",0,INDEX(Equipamentos!B:K,MATCH(C25,Equipamentos!A:A,0),9)) -> 472.1302 | H25: 7.868836667
A26: E9681 | B26: =VLOOKUP(A26,Equipamentos!$A:$K,2,FALSE) -> Rolo compactador liso tandem vibratório autopropelido de 10,4 t - 82 kW | C26: =IFERROR(INDEX('Tabelas 2 e 3 mob'!A:K,MATCH(A26,'Tabelas 2 e 3 mob'!A:A,0),9),"ERRO") -> E9666 | D26: 0 | E26: 2 | F26: 0.5 | G26: =IF(C26="Veículo(s) da própria frota.",0,INDEX(Equipamentos!B:K,MATCH(C26,Equipamentos!A:A,0),9)) -> 472.1302 | H26: 0
A27: E9545 | B27: =VLOOKUP(A27,Equipamentos!$A:$K,2,FALSE) -> Vibroacabadora de asfalto sobre esteiras - 97 kW | C27: =IFERROR(INDEX('Tabelas 2 e 3 mob'!A:K,MATCH(A27,'Tabelas 2 e 3 mob'!A:A,0),9),"ERRO") -> E9018 | D27: 0 | E27: 2 | F27: 0.5 | G27: =IF(C27="Veículo(s) da própria frota.",0,INDEX(Equipamentos!B:K,MATCH(C27,Equipamentos!A:A,0),9)) -> 561.7271 | H27: 0
A28: E9571 | B28: =VLOOKUP(A28,Equipamentos!$A:$K,2,FALSE) -> Caminhão tanque com capacidade de 10.000 l - 188 kW | C28: =IFERROR(INDEX('Tabelas 2 e 3 mob'!A:K,MATCH(A28,'Tabelas 2 e 3 mob'!A:A,0),9),"ERRO") -> E9571 | D28: 1 | E28: 1 | F28: 1 | G28: =IF(C28="Veículo(s) da própria frota.",0,INDEX(Equipamentos!B:K,MATCH(C28,Equipamentos!A:A,0),9)) -> 357.5728 | H28: 5.959546667
A29: E9514 | B29: =VLOOKUP(A29,Equipamentos!$A:$K,2,FALSE) -> Distribuidor de agregados sobre pneus autopropelido - 130 kW | C29: =IFERROR(INDEX('Tabelas 2 e 3 mob'!A:K,MATCH(A29,'Tabelas 2 e 3 mob'!A:A,0),9),"ERRO") -> E9665 | D29: 1 | E29: 2 | F29: 0.5 | G29: =IF(C29="Veículo(s) da própria frota.",0,INDEX(Equipamentos!B:K,MATCH(C29,Equipamentos!A:A,0),9)) -> 422.4322 | H29: 7.040536667
A30: E9511 | B30: =VLOOKUP(A30,Equipamentos!$A:$K,2,FALSE) -> Carregadeira de pneus com capacidade de 3,40 m³ - 195 kW | C30: =IFERROR(INDEX('Tabelas 2 e 3 mob'!A:K,MATCH(A30,'Tabelas 2 e 3 mob'!A:A,0),9),"ERRO") -> E9665 | D30: 1 | E30: 2 | F30: 1 | G30: =IF(C30="Veículo(s) da própria frota.",0,INDEX(Equipamentos!B:K,MATCH(C30,Equipamentos!A:A,0),9)) -> 422.4322 | H30: 14.08107333
A31: E9779 | B31: =VLOOKUP(A31,Equipamentos!$A:$K,2,FALSE) -> Grupo gerador - 113 kVA | C31: =IFERROR(INDEX('Tabelas 2 e 3 mob'!A:K,MATCH(A31,'Tabelas 2 e 3 mob'!A:A,0),9),"ERRO") -> Veículo(s) da própria frota. | D31: 1 | E31: 2 | F31: 0 | G31: =IF(C31="Veículo(s) da própria frota.",0,INDEX(Equipamentos!B:K,MATCH(C31,Equipamentos!A:A,0),9)) -> 0 | H31: 0
A32: E9559 | B32: =VLOOKUP(A32,Equipamentos!$A:$K,2,FALSE) -> Aquecedor de fluido térmico - 12 kW | C32: =IFERROR(INDEX('Tabelas 2 e 3 mob'!A:K,MATCH(A32,'Tabelas 2 e 3 mob'!A:A,0),9),"ERRO") -> Veículo(s) da própria frota. | D32: 1 | E32: 2 | F32: 0 | G32: =IF(C32="Veículo(s) da própria frota.",0,INDEX(Equipamentos!B:K,MATCH(C32,Equipamentos!A:A,0),9)) -> 0 | H32: 0
A33: E9584 | B33: =VLOOKUP(A33,Equipamentos!$A:$K,2,FALSE) -> Carregadeira de pneus com capacidade de 1,72 m³ - 113 kW | C33: =IFERROR(INDEX('Tabelas 2 e 3 mob'!A:K,MATCH(A33,'Tabelas 2 e 3 mob'!A:A,0),9),"ERRO") -> E9665 | D33: 1 | E33: 2 | F33: 1 | G33: =IF(C33="Veículo(s) da própria frota.",0,INDEX(Equipamentos!B:K,MATCH(C33,Equipamentos!A:A,0),9)) -> 422.4322 | H33: 14.08107333
A34: E9021 | B34: =VLOOKUP(A34,Equipamentos!$A:$K,2,FALSE) -> Grupo gerador - 456 kVA | C34: =IFERROR(INDEX('Tabelas 2 e 3 mob'!A:K,MATCH(A34,'Tabelas 2 e 3 mob'!A:A,0),9),"ERRO") -> E9508 | D34: 1 | E34: 2 | F34: 1 | G34: =IF(C34="Veículo(s) da própria frota.",0,INDEX(Equipamentos!B:K,MATCH(C34,Equipamentos!A:A,0),9)) -> 193.0334 | H34: 6.434446667
A35: E9687 | B35: =VLOOKUP(A35,Equipamentos!$A:$K,2,FALSE) -> Caminhão carroceria com capacidade de 5 t - 120 kW | C35: =IFERROR(INDEX('Tabelas 2 e 3 mob'!A:K,MATCH(A35,'Tabelas 2 e 3 mob'!A:A,0),9),"ERRO") -> E9687 | D35: 1 | E35: 1 | F35: 1 | G35: =IF(C35="Veículo(s) da própria frota.",0,INDEX(Equipamentos!B:K,MATCH(C35,Equipamentos!A:A,0),9)) -> 172.265 | H35: 2.871083333
A36: E9667 | B36: =VLOOKUP(A36,Equipamentos!$A:$K,2,FALSE) -> Caminhão basculante com capacidade de 14 m³ - 210 kW | C36: =IFERROR(INDEX('Tabelas 2 e 3 mob'!A:K,MATCH(A36,'Tabelas 2 e 3 mob'!A:A,0),9),"ERRO") -> E9667 | D36: 1 | E36: 1 | F36: 1 | G36: =IF(C36="Veículo(s) da própria frota.",0,INDEX(Equipamentos!B:K,MATCH(C36,Equipamentos!A:A,0),9)) -> 319.0394 | H36: 5.317323333
A37: E9644 | B37: =VLOOKUP(A37,Equipamentos!$A:$K,2,FALSE) -> Caminhão demarcador de faixas com sistema de pintura a frio - 28 kW/129 kW | C37: =IFERROR(INDEX('Tabelas 2 e 3 mob'!A:K,MATCH(A37,'Tabelas 2 e 3 mob'!A:A,0),9),"ERRO") -> E9644 | D37: 1 | E37: 1 | F37: 1 | G37: =IF(C37="Veículo(s) da própria frota.",0,INDEX(Equipamentos!B:K,MATCH(C37,Equipamentos!A:A,0),9)) -> 456.2076 | H37: 7.60346
A38: E9592 | B38: =VLOOKUP(A38,Equipamentos!$A:$K,2,FALSE) -> Caminhão carroceria com capacidade de 15 t - 188 kW | C38: =IFERROR(INDEX('Tabelas 2 e 3 mob'!A:K,MATCH(A38,'Tabelas 2 e 3 mob'!A:A,0),9),"ERRO") -> E9592 | D38: 1 | E38: 1 | F38: 1 | G38: =IF(C38="Veículo(s) da própria frota.",0,INDEX(Equipamentos!B:K,MATCH(C38,Equipamentos!A:A,0),9)) -> 281.2094 | H38: 4.686823333
A39: E9540 | B39: =VLOOKUP(A39,Equipamentos!$A:$K,2,FALSE) -> Trator sobre esteiras com lâmina - 127 kW | C39: =IFERROR(INDEX('Tabelas 2 e 3 mob'!A:K,MATCH(A39,'Tabelas 2 e 3 mob'!A:A,0),9),"ERRO") -> E9018 | D39: 1 | E39: 2 | F39: 0.5 | G39: =IF(C39="Veículo(s) da própria frota.",0,INDEX(Equipamentos!B:K,MATCH(C39,Equipamentos!A:A,0),9)) -> 561.7271 | H39: 9.362118333
A40: E9515 | B40: =VLOOKUP(A40,Equipamentos!$A:$K,2,FALSE) -> Escavadeira hidráulica sobre esteiras com caçamba com capacidade de 1,56 m³ - 118 kW | C40: =IFERROR(INDEX('Tabelas 2 e 3 mob'!A:K,MATCH(A40,'Tabelas 2 e 3 mob'!A:A,0),9),"ERRO") -> E9666 | D40: 1 | E40: 2 | F40: 1 | G40: =IF(C40="Veículo(s) da própria frota.",0,INDEX(Equipamentos!B:K,MATCH(C40,Equipamentos!A:A,0),9)) -> 472.1302 | H40: 15.73767333
A41: E9506 | B41: =VLOOKUP(A41,Equipamentos!$A:$K,2,FALSE) -> Caminhão basculante com capacidade de 6 m³ - 136 kW | C41: =IFERROR(INDEX('Tabelas 2 e 3 mob'!A:K,MATCH(A41,'Tabelas 2 e 3 mob'!A:A,0),9),"ERRO") -> E9506 | D41: 1 | E41: 1 | F41: 1 | G41: =IF(C41="Veículo(s) da própria frota.",0,INDEX(Equipamentos!B:K,MATCH(C41,Equipamentos!A:A,0),9)) -> 198.0705 | H41: 3.301175
A42: E9256 | B42: =VLOOKUP(A42,Equipamentos!$A:$K,2,FALSE) -> Equipamento para pintura com cal rebocável com dois bicos aplicadores e capacidade de 2.200 l | C42: =IFERROR(INDEX('Tabelas 2 e 3 mob'!A:K,MATCH(A42,'Tabelas 2 e 3 mob'!A:A,0),9),"ERRO") -> Veículo(s) da própria frota. | D42: 1 | E42: 2 | F42: 0 | G42: =IF(C42="Veículo(s) da própria frota.",0,INDEX(Equipamentos!B:K,MATCH(C42,Equipamentos!A:A,0),9)) -> 0 | H42: 0
A43: E9156 | B43: =VLOOKUP(A43,Equipamentos!$A:$K,2,FALSE) -> Soprador de ar costal - 2,6 kW | C43: =IFERROR(INDEX('Tabelas 2 e 3 mob'!A:K,MATCH(A43,'Tabelas 2 e 3 mob'!A:A,0),9),"ERRO") -> Veículo(s) da própria frota. | D43: 1 | E43: 2 | F43: 0 | G43: =IF(C43="Veículo(s) da própria frota.",0,INDEX(Equipamentos!B:K,MATCH(C43,Equipamentos!A:A,0),9)) -> 0 | H43: 0
A44: E9146 | B44: =VLOOKUP(A44,Equipamentos!$A:$K,2,FALSE) -> Caminhão silo com capacidade de 30 m³ - 368 kW | C44: =IFERROR(INDEX('Tabelas 2 e 3 mob'!A:K,MATCH(A44,'Tabelas 2 e 3 mob'!A:A,0),9),"ERRO") -> E9146 | D44: 1 | E44: 1 | F44: 1 | G44: =IF(C44="Veículo(s) da própria frota.",0,INDEX(Equipamentos!B:K,MATCH(C44,Equipamentos!A:A,0),9)) -> 668.498 | H44: 11.14163333
A45: E9599 | B45: =VLOOKUP(A45,Equipamentos!$A:$K,2,FALSE) -> Central de concreto com capacidade de 30 m³/h - dosadora RS | C45: =IFERROR(INDEX('Tabelas 2 e 3 mob'!A:K,MATCH(A45,'Tabelas 2 e 3 mob'!A:A,0),9),"ERRO") -> E9018 | D45: 1 | E45: 2 | F45: 1 | G45: =IF(C45="Veículo(s) da própria frota.",0,INDEX(Equipamentos!B:K,MATCH(C45,Equipamentos!A:A,0),9)) -> 561.7271 | H45: 18.72423667
A46: E9103 | B46: =VLOOKUP(A46,Equipamentos!$A:$K,2,FALSE) -> Extrusora para meio-fio de concreto - 10,44 kW | C46: =IFERROR(INDEX('Tabelas 2 e 3 mob'!A:K,MATCH(A46,'Tabelas 2 e 3 mob'!A:A,0),9),"ERRO") -> Veículo(s) da própria frota. | D46: 1 | E46: 2 | F46: 0 | G46: =IF(C46="Veículo(s) da própria frota.",0,INDEX(Equipamentos!B:K,MATCH(C46,Equipamentos!A:A,0),9)) -> 0 | H46: 0
A47: E9071 | B47: =VLOOKUP(A47,Equipamentos!$A:$K,2,FALSE) -> Transportador manual carrinho de mão com capacidade de 80 l | C47: =IFERROR(INDEX('Tabelas 2 e 3 mob'!A:K,MATCH(A47,'Tabelas 2 e 3 mob'!A:A,0),9),"ERRO") -> Veículo(s) da própria frota. | D47: 0 | E47: 2 | F47: 0 | G47: =IF(C47="Veículo(s) da própria frota.",0,INDEX(Equipamentos!B:K,MATCH(C47,Equipamentos!A:A,0),9)) -> 0 | H47: 0
A48: E9064 | B48: =VLOOKUP(A48,Equipamentos!$A:$K,2,FALSE) -> Transportador manual gerica com capacidade de 180 l | C48: =IFERROR(INDEX('Tabelas 2 e 3 mob'!A:K,MATCH(A48,'Tabelas 2 e 3 mob'!A:A,0),9),"ERRO") -> Veículo(s) da própria frota. | D48: 0 | E48: 2 | F48: 0 | G48: =IF(C48="Veículo(s) da própria frota.",0,INDEX(Equipamentos!B:K,MATCH(C48,Equipamentos!A:A,0),9)) -> 0 | H48: 0
A49: E9066 | B49: =VLOOKUP(A49,Equipamentos!$A:$K,2,FALSE) -> Grupo gerador - 14 kVA | C49: =IFERROR(INDEX('Tabelas 2 e 3 mob'!A:K,MATCH(A49,'Tabelas 2 e 3 mob'!A:A,0),9),"ERRO") -> Veículo(s) da própria frota. | D49: 0 | E49: 2 | F49: 0 | G49: =IF(C49="Veículo(s) da própria frota.",0,INDEX(Equipamentos!B:K,MATCH(C49,Equipamentos!A:A,0),9)) -> 0 | H49: 0
A50: E9535 | B50: =VLOOKUP(A50,Equipamentos!$A:$K,2,FALSE) -> Serra circular com bancada - D = 30 cm - 4 kW | C50: =IFERROR(INDEX('Tabelas 2 e 3 mob'!A:K,MATCH(A50,'Tabelas 2 e 3 mob'!A:A,0),9),"ERRO") -> Veículo(s) da própria frota. | D50: 0 | E50: 2 | F50: 0 | G50: =IF(C50="Veículo(s) da própria frota.",0,INDEX(Equipamentos!B:K,MATCH(C50,Equipamentos!A:A,0),9)) -> 0 | H50: 0
A51: E9507 | B51: =VLOOKUP(A51,Equipamentos!$A:$K,2,FALSE) -> Plotadora de recorte com computador e programa computacional | C51: =IFERROR(INDEX('Tabelas 2 e 3 mob'!A:K,MATCH(A51,'Tabelas 2 e 3 mob'!A:A,0),9),"ERRO") -> Veículo(s) da própria frota. | D51: 0 | E51: 2 | F51: 0 | G51: =IF(C51="Veículo(s) da própria frota.",0,INDEX(Equipamentos!B:K,MATCH(C51,Equipamentos!A:A,0),9)) -> 0 | H51: 0
A52: E9568 | B52: =VLOOKUP(A52,Equipamentos!$A:$K,2,FALSE) -> Furadeira de impacto de 12,5 mm - 0,80 kW | C52: =IFERROR(INDEX('Tabelas 2 e 3 mob'!A:K,MATCH(A52,'Tabelas 2 e 3 mob'!A:A,0),9),"ERRO") -> Veículo(s) da própria frota. | D52: 0 | E52: 2 | F52: 0 | G52: =IF(C52="Veículo(s) da própria frota.",0,INDEX(Equipamentos!B:K,MATCH(C52,Equipamentos!A:A,0),9)) -> 0 | H52: 0
A53: E9753 | B53: =VLOOKUP(A53,Equipamentos!$A:$K,2,FALSE) -> Grupo gerador - 23 kVA | C53: =IFERROR(INDEX('Tabelas 2 e 3 mob'!A:K,MATCH(A53,'Tabelas 2 e 3 mob'!A:A,0),9),"ERRO") -> Veículo(s) da própria frota. | D53: 0 | E53: 2 | F53: 0 | G53: =IF(C53="Veículo(s) da própria frota.",0,INDEX(Equipamentos!B:K,MATCH(C53,Equipamentos!A:A,0),9)) -> 0 | H53: 0
A54: E9623 | B54: =VLOOKUP(A54,Equipamentos!$A:$K,2,FALSE) -> Máquina de bancada guilhotina - 4,00 kW | C54: =IFERROR(INDEX('Tabelas 2 e 3 mob'!A:K,MATCH(A54,'Tabelas 2 e 3 mob'!A:A,0),9),"ERRO") -> Veículo(s) da própria frota. | D54: 0 | E54: 2 | F54: 0 | G54: =IF(C54="Veículo(s) da própria frota.",0,INDEX(Equipamentos!B:K,MATCH(C54,Equipamentos!A:A,0),9)) -> 0 | H54: 0
A55: E9622 | B55: =VLOOKUP(A55,Equipamentos!$A:$K,2,FALSE) -> Máquina de bancada universal para corte de chapa - 1,50 kW | C55: =IFERROR(INDEX('Tabelas 2 e 3 mob'!A:K,MATCH(A55,'Tabelas 2 e 3 mob'!A:A,0),9),"ERRO") -> Veículo(s) da própria frota. | D55: 0 | E55: 2 | F55: 0 | G55: =IF(C55="Veículo(s) da própria frota.",0,INDEX(Equipamentos!B:K,MATCH(C55,Equipamentos!A:A,0),9)) -> 0 | H55: 0
A56: E9678 | B56: =VLOOKUP(A56,Equipamentos!$A:$K,2,FALSE) -> Fresadora a frio - 455 kW | C56: =IFERROR(INDEX('Tabelas 2 e 3 mob'!A:K,MATCH(A56,'Tabelas 2 e 3 mob'!A:A,0),9),"ERRO") -> E9666 | D56: 0 | E56: 2 | F56: 1 | G56: =IF(C56="Veículo(s) da própria frota.",0,INDEX(Equipamentos!B:K,MATCH(C56,Equipamentos!A:A,0),9)) -> 472.1302 | H56: 0
A57: E9686 | B57: =VLOOKUP(A57,Equipamentos!$A:$K,2,FALSE) -> Caminhão guindauto com capacidade de elevação de 6,2 t e carroceria de 7 t - 136 kW | C57: =IFERROR(INDEX('Tabelas 2 e 3 mob'!A:K,MATCH(A57,'Tabelas 2 e 3 mob'!A:A,0),9),"ERRO") -> E9686 | D57: 1 | E57: 2 | F57: 1 | G57: =IF(C57="Veículo(s) da própria frota.",0,INDEX(Equipamentos!B:K,MATCH(C57,Equipamentos!A:A,0),9)) -> 321.0279 | H57: =((D57*E57*F57)/$H$8)*G57 -> 10.70093
G58: TOTAL | H58: =SUM(H13:H57) -> 225.9457367
A61: CUSTO TOTAL MOBILIZAÇÃO E DESMOBILIZAÇÃO
A62: DESCRIÇÃO | B62: VALOR
A63: Custo Mobilização (km) | B63: =H58 -> 225.9457367
A64: BDI (%) | B64: =BDI!C14 -> 0.2339
A65: Custo Mobilização (R$/km) com BDI | B65: =B63+(B63*B64) -> 278.7944445
A66: Total de Frentes | B66: ='MC MODULO'!G1 -> 17
A67: Custo Mobilização (frentes x distancia) | B67: =B65*H6*B66 -> 118487.6389

Sheet Canteiro
A4: CANTEIRO DE OBRAS PARA CONSTRUÇAO RODOVIÁRIA
A5: Descrição dos serviços | B5: Tipo de container | C5: Unidade | D5: Quantidade | E5: Preço unitário (R$) | F5: Total (R$)
A6: Escritório e seção técnica
A7: =VLOOKUP(B7,'INSUMOS SINAPI'!A:E,2,0) -> LOCACAO DE CONTAINER 2,30 X 6,00 M, ALT. 2,50 M, PARA ESCRITORIO, SEM DIVISORIAS INTERNAS E SEM SANITARIO (NAO INCLUI MOBILIZACAO/DESMOBILIZACAO) | B7: 10776 | C7: und | D7: 1 | E7: =VLOOKUP(B7,'INSUMOS SINAPI'!$A:$E,5,0) -> 1015.62 | F7: =TRUNC(D7*E7,2) -> 1015.62
A8: Banheiro e vestiário
A9: =VLOOKUP(B9,'INSUMOS SINAPI'!A:E,2,0) -> LOCACAO DE CONTAINER 2,30 X 4,30 M, ALT. 2,50 M, PARA SANITARIO, COM 3 BACIAS, 4 CHUVEIROS, 1 LAVATORIO E 1 MICTORIO (NAO INCLUI MOBILIZACAO/DESMOBILIZACAO) | B9: 10777 | C9: und | D9: 1 | E9: =VLOOKUP(B9,'INSUMOS SINAPI'!$A:$E,5,0) -> 1476.04 | F9: =TRUNC(D9*E9,2) -> 1476.04
D10: TOTAL DO CANTEIRO | F10: =SUM(F7:F9) -> 2491.66
D11: DURAÇÃO (MESES) | E11: 1 | F11: =F10*E11 -> 2491.66
D12: BDI | F12: =BDI!C14 -> 0.2339
D13: TOTAL DO CANTEIRO (com BDI) | F13: =F11+(F11*F12) -> 3074.459274

Sheet Adm Local
A4: parcela fixa da administração local (mão de obra)
A5: Código | B5: Discriminação | C5: Unidade | D5: Quantidade | F5: Custo Unitário (R$) | H5: Custo Total (R$)
B6: Mão de Obra
B7: Gerência Técnica
B8: Geral
A9: P9955 | B9: Engenheiro chefe | C9: mês | D9: 0.5 | F9: =VLOOKUP(A9,'Pessoal Sicro'!$A$6:$G$118,6,0) -> 34473.2594 | H9: =F9*D9 -> 17236.6297
A10: P9840 | B10: Encarregado geral | C10: mês | D10: 0.5 | F10: =VLOOKUP(A10,'Pessoal Sicro'!$A$6:$G$118,6,0) -> 11501.5121 | H10: =F10*D10 -> 5750.75605
A11: P9897 | B11: Técnico de meio ambiente | C11: mês | D11: 0 | F11: =VLOOKUP(A11,'Pessoal Sicro'!$A$6:$G$118,6,0) -> 8048.5412 | H11: =F11*D11 -> 0
A12: P9948 | B12: Motorista | C12: mês | D12: 0 | F12: =VLOOKUP(A12,'Pessoal Sicro'!$A$6:$G$118,6,0) -> 6008.0336 | H12: =F12*D12 -> 0
A13: P9878 | B13: Secretária | C13: mês | D13: 0 | F13: =VLOOKUP(A13,'Pessoal Sicro'!$A$6:$G$118,6,0) -> 6830.99 | H13: =F13*D13 -> 0
F14: Subtotal do Item 1.1 | H14: =SUM(H9:I13) -> 22987.38575
B15: Auxiliar
A16: P9946 | B16: Engenheiro auxiliar | C16: mês | D16: 1 | F16: =VLOOKUP(A16,'Pessoal Sicro'!$A$6:$G$118,6,0) -> 24874.8163 | H16: =D16*F16 -> 24874.8163
A17: P9903 | B17: Auxiliar técnico | C17: mês | D17: 0 | F17: =VLOOKUP(A17,'Pessoal Sicro'!$A$6:$G$118,6,0) -> 4875.3669 | H17: =D17*F17 -> 0
F18: Subtotal do Item 1.2 | H18: =SUM(H16:I17) -> 24874.8163
B19: Gerência Administrativa
B20: Geral
A21: P9883 | B21: Chefe do setor administrativo | C21: mês | D21: 1 | F21: =VLOOKUP(A21,'Pessoal Sicro'!$A$6:$G$118,6,0) -> 7783.947 | H21: =F21*D21 -> 7783.947
A22: P9809 | B22: Encarregado administrativo | C22: mês | D22: 0 | F22: =VLOOKUP(A22,'Pessoal Sicro'!$A$6:$G$118,6,0) -> 7783.8336 | H22: =F22*D22 -> 0
A23: P9896 | B23: Porteiro | C23: mês | D23: 0 | F23: =VLOOKUP(A23,'Pessoal Sicro'!$A$6:$G$118,6,0) -> 4344.2089 | H23: =F23*D23 -> 0
A24: P9827 | B24: Vigia | C24: mês | D24: 0 | F24: =VLOOKUP(A24,'Pessoal Sicro'!$A$6:$G$118,6,0) -> 5190.1176 | H24: =F24*D24 -> 0
A25: P9948 | B25: Motorista | C25: mês | D25: 0 | F25: =VLOOKUP(A25,'Pessoal Sicro'!$A$6:$G$118,6,0) -> 6008.0336 | H25: =F25*D25 -> 0
F26: Subtotal do Item 1.3 | H26: =SUM(H21:I25) -> 7783.947
B27: Auxiliar
A28: P9806 | B28: Auxiliar administrativo | C28: mês | D28: 1 | F28: =VLOOKUP(A28,'Pessoal Sicro'!$A$6:$G$118,6,0) -> 5091.0802 | H28: =F28*D28 -> 5091.0802
A29: P9842 | B29: Faxineiro | C29: mês | D29: 0 | F29: =VLOOKUP(A29,'Pessoal Sicro'!$A$6:$G$118,6,0) -> 4353.3801 | H29: =F29*D29 -> 0
F30: Subtotal do Item 1.4 | H30: =SUM(H28:I29) -> 5091.0802
H31: Total da Mão de Obra da Parcela Fixa | I31: =H30+H26+H18+H14 -> 60737.22925
A33: parcela fixa da administração local (veículos)
A34: Código | B34: Discriminação | C34: Unidade | D34: Quantidade | E34: Utilização Produtiva | F34: Utilização Improdutiva | G34: Custo Horário Produtivo (R$) | H34: Custo Horário Improdutivo (R$) | I34: Custo Total (R$)
A35: 2 | B35: Veículos
B36: Gerência Técnica
A37: 2.1 | B37: Geral
A38: E9093 | B38: Veículo Leve 53 kw | C38: mês | D38: 1 | E38: 44 | F38: 176 | G38: =VLOOKUP(A38,Equipamentos!$A$4:$K$541,10,0) -> 37.9171 | H38: =VLOOKUP(A38,Equipamentos!$A$4:$K$541,11,0) -> 6.7543 | I38: =((E38*G38)+(F38*H38))*D38 -> 2857.1092
A39: E9560 | B39: Ônibus coletivo - 175 kw | C39: mês | D39: 0 | E39: 44 | F39: 176 | G39: =VLOOKUP(A39,Equipamentos!$A$4:$K$541,10,0) -> 353.6381 | H39: =VLOOKUP(A39,Equipamentos!$A$4:$K$541,11,0) -> 106.3423 | I39: =((E39*G39)+(F39*H39))*D39 -> 0
H40: Subtotal do Item 2 | I40: =SUM(I38:I39) -> 2857.1092
A41: 2.2 | B41: Auxiliar
A42: E9093 | B42: Veículo Leve 53 kw | C42: mês | D42: 0 | E42: 44 | F42: 176 | G42: =G38 -> 37.9171 | H42: =H38 -> 6.7543 | I42: =((E42*G42)+(F42*H42))*D42 -> 0
H43: Subtotal do Item 2 | I43: =SUM(I42) -> 0
A44: 2.3 | B44: Gerência Administrativa
A45: E9093 | B45: Veículo Leve 53 kw | C45: mês | D45: 0 | E45: 44 | F45: 176 | G45: =G38 -> 37.9171 | H45: =H38 -> 6.7543 | I45: =((E45*G45)+(F45*H45))*D45 -> 0
H46: Subtotal do Item 2 | I46: =I45 -> 0
H47: Total dos Veículos da Parcela Fixa | I47: =I46+I43+I40 -> 2857.1092
A49: Composição de custo da equipe de produção de terraplenagem
A50: Código | B50: Discriminação | C50: Unidade | D50: Quantidade | F50: Custo Unitário (R$) | H50: Custo Total (R$)
B51: Equipe de Produção de Terraplenagem
A52: 3.1 | B52: Mão de Obra
A53: ='Pessoal Sicro'!A65 -> P9892 | B53: Encarregado de produção | C53: mês | D53: 0 | F53: =VLOOKUP(A53,'Pessoal Sicro'!$A$6:$G$118,6,0) -> 37.107 | H53: =F53*D53 -> 0
F54: Subtotal do Item 3.1 | H54: =SUM(H53:H53) -> 0
A55: Código | B55: Discriminação | C55: Unidade | D55: Quantidade | E55: Utilização Produtiva | F55: Utilização Improdutiva | G55: Custo Horário Produtivo (R$) | H55: Custo Horário Improdutivo (R$) | I55: Custo Total (R$)
A56: 3.2 | B56: Veículos
B57: Veículo Leve 53 kw | C57: mês | D57: 0 | E57: 44 | F57: 176 | G57: =G38 -> 37.9171 | H57: =H38 -> 6.7543 | I57: =((E57*G57)+(F57*H57))*D57 -> 0
H58: Subtotal do Item 3.2 | I58: =SUM(I57:I57) -> 0
H59: Total da Equipe de Produção de Terraplenagem | I59: =I58+H54 -> 0
A61: Composição de custo da equipe de produção de pavimentação
A62: Código | B62: Discriminação | C62: Unidade | D62: Quantidade | F62: Custo Unitário (R$) | H62: Custo Total (R$)
B63: Equipe de Produção de Pavimentação
A64: 3.1 | B64: Mão de Obra
A65: ='Pessoal Sicro'!A70 -> P9901 | B65: Encarregado de produção | C65: mês | D65: 1 | F65: =VLOOKUP(A65,'Pessoal Sicro'!$A$6:$G$118,6,0) -> 8281.7942 | H65: =F65*D65 -> 8281.7942
F66: Subtotal do Item 3.1 | H66: =SUM(H65:H65) -> 8281.7942
A67: Código | B67: Discriminação | C67: Unidade | D67: Quantidade | E67: Utilização Produtiva | F67: Utilização Improdutiva | G67: Custo Horário Produtivo (R$) | H67: Custo Horário Improdutivo (R$) | I67: Custo Total (R$)
A68: 3.2 | B68: Veículos
B69: Veículo Leve 53 kw | C69: mês | D69: 1 | E69: 44 | F69: 176 | G69: =G38 -> 37.9171 | H69: =H38 -> 6.7543 | I69: =((E69*G69)+(F69*H69))*D69 -> 2857.1092
H70: Subtotal do Item 3.2 | I70: =SUM(I69:I69) -> 2857.1092
H71: Total da Equipe de Produção de Pavimentação | I71: =I70+H66 -> 11138.9034
A73: Composição de custo da equipe de produção de drenagem
A74: Código | B74: Discriminação | C74: Unidade | D74: Quantidade | F74: Custo Unitário (R$) | H74: Custo Total (R$)
B75: Equipe de Produção de Pavimentação
A76: 3.1 | B76: Mão de Obra
A77: ='Pessoal Sicro'!A70 -> P9901 | B77: Encarregado de produção | C77: mês | D77: 0 | F77: =VLOOKUP(A77,'Pessoal Sicro'!$A$6:$G$118,6,0) -> 8281.7942 | H77: =F77*D77 -> 0
F78: Subtotal do Item 3.1 | H78: =SUM(H77:H77) -> 0
A79: Código | B79: Discriminação | C79: Unidade | D79: Quantidade | E79: Utilização Produtiva | F79: Utilização Improdutiva | G79: Custo Horário Produtivo (R$) | H79: Custo Horário Improdutivo (R$) | I79: Custo Total (R$)
A80: 3.2 | B80: Veículos
B81: Veículo Leve 53 kw | C81: mês | D81: 0 | E81: 44 | F81: 176 | G81: =G38 -> 37.9171 | H81: =H38 -> 6.7543 | I81: =((E81*G81)+(F81*H81))*D81 -> 0
H82: Subtotal do Item 3.2 | I82: =SUM(I81:I81) -> 0
H83: Total da Equipe de Produção de Pavimentação | I83: =I82+H78 -> 0
A85: Composição de custo da equipe de produção de sinalização
A86: Código | B86: Discriminação | C86: Unidade | D86: Quantidade | F86: Custo Unitário (R$) | H86: Custo Total (R$)
B87: Equipe de Produção de Pavimentação
A88: 3.1 | B88: Mão de Obra
A89: ='Pessoal Sicro'!A70 -> P9901 | B89: Encarregado de produção | C89: mês | D89: 0 | F89: =VLOOKUP(A89,'Pessoal Sicro'!$A$6:$G$118,6,0) -> 8281.7942 | H89: =F89*D89 -> 0
F90: Subtotal do Item 3.1 | H90: =SUM(H89:H89) -> 0
A91: Código | B91: Discriminação | C91: Unidade | D91: Quantidade | E91: Utilização Produtiva | F91: Utilização Improdutiva | G91: Custo Horário Produtivo (R$) | H91: Custo Horário Improdutivo (R$) | I91: Custo Total (R$)
A92: 3.2 | B92: Veículos
B93: Veículo Leve 53 kw | C93: mês | D93: 0 | E93: 44 | F93: 176 | G93: =G38 -> 37.9171 | H93: =H38 -> 6.7543 | I93: =((E93*G93)+(F93*H93))*D93 -> 0
H94: Subtotal do Item 3.2 | I94: =SUM(I93:I93) -> 0
H95: Total da Equipe de Produção de Pavimentação | I95: =I94+H90 -> 0
A97: Composição de custo da equipe topografia
A98: Código | B98: Discriminação | C98: Unidade | D98: Quantidade | F98: Custo Unitário (R$) | H98: Custo Total (R$)
B99: Equipe de Topografia
A100: 3.1 | B100: Mão de Obra | K100: ='RESUMO MODULO TOTAL'!L52 -> 20138370
A101: P9949 | B101: Topográfo | C101: mês | D101: 1.006106069 | F101: =VLOOKUP(A101,'Pessoal Sicro'!$A$6:$G$118,6,0) -> 9340.8044 | H101: =F101*D101 -> 9397.84 | K101: ='RESUMO MODULO TOTAL'!L59 -> 20138370
A102: P9950 | B102: Auxiliar de topografia | C102: mês | D102: 1 | F102: =VLOOKUP(A102,'Pessoal Sicro'!$A$6:$G$118,6,0) -> 6055.7508 | H102: =F102*D102 -> 6055.7508
F103: Subtotal do Item 3.1 | H103: =SUM(H101:I102) -> 15453.5908 | K103: =K101-K100 -> 0
A104: Código | B104: Discriminação | C104: Unidade | D104: Quantidade | E104: Utilização Produtiva | F104: Utilização Improdutiva | G104: Custo Horário Produtivo (R$) | H104: Custo Horário Improdutivo (R$) | I104: Custo Total (R$) | K104: =K103/(1.05*1.2339) -> 0
A105: 3.2 | B105: Veículos | K105: =K104/2 -> 0
B106: Veículo Leve 53 kw | C106: mês | D106: 1 | E106: 44 | F106: 176 | G106: =G38 -> 37.9171 | H106: =H38 -> 6.7543 | I106: =((E106*G106)+(F106*H106))*D106 -> 2857.1092
H107: Subtotal do Item 3.2 | I107: =SUM(I106:I106) -> 2857.1092
H108: Total da Equipe de Produção de Topografia | I108: =I107+H103 -> 18310.7
A110: Composição de custo do setor de medicina e segurança do trabalho
A111: Código | B111: Discriminação | C111: Unidade | D111: Quantidade | F111: Custo Unitário (R$) | H111: Custo Total (R$)
A112: 4 | B112: Setor de Medicina e Segurança do Trabalho
A113: P9876 | B113: Técnico de segurança do trabalho | C113: mês | D113: 1 | F113: =VLOOKUP(A113,'Pessoal Sicro'!$A$6:$G$118,6,0) -> 7792.2539 | H113: =F113*D113 -> 7792.2539
A114: P9864 | B114: Engenheiro de segurança do trabalho | C114: mês | D114: 0 | F114: =VLOOKUP(A114,'Pessoal Sicro'!$A$6:$G$118,6,0) -> 24956.0135 | H114: =F114*D114 -> 0
A115: P9851 | B115: Médico do trabalho | C115: mês | D115: 0 | F115: =VLOOKUP(A115,'Pessoal Sicro'!$A$6:$G$118,6,0) -> 18672.6242 | H115: =F115*D115 -> 0
A116: P9951 | B116: Médico de câmara hiperbárica | C116: mês | D116: 0 | F116: =VLOOKUP(A116,'Pessoal Sicro'!$A$6:$G$118,6,0) -> 21262.3001 | H116: =F116*D116 -> 0
F117: Subtotal do Item 4 | H117: =SUM(H113:I116) -> 7792.2539
A119: Parcela Variável - Composição de custo da equipe de frente de serviço
A120: Código | B120: Discriminação | C120: Unidade | D120: Quantidade | F120: Custo Unitário (R$) | H120: Custo Total (R$)
A121: 5 | B121: Equipe de Frente de Serviço | C121: equipexmês
A122: P9875 | B122: Encarregado de Turma | C122: mês | D122: 1 | F122: =VLOOKUP(A122,'Pessoal Sicro'!$A$6:$G$118,6,0) -> 5996.5848 | H122: =F122*D122 -> 5996.5848
A123: P9804 | B123: Apontador | C123: mês | D123: 0.5 | F123: =VLOOKUP(A123,'Pessoal Sicro'!$A$6:$G$118,6,0) -> 5124.1419 | H123: =F123*D123 -> 2562.07095
F124: Subtotal do Item 5 | H124: =SUM(H122:I123) -> 8558.65575
A126: Parcela Variável - Composição de custo da equipe de frente de serviço (Terraplenagem) - Somente Compactação
A127: Código | B127: Discriminação | C127: Unidade | D127: Quantidade | F127: Produção Horária (und/h) | H127: Efs
A128: 5.1 | B128: Equipe de Frente de Serviço | C128: equipexmês
C129: mês | H129: =(D129)/(F129*182.49) -> 
C130: mês | H130: =(D130)/(F130*182.49) -> 
C131: mês | H131: =(D131)/(F131*182.49) -> 
F132: Total de Equipes para Terraplenagem | H132: =SUM(H131:I131) -> 
A134: Parcela Variável - Composição de custo da acompanhamento das frentes de serviço de pavimentação
A135: Código | B135: Discriminação | C135: Unidade | D135: Quantidade | F135: Produção Horária (und/h) | H135: Efs
A136: 5.2 | B136: Equipe de Frente de Serviço | C136: equipe x mês
A137: ='RESUMO MODULO TOTAL'!C23 -> 92404 ADAPTADA | B137: ='RESUMO MODULO TOTAL'!E23 -> execução de pavimento em piso intertravado, com bloco 16 faces de 22 x 11 cm, espessura 8 cm. af_10/2022 - exclusive fornecimento de bloquete | C137: ='RESUMO MODULO TOTAL'!G23 -> m² | D137: ='RESUMO MODULO TOTAL'!H23 -> 119000 | F137: =(1/'CPU SINAPI'!E9)*10 -> 46.97040864 | H137: =(D137)/(F137*182.49) -> 13.88300729 | J137: =7000/22 -> 318.1818182
A138: ='RESUMO MODULO TOTAL'!C28 -> 4011219 | B138: ='RESUMO MODULO TOTAL'!E28 -> Base de solo estabilizado granulometricamente sem mistura com material de jazida - 100% Proctor modificado | C138: ='RESUMO MODULO TOTAL'!G28 -> m³ | D138: ='RESUMO MODULO TOTAL'!H28 -> 17850 | F138: 120.7 | H138: 0.8103859058 | J138: =J137/8 -> 39.77272727
A139: ='RESUMO MODULO TOTAL'!C29 -> 4011209 | B139: ='RESUMO MODULO TOTAL'!E29 -> Regularização do subleito - 100% Proctor intermediário | C139: ='RESUMO MODULO TOTAL'!G29 -> m² | D139: ='RESUMO MODULO TOTAL'!H29 -> 119000 | F139: 672.8 | H139: 0.9692189737
F140: Total de Equipes para Pavimentação | H140: =SUM(H137:I139) -> 15.66261217
A142: Parcela Variável - Composição de custo da acompanhamento das frentes de serviço de drenagem
A143: Código | B143: Discriminação | C143: Unidade | D143: Quantidade | F143: Efsdu | H143: Efs
A144: 5.3 | B144: Frentes de Serviço para Drenagem | C144: equipe x mês
A145: ='RESUMO MODULO TOTAL'!C36 -> 2003943 | B145: =VLOOKUP(A145,'SINTÉTICO SICRO'!$A$4:$D$6373,2,0) -> Meio-fio de concreto - MFC 03 moldado no local com extrusora e concreto usinado - areia e brita comerciais | C145: m | D145: ='RESUMO MODULO TOTAL'!H36 -> 34000 | F145: 0.00021 | H145: =D145*F145 -> 7.14
F146: Total de Equipes para Drenagem | H146: =H145 -> 7.14
A148: Parcela Variável - Composição de custo da acompanhamento das frentes de serviço de sinalização
A149: Código | B149: Discriminação | C149: Unidade | D149: Quantidade | F149: Produção Horária (und/h) | H149: Efs
A150: 5.4 | B150: Frentes de Serviço para Sinalização | C150: equipe x mês
A151: 5213440 | B151: =VLOOKUP(A151,'SINTÉTICO SICRO'!$A$4:$D$6373,2,0) -> Placa de regulamentação em aço D = 0,60 m - película retrorrefletiva tipo I + SI - fornecimento e implantação | C151: ='RESUMO MODULO TOTAL'!G31 -> und | D151: ='RESUMO MODULO TOTAL'!H31 -> 51 | F151: 3 | H151: =0.2*((D151)/(F151*182.49)) -> 0.01863115787
A152: 5213464 | B152: =VLOOKUP(A152,'SINTÉTICO SICRO'!$A$4:$D$6373,2,0) -> Placa de advertência em aço, lado de 0,60 m - película retrorrefletiva tipo I + SI - fornecimento e implantação | C152: ='RESUMO MODULO TOTAL'!G32 -> und | D152: ='RESUMO MODULO TOTAL'!H32 -> 51 | F152: 3 | H152: =0.2*((D152)/(F152*182.49)) -> 0.01863115787
A153: 5213400 | B153: =VLOOKUP(A153,'SINTÉTICO SICRO'!$A$4:$D$6373,2,0) -> Pintura de faixa com tinta acrílica - espessura de 0,4 mm | C153: ='RESUMO MODULO TOTAL'!G34 -> m² | D153: ='RESUMO MODULO TOTAL'!H34 -> 4080 | F153: 177.07 | H153: =0.2*((D153)/(F153*182.49)) -> 0.02525260004
F154: Total de Equipes para Sinalização | H154: =SUM(H151:I153) -> 0.06251491578
A156: 3. PARCELA VARIÁVEL - EQUIPE DE CONTROLE TECNOLÓGICO
A157: LABORATÓRIO DE SOLOS
A158: Item | B158: Discriminação | F158: Unidade | G158: Quantidade | H158: Custo Unitário (R$) | I158: Custo Total (R$)
B159: Laboratório de Solos (equipe x mês)
B160: Mão de Obra
A161: P9858 | B161: Laboratorista | F161: func./mês | G161: 1 | H161: =VLOOKUP(A161,'Pessoal Sicro'!$A$6:$G$118,6,0) -> 7946.5291 | I161: =TRUNC(G161*H161,2) -> 7946.52
A162: P9833 | B162: Auxiliar de laboratório | F162: func./mês | G162: 1 | H162: =VLOOKUP(A162,'Pessoal Sicro'!$A$6:$G$118,6,0) -> 6036.3052 | I162: =TRUNC(G162*H162,2) -> 6036.3
H163: Subtotal do Item | I163: =SUM(I161:I162) -> 13982.82
A164: Item | B164: Discriminação | C164: Und | D164: Quant | E164: Utilização Produtiva | F164: Utilização Improdutiva | G164: Horário Produtivo (R$) | H164: Horário Improdutivo (R$) | I164: Total (R$)
B165: Equipe de Controle Tecnológico
B166: Veículos
A167: E9125 | B167: Van furgão a diesel - 93 kW | C167: veic./mês | D167: 1 | E167: 44 | F167: 176 | G167: =VLOOKUP(A167,Equipamentos!$A$4:$K$533,10,0) -> 88.0815 | H167: =VLOOKUP(A167,Equipamentos!$A$4:$K$533,11,0) -> 49.6677 | I167: =D167*((E167*G167)+(F167*H167)) -> 12617.1012
H168: Subtotal do Item | I168: =SUM(I167:I167) -> 12617.1012
H169: Total da Equipe do Laboratório de Solos | I169: =I163+I168 -> 26599.9212
A171: 3. PARCELA VARIÁVEL - EQUIPE DE CONTROLE TECNOLÓGICO
A172: LABORATÓRIO DE CONCRETO
A173: Item | B173: Discriminação | F173: Unidade | G173: Quantidade | H173: Custo Unitário (R$) | I173: Custo Total (R$)
B174: Laboratório de Solos (equipe x mês)
B175: Mão de Obra
A176: P9858 | B176: Laboratorista | F176: func./mês | G176: 1 | H176: =VLOOKUP(A176,'Pessoal Sicro'!$A$6:$G$118,6,0) -> 7946.5291 | I176: =TRUNC(G176*H176,2) -> 7946.52
A177: P9833 | B177: Auxiliar de laboratório | F177: func./mês | G177: 1 | H177: =VLOOKUP(A177,'Pessoal Sicro'!$A$6:$G$118,6,0) -> 6036.3052 | I177: =TRUNC(G177*H177,2) -> 6036.3
H178: Subtotal do Item | I178: =SUM(I176:I177) -> 13982.82
A179: Item | B179: Discriminação | C179: Und | D179: Quant | E179: Utilização Produtiva | F179: Utilização Improdutiva | G179: Horário Produtivo (R$) | H179: Horário Improdutivo (R$) | I179: Total (R$)
B180: Equipe de Controle Tecnológico
B181: Veículos
A182: E9125 | B182: Van furgão a diesel - 93 kW | C182: veic./mês | D182: 1 | E182: 44 | F182: 176 | G182: =VLOOKUP(A182,Equipamentos!$A$4:$K$533,10,0) -> 88.0815 | H182: =VLOOKUP(A182,Equipamentos!$A$4:$K$533,11,0) -> 49.6677 | I182: =D182*((E182*G182)+(F182*H182)) -> 12617.1012
H183: Subtotal do Item | I183: =SUM(I182:I182) -> 12617.1012
H184: Total da Equipe do Laboratório de Concreto | I184: =I178+I183 -> 26599.9212
A186: Equipes de laboratório de solos para pavimentação
A187: Item | B187: Discriminação | F187: Und | G187: Quant | H187: QE | I187: Els
A188: ='RESUMO MODULO TOTAL'!C28 -> 4011219 | B188: =VLOOKUP(A188,'SINTÉTICO SICRO'!A:D,2,0) -> Base de solo estabilizado granulometricamente sem mistura com material de jazida - 100% Proctor modificado | F188: =VLOOKUP(A188,'SINTÉTICO SICRO'!A:D,3,0) -> m³ | G188: ='RESUMO MODULO TOTAL'!H28 -> 17850 | H188: 21900 | I188: =G188/H188 -> 0.8150684932
H189: Total de equipes de Laboratório de Solos para Pavimentação | I189: =I188 -> 0.8150684932
A191: Equipes de laboratório de Concreto
A192: Item | B192: Discriminação | F192: Und | G192: Quant | H192: QE | I192: Ela
A193: ='RESUMO MODULO TOTAL'!C22 -> 36170 | B193: BLOQUETE/PISO INTERTRAVADO DE CONCRETO - MODELO ONDA/16 FACES/RETANGULAR/T IJOLINHO/PAVER/HOLANDES/PARALELEPIPEDO, *22 CM X 11* CM, E = 8 CM, RESISTENCIA DE 35 MPA (NBR 9781), COR NATURAL | F193: ='RESUMO MODULO TOTAL'!G22 -> m² | G193: ='RESUMO MODULO TOTAL'!H23 -> 119000 | H193: 12900 | I193: =G193/H193 -> 9.224806202
H194: Total de equipes de Laboratório de Concreto | I194: =SUM(I193:I193) -> 9.224806202
A196: manutenção do canteiro de obras e acampamentos
A197: Código | B197: Discriminação | C197: Unidade | D197: Quantidade | F197: Custo Unitário (R$) | H197: Custo Total (R$)
B198: Manutenção do Canteiro de Obras e Acampamentos
A199: 6.1 | B199: Mão de Obra
A200: P9952 | B200: Pedreiro | C200: mês | D200: 0 | F200: =VLOOKUP(A200,'Pessoal Sicro'!$A$6:$G$118,6,0) -> 5136.466 | H200: =F200*D200 -> 0
A201: P9954 | B201: Servente | C201: mês | D201: 0 | F201: =VLOOKUP(A201,'Pessoal Sicro'!$A$6:$G$118,6,0) -> 4093.0918 | H201: =F201*D201 -> 0
A202: P9953 | B202: Eletricista | C202: mês | D202: 0 | F202: =VLOOKUP(A202,'Pessoal Sicro'!$A$6:$G$118,6,0) -> 5406.8028 | H202: =F202*D202 -> 0
F203: Subtotal do Item 6.1 | H203: =SUM(H200:I202) -> 0
A205: Código | B205: Discriminação | C205: Unidade | D205: Quantidade | F205: Custo Produtivo (R$) | H205: Custo Total (R$)
A206: 6.2 | B206: Equipamentos
B207: Caminhão guindauto de 6 toneladas | C207: h/mês | D207: 0 | H207: =F207*D207 -> 0
B208: Caminhão tanque de 8.000 litros | C208: h/mês | D208: 0 | H208: =F208*D208 -> 0
A209: E9524 | B209: Motoniveladora | C209: h/mês | D209: 0 | F209: =Equipamentos!J168 -> 70.4857 | H209: =F209*D209 -> 0
F210: Subtotal do Item 6.2 | H210: =SUM(H207:I209) -> 0
G211: Total da Manutenção do Canteiro de Obras e Acampamentos | H211: =H210+H203 -> 0
A215: Resumo das parcelas de administração local
A216: Código | B216: Discriminação | C216: Unidade | D216: Quantidade | F216: Custo Unitário (R$) | H216: Custo Total (R$)
B217: Parcela Fixa
B218: Mão de Obra | C218: mês | D218: 9 | F218: =H14+H18+H26+H30 -> 60737.22925 | H218: =F218*D218 -> 546635.0633
B219: Veículos | C219: mês | D219: 9 | F219: =I47 -> 2857.1092 | H219: =F219*D219 -> 25713.9828
F220: Subtotal do Item 1 | H220: =SUM(H218:I219) -> 572349.0461
B221: Parcela Vinculada
B222: Equipe de produção de terraplenagem | C222: mês | D222: 0 | F222: =I59 -> 0 | H222: =F222*D222 -> 0
B223: Equipe de produção de pavimentação | C223: mês | D223: 6 | F223: =I71 -> 11138.9034 | H223: 66833.4204
B224: Equipe de produção de drenagem | C224: mês | D224: 0 | F224: =I83 -> 0 | H224: 0
... 21 more rows

Sheet Projeto Executivo
A4: COMPOSIÇAO PREÇO PROJETO EXECUTIVO
A6: DISCRIMINAÇAO | F6: Pr. Unit. | G6: Pr. Total
A8: A· EOUIPE TECNICA | G8: =G9+G12 -> 19097.67165
B9: A. 1 - Pessoal de Nível Superior | C9: Unidade | D9: Quantitativo | E9: SICRO e Rel.Custos Gerais | G9: =G10+G11 -> 15903.01935
B10: Engenheiro | C10: mês | D10: 0.5 | E10: P9812 | F10: =VLOOKUP(E10,'Pessoal Sicro'!A:G,6,0) -> 27135.6365 | G10: =F10*D10 -> 13567.81825
B11: Topógrafo | C11: mês | D11: 0.25 | E11: P9949 | F11: =VLOOKUP(E11,'Pessoal Sicro'!A:G,6,0) -> 9340.8044 | G11: =F11*D11 -> 2335.2011
B12: A.2 - Pessoal de Nível Técnico e Aux. | G12: =G13+G14 -> 3194.6523
B13: Auxiliar de topógrafo | C13: mês | D13: 0.125 | E13: P9950 | F13: =VLOOKUP(E13,'Pessoal Sicro'!A:G,6,0) -> 6055.7508 | G13: =F13*D13 -> 756.96885
B14: Auxiliar Técnico/Assistente de Engenharia | C14: mês | D14: 0.5 | E14: P9903 | F14: =VLOOKUP(E14,'Pessoal Sicro'!A:G,6,0) -> 4875.3669 | G14: =F14*D14 -> 2437.68345
A15: B - ENCARGOS SOCIAIS | G15: =G16 -> 0
B16: =CONCATENATE("Taxas ",'ENC. SOCIAIS'!E51,"%") -> Taxas 113,33% | C16: JÁ INCLUSAS EM "A"
A17: C - DESPESAS GERAIS | G17: =G18+G20+G19 -> 13302.23521
B18: C.1 - MATERIAIS DE CONSUMO | C18: Estimativa % como referência de equipe técnica com encargos sociais | D18: 0.03 | F18: =G8+G16 -> 19097.67165 | G18: =F18*D18 -> 572.9301495
B19: C.2 - VEÍCULOS (Veículo leve picape 4 x 4 com capacidade de 1,10 t - 147 kW) | C19: h | D19: 110 | E19: E9684 | F19: =VLOOKUP(E19,Equipamentos!A:K,10,0) -> 112.9174 | G19: =F19*D19 -> 12420.914
B20: C.3 - Estação total eletrônica com alcance máximo de 3.000 m | C20: h | D20: 38.09884009 | E20: E9553 | F20: =VLOOKUP(E20,Equipamentos!A:K,10,0) -> 8.0945 | G20: =F20*D20 -> 308.3910611
A21: D - ENSAIOS | G21: =SUM(G22:G25) -> 3925.781675
B22: Laboratorista | C22: mês | D22: =1/4 -> 0.25 | E22: P9858 | F22: =VLOOKUP(E22,'Pessoal Sicro'!A:G,6,0) -> 7946.5291 | G22: =F22*D22 -> 1986.632275
B23: Auxiliar de Laboratório | C23: mês | D23: =1/8 -> 0.125 | E23: P9833 | F23: =VLOOKUP(E23,'Pessoal Sicro'!A:G,6,0) -> 6036.3052 | G23: =F23*D23 -> 754.53815
B24: Laboratório de solos | C24: mês | D24: =1/8 -> 0.125 | E24: B8957 | F24: =VLOOKUP(E24,'Tabelas 1 e 2'!C14:G23,5,0) -> 3597.39 | G24: =F24*D24 -> 449.67375
B25: Laboratório de asfalto | C25: mês | D25: 0.125 | E25: B8955 | F25: =VLOOKUP(E25,'Tabelas 1 e 2'!C15:G24,5,0) -> 5879.5 | G25: =F25*D25 -> 734.9375
A26: I - SOMA (A+B+C+D) | G26: =G8+G15+G17+G21 -> 36325.68854
F27: Produtividade(m2) | G27: ='MC MODULO'!C1*'MC MODULO'!C2 -> 7000
F28: Por m²: | G28: =TRUNC(G26/G27,2) -> 5.18

Sheet CPU CODEVASF
A4: ='RESUMO MODULO TOTAL'!B55 -> EXECUÇÃO DE SERVIÇOS DE IMPLANTAÇÃO DE PAVIMENTAÇÃO EM BLOCO DE CONCRETO INTERTRAVADO, EM VIAS URBANAS E RURAIS INSERIDAS NA ÁREA DE ATUAÇÃO DA CODEVASF, NO ESTADO DO PIAUÍ - REGIÃO SUL
F5: BDI %: | G5: =BDI!$C$14 -> 0.2339
E6: Encargos Sociais: | G6: Horista | H6: Mensalista
G7: ='ENC. SOCIAIS'!E51/100 -> 1.1333 | H7: ='ENC. SOCIAIS'!F51/100 -> 0.7112
A8: COMPOSIÇÕES DE CUSTO UNITARIO
A9: CPU-02 | B9: CODEVASF | D9: Correção de vazamentos no ramal na rua sem pavimento com fornecimento do material hidráulico | E9: m | F9: COEF. | G9: PRECO UNITÁRIO (R$) | H9: TOTAL (R$)
A11: SICRO | B11: SICRO | C11: P9824 | D11: =VLOOKUP(C11,'Pessoal Sicro'!$A$5:$G$1048576,2,0) -> Servente | E11: H | F11: 0.2 | G11: =VLOOKUP(C11,'Pessoal Sicro'!$A$5:$G$1048576,6,0) -> 22.1067 | H11: =F11*G11 -> 4.42134
A12: SICRO | B12: SICRO | C12: P9807 | D12: =VLOOKUP(C12,'Pessoal Sicro'!$A$5:$G$1048576,2,0) -> Bombeiro hidráulico | E12: H | F12: 0.1 | G12: =VLOOKUP(C12,'Pessoal Sicro'!$A$5:$G$1048576,6,0) -> 33.4507 | H12: 3.34507
A13: INS. SINAPI | B13: SINAPI | C13: 9867 | D13: TUBO PVC, SOLDAVEL, DN 20 MM, AGUA FRIA (NBR-5648) | E13: m | F13: 1 | G13: =IFERROR(VLOOKUP(C13,'INSUMOS SINAPI'!$A:$E,5,FALSE),VLOOKUP(C13,'COMP Sint. Sinapi'!A:E,4,FALSE)) -> 3.77 | H13: 3.77
A14: INS. SINAPI | B14: SINAPI | C14: 45245 | D14: Arco de serra | E14: un | F14: 0.1 | G14: =IFERROR(VLOOKUP(C14,'INSUMOS SINAPI'!$A:$E,5,FALSE),VLOOKUP(C14,'COMP Sint. Sinapi'!A:E,4,FALSE)) -> 73.2 | H14: 7.32
A15: INS. SINAPI | B15: SINAPI | C15: 3859 | D15: LUVA SOLDAVEL COM ROSCA, PVC, 20 MM X 1/2", PARA AGUA FRIA PREDIAL | E15: un | F15: 2 | G15: =IFERROR(VLOOKUP(C15,'INSUMOS SINAPI'!$A:$E,5,FALSE),VLOOKUP(C15,'COMP Sint. Sinapi'!A:E,4,FALSE)) -> 1.35 | H15: 2.7
E16: Sub total: | H16: =SUM(H11:H15) -> 21.55641
F17: BDI | G17: =BDI!$C$14 -> 0.2339 | H17: =H16*G17 -> 5.042044299
G18: Total Serviços: | H18: =H16+H17 -> 26.5984543
E19: =A9 -> CPU-02 | F19: PREÇO UNITÁRIO TOTAL: | H19: =TRUNC(H18,2) -> 26.59 | I19: =H16 -> 21.55641

Sheet CPU SINAPI
A1: SINAPI - SISTEMA NACIONAL DE PESQUISA DE CUSTOS E ÍNDICES DA CONSTRUÇÃO CIVIL
A2: PCI.818.01 - COMPOSIÇÕES ATIVAS ANALÍTICAS COM CUSTO | C2: ABRANGENCIA: NACIONAL DATA DE PREÇO : 08/2025 DATA REFERENCIA TECNICA: 12/2024
A3: * Composições constantes nos Relatórios publicados de Composições Analíticas para as 27 Unidades da Federação
A4: MACROCLASSE.CLASSE.GRUPO | B4: CÓDIGOS | C4: DESCRIÇÃO | D4: UNIDADE | E4: COEFICIENTE | F4: PREÇO UNITÁRIO | G4: PREÇO TOTAL
A5: 03.PAVI.INTE.004/001 | B5: 92404 ADAPTADA | C5: EXECUÇÃO DE PAVIMENTO EM PISO INTERTRAVADO, COM BLOCO 16 FACES DE 22 X 11 CM, ESPESSURA 8 CM. AF_10/2022 - EXCLUSIVE FORNECIMENTO DE BLOQUETE | D5: M2 | F5: Pavimento Intertravado | G5: =G17 -> 22.04
A6: INSUMO | B6: 370 | C6: AREIA MEDIA - POSTO JAZIDA/FORNECEDOR (RETIRADO NA JAZIDA, SEM TRANSPORTE) | D6: M3 | E6: 0.0568 | F6: =VLOOKUP($B6,'INSUMOS SINAPI'!$A:$E,5,0) -> 90 | G6: =TRUNC(E6*F6,2) -> 5.11
A7: INSUMO | B7: 4741 | C7: PO DE PEDRA (POSTO PEDREIRA/FORNECEDOR, SEM FRETE) | D7: M3 | E7: 0.0098 | F7: =VLOOKUP($B7,'INSUMOS SINAPI'!$A:$E,5,0) -> 221.57 | G7: =TRUNC(E7*F7,2) -> 2.17
A8: INSUMO | B8: 36170 | C8: BLOQUETE/PISO INTERTRAVADO DE CONCRETO - MODELO ONDA/16 FACES/RETANGULAR/T IJOLINHO/PAVER/HOLANDES/PARALELEPIPEDO, *22 CM X 11* CM, E = 8 CM, RESISTENCIA DE 35 MPA (NBR 9781), COR NATURAL | D8: M2 | E8: 1.004 | F8: 0 | G8: =TRUNC(E8*F8,2) -> 0
A9: COMPOSICAO | B9: 88260 | C9: CALCETEIRO COM ENCARGOS COMPLEMENTARES | D9: H | E9: 0.2129 | F9: =VLOOKUP($B9,'COMP Sint. Sinapi'!$A:$E,4,0) -> 27.19 | G9: 5.78
A10: COMPOSICAO | B10: 88316 | C10: SERVENTE COM ENCARGOS COMPLEMENTARES | D10: H | E10: 0.2129 | F10: =VLOOKUP($B10,'COMP Sint. Sinapi'!$A:$E,4,0) -> 21.71 | G10: 4.62
A11: COMPOSICAO | B11: 91277 | C11: PLACA VIBRATÓRIA REVERSÍVEL COM MOTOR 4 TEMPOS A GASOLINA, FORÇA CENTRÍFUG A DE 25 KN (2500 KGF), POTÊNCIA 5,5 CV - CHP DIURNO. AF_08/2015 | D11: CHP | E11: 0.0055 | F11: =VLOOKUP($B11,'COMP Sint. Sinapi'!$A:$E,4,0) -> 9.92 | G11: 0.05
A12: COMPOSICAO | B12: 91278 | C12: =VLOOKUP($B12,'COMP Sint. Sinapi'!$A:$E,2,0) -> PLACA VIBRATÓRIA REVERSÍVEL COM MOTOR 4 TEMPOS A GASOLINA, FORÇA CENTRÍFUGA DE 25 KN (2500 KGF), POTÊNCIA 5,5 CV - CHI DIURNO. AF_08/2015 | D12: CHP | E12: 0.101 | F12: =VLOOKUP($B12,'COMP Sint. Sinapi'!$A:$E,4,0) -> 0.78 | G12: 0.07
A13: COMPOSICAO | B13: 91283 | C13: =VLOOKUP($B13,'COMP Sint. Sinapi'!$A:$E,2,0) -> CORTADORA DE PISO COM MOTOR 4 TEMPOS A GASOLINA, POTÊNCIA DE 13 HP, COM DISCO DE CORTE DIAMANTADO SEGMENTADO PARA CONCRETO, DIÂMETRO DE 350 MM, FURO DE 1" (14 X 1") - CHP DIURNO. AF_08/2015 | D13: CHI | E13: 0.0038 | F13: =VLOOKUP($B13,'COMP Sint. Sinapi'!$A:$E,4,0) -> 9.4 | G13: 0.03
A14: COMPOSICAO | B14: 91285 | C14: =VLOOKUP($B14,'COMP Sint. Sinapi'!$A:$E,2,0) -> CORTADORA DE PISO COM MOTOR 4 TEMPOS A GASOLINA, POTÊNCIA DE 13 HP, COM DISCO DE CORTE DIAMANTADO SEGMENTADO PARA CONCRETO, DIÂMETRO DE 350 MM, FURO DE 1" (14 X 1") - CHI DIURNO. AF_08/2015 | D14: CHI | E14: 0.1027 | F14: =VLOOKUP($B14,'COMP Sint. Sinapi'!$A:$E,4,0) -> 0.48 | G14: 0.04
D15: Sub total: | G15: =SUM(G6:G14) -> 17.87
F16: BDI | G16: =BDI!C14 -> 0.2339
D17: Total Serviços: | G17: =TRUNC(G15*(1+G16),2) -> 22.04

Sheet BDI
A2: DETALHAMENTO DO BDI - SEM DESONERAÇÃO
A3: ='RESUMO MODULO TOTAL'!B55 -> EXECUÇÃO DE SERVIÇOS DE IMPLANTAÇÃO DE PAVIMENTAÇÃO EM BLOCO DE CONCRETO INTERTRAVADO, EM VIAS URBANAS E RURAIS INSERIDAS NA ÁREA DE ATUAÇÃO DA CODEVASF, NO ESTADO DO PIAUÍ - REGIÃO SUL
A4: DESCRIÇÃO DOS SERVIÇOS | B4: PREÇO DE VENDA (%) | C4: CUSTO DIRETO (%)
A5: ADMINISTRAÇÃO CENTRAL | C5: 0.06
A6: DESPESAS FINANCEIRAS | B6: 0.0102
A7: SEGUROS E GARANTIAS CONTRATUAIS | B7: 0.0025
A8: RISCOS | B8: 0.005
A9: LUCRO OPERACIONAL | C9: 0.07
A10: PIS | B10: 0.0065
A11: COFINS | B11: 0.03
A12: ISSQN | B12: 0.03
A13: Contribuição Previdenciaria | B13: 0
B14: BDI | C14: =ROUND((1+(C5+C9))/(1-(B6+B7+B8+B10+B11+B12+B13))-1,4) -> 0.2339
A15: Observação: O percentual de ISSQN aqui utilizado consiste apenas em um referencial médio.
A16: O valor real do ISSQN a ser adotado deve ser aquele proveniente das alíquotas dos municípios situados na área de influência das obras.
A56: DETALHAMENTO DO BDI DIFERENCIADO - SEM DESONERAÇÃO
A57: =A3 -> EXECUÇÃO DE SERVIÇOS DE IMPLANTAÇÃO DE PAVIMENTAÇÃO EM BLOCO DE CONCRETO INTERTRAVADO, EM VIAS URBANAS E RURAIS INSERIDAS NA ÁREA DE ATUAÇÃO DA CODEVASF, NO ESTADO DO PIAUÍ - REGIÃO SUL
A59: DESCRIÇÃO DOS SERVIÇOS | B59: PREÇO DE VENDA (%) | C59: CUSTO DIRETO (%)
A60: ADMINISTRAÇÃO CENTRAL | C60: 0.0377
A61: DESPESA FINANCEIRAS | B61: 0.0102
A62: SEGUROS E GARANTIAS CONTRATUAIS | B62: 0.0025
A63: RISCOS | B63: 0.005
A64: LUCRO OPERACIONAL | C64: 0.05
A65: PIS | B65: 0.0065
A66: COFINS | B66: 0.03
A67: ISSQN | B67: 0
A68: Contribuição Previdenciaria | B68: 0
B69: BDI | C69: =ROUND((1+(C60+C64))/(1-(B61+B62+B63+B65+B66+B67+B68))-1,4) -> 0.15
A70: Fonte da composição, valores de referência e fórmula do BDI: Instrução Normativa N° 62/DNIT SEDE

Sheet ENC. SOCIAIS
A6: NOME DA CONCORRENTE:
A7: EDITAL:
A8: FOLHA:
A9: ='RESUMO MODULO TOTAL'!B55 -> EXECUÇÃO DE SERVIÇOS DE IMPLANTAÇÃO DE PAVIMENTAÇÃO EM BLOCO DE CONCRETO INTERTRAVADO, EM VIAS URBANAS E RURAIS INSERIDAS NA ÁREA DE ATUAÇÃO DA CODEVASF, NO ESTADO DO PIAUÍ - REGIÃO SUL
A11: DETALHAMENTO DOS ENCARGOS SOCIAIS (%)
A12: VIGÊNCIA A PARTIR DE 12/2023 | C12: COM DESONERAÇÃO | E12: SEM DESONERAÇÃO
C14: HORISTA | D14: MENSALISTA | E14: HORISTA | F14: MENSALISTA
A16: GRUPO A
A17: A1 | B17: INSS | C17: 0 | D17: 0 | E17: 20 | F17: 20
A18: A2 | B18: SESI | C18: 1.5 | D18: 1.5 | E18: 1.5 | F18: 1.5
A19: A3 | B19: SENAI | C19: 1 | D19: 1 | E19: 1 | F19: 1
A20: A4 | B20: INCRA | C20: 0.2 | D20: 0.2 | E20: 0.2 | F20: 0.2 | I20: m²
A21: A5 | B21: SEBRAE | C21: 0.6 | D21: 0.6 | E21: 0.6 | F21: 0.6
A22: A6 | B22: Salário Educação | C22: 2.5 | D22: 2.5 | E22: 2.5 | F22: 2.5
A23: A7 | B23: Seguro Contra Acidentes de Trabalho | C23: 3 | D23: 3 | E23: 3 | F23: 3
A24: A8 | B24: FGTS | C24: 8 | D24: 8 | E24: 8 | F24: 8
A25: A9 | B25: SECONCI | C25: 1 | D25: 1 | E25: 0
A26: A | B26: Total | C26: =SUM(C17:C25) -> 17.8 | D26: =SUM(D17:D25) -> 17.8 | E26: =SUM(E17:E25) -> 36.8 | F26: =SUM(F17:F25) -> 36.8
A27: GRUPO B
A28: B1 | B28: Repouso Semanal Remunerado | C28: 17.88 | D28: - | E28: 17.82 | F28: -
A29: B2 | B29: Feriados | C29: 3.94 | D29: - | E29: 3.95 | F29: -
A30: B3 | B30: Auxílio-enfermidade | C30: 0.91 | D30: 0.69 | E30: 0.86 | F30: 0.65
A31: B4 | B31: 13° salário | C31: 10.98 | D31: 8.33 | E31: 10.96 | F31: 8.33
A32: B5 | B32: Licença-paternidade | C32: 0.07 | D32: 0.06 | E32: 0.07 | F32: 0.05
A33: B6 | B33: Faltas Justificadas | C33: 0.73 | D33: 0.56 | E33: 0.73 | F33: 0.56
A34: B7 | B34: Dias de chuva | C34: 1.45 | D34: - | E34: 1.17 | F34: -
A35: B8 | B35: Auxílio Acidente de Trabalho | C35: 0.11 | D35: 0.09 | E35: 0.1 | F35: 0.07
A36: B9 | B36: Férias Gozadas | C36: 11.35 | D36: 8.62 | E36: 11.71 | F36: 8.9
A37: B10 | B37: Salário Maternidade | C37: 0.03 | D37: 0.03 | E37: 0.03 | F37: 0.03
A38: B | B38: Total | C38: =SUM(C28:C37) -> 47.45 | D38: =SUM(D28:D37) -> 18.38 | E38: =SUM(E28:E37) -> 47.4 | F38: =SUM(F28:F37) -> 18.59
A39: GRUPO C
A40: C1 | B40: Aviso Prévio Indenizado | C40: 6.76 | D40: 5.14 | E40: 5.3 | F40: 4.03
A41: C2 | B41: Aviso Prévio Trabalhado | C41: 0.16 | D41: 0.12 | E41: 0.12 | F41: 0.09
A42: C3 | B42: Férias Indenizadas | C42: 2.28 | D42: 1.73 | E42: 2.46 | F42: 1.87
A43: C4 | B43: Depósito Rescisão Sem Justa Causa | C43: 3.81 | D43: 2.89 | E43: 2.89 | F43: 2.2
A44: C5 | B44: Indenização Adicional | C44: 0.57 | D44: 0.43 | E44: 0.45 | F44: 0.34
A45: C | B45: Total | C45: =SUM(C40:C44) -> 13.58 | D45: =SUM(D40:D44) -> 10.31 | E45: =SUM(E40:E44) -> 11.22 | F45: =SUM(F40:F44) -> 8.53
A46: GRUPO D
A47: D1 | B47: Reincidência de A sobre B | C47: 8.45 | D47: 3.27 | E47: 17.44 | F47: 6.84
A48: D2 | B48: Reincidência de Grupo A sobre Aviso Prévio Trabalhado e Reincidência do FGTS sobre Aviso Prévio Indenizado | C48: 0.57 | D48: 0.43 | E48: 0.47 | F48: 0.36
A49: D | B49: Total | C49: =SUM(C47:C48) -> 9.02 | D49: =SUM(D47:D48) -> 3.7 | E49: =SUM(E47:E48) -> 17.91 | F49: =SUM(F47:F48) -> 7.2
A51: T O T A L (%) | C51: =C26+C38+C45+C49 -> 87.85 | D51: =D26+D38+D45+D49 -> 50.19 | E51: =E26+E38+E45+E49 -> 113.33 | F51: =F26+F38+F45+F49 -> 71.12
H55: Fonte: Sinapi Cálculos e Parâmetros 5ª Edição - Atualizada em Agosto 2023

Sheet MOMENTO DE TRANSPORTE - AUX
B5: ='RESUMO MODULO TOTAL'!B55 -> EXECUÇÃO DE SERVIÇOS DE IMPLANTAÇÃO DE PAVIMENTAÇÃO EM BLOCO DE CONCRETO INTERTRAVADO, EM VIAS URBANAS E RURAIS INSERIDAS NA ÁREA DE ATUAÇÃO DA CODEVASF, NO ESTADO DO PIAUÍ - REGIÃO SUL
B6: DATA BASE: | C6: ='Material Sicro'!B2 -> Piauí - Julho/2025
C8: RESUMO DO TRANSPORTE AUXILIAR
B9: CODIGO | C9: DESCRIÇÃO | D9: TKM
B10: 5914359 | C10: =VLOOKUP(B10,'SINTÉTICO SICRO'!$A:$D,2,0) -> Transporte com caminhão basculante de 10 m³ - rodovia em leito natural | D10: =ROUND(SUMIF($A:$A,B10,$K:$K),2) -> 2931.16
B11: 5914374 | C11: =VLOOKUP(B11,'SINTÉTICO SICRO'!$A:$D,2,0) -> Transporte com caminhão basculante de 10 m³ - rodovia em revestimento primário | D11: 2931.16
B12: 5914389 | C12: =VLOOKUP(B12,'SINTÉTICO SICRO'!$A:$D,2,0) -> Transporte com caminhão basculante de 10 m³ - rodovia pavimentada | D12: 23449.25
B13: 5914449 | C13: =VLOOKUP(B13,'SINTÉTICO SICRO'!$A:$D,2,0) -> Transporte com caminhão carroceria de 15 t - rodovia em leito natural | D13: 405.14
B14: 5914464 | C14: =VLOOKUP(B14,'SINTÉTICO SICRO'!$A:$D,2,0) -> Transporte com caminhão carroceria de 15 t - rodovia em revestimento primário | D14: 405.14
B15: 5914479 | C15: =VLOOKUP(B15,'SINTÉTICO SICRO'!$A:$D,2,0) -> Transporte com caminhão carroceria de 15 t - rodovia pavimentada | D15: 3241.15
B17: TIPO (P, RP ou LN) | C17: DMT ATÉ 50 KM NÃO DEVE SER PAGA | D17: SOMENTE DEVE SER ADICIONADO A DISTÂNCIA EXCEDENTE A 50 KM
B18: P | D18: 10
B20: SISTEMA DE CUSTOS REFERENCIAIS DE OBRAS - SICRO | I20: Quantitivo
B21: Custo Unitário de Referência | E21: =$C$6 -> Piauí - Julho/2025 | I21: (Coeficiente na composição principal) x (quantidade da principal no orçamento) | K21: m³
B22: 1107892 | C22: =VLOOKUP(B22,'SINTÉTICO SICRO'!$A$4:$D$1048576,2,0) -> Concreto fck = 20 MPa - confecção em betoneira e lançamento manual - areia e brita comerciais | I22: =('MOMENTO DE TRANSPORTE - PRINC'!$D$36*VLOOKUP(C31,'RESUMO MODULO TOTAL'!$C$10:$L$51,6,0))*0.8 -> 1142.4
B23: F - MOMENTO DE TRANSPORTE | D23: Quantidade | E23: Unidade | F23: DMT
F24: LN | G24: RP | H24: P | I24: TIPO (P, RP ou LN) | J24: DMT ESTIMADA (km) | K24: QUANTITATIVO TOTAL DE TRANSPORTE DE MATERIAL (tkm)
A25: =IF(I25="P",H25,IF(I25="RP",G25,IF(I25="LN",F25,""))) -> 5914479 | B25: M0030 | C25: Aditivo plastificante e retardador de pega para concreto e argamassa - Caminhão carroceria 15 t | D25: 0.00085 | E25: tkm | F25: 5914449 | G25: 5914464 | H25: 5914479 | I25: =$B$18 -> P | J25: =D18 -> 10 | K25: =IF(ISBLANK(J25),"",J25*(D25*$I$22)) -> 9.7104
A26: =IF(I26="P",H26,IF(I26="RP",G26,IF(I26="LN",F26,""))) -> 5914389 | B26: M0082 | C26: Areia média lavada - Caminhão basculante 10 m³ | D26: 0.95001 | E26: tkm | F26: 5914359 | G26: 5914374 | H26: 5914389 | I26: =$B$18 -> P | J26: =J25 -> 10 | K26: =IF(ISBLANK(J26),"",J26*(D26*$I$22)) -> 10852.91424
A27: 5914389 | B27: M0191 | C27: Brita 1 - Caminhão basculante 10 m³ | D27: 0.55131 | E27: tkm | F27: 5914359 | G27: 5914374 | H27: 5914389 | I27: P | J27: =J26 -> 10 | K27: =IF(ISBLANK(J27),"",J27*(D27*$I$22)) -> 6298.16544
A28: 5914389 | B28: M0192 | C28: Brita 2 - Caminhão basculante 10 m³ | D28: 0.55131 | E28: tkm | F28: 5914359 | G28: 5914374 | H28: 5914389 | I28: P | J28: =J27 -> 10 | K28: =IF(ISBLANK(J28),"",J28*(D28*$I$22)) -> 6298.16544
A29: 5914479 | B29: M0424 | C29: Cimento Portland CP II - 32 - saco - Caminhão carroceria 15 t | D29: 0.28215 | E29: tkm | F29: 5914449 | G29: 5914464 | H29: 5914479 | I29: P | J29: =J28 -> 10 | K29: =IF(ISBLANK(J29),"",J29*(D29*$I$22)) -> 3223.2816
B31: PRINCIPAL: | C31: 2003943
B32: SISTEMA DE CUSTOS REFERENCIAIS DE OBRAS - SICRO | I32: Quantitivo
B33: Custo Unitário de Referência | E33: =$C$6 -> Piauí - Julho/2025 | H33: m² | I33: (Coeficiente na composição principal) x (quantidade da principal no orçamento) | K33: kg
B34: 2003842 | C34: Enchimento de junta de concreto com argamassa asfáltica de densidade 1.700 kg/m³ - espessura de 1 cm | I34: =('MOMENTO DE TRANSPORTE - PRINC'!$D$37*VLOOKUP(C39,'RESUMO MODULO TOTAL'!$C$10:$L$51,6,0))*0.8 -> 816
B35: F - MOMENTO DE TRANSPORTE | D35: Quantidade | E35: Unidade | F35: DMT
F36: LN | G36: RP | H36: P | I36: TIPO (P, RP ou LN) | J36: DMT ESTIMADA (km) | K36: QUANTITATIVO TOTAL DE TRANSPORTE DE MATERIAL (tkm)
A37: =IF(I37="P",H37,IF(I37="RP",G37,IF(I37="LN",F37,""))) -> 5914479 | B37: M2158 | C37: Argamassa asfáltica - Caminhão carroceria com capacidade de 15 t - 188 Kw | D37: 0.001 | E37: tkm | F37: 5914449 | G37: 5914464 | H37: 5914479 | I37: =$B$18 -> P | J37: =D18 -> 10 | K37: =IF(ISBLANK(J37),"",J37*(D37*$I$34)) -> 8.16
B39: PRINCIPAL: | C39: 2003943
B41: TIPO (P, RP ou LN) | C41: DMT ATÉ 50 KM NÃO DEVE SER PAGA | D41: SOMENTE DEVE SER ADICIONADO A DISTÂNCIA EXCEDENTE A 50 KM
B42: LN | D42: 10
B44: SISTEMA DE CUSTOS REFERENCIAIS DE OBRAS - SICRO | I44: Quantitivo
B45: Custo Unitário de Referência | E45: =$C$6 -> Piauí - Julho/2025 | I45: (Coeficiente na composição principal) x (quantidade da principal no orçamento) | K45: m³
B46: 1107892 | C46: =VLOOKUP(B46,'SINTÉTICO SICRO'!$A$4:$D$1048576,2,0) -> Concreto fck = 20 MPa - confecção em betoneira e lançamento manual - areia e brita comerciais | I46: =('MOMENTO DE TRANSPORTE - PRINC'!D61*VLOOKUP(C55,'RESUMO MODULO TOTAL'!$C$10:$L$51,6,0))*0.1 -> 142.8
B47: F - MOMENTO DE TRANSPORTE | D47: Quantidade | E47: Unidade | F47: DMT
F48: LN | G48: RP | H48: P | I48: TIPO (P, RP ou LN) | J48: DMT ESTIMADA (km) | K48: QUANTITATIVO TOTAL DE TRANSPORTE DE MATERIAL (tkm)
A49: =IF(I49="P",H49,IF(I49="RP",G49,IF(I49="LN",F49,""))) -> 5914449 | B49: M0030 | C49: Aditivo plastificante e retardador de pega para concreto e argamassa - Caminhão carroceria 15 t | D49: 0.00085 | E49: tkm | F49: 5914449 | G49: 5914464 | H49: 5914479 | I49: =$B$42 -> LN | J49: =D42 -> 10 | K49: =IF(ISBLANK(J49),"",J49*(D49*$I$46)) -> 1.2138
A50: =IF(I50="P",H50,IF(I50="RP",G50,IF(I50="LN",F50,""))) -> 5914359 | B50: M0082 | C50: Areia média lavada - Caminhão basculante 10 m³ | D50: 0.95001 | E50: tkm | F50: 5914359 | G50: 5914374 | H50: 5914389 | I50: =$B$42 -> LN | J50: =J49 -> 10 | K50: =IF(ISBLANK(J50),"",J50*(D50*$I$46)) -> 1356.61428
A51: 5914359 | B51: M0191 | C51: Brita 1 - Caminhão basculante 10 m³ | D51: 0.55131 | E51: tkm | F51: 5914359 | G51: 5914374 | H51: 5914389 | I51: LN | J51: =J50 -> 10 | K51: =IF(ISBLANK(J51),"",J51*(D51*$I$46)) -> 787.27068
A52: 5914359 | B52: M0192 | C52: Brita 2 - Caminhão basculante 10 m³ | D52: 0.55131 | E52: tkm | F52: 5914359 | G52: 5914374 | H52: 5914389 | I52: LN | J52: =J51 -> 10 | K52: 787.27068
A53: 5914449 | B53: M0424 | C53: Cimento Portland CP II - 32 - saco - Caminhão carroceria 15 t | D53: 0.28215 | E53: tkm | F53: 5914449 | G53: 5914464 | H53: 5914479 | I53: LN | J53: =J52 -> 10 | K53: 402.9102
B55: PRINCIPAL: | C55: 2003943
B56: SISTEMA DE CUSTOS REFERENCIAIS DE OBRAS - SICRO | I56: Quantitivo
B57: Custo Unitário de Referência | E57: =$C$6 -> Piauí - Julho/2025 | H57: m² | I57: (Coeficiente na composição principal) x (quantidade da principal no orçamento) | K57: kg
B58: 2003842 | C58: Enchimento de junta de concreto com argamassa asfáltica de densidade 1.700 kg/m³ - espessura de 1 cm | I58: =('MOMENTO DE TRANSPORTE - PRINC'!D62*VLOOKUP(C63,'RESUMO MODULO TOTAL'!$C$10:$L$51,6,0))*0.1 -> 102
B59: F - MOMENTO DE TRANSPORTE | D59: Quantidade | E59: Unidade | F59: DMT
F60: LN | G60: RP | H60: P | I60: TIPO (P, RP ou LN) | J60: DMT ESTIMADA (km) | K60: QUANTITATIVO TOTAL DE TRANSPORTE DE MATERIAL (tkm)
A61: =IF(I61="P",H61,IF(I61="RP",G61,IF(I61="LN",F61,""))) -> 5914449 | B61: M2158 | C61: Argamassa asfáltica - Caminhão carroceria com capacidade de 15 t - 188 Kw | D61: 0.001 | E61: tkm | F61: 5914449 | G61: 5914464 | H61: 5914479 | I61: =$B$42 -> LN | J61: =$D$42 -> 10 | K61: =IF(ISBLANK(J61),"",J61*(D61*$I$58)) -> 1.02
B63: PRINCIPAL: | C63: 2003943
B64: TIPO (P, RP ou LN) | C64: DMT ATÉ 50 KM NÃO DEVE SER PAGA | D64: SOMENTE DEVE SER ADICIONADO A DISTÂNCIA EXCEDENTE A 50 KM
B65: RP | D65: 10
B67: SISTEMA DE CUSTOS REFERENCIAIS DE OBRAS - SICRO | I67: Quantitivo
B68: Custo Unitário de Referência | E68: =$C$6 -> Piauí - Julho/2025 | I68: (Coeficiente na composição principal) x (quantidade da principal no orçamento) | K68: m³
B69: 1107892 | C69: =VLOOKUP(B69,'SINTÉTICO SICRO'!$A$4:$D$1048576,2,0) -> Concreto fck = 20 MPa - confecção em betoneira e lançamento manual - areia e brita comerciais | I69: =('MOMENTO DE TRANSPORTE - PRINC'!D86*VLOOKUP(C78,'RESUMO MODULO TOTAL'!$C$10:$L$51,6,0))*0.1 -> 142.8
B70: F - MOMENTO DE TRANSPORTE | D70: Quantidade | E70: Unidade | F70: DMT
F71: LN | G71: RP | H71: P | I71: TIPO (P, RP ou LN) | J71: DMT ESTIMADA (km) | K71: QUANTITATIVO TOTAL DE TRANSPORTE DE MATERIAL (tkm)
A72: =IF(I72="P",H72,IF(I72="RP",G72,IF(I72="LN",F72,""))) -> 5914464 | B72: M0030 | C72: Aditivo plastificante e retardador de pega para concreto e argamassa - Caminhão carroceria 15 t | D72: 0.00085 | E72: tkm | F72: 5914449 | G72: 5914464 | H72: 5914479 | I72: =$B$65 -> RP | J72: =D65 -> 10 | K72: =IF(ISBLANK(J72),"",J72*(D72*$I$69)) -> 1.2138
A73: =IF(I73="P",H73,IF(I73="RP",G73,IF(I73="LN",F73,""))) -> 5914374 | B73: M0082 | C73: Areia média lavada - Caminhão basculante 10 m³ | D73: 0.95001 | E73: tkm | F73: 5914359 | G73: 5914374 | H73: 5914389 | I73: =$B$65 -> RP | J73: =D65 -> 10 | K73: =IF(ISBLANK(J73),"",J73*(D73*$I$69)) -> 1356.61428
A74: 5914374 | B74: M0191 | C74: Brita 1 - Caminhão basculante 10 m³ | D74: 0.55131 | E74: tkm | F74: 5914359 | G74: 5914374 | H74: 5914389 | I74: RP | J74: =D65 -> 10 | K74: 787.27068
A75: 5914374 | B75: M0192 | C75: Brita 2 - Caminhão basculante 10 m³ | D75: 0.55131 | E75: tkm | F75: 5914359 | G75: 5914374 | H75: 5914389 | I75: RP | J75: =D65 -> 10 | K75: 787.27068
A76: 5914464 | B76: M0424 | C76: Cimento Portland CP II - 32 - saco - Caminhão carroceria 15 t | D76: 0.28215 | E76: tkm | F76: 5914449 | G76: 5914464 | H76: 5914479 | I76: RP | J76: =D65 -> 10 | K76: 402.9102
B78: PRINCIPAL: | C78: 2003943
B79: SISTEMA DE CUSTOS REFERENCIAIS DE OBRAS - SICRO | I79: Quantitivo
B80: Custo Unitário de Referência | E80: =$C$6 -> Piauí - Julho/2025 | H80: m² | I80: (Coeficiente na composição principal) x (quantidade da principal no orçamento) | K80: kg
B81: 2003842 | C81: Enchimento de junta de concreto com argamassa asfáltica de densidade 1.700 kg/m³ - espessura de 1 cm | I81: =('MOMENTO DE TRANSPORTE - PRINC'!D87*VLOOKUP(C86,'RESUMO MODULO TOTAL'!$C$10:$L$51,6,0))*0.1 -> 102
B82: F - MOMENTO DE TRANSPORTE | D82: Quantidade | E82: Unidade | F82: DMT
F83: LN | G83: RP | H83: P | I83: TIPO (P, RP ou LN) | J83: DMT ESTIMADA (km) | K83: QUANTITATIVO TOTAL DE TRANSPORTE DE MATERIAL (tkm)
A84: =IF(I84="P",H84,IF(I84="RP",G84,IF(I84="LN",F84,""))) -> 5914464 | B84: M2158 | C84: Argamassa asfáltica - Caminhão carroceria com capacidade de 15 t - 188 Kw | D84: 0.001 | E84: tkm | F84: 5914449 | G84: 5914464 | H84: 5914479 | I84: =$B$65 -> RP | J84: =D65 -> 10 | K84: =IF(ISBLANK(J84),"",J84*(D84*$I$81)) -> 1.02
B86: PRINCIPAL: | C86: 2003943
A88: =IF(I88="P",H88,IF(I88="RP",G88,IF(I88="LN",F88,""))) -> 

Sheet MOMENTO DE TRANSPORTE - PRINC
B5: ='RESUMO MODULO TOTAL'!B55 -> EXECUÇÃO DE SERVIÇOS DE IMPLANTAÇÃO DE PAVIMENTAÇÃO EM BLOCO DE CONCRETO INTERTRAVADO, EM VIAS URBANAS E RURAIS INSERIDAS NA ÁREA DE ATUAÇÃO DA CODEVASF, NO ESTADO DO PIAUÍ - REGIÃO SUL
B6: DATA BASE: | C6: 2025-10-01
C8: RESUMO DO TRANSPORTE PRINCIPAL
B9: CODIGO | C9: DESCRIÇÃO | D9: TKM
B10: 5914359 | C10: =VLOOKUP(B10,'SINTÉTICO SICRO'!$A:$D,2,0) -> Transporte com caminhão basculante de 10 m³ - rodovia em leito natural | D10: =ROUND(SUMIF('MOMENTO DE TRANSPORTE - PRINC'!A:A,B10,'MOMENTO DE TRANSPORTE - PRINC'!K:K),2) -> 184123.64
B11: 5914374 | C11: =VLOOKUP(B11,'SINTÉTICO SICRO'!$A:$D,2,0) -> Transporte com caminhão basculante de 10 m³ - rodovia em revestimento primário | D11: =ROUND(SUMIF('MOMENTO DE TRANSPORTE - PRINC'!A:A,B11,'MOMENTO DE TRANSPORTE - PRINC'!K:K),2) -> 184123.64
B12: 5914389 | C12: =VLOOKUP(B12,'SINTÉTICO SICRO'!$A:$D,2,0) -> Transporte com caminhão basculante de 10 m³ - rodovia pavimentada | D12: =ROUND(SUMIF('MOMENTO DE TRANSPORTE - PRINC'!A:A,B12,'MOMENTO DE TRANSPORTE - PRINC'!K:K),2) -> 1472989.14
B13: 5914539 | C13: =VLOOKUP(B13,'SINTÉTICO SICRO'!$A:$D,2,0) -> Transporte com caminhão betoneira - rodovia em leito natural | D13: =ROUND(SUMIF('MOMENTO DE TRANSPORTE - PRINC'!A:A,B13,'MOMENTO DE TRANSPORTE - PRINC'!K:K),2) -> 17136
B14: 5914554 | C14: =VLOOKUP(B14,'SINTÉTICO SICRO'!$A:$D,2,0) -> Transporte com caminhão betoneira - rodovia em revestimento primário | D14: =ROUND(SUMIF('MOMENTO DE TRANSPORTE - PRINC'!A:A,B14,'MOMENTO DE TRANSPORTE - PRINC'!K:K),2) -> 17136
B15: 5914569 | C15: =VLOOKUP(B15,'SINTÉTICO SICRO'!$A:$D,2,0) -> Transporte com caminhão betoneira - rodovia pavimentada | D15: =ROUND(SUMIF('MOMENTO DE TRANSPORTE - PRINC'!A:A,B15,'MOMENTO DE TRANSPORTE - PRINC'!K:K),2) -> 137088
B17: TIPO (P, RP ou LN) | C17: DMT ESTIMADA (DISTRIBUIÇÃO DO ITEM NA PISTA
B18: P | C18: 50
B20: SISTEMA DE CUSTOS REFERENCIAIS DE OBRAS - SICRO
B21: Custo Unitário de Referência | D21: =$C$6 -> 2025-10-01 | I21: Quantitativo | K21: un
B22: 4011219 | C22: =VLOOKUP(B22,'SINTÉTICO SICRO'!$A$4:$D$1048576,2,0) -> Base de solo estabilizado granulometricamente sem mistura com material de jazida - 100% Proctor modificado | I22: =SUMIF('RESUMO MODULO TOTAL'!C:C,'MOMENTO DE TRANSPORTE - PRINC'!B22,'RESUMO MODULO TOTAL'!H:H)*0.8 -> 14280
B23: D - ATIVIDADES AUXILIARES | D23: Quantidade | E23: Unidade
B24: 4016096 | C24: =VLOOKUP(B24,'SINTÉTICO SICRO'!$A$4:$D$1048576,2,0) -> Escavação e carga de material de jazida com escavadeira hidráulica de 1,56 m³ | D24: 1.10027 | E24: m³
B26: F - MOMENTO DE TRANSPORTE | D26: Quantidade | E26: Unidade | F26: CÓDIGO TRANSPORTE
F27: LN | G27: RP | H27: P | I27: TIPO (P, RP ou LN) | J27: DMT ESTIMADA (km) | K27: QUANTITATIVO TOTAL DE TRANSPORTE (tkm)
A28: =IF(I28="P",H28,IF(I28="RP",G28,IF(I28="LN",F28,""))) -> 5914389 | B28: 4016096 | C28: =VLOOKUP(B28,'SINTÉTICO SICRO'!$A$4:$D$1048576,2,0) -> Escavação e carga de material de jazida com escavadeira hidráulica de 1,56 m³ | D28: 2.06301 | E28: tkm | F28: 5914359 | G28: 5914374 | H28: 5914389 | I28: =$B$18 -> P | J28: =C18 -> 50 | K28: =IF(ISBLANK(J28),"",J28*D28)*I22 -> 1472989.14
B30: Obs.
B32: SISTEMA DE CUSTOS REFERENCIAIS DE OBRAS - SICRO
B33: Custo Unitário de Referência | D33: =$C$6 -> 2025-10-01 | I33: Quantitativo | K33: m
B34: 2003943 | C34: =VLOOKUP(B34,'SINTÉTICO SICRO'!A:D,2,0) -> Meio-fio de concreto - MFC 03 moldado no local com extrusora e concreto usinado - areia e brita comerciais | I34: =SUMIF('RESUMO MODULO TOTAL'!C:C,'MOMENTO DE TRANSPORTE - PRINC'!B34,'RESUMO MODULO TOTAL'!H:H)*0.8 -> 27200
B35: D - ATIVIDADES AUXILIARES | D35: Quantidade | E35: Unidade
B36: 1107928 | C36: Concreto fck = 20 MPa - confecção em betoneira e lançamento manual - areia e brita comerciais | D36: 0.042 | E36: m³
B37: 4805750 | C37: Enchimento de junta de concreto com argamassa asfáltica de densidade 1.700 kg/m³ - espessura de 1 cm | D37: 0.03 | E37: kg
B39: F - MOMENTO DE TRANSPORTE | D39: Quantidade | E39: Unidade | F39: CÓDIGO TRANSPORTE
F40: LN | G40: RP | H40: P | I40: TIPO (P, RP ou LN) | J40: DMT ESTIMADA (km) | K40: QUANTITATIVO TOTAL DE TRANSPORTE (tkm)
A41: =IF(I41="P",H41,IF(I41="RP",G41,IF(I41="LN",F41,""))) -> 5914569 | B41: 1107928 | C41: Concreto fck = 20 MPa - confecção em central dosadora de 30 m³/h - areia e brita comerciais - Caminhão betoneira 8 m³ | D41: 0.1008 | E41: tkm | F41: 5914539 | G41: 5914554 | H41: 5914569 | I41: =$B$18 -> P | J41: =C18 -> 50 | K41: =IF(ISBLANK(J41),"",J41*D41)*I34 -> 137088
B43: TIPO (P, RP ou LN) | C43: DMT ESTIMADA (DISTRIBUIÇÃO DO ITEM NA PISTA
B44: LN | C44: 50
B46: SISTEMA DE CUSTOS REFERENCIAIS DE OBRAS - SICRO
B47: Custo Unitário de Referência | D47: =$C$6 -> 2025-10-01 | I47: Quantitativo | K47: un
B48: 4011219 | C48: =VLOOKUP(B48,'SINTÉTICO SICRO'!$A$4:$D$1048576,2,0) -> Base de solo estabilizado granulometricamente sem mistura com material de jazida - 100% Proctor modificado | I48: =SUMIF('RESUMO MODULO TOTAL'!C:C,'MOMENTO DE TRANSPORTE - PRINC'!B48,'RESUMO MODULO TOTAL'!H:H)*0.1 -> 1785
B49: D - ATIVIDADES AUXILIARES | D49: Quantidade | E49: Unidade
B50: 4016096 | C50: =VLOOKUP(B50,'SINTÉTICO SICRO'!$A$4:$D$1048576,2,0) -> Escavação e carga de material de jazida com escavadeira hidráulica de 1,56 m³ | D50: 1.10027 | E50: m³
B52: F - MOMENTO DE TRANSPORTE | D52: Quantidade | E52: Unidade | F52: CÓDIGO TRANSPORTE
F53: LN | G53: RP | H53: P | I53: TIPO (P, RP ou LN) | J53: DMT ESTIMADA (km) | K53: QUANTITATIVO TOTAL DE TRANSPORTE (tkm)
A54: =IF(I54="P",H54,IF(I54="RP",G54,IF(I54="LN",F54,""))) -> 5914359 | B54: 4016096 | C54: =VLOOKUP(B54,'SINTÉTICO SICRO'!$A$4:$D$1048576,2,0) -> Escavação e carga de material de jazida com escavadeira hidráulica de 1,56 m³ | D54: 2.06301 | E54: tkm | F54: 5914359 | G54: 5914374 | H54: 5914389 | I54: =$B$44 -> LN | J54: =C44 -> 50 | K54: =IF(ISBLANK(J54),"",J54*D54)*I48 -> 184123.6425
B56: Obs.
B57: SISTEMA DE CUSTOS REFERENCIAIS DE OBRAS - SICRO
B58: Custo Unitário de Referência | D58: =$C$6 -> 2025-10-01 | I58: Quantitativo | K58: m
B59: 2003943 | C59: =VLOOKUP(B59,'SINTÉTICO SICRO'!A:D,2,0) -> Meio-fio de concreto - MFC 03 moldado no local com extrusora e concreto usinado - areia e brita comerciais | I59: =SUMIF('RESUMO MODULO TOTAL'!C:C,'MOMENTO DE TRANSPORTE - PRINC'!B59,'RESUMO MODULO TOTAL'!H:H)*0.1 -> 3400
B60: D - ATIVIDADES AUXILIARES | D60: Quantidade | E60: Unidade
B61: 1107928 | C61: Concreto fck = 20 MPa - confecção em betoneira e lançamento manual - areia e brita comerciais | D61: 0.042 | E61: m³
B62: 4805750 | C62: Enchimento de junta de concreto com argamassa asfáltica de densidade 1.700 kg/m³ - espessura de 1 cm | D62: 0.03 | E62: kg
B64: F - MOMENTO DE TRANSPORTE | D64: Quantidade | E64: Unidade | F64: CÓDIGO TRANSPORTE
F65: LN | G65: RP | H65: P | I65: TIPO (P, RP ou LN) | J65: DMT ESTIMADA (km) | K65: QUANTITATIVO TOTAL DE TRANSPORTE (tkm)
A66: =IF(I66="P",H66,IF(I66="RP",G66,IF(I66="LN",F66,""))) -> 5914539 | B66: 1107928 | C66: =VLOOKUP(B66,'SINTÉTICO SICRO'!A:D,2,0) -> Concreto fck = 20 MPa - confecção em central dosadora de 30 m³/h - areia e brita comerciais | D66: 0.1008 | E66: tkm | F66: 5914539 | G66: 5914554 | H66: 5914569 | I66: =$B$44 -> LN | J66: =C44 -> 50 | K66: =IF(ISBLANK(J66),"",J66*D66)*I59 -> 17136
B68: TIPO (P, RP ou LN) | C68: DMT ESTIMADA (DISTRIBUIÇÃO DO ITEM NA PISTA
B69: RP | C69: 50
B71: SISTEMA DE CUSTOS REFERENCIAIS DE OBRAS - SICRO
B72: Custo Unitário de Referência | D72: =$C$6 -> 2025-10-01 | I72: Quantitativo | K72: un
B73: 4011219 | C73: =VLOOKUP(B73,'SINTÉTICO SICRO'!$A$4:$D$1048576,2,0) -> Base de solo estabilizado granulometricamente sem mistura com material de jazida - 100% Proctor modificado | I73: =SUMIF('RESUMO MODULO TOTAL'!C:C,'MOMENTO DE TRANSPORTE - PRINC'!B73,'RESUMO MODULO TOTAL'!H:H)*0.1 -> 1785
B74: D - ATIVIDADES AUXILIARES | D74: Quantidade | E74: Unidade
B75: 4016096 | C75: =VLOOKUP(B75,'SINTÉTICO SICRO'!$A$4:$D$1048576,2,0) -> Escavação e carga de material de jazida com escavadeira hidráulica de 1,56 m³ | D75: 1.10027 | E75: m³
B77: F - MOMENTO DE TRANSPORTE | D77: Quantidade | E77: Unidade | F77: CÓDIGO TRANSPORTE
F78: LN | G78: RP | H78: P | I78: TIPO (P, RP ou LN) | J78: DMT ESTIMADA (km) | K78: QUANTITATIVO TOTAL DE TRANSPORTE (tkm)
A79: =IF(I79="P",H79,IF(I79="RP",G79,IF(I79="LN",F79,""))) -> 5914374 | B79: 4016096 | C79: =VLOOKUP(B79,'SINTÉTICO SICRO'!$A$4:$D$1048576,2,0) -> Escavação e carga de material de jazida com escavadeira hidráulica de 1,56 m³ | D79: 2.06301 | E79: tkm | F79: 5914359 | G79: 5914374 | H79: 5914389 | I79: =$B$69 -> RP | J79: =C69 -> 50 | K79: =IF(ISBLANK(J79),"",J79*D79)*I73 -> 184123.6425
B81: Obs.
B82: SISTEMA DE CUSTOS REFERENCIAIS DE OBRAS - SICRO
B83: Custo Unitário de Referência | D83: =$C$6 -> 2025-10-01 | I83: Quantitativo | K83: m
B84: 2003943 | C84: =VLOOKUP(B84,'SINTÉTICO SICRO'!A:D,2,0) -> Meio-fio de concreto - MFC 03 moldado no local com extrusora e concreto usinado - areia e brita comerciais | I84: =SUMIF('RESUMO MODULO TOTAL'!C:C,'MOMENTO DE TRANSPORTE - PRINC'!B84,'RESUMO MODULO TOTAL'!H:H)*0.1 -> 3400
B85: D - ATIVIDADES AUXILIARES | D85: Quantidade | E85: Unidade
B86: 1107928 | C86: Concreto fck = 20 MPa - confecção em betoneira e lançamento manual - areia e brita comerciais | D86: 0.042 | E86: m³
B87: 4805750 | C87: Enchimento de junta de concreto com argamassa asfáltica de densidade 1.700 kg/m³ - espessura de 1 cm | D87: 0.03 | E87: kg
B89: F - MOMENTO DE TRANSPORTE | D89: Quantidade | E89: Unidade | F89: CÓDIGO TRANSPORTE
F90: LN | G90: RP | H90: P | I90: TIPO (P, RP ou LN) | J90: DMT ESTIMADA (km) | K90: QUANTITATIVO TOTAL DE TRANSPORTE (tkm)
A91: =IF(I91="P",H91,IF(I91="RP",G91,IF(I91="LN",F91,""))) -> 5914554 | B91: 1107928 | C91: =VLOOKUP(B91,'SINTÉTICO SICRO'!A:D,2,0) -> Concreto fck = 20 MPa - confecção em central dosadora de 30 m³/h - areia e brita comerciais | D91: 0.1008 | E91: tkm | F91: 5914539 | G91: 5914554 | H91: 5914569 | I91: =$B$69 -> RP | J91: =C69 -> 50 | K91: =IF(ISBLANK(J91),"",J91*D91)*I84 -> 17136

Sheet MEDICAO EM TKM
A5: PLANILHA DE MEDIÇAO DE TKM
A6: 903808 | B6: =VLOOKUP(A6,'SINTÉTICO SICRO'!A:D,2,0) -> Instalação da usina misturadora de solos com capacidade de 300 t/h
A7: MOMENTO DE TRANSPORTE | D7: Quantidade (tkm) | E7: quantidade medida(un.)
E8: 1
A9: 5914479 | B9: =VLOOKUP(A9,'SINTÉTICO SICRO'!A:D,2,0) -> Transporte com caminhão carroceria de 15 t - rodovia pavimentada | D9: =SUMIF('MOMENTO DE TRANSPORTE - AUX'!#REF!,'MEDICAO EM TKM'!A9,'MOMENTO DE TRANSPORTE - AUX'!#REF!) ->  | E9: =D9*$E$8 -> 
A10: 5914389 | B10: =VLOOKUP(A10,'SINTÉTICO SICRO'!A:D,2,0) -> Transporte com caminhão basculante de 10 m³ - rodovia pavimentada | D10: =SUMIF('MOMENTO DE TRANSPORTE - AUX'!#REF!,'MEDICAO EM TKM'!A10,'MOMENTO DE TRANSPORTE - AUX'!#REF!) -> 
A11: 5914449 | B11: =VLOOKUP(A11,'SINTÉTICO SICRO'!A:D,2,0) -> Transporte com caminhão carroceria de 15 t - rodovia em leito natural | D11: =SUMIF('MOMENTO DE TRANSPORTE - AUX'!#REF!,'MEDICAO EM TKM'!A11,'MOMENTO DE TRANSPORTE - AUX'!#REF!) -> 
A12: 5914359 | B12: =VLOOKUP(A12,'SINTÉTICO SICRO'!A:D,2,0) -> Transporte com caminhão basculante de 10 m³ - rodovia em leito natural | D12: =SUMIF('MOMENTO DE TRANSPORTE - AUX'!#REF!,'MEDICAO EM TKM'!A12,'MOMENTO DE TRANSPORTE - AUX'!#REF!) -> 
A13: 5914464 | B13: =VLOOKUP(A13,'SINTÉTICO SICRO'!A:D,2,0) -> Transporte com caminhão carroceria de 15 t - rodovia em revestimento primário | D13: =SUMIF('MOMENTO DE TRANSPORTE - AUX'!#REF!,'MEDICAO EM TKM'!A13,'MOMENTO DE TRANSPORTE - AUX'!#REF!) -> 
A14: 5914374 | B14: =VLOOKUP(A14,'SINTÉTICO SICRO'!A:D,2,0) -> Transporte com caminhão basculante de 10 m³ - rodovia em revestimento primário | D14: =SUMIF('MOMENTO DE TRANSPORTE - AUX'!#REF!,'MEDICAO EM TKM'!A14,'MOMENTO DE TRANSPORTE - AUX'!#REF!) -> 
A16: 5502114 | B16: =VLOOKUP(A16,'SINTÉTICO SICRO'!A:D,2,0) -> Escavação, carga e transporte de material de 1ª categoria - DMT de 1.000 a 1.200 m - caminho de serviço em leito natural - com escavadeira e caminhão basculante de 14 m³
A17: MOMENTO DE TRANSPORTE | D17: Quantidade (tkm) | E17: -
E18: -
A21: 4413942 | B21: =VLOOKUP(A21,'SINTÉTICO SICRO'!A:D,2,0) -> Espalhamento de material em bota-fora
A22: MOMENTO DE TRANSPORTE | D22: Quantidade (tkm) | E22: -
E23: -
A25: 4011318 | B25: =VLOOKUP(A25,'SINTÉTICO SICRO'!A:D,2,0) -> Base ou sub-base estabilizada granulometricamente com mistura solo brita (70% - 30%) em usina com material de jazida e brita comercial - 100% Proctor modificado
A26: MOMENTO DE TRANSPORTE | C26: Quantidade (tkm) | D26: Área Executada (m2) | E26: =('MC MODULO'!C1*'MC MODULO'!C2)*'MC MODULO'!G1 -> 119000
D27: espessura (m) | E27: 0.15 | F27: =(E26*E27)/'RESUMO MODULO TOTAL'!H28 -> 1
A28: 5914389 | B28: =VLOOKUP(A28,'SINTÉTICO SICRO'!A:D,2,0) -> Transporte com caminhão basculante de 10 m³ - rodovia pavimentada | C28: ='MOMENTO DE TRANSPORTE - PRINC'!K28 -> 1472989.14 | D28: =C28*$F$27 -> 1472989.14
A29: 5914359 | B29: =VLOOKUP(A29,'SINTÉTICO SICRO'!A:D,2,0) -> Transporte com caminhão basculante de 10 m³ - rodovia em leito natural | C29: ='MOMENTO DE TRANSPORTE - PRINC'!K54 -> 184123.6425 | D29: =C29*$F$27 -> 184123.6425
A30: 5914374 | B30: =VLOOKUP(A30,'SINTÉTICO SICRO'!A:D,2,0) -> Transporte com caminhão basculante de 10 m³ - rodovia em revestimento primário | C30: ='MOMENTO DE TRANSPORTE - PRINC'!I73 -> 1785 | D30: =C30*$F$27 -> 1785
A32: 4011209 | B32: =VLOOKUP(A32,'SINTÉTICO SICRO'!A:D,2,0) -> Regularização do subleito - 100% Proctor intermediário
A33: MOMENTO DE TRANSPORTE | D33: Quantidade (tkm)
A37: 5213440 | B37: Placa de regulamentação em aço D = 0,60 m - película retrorrefletiva tipo I + SI - fornecimento e implantação
A38: MOMENTO DE TRANSPORTE | D38: Quantidade (tkm)
A42: 5213464 | B42: =VLOOKUP(A42,'SINTÉTICO SICRO'!A:D,2,0) -> Placa de advertência em aço, lado de 0,60 m - película retrorrefletiva tipo I + SI - fornecimento e implantação
A43: MOMENTO DE TRANSPORTE | D43: Quantidade (tkm)
A47: 5213863 | B47: =VLOOKUP(A47,'SINTÉTICO SICRO'!A:D,2,0) -> Suporte metálico galvanizado para placa de advertência ou regulamentação - lado ou diâmetro de 0,60 m - fornecimento e implantação
A48: MOMENTO DE TRANSPORTE | D48: Quantidade (tkm)
A52: 5213400 | B52: =VLOOKUP(A52,'SINTÉTICO SICRO'!A:D,2,0) -> Pintura de faixa com tinta acrílica - espessura de 0,4 mm
A53: MOMENTO DE TRANSPORTE | D53: Quantidade (tkm)
A57: 2003943 | B57: =VLOOKUP(A57,'SINTÉTICO SICRO'!A:D,2,0) -> Meio-fio de concreto - MFC 03 moldado no local com extrusora e concreto usinado - areia e brita comerciais
A58: MOMENTO DE TRANSPORTE | D58: Quantidade (tkm) | E58: Extensao executada (m)
E59: 100 | F59: =E59/('MC MODULO'!C1*2) -> 0.05
A60: 5914569 | B60: =VLOOKUP(A60,'SINTÉTICO SICRO'!A:D,2,0) -> Transporte com caminhão betoneira - rodovia pavimentada | D60: ='MOMENTO DE TRANSPORTE - PRINC'!K41 -> 137088 | E60: =D60*$F$59 -> 6854.4
A61: 5914539 | B61: =VLOOKUP(A61,'SINTÉTICO SICRO'!A:D,2,0) -> Transporte com caminhão betoneira - rodovia em leito natural | D61: ='MOMENTO DE TRANSPORTE - PRINC'!K66 -> 17136 | E61: 856.8
A62: 5914554 | B62: =VLOOKUP(A62,'SINTÉTICO SICRO'!A:D,2,0) -> Transporte com caminhão betoneira - rodovia em revestimento primário | D62: ='MOMENTO DE TRANSPORTE - PRINC'!K91 -> 17136 | E62: 856.8
A63: 5914479 | B63: =VLOOKUP(A63,'SINTÉTICO SICRO'!A:D,2,0) -> Transporte com caminhão carroceria de 15 t - rodovia pavimentada | D63: =SUMIF('MOMENTO DE TRANSPORTE - AUX'!A25:A29,'MEDICAO EM TKM'!A63,'MOMENTO DE TRANSPORTE - AUX'!K25:K29)+'MOMENTO DE TRANSPORTE - AUX'!K37 -> 3241.152 | E63: 162.0576
A64: 5914389 | B64: =VLOOKUP(A64,'SINTÉTICO SICRO'!A:D,2,0) -> Transporte com caminhão basculante de 10 m³ - rodovia pavimentada | D64: =SUMIF('MOMENTO DE TRANSPORTE - AUX'!A25:A29,'MEDICAO EM TKM'!A64,'MOMENTO DE TRANSPORTE - AUX'!K25:K29) -> 23449.24512 | E64: 1172.462256
A65: 5914449 | B65: =VLOOKUP(A65,'SINTÉTICO SICRO'!A:D,2,0) -> Transporte com caminhão carroceria de 15 t - rodovia em leito natural | D65: =SUMIF('MOMENTO DE TRANSPORTE - AUX'!A49:A54,'MEDICAO EM TKM'!A65,'MOMENTO DE TRANSPORTE - AUX'!K49:K54)+'MOMENTO DE TRANSPORTE - AUX'!K61 -> 405.144 | E65: 20.2572
A66: 5914359 | B66: =VLOOKUP(A66,'SINTÉTICO SICRO'!A:D,2,0) -> Transporte com caminhão basculante de 10 m³ - rodovia em leito natural | D66: =SUMIF('MOMENTO DE TRANSPORTE - AUX'!A49:A54,'MEDICAO EM TKM'!A66,'MOMENTO DE TRANSPORTE - AUX'!K49:K54) -> 2931.15564 | E66: 146.557782
A67: 5914464 | B67: =VLOOKUP(A67,'SINTÉTICO SICRO'!A:D,2,0) -> Transporte com caminhão carroceria de 15 t - rodovia em revestimento primário | D67: =SUMIF('MOMENTO DE TRANSPORTE - AUX'!A72:A76,'MEDICAO EM TKM'!A67,'MOMENTO DE TRANSPORTE - AUX'!K72:K76)+'MOMENTO DE TRANSPORTE - AUX'!K84 -> 405.144 | E67: 20.2572
A68: 5914374 | B68: =VLOOKUP(A68,'SINTÉTICO SICRO'!A:D,2,0) -> Transporte com caminhão basculante de 10 m³ - rodovia em revestimento primário | D68: =SUMIF('MOMENTO DE TRANSPORTE - AUX'!A72:A76,'MEDICAO EM TKM'!A67,'MOMENTO DE TRANSPORTE - AUX'!K72:K76) -> 404.124 | E68: 20.2062
A70: 4915724 | B70: =VLOOKUP(A70,'SINTÉTICO SICRO'!A:D,2,0) -> Caiação mecanizada com fixador de cal
A71: MOMENTO DE TRANSPORTE | D71: Quantidade (tkm)

Sheet MC MODULO
A1: Extensão | B1: = | C1: 1000 | D1: m | F1: QUANTIDADE DE MODULOS | G1: 17
A2: Largura | B2: = | C2: 7 | D2: m
A4: Extensão | B4: = | C4: 1 | D4: km
J5: ='RESUMO MODULO TOTAL'!L52 -> 20138370
B6: MOBUILIZAÇÃO
A7: 1 | B7: Implantação da obra
B9: Módulos(un) | D9: Módulos(un)
B10: =G1 -> 17 | C10: = | D10: =B10 -> 17
A12: 2 | B12: Administração da obra
B14: Módulos(un) | D14: Módulos(un)
B15: =G1 -> 17 | C15: = | D15: =B15 -> 17
A17: 3 | B17: Canteiro de Obras e Almoxarifado
B19: Módulos(un) | D19: Módulos(un)
B20: =G1 -> 17 | C20: = | D20: =B20 -> 17
A22: 4 | B22: Placa de Obra em Chapa de Aço Galvanizado
B24: Módulos(un) | C24: Comprimento(m) | D24: Largura (m) | H24: Total de Area de placa (m²)
B25: =G1 -> 17 | C25: 2 | D25: 4 | H25: =C25*D25*B25*2 -> 272
B27: TERRAPLENAGEM
A29: 5 | B29: serviços topográficos para pavimentação, inclusive notas de serviços, acompanhamento e greide
B31: Extensão (m) | D31: Largura (m) | H31: area (m2)
B32: =C1*$G$1 -> 17000 | C32: x | D32: =$C$2 -> 7 | G32: = | H32: =B32*D32 -> 119000
A34: 6 | B34: Escavação, carga e transporte de material de 1ª categoria - DMT de 1.000 a 1.200 m - caminho de serviço em leito natural - com escavadeira e caminhão basculante de 14 m³
B36: Extensão (m) | D36: Largura (m) | F36: Espessura (m) | H36: Volume (m3)
B37: =C1*$G$1 -> 17000 | C37: x | D37: =$C$2 -> 7 | E37: x | F37: =0.15+0.08+0.04 -> 0.27 | G37: = | H37: =B37*D37*F37 -> 32130
A41: 7 | B41: Espalhamento de material em bota-fora
B43: Extensão (m) | D43: Largura (m) | F43: Espessura (m) | H43: Volume (m3)
B44: =C1*$G$1 -> 17000 | C44: x | D44: =$C$2 -> 7 | E44: x | F44: 0.27 | G44: = | H44: =B44*D44*F44 -> 32130
B46: PAVIMENTAÇÃO
A48: 8 | B48: Execução de Pavimento em Piso Intertravado, com Bloco Sextavado de 25 X 25 cm, espessura 8 cm. AF_12/2015
B50: Extensão (m) | C50: Largura (m) | H50: area (m2)
B51: =$C$1*G1 -> 17000 | C51: =$C$2 -> 7 | G51: = | H51: =C51*B51 -> 119000
A53: 8 | B53: Transporte com cavalo mecânico com semirreboque com capacidade de 30 t - rodovia pavimentada
B55: Dimensoes (m³) | C55: Densidade bloco Intertravado (t/m³) | D55: Peso total (t) | E55: Distancia (km) | H55: TKM
B56: =H51*0.08 -> 9520 | C56: 2.2 | D56: =C56*B56 -> 20944 | E56: 100 | G56: = | H56: =D56*E56 -> 2094400
A59: 8 | B59: Carga, manobra e descarga de materiais diversos em caminhão carroceria com capacidade de 7 t e com guindauto de 20 t.m
B61: Dimensoes (m³) | C61: Densidade bloco Intertravado (t/m³) | D61: Peso total (t) | H61: TKM
B62: =H51*0.08 -> 9520 | C62: 2.2 | D62: =C62*B62 -> 20944 | G62: = | H62: =D62 -> 20944
A65: 8 | B65: TRANSPORTE COM CAMINHÃO BASCULANTE DE 10 M³, EM VIA URBANA PAVIMENTADA , DMT ATÉ 30 KM (UNIDADE: TXKM). AF_07/2020 (areia) | U65: =7*20 -> 140
U66: =26*5 -> 130
B67: Area | C67: Densidade areia (t/m³) | D67: Peso total (t) | E67: Distancia (km) | H67: TKM | U67: =23*5 -> 115
B68: =H51 -> 119000 | C68: 1.5 | D68: =B68*C68*0.04 -> 7140 | E68: 50 | G68: = | H68: =D68*E68 -> 357000 | U68: =U65+U66+U67 -> 385
A70: 8 | B70: TRANSPORTE COM CAMINHÃO BASCULANTE DE 10 M³, EM VIA URBANA PAVIMENTADA , DMT ATÉ 30 KM (UNIDADE: TXKM). AF_07/2020 (PO DE PEDRA) | U70: =7*20 -> 140
D71: 0.009 | U71: =26*5 -> 130
B72: Area | C72: Densidade pó de pedra (t/m³) | D72: Quantidade total de pó de pedra (m³) | E72: Peso total (t) | F72: Distancia (km) | H72: TKM | U72: =23*5 -> 115
B73: =H51 -> 119000 | C73: 1.5 | D73: =B73*D71 -> 1071 | E73: =D73*C73 -> 1606.5 | F73: 70 | G73: = | H73: =E73*F73 -> 112455 | U73: =U70+U71+U72 -> 385
A75: 9 | B75: Base de solo estabilizado granulometricamente sem mistura com material de jazida - 100% Proctor modificado
B77: Extensão (m) | D77: Largura (m) | F77: Espessura (m) | H77: Volume (m3)
B78: =C1*$G$1 -> 17000 | C78: x | D78: =$C$2 -> 7 | E78: x | F78: 0.15 | G78: = | H78: =B78*D78*F78 -> 17850
A80: 10 | B80: Regularização do subleito
B82: Extensão (m) | D82: Largura (m) | H82: area (m2)
B83: =C1*$G$1 -> 17000 | C83: x | D83: =$C$2 -> 7 | G83: = | H83: =B83*D83 -> 119000
B85: SINALIZAÇÃO
A87: 11 | B87: Fornecimento e implantação de placa de regulamentação em aço D = 0,60 m - película retrorrefletiva tipo I + SI
B89: Extensão (km) | D89: Quant. (un) | H89: Quant. (un)
B90: =$C$4*$G$1 -> 17 | C90: x | D90: 3 | G90: = | H90: =B90*D90 -> 51
A92: 11 | B92: Fornecimento e implantação de placa de advertencia
B94: Extensão (km) | D94: Quant. (un) | H94: Quant. (un)
B95: =$C$4*$G$1 -> 17 | C95: x | D95: 3 | G95: = | H95: =B95*D95 -> 51
A98: 12 | B98: Fornecimento e implantação de suporte metálico galvanizado para placa de regulamentação - D = 0,60 m
B100: Extensão (km) | D100: Quant. (un) | H100: Quant. (un)
B101: =$C$4*$G$1 -> 17 | C101: x | D101: 0.5 | G101: = | H101: =H95+H90 -> 102
A103: 13 | B103: Pintura de faixa com tinta acrílica - espessura de 0,4 mm (bordos)
B105: Extensão (m) | D105: Espessura (m) | H105: Quant. (m²)
B106: =C1*G1 -> 17000 | C106: x | D106: 0.1 | G106: = | H106: =B106*D106*2 -> 3400
B108: Pintura de faixa com tinta acrílica - espessura de 0,4 mm (faixa central)
H110: Quant. (m²)
H111: =B106*D106*0.4 -> 680
B114: DRENAGEM
A115: 14 | B115: Meio-fio de concreto - MFC 03 - areia e brita comerciais - fôrma de madeira
B117: Extensão (m) | D117: Quant. (un) | H117: Extensão(m)
B118: =$C$1*$G$1 -> 17000 | C118: x | D118: 2 | G118: = | H118: =B118*D118 -> 34000
A120: 19 | B120: Caiação mecanizada com fixador de cal
B122: Extensão (m) | D122: Perimetro (m) | H122: Area (m²)
B123: =$C$1*$G$1 -> 17000 | C123: x | D123: =0.24 -> 0.24 | G123: = | H123: =B123*D123 -> 4080
B126: SERVIÇOS COMPLEMENTARES
A127: 15
B129: Extensão (m) | D129: Largura (m) | G129: 0.1 | H129: extensão (m)
B130: =$C$1*G1 -> 17000 | C130: x | D130: 1 | E130: x | G130: = | H130: =G129*B130 -> 1700
B133: PROJETO EXECUTIVO
A134: 16 | B134: Projeto Executivo
B136: Extensão (m) | D136: Largura (m) | F136: Quant. (un) | H136: Área (m²)
B137: =$C$1*G1 -> 17000 | C137: x | D137: =C2 -> 7 | E137: x | F137: 1 | G137: = | H137: =B137*D137 -> 119000
B139: CONTROLE TECNOLOGICO - OBRA
A140: 17 | B140: Projeto Executivo
B142: Extensão (m) | D142: Largura (m) | F142: Quant. (un) | H142: meses
G143: = | H143: =0.5*G1 -> 8.5

Sheet Material Sicro
A1: CGCIT | B1: SISTEMA DE CUSTOS REFERENCIAIS DE OBRAS - SICRO | D1: DNIT
B2: Piauí - Julho/2025
A3: Código | B3: Descrição | C3: Unidade | D3: Preço Unitário (R$)
A4: M0003 | B4: Aço CA 25 | C4: kg | D4: 6.835
A5: M0004 | B5: Aço CA 50 | C5: kg | D5: 6.68
A6: M0005 | B6: Brita 0 | C6: m³ | D6: 184.217
A7: M0006 | B7: Fibra de poliamida para concreto | C7: kg | D7: 27.9838
A8: M0007 | B8: Fibra de aço para concreto | C8: kg | D8: 17.4231
A9: M0008 | B9: Detergente líquido neutro | C9: l | D9: 4.4324
A10: M0009 | B10: Aço CP 175 RB | C10: kg | D10: 9.831
A11: M0010 | B11: Aditivo superplastificante para concreto e argamassa | C11: kg | D11: 17.2177
A12: M0011 | B12: Aditivo modificador de viscosidade para concreto e argamassa | C12: kg | D12: 11.2784
A13: M0012 | B13: Silicato de alumínio | C13: kg | D13: 2.338
A14: M0013 | B14: Grampo de ancoragem em aço CA 50 - D = 12,5 mm | C14: kg | D14: 6.3477
A15: M0014 | B15: Aço CA 60 | C15: kg | D15: 8.1648
A16: M0015 | B16: Espoleta elétrica Nº 8 - D = 6,0 mm | C16: un | D16: 19.296
A17: M0016 | B17: Grampo sargento em ferro fundido tipo C com abertura útil de 105 mm (4") | C17: un | D17: 42.463
A18: M0017 | B18: Saco de aniagem ou de ráfia de 50 kg - C = 95 cm e L = 65 cm | C18: un | D18: 2.6656
A19: M0018 | B19: Grampo pesado em aço-carbono para cabo de aço - D = 13 mm (1/2") | C19: un | D19: 18.1191
A20: M0019 | B20: Esticador em aço tipo olhal x olhal para cabo de aço - D = 13 mm | C20: un | D20: 135.199
A21: M0020 | B21: Grampo de ancoragem em aço CA 50 - D = 6,3 mm | C21: kg | D21: 7.1266
A22: M0021 | B22: Herbicida glifosato para áreas contínuas | C22: l | D22: 25.0899
A23: M0025 | B23: Adesivo plástico para tubos de PVC | C23: kg | D23: 52.3151
A24: M0026 | B24: Aditivo aglutinante para argamassa | C24: l | D24: 10.0377
A25: M0028 | B25: Areia média | C25: m³ | D25: 88.576
A26: M0029 | B26: Sílica ativa para concreto e argamassa (microssílica) | C26: kg | D26: 2.2529
A27: M0030 | B27: Aditivo plastificante e retardador de pega para concreto e argamassa | C27: kg | D27: 8.3893
A28: M0032 | B28: Adesivo de contato para laminado elastoplástico | C28: kg | D28: 47.9638
A29: M0035 | B29: Diluente tipo aguarrás para tintas e vernizes | C29: l | D29: 14.7478
A30: M0039 | B30: Gasolina comum | C30: l | D30: 5.5453
A31: M0041 | B31: Contêiner com 2 banheiros - L = 2,44 m e C = 6,09 m (1 TEU) | C31: un | D31: 103835.0185
A32: M0042 | B32: Contêiner com janela - L = 2,44 m e C = 6,09 m (1 TEU) | C32: un | D32: 44288.7879
A33: M0043 | B33: Óleo diesel | C33: l | D33: 5.4116
A34: M0044 | B34: Abrasivo de vidro com granulometria de 210 a 420 micra | C34: kg | D34: 10.9123
A35: M0045 | B35: Barreira plástica monobloco para canalização de trânsito - C = 100 cm, L = 50 cm e H = 55 cm | C35: un | D35: 446.2251
A36: M0046 | B36: Barreira plástica para canalização de trânsito - C = 60 cm, L = 45 cm e H = 60 cm | C36: un | D36: 313.2111
A37: M0047 | B37: Cone de sinalização em polietileno - H = 75 cm e base quadrada de 40 x 40 cm | C37: un | D37: 95.6171
A38: M0048 | B38: Balizador cônico refletivo em polietileno semiflexível - H = 114 cm e base octogonal de D = 40 cm | C38: un | D38: 156.499
A39: M0049 | B39: Delimitador de tráfego flexível com chumbador e duas faixas refletivas - H = 77 cm e D = 21 cm | C39: un | D39: 168.7576
A40: M0050 | B40: Aditivo natural tipo goma xantana para hidrossemeadura | C40: kg | D40: 80.2882
A41: M0051 | B41: Cilindro canalizador de tráfego em polietileno - H = 117 cm e base quadrada de 60 x 60 cm | C41: un | D41: 188.9459
A42: M0052 | B42: Fita adesiva de PVC - L = 50 mm e C = 50 m | C42: m | D42: 0.1157
A43: M0053 | B43: Tela plástica em polipropileno na cor laranja para tapume - L = 1,2 m | C43: m | D43: 1.7977
A44: M0054 | B44: Fita zebrada de cor laranja e branca - L = 7 a 8 cm | C44: m | D44: 0.0745
A45: M0055 | B45: Barreira plástica articulável modular - C = 240 cm e H = 100 cm | C45: un | D45: 1329.9706
A46: M0056 | B46: Ferramenta de corte para removedora de faixa de sinalização (Smith Cutter) | C46: un | D46: 7566.9579
A47: M0057 | B47: Contêiner com janela - L = 4,88 m e C = 6,09 m (1 TEU duplo) | C47: un | D47: 151502.037
A48: M0058 | B48: Contêiner com janela e 2 banheiros - L = 4,88 m e C = 6,09 m (1 TEU duplo) | C48: un | D48: 156517.037
A49: M0059 | B49: Contêiner com revestimento térmico, janela e banheiro - L = 2,44 m e C = 6,09 m (1 TEU) | C49: un | D49: 64248.4879
A50: M0060 | B50: Contêiner com janela - L = 2,44 m e C = 4,58 m (3/4 TEU) | C50: un | D50: 65219.5185
A51: M0065 | B51: Contêiner com janela e banheiro - L = 2,44 m e 4,58 m (3/4 TEU) | C51: un | D51: 83273.5185
A52: M0066 | B52: Contêiner com revestimento térmico, janela e banheiro - L = 2,44 m e C = 12,90 m (2 TEU) | C52: un | D52: 142976.537
A53: M0067 | B53: Tubo PEAD PE 100 PN 10 com flanges - D = 160 mm | C53: m | D53: 148.6562
A54: M0068 | B54: Caibro de pinho - L = 7,5 cm e E = 10,0 cm | C54: m | D54: 26.7857
A55: M0069 | B55: Arame farpado em aço galvanizado - D = 1,60 mm | C55: m | D55: 0.7283
A56: M0071 | B56: Contêiner com 3 janelas para guarita - L = 2,44 m e C = 3,05 m (1/2 TEU) | C56: un | D56: 51409.5321
A57: M0072 | B57: Arame liso em aço galvanizado - D = 2,10 mm (14 BWG) | C57: kg | D57: 15.5237
A58: M0073 | B58: Muda de árvore com altura de 0,30 a 0,80 m | C58: un | D58: 19.548
A59: M0074 | B59: Muda de arbusto com altura até 0,50 m | C59: un | D59: 22.5979
A60: M0075 | B60: Arame liso recozido em aço-carbono - D = 1,24 mm (18 BWG) | C60: kg | D60: 9.2649
A61: M0076 | B61: Disco de corte abrasivo para policorte - D = 300 mm | C61: un | D61: 21.1732
A62: M0080 | B62: Areia fina | C62: m³ | D62: 98.5726
A63: M0081 | B63: Areia grossa | C63: m³ | D63: 80.8117
A64: M0082 | B64: Areia média lavada | C64: m³ | D64: 93.769
A65: M0083 | B65: Argamassa pré-dosada para grauteamento | C65: kg | D65: 2.1043
A66: M0084 | B66: Argamassa pré-dosada autoadensável para grauteamento | C66: kg | D66: 2.1743
A67: M0085 | B67: Ancoragem ativa para 4 cordoalhas - D = 12,7 mm | C67: un | D67: 382.2856
A68: M0086 | B68: Ancoragem ativa para 6 cordoalhas - D = 12,7 mm | C68: un | D68: 494.7457
A69: M0087 | B69: Ancoragem ativa para 7 cordoalhas - D = 12,7 mm | C69: un | D69: 571.4852
A70: M0088 | B70: Ancoragem ativa para 8 cordoalhas - D = 12,7 mm | C70: un | D70: 740.5846
A71: M0089 | B71: Ancoragem ativa para 9 cordoalhas - D = 12,7 mm | C71: un | D71: 754.1917
A72: M0091 | B72: Ancoragem ativa para 10 cordoalhas - D = 12,7 mm | C72: un | D72: 838.2388
A73: M0092 | B73: Ancoragem ativa para 12 cordoalhas - D = 12,7 mm | C73: un | D73: 1008.2853
A74: M0093 | B74: Ancoragem ativa para 15 cordoalhas - D = 12,7 mm | C74: un | D74: 1469.997
A75: M0094 | B75: Ancoragem ativa para 19 cordoalhas - D = 12,7 mm | C75: un | D75: 1868.5391
A76: M0098 | B76: Bambu com diâmetro médio de 10 cm | C76: m | D76: 25.0201
A77: M0099 | B77: Equipamentos para a fábrica de dormentes de concreto protendido | C77: ISF | D77: 584.689
A78: M0100 | B78: Ancoragem ativa para 22 cordoalhas - D = 12,7 mm | C78: un | D78: 2419.8734
A79: M0101 | B79: Ancoragem ativa para 27 cordoalhas - D = 12,7 mm | C79: un | D79: 2959.6705
A80: M0102 | B80: Ancoragem ativa para 31 cordoalhas - D = 12,7 mm | C80: un | D80: 3008.998
A81: M0103 | B81: Aditivo acelerador de pega para concreto e argamassa projetados | C81: kg | D81: 8.7014
A82: M0104 | B82: Asfalto diluído de petróleo - CM-30 | C82: t | D82: -
A83: M0105 | B83: Ancoragem ativa para 4 cordoalhas - D = 15,2 mm | C83: un | D83: 540.5815
A84: M0106 | B84: Ancoragem ativa para 6 cordoalhas - D = 15,2 mm | C84: un | D84: 631.5327
A85: M0107 | B85: Geocomposto para drenagem | C85: m² | D85: 50.1041
A86: M0108 | B86: Ancoragem ativa para 7 cordoalhas - D = 15,2 mm | C86: un | D86: 713.7664
A87: M0109 | B87: Geodreno vertical - L = 10 cm e E = 5 mm | C87: m | D87: 5.18
A88: M0110 | B88: Ancoragem ativa para 10 cordoalhas - D = 15,2 mm | C88: un | D88: 1147.6328
A89: M0111 | B89: Ancoragem ativa para 9 cordoalhas - D = 15,2 mm | C89: un | D89: 1023.0803
A90: M0112 | B90: Disco diamantado segmentado para corte de pavimento - D = 1.000 mm | C90: un | D90: 5881.0277
A91: M0113 | B91: Ancoragem ativa para 12 cordoalhas - D = 15,2 mm | C91: un | D91: 1347.1292
A92: M0114 | B92: Disco diamantado segmentado para corte de pavimento - D = 1.500 mm | C92: un | D92: 26165.5741
A93: M0115 | B93: Biomanta vegetal de fibras de coco entrelaçadas com fios de polipropileno biodegradáveis - densidade 0,4 kg/m² | C93: m² | D93: 6.5
A94: M0116 | B94: Mangote flangeado de borracha reforçada com lonas sintéticas - C = 1,80 m e D = 0,30 m | C94: un | D94: 10555.9813
A95: M0117 | B95: Mangote flangeado de borracha reforçada com lonas sintéticas - C = 1,80 m e D = 0,40 m | C95: un | D95: 18262.0736
A96: M0118 | B96: Mangote flangeado de borracha reforçada com lonas sintéticas - C = 1,80 m e D = 0,45 m | C96: un | D96: 25385.853
A97: M0119 | B97: Mangote flangeado de borracha reforçada com lonas sintéticas - C = 1,80 m e D = 0,50 m | C97: un | D97: 30042.146
A98: M0120 | B98: Tubo PEAD PE 100 PN 8 com flanges - D = 250 mm | C98: m | D98: 327.3507
A99: M0121 | B99: Tubo PEAD PE 100 PN 8 com flanges - D = 400 mm | C99: m | D99: 2101.7656
A100: M0122 | B100: Tubo PEAD PE 100 PN 8 com flanges - D = 450 mm | C100: m | D100: 2639.8971
A101: M0123 | B101: Tubo PEAD PE 100 PN 8 com flanges - D = 500 mm | C101: m | D101: 2956.034
A102: M0124 | B102: Flutuador bipartido em polietileno com núcleo de espuma em poliuretano para tubos - D = 0,30 m | C102: un | D102: 4823.7733
A103: M0125 | B103: Flutuador bipartido em polietileno com núcleo de espuma em poliuretano para tubos - D = 0,40 m | C103: un | D103: 6672.8777
A104: M0126 | B104: Flutuador bipartido em polietileno com núcleo de espuma em poliuretano para tubos - D = 0,45 m | C104: un | D104: 7676.4675
A105: M0127 | B105: Flutuador bipartido em polietileno com núcleo de espuma em poliuretano para tubos - D = 0,50 m | C105: un | D105: 8281.1957
A106: M0128 | B106: Biomanta vegetal de fibras de palha entrelaçadas com fios de polipropileno biodegradáveis - densidade 0,6 kg/m² | C106: m² | D106: 5.9
A107: M0129 | B107: Retentor de sedimento em fibras vegetais - D = 20 cm | C107: m | D107: 66.5409
A108: M0130 | B108: Ancoragem ativa para 15 cordoalhas - D = 15,2 mm | C108: un | D108: 1789.5534
A109: M0131 | B109: Tubo PEAD corrugado com paredes estruturadas para drenagem - D = 400 mm | C109: m | D109: 247.4086
A110: M0132 | B110: Tubo PEAD corrugado com paredes estruturadas para drenagem - D = 450 mm | C110: m | D110: 311.9123
A111: M0133 | B111: Tubo PEAD corrugado com paredes estruturadas para drenagem - D = 500 mm | C111: m | D111: 407.4463
A112: M0134 | B112: Tubo PEAD corrugado com paredes estruturadas para drenagem - D = 600 mm | C112: m | D112: 593.8368
A113: M0135 | B113: Tubo PEAD corrugado com paredes estruturadas para drenagem - D = 750 mm | C113: m | D113: 840.6907
A114: M0136 | B114: Tubo PEAD corrugado com paredes estruturadas para drenagem - D = 800 mm | C114: m | D114: 886.1224
A115: M0137 | B115: Tubo PEAD corrugado com paredes estruturadas para drenagem - D = 900 mm | C115: m | D115: 1191.1433
A116: M0138 | B116: Ancoragem ativa para 19 cordoalhas - D = 15,2 mm | C116: un | D116: 2337.2214
A117: M0139 | B117: Tubo PEAD corrugado com paredes estruturadas para drenagem - D = 1.000 mm | C117: m | D117: 1555.3427
A118: M0140 | B118: Bentonita | C118: kg | D118: 3.6404
A119: M0141 | B119: Tubo PEAD corrugado com paredes estruturadas para drenagem - D = 1.050 mm | C119: m | D119: 1615.3582
A120: M0142 | B120: Tubo PEAD corrugado com paredes estruturadas para drenagem - D = 1.200 mm | C120: m | D120: 2184.9213
A121: M0143 | B121: Tubo PEAD corrugado com paredes estruturadas para drenagem - D = 1.500 mm | C121: m | D121: 2786.3984
A122: M0145 | B122: Ancoragem ativa para 22 cordoalhas - D = 15,2 mm | C122: un | D122: 3014.6317
A123: M0146 | B123: Ancoragem ativa para 27 cordoalhas - D = 15,2 mm | C123: un | D123: 3955.9977
A124: M0148 | B124: Ancoragem ativa para lajes para 1 cordoalha - D = 12,7 mm | C124: un | D124: 81.7799
A125: M0151 | B125: Ancoragem ativa para lajes para 2 cordoalhas - D = 12,7 mm | C125: un | D125: 159.3872
A126: M0152 | B126: Ancoragem ativa para lajes para 3 cordoalhas - D = 12,7 mm | C126: un | D126: 219.2865
A127: M0153 | B127: Ancoragem ativa para lajes para 4 cordoalhas - D = 12,7 mm | C127: un | D127: 301.974
A128: M0156 | B128: Bloco de concreto - L = 19 cm, A = 19 cm e C = 39 cm | C128: un | D128: 4.7
A129: M0158 | B129: Tela metálica galvanizada dobrada em L - C = 2,0 m, L = 0,4 m e H = 0,4 m | C129: un | D129: 465.7743
A130: M0160 | B130: Extintor de incêndio tipo espuma mecânica - V = 10 l | C130: un | D130: 638.0132
A131: M0161 | B131: Barra de fibra de vidro (vergalhão) - D = 25,0 mm | C131: m | D131: 58.5743
A132: M0162 | B132: Corrente de elo soldado em aço galvanizado com acabamento polido - D = 3,18 mm (1/8") | C132: m | D132: 7.3698
A133: M0163 | B133: Gonzo com aba em aço galvanizado - D = 12,7 mm (1/2") | C133: un | D133: 2.4246
A134: M0164 | B134: Tubo em aço galvanizado - E = 1,50 mm e seção de 20 x 20 mm | C134: m | D134: 11.9452
A135: M0166 | B135: Tubo em aço galvanizado - E = 2,25 mm e D = 20 mm (3/4") | C135: m | D135: 27.8456
A136: M0167 | B136: Tela de poliamida industrial - E = 0,40 mm e malha de 1,6 mm | C136: m² | D136: 14.3307
A137: M0168 | B137: Abraçadeira de poliamida - E = 3,6 mm e C = 200 mm | C137: un | D137: 0.2082
A138: M0169 | B138: Roda em aço e pneu com câmara de ar 83/203 mm (3,25"/8") para carrinho de mão | C138: un | D138: 75.155
A139: M0173 | B139: Ancoragem ativa para lajes para 1 cordoalha - D = 15,2 mm | C139: un | D139: 95.7231
A140: M0178 | B140: Ancoragem ativa para lajes para 2 cordoalhas - D = 15,2 mm | C140: un | D140: 207.6619
A141: M0181 | B141: Ancoragem ativa para lajes para 3 cordoalhas - D = 15,2 mm | C141: un | D141: 261.7385
A142: M0184 | B142: Ancoragem ativa para lajes para 4 cordoalhas - D = 15,2 mm | C142: un | D142: 363.2585
A143: M0191 | B143: Brita 1 | C143: m³ | D143: 170.2025
A144: M0192 | B144: Brita 2 | C144: m³ | D144: 159.7788
A145: M0193 | B145: Brita 3 | C145: m³ | D145: 153.0019
A146: M0194 | B146: Escória de aciaria | C146: m³ | D146: 14.7062
A147: M0198 | B147: Parafuso de cabeça chata em aço - D = 4,5 mm e bucha plástica - D = 8 mm (S8) | C147: un | D147: 0.3443
A148: M0199 | B148: Coroa de botões cruzados linha R32 - D = 43 mm (1 11/16’’) | C148: un | D148: 339.7643
A149: M0201 | B149: Coroa de botões esféricos linha T38 - D = 89 mm (3 1/2") | C149: un | D149: 869.6048
A150: M0202 | B150: Coroa de botões esféricos linha T45 - D = 76 mm (3") | C150: un | D150: 781.2902
A151: M0204 | B151: Instalações físicas para a central de pré-moldagem de dormentes de concreto protendido | C151: CMCC | D151: 1851.56
A152: M0217 | B152: Enxofre | C152: kg | D152: 3.5083
A153: M0220 | B153: Adubo à base de nitrogênio, fósforo e potássio (NPK) | C153: kg | D153: 2.8992
A154: M0222 | B154: Filer calcário | C154: kg | D154: 0.2017
A155: M0223 | B155: Sementes para hidrossemeadura | C155: kg | D155: 30.1158
A156: M0224 | B156: Guia-chapéu pré-moldada - C = 120 cm | C156: un | D156: 58.616
A157: M0225 | B157: Adubo orgânico composto | C157: kg | D157: 0.2624
A158: M0229 | B158: Gabião tipo colchão em liga de zinco e alumínio revestido com polímero de malha hexagonal - E = 0,17 m | C158: m² | D158: 171.2378
A159: M0230 | B159: Gabião tipo caixa em liga de zinco e alumínio de malha hexagonal - C = 2,00 m, L = 1,00 m e H = 0,50 m | C159: un | D159: 540.3141
A160: M0231 | B160: Gabião tipo caixa em liga de zinco e alumínio de malha hexagonal - C = 2,00 m, L = 1,00 m e H = 1,00 m | C160: un | D160: 816.0964
A161: M0232 | B161: Gabião tipo caixa em liga de zinco e alumínio revestido com polímero de malha hexagonal - C = 2,00 m, L = 1,00 m e H = 0,50 m | C161: un | D161: 663.7188
A162: M0233 | B162: Gabião tipo caixa em liga de zinco e alumínio revestido com polímero de malha hexagonal - C = 2,00 m, L = 1,00 m e H = 1,00 m | C162: un | D162: 965.8171
A163: M0234 | B163: Gabião tipo saco em liga de zinco e alumínio revestido com polímero de malha hexagonal - D = 0,65 m | C163: m³ | D163: 492.6243
A164: M0235 | B164: Gabião tipo colchão em liga de zinco e alumínio revestido com polímero de malha hexagonal - E = 0,23 m | C164: m² | D164: 179.0891
A165: M0236 | B165: Gabião tipo colchão em liga de zinco e alumínio revestido com polímero de malha hexagonal - E = 0,30 m | C165: m² | D165: 205.4272
A166: M0237 | B166: Energia elétrica | C166: kWh | D166: 1.1186
A167: M0253 | B167: Cabo de cobre flexível antichama isolado em PVC - tensão de 450/750 V e seção de 16 mm² | C167: m | D167: 14.3675
A168: M0254 | B168: Mistura gasosa de argônio e dióxido de carbono para solda MIG/MAG | C168: m³ | D168: 55.4265
A169: M0256 | B169: Tinta à base de etil silicato de zinco bicomponente para fundo preparador de pintura | C169: l | D169: 251.4673
A170: M0257 | B170: Diluente para tinta à base de etil silicato de zinco | C170: l | D170: 37.1064
A171: M0260 | B171: Cabo de cobre PP flexível isolado em PVC - tensão de 300/500 V e seção de 3 x 1,5 mm² | C171: m | D171: 4.9743
A172: M0264 | B172: Bomba de combustível industrial eletrônica simples | C172: un | D172: 30953.5435
A173: M0265 | B173: Tanque de combustível aéreo horizontal com escada para visita - capacidade de 5.000 l | C173: un | D173: 19210.3081
A174: M0266 | B174: Cabo de cobre flexível antichama isolado em PVC - tensão de 0,6/1,0 kV e seção de 240 mm² | C174: m | D174: 189.6445
A175: M0267 | B175: Módulo de torre de elevador de cremalheira | C175: un | D175: 3642.4726
A176: M0268 | B176: Módulo de ancoragem de torre de elevador de cremalheira | C176: un | D176: 2838.8312
A177: M0269 | B177: Cabo de cobre flexível antichama isolado em PVC - tensão de 0,6/1,0 kV e seção de 50 mm² | C177: m | D177: 39.6098
A178: M0284 | B178: Caibro de pinho - L = 7,5 cm e E = 7,5 cm | C178: m | D178: 20.0893
A179: M0285 | B179: Pontalete para escoramento - D = 15 cm | C179: m | D179: 7.6074
A180: M0286 | B180: Tábua - E = 2,5 cm e L = 30 cm | C180: m | D180: 17.0556
A181: M0289 | B181: Tábua - E = 2,5 cm e L = 15 cm | C181: m | D181: 8.0085
A182: M0290 | B182: Tábua - E = 2,5 cm e L = 10 cm | C182: m | D182: 5.1695
A183: M0291 | B183: Estrutura modular com 2 banheiros - L = 2,44 m e C = 6,06 m (1 TEU) | C183: un | D183: 81188.9442
A184: M0292 | B184: Estrutura modular com janela - L = 2,44 m e C = 6,06 m (1 TEU) | C184: un | D184: 66172.0635
A185: M0293 | B185: Estrutura modular com janela - L = 4,88 m e C = 6,06 m (1 TEU duplo) | C185: un | D185: 134116.8606
A186: M0294 | B186: Estrutura modular com janela e 2 banheiros - L = 4,88 m e C = 6,06 m (1 TEU duplo) | C186: un | D186: 134665.8936
A187: M0295 | B187: Estrutura modular com revestimento térmico, janela e banheiro - L = 2,44 m e C = 6,06 m (1 TEU) | C187: un | D187: 74381.6185
A188: M0296 | B188: Estrutura modular com revestimento térmico, janela e banheiro - L = 2,44 m e C = 12,19 m (2 TEU) | C188: un | D188: 141856.5791
A189: M0297 | B189: Estrutura modular com 3 janelas para guarita - L = 2,44 m e C = 3,05 m (1/2 TEU) | C189: un | D189: 41145.1367
A190: M0301 | B190: Pontalete para escoramento - D = 10 cm | C190: m | D190: 3.3827
A191: M0310 | B191: Peça de madeira - L = 7,5 cm e E = 2,5 cm | C191: m | D191: 7.1428
A192: M0311 | B192: Filtro de aspiração de ar externo com capacidade 3,58 l/s para compressor de ar respirável | C192: un | D192: 333.7865
A193: M0312 | B193: Filtro de purificação de ar comprimido com capacidade de 35 MPa para compressor de ar respirável | C193: un | D193: 317.0398
A194: M0344 | B194: Cal hidratada - a granel | C194: kg | D194: 0.5377
A195: M0345 | B195: Cal hidratada - saco | C195: kg | D195: 0.8
A196: M0346 | B196: Disco de aço para bomba de projeção via seca | C196: un | D196: 372.0742
A197: M0347 | B197: Disco de aço para bomba de projeção via úmida | C197: un | D197: 1560.3421
A198: M0348 | B198: Disco de borracha para bomba de projeção via seca | C198: un | D198: 301.3821
A199: M0349 | B199: Disco de borracha para bomba de projeção via úmida | C199: un | D199: 702.4987
A200: M0350 | B200: Bico para bomba de projeção | C200: un | D200: 296.6728
... 6292 more rows

Sheet Pessoal Sicro
A1: CGCIT | B1: SISTEMA DE CUSTOS REFERENCIAIS DE OBRAS - SICRO | G1: DNIT
A3: Piauí - Julho/2025
A4: Sem desoneração
A5: Código | B5: Descrição | C5: Unidade | D5: Salário (R$) | E5: Encargos Totais | F5: Custo (R$) | G5: Periculosidade/ Insalubridade
A6: P9801 | B6: Ajudante | C6: h | F6: 22.5682 | G6: 0
A7: P9802 | B7: Ajudante especializado | C7: h | F7: 26.2037 | G7: 0
A8: P9803 | B8: Almoxarife | C8: mês | F8: 6537.3285 | G8: 0
A9: P9804 | B9: Apontador | C9: mês | F9: 5124.1419 | G9: 0
A10: P9805 | B10: Armador | C10: h | F10: 32.8986 | G10: 0
A11: P9806 | B11: Auxiliar administrativo | C11: mês | F11: 5091.0802 | G11: 0
A12: P9807 | B12: Bombeiro hidráulico | C12: h | F12: 33.4507 | G12: 0
A13: P9808 | B13: Carpinteiro | C13: h | F13: 27.7951 | G13: 0
A14: P9809 | B14: Encarregado administrativo | C14: mês | F14: 7783.8336 | G14: 0
A15: P9810 | B15: Eletricista | C15: h | F15: 29.2891 | G15: 0
A16: P9811 | B16: Encarregado especializado | C16: mês | F16: 8281.7942 | G16: 0
A17: P9812 | B17: Engenheiro | C17: mês | F17: 27135.6365 | G17: 0
A18: P9814 | B18: Operacional | C18: mês | F18: 4267.0177 | G18: 0
A19: P9815 | B19: Jardineiro | C19: h | F19: 29.427 | G19: 0
A20: P9819 | B20: Engenheiro supervisor | C20: mês | F20: 27135.6365 | G20: 0
A21: P9821 | B21: Pedreiro | C21: h | F21: 27.7755 | G21: 0
A22: P9822 | B22: Pintor | C22: h | F22: 32.8797 | G22: 0
A23: P9823 | B23: Serralheiro | C23: h | F23: 29.3158 | G23: 0
A24: P9824 | B24: Servente | C24: h | F24: 22.1067 | G24: 0
A25: P9825 | B25: Soldador | C25: h | F25: 36.3411 | G25: 0
A26: P9826 | B26: Chefe setor de finanças | C26: mês | F26: 25003.5875 | G26: 0
A27: P9827 | B27: Vigia | C27: mês | F27: 5190.1176 | G27: 0
A28: P9830 | B28: Montador | C28: h | F28: 33.4951 | G28: 0
A29: P9833 | B29: Auxiliar de laboratório | C29: mês | F29: 6036.3052 | G29: 0
A30: P9837 | B30: Oceanógrafo | C30: mês | F30: 13314.3975 | G30: 0
A31: P9840 | B31: Encarregado geral | C31: mês | F31: 11501.5121 | G31: 0
A32: P9842 | B32: Faxineiro | C32: mês | F32: 4353.3801 | G32: 0
A33: P9843 | B33: Operador de equipamento leve | C33: h | F33: 27.6724 | G33: 0
A34: P9845 | B34: Operador de equipamento pesado | C34: h | F34: 34.2551 | G34: 0
A35: P9846 | B35: Operador de equipamento especial | C35: h | F35: 43.836 | G35: 0
A36: P9847 | B36: Perfurador de tubulão | C36: h | F36: 22.5481 | G36: 0
A37: P9848 | B37: Desenhista | C37: mês | F37: 8117.894 | G37: 0
A38: P9849 | B38: Condutor maquinista fluvial | C38: mês | F38: 5820.8436 | G38: 0
A39: P9850 | B39: Copeiro | C39: mês | F39: 4476.2176 | G39: 0
A40: P9851 | B40: Médico do trabalho | C40: mês | F40: 18672.6242 | G40: 0
A41: P9852 | B41: Blaster | C41: h | F41: 42.4395 | G41: 0
A42: P9853 | B42: Pré-marcador | C42: h | F42: 22.4341 | G42: 0
A43: P9854 | B43: Recepcionista | C43: mês | F43: 4311.0482 | G43: 0
A44: P9855 | B44: Marinheiro de máquinas | C44: mês | F44: 5466.9425 | G44: 0
A45: P9856 | B45: Marinheiro de convés | C45: h | F45: 29.463 | G45: 0
A46: P9857 | B46: Marinheiro de convés - mensalista | C46: mês | F46: 5419.4888 | G46: 0
A47: P9858 | B47: Laboratorista | C47: mês | F47: 7946.5291 | G47: 0
A48: P9859 | B48: Trabalhador de via | C48: h | F48: 22.0739 | G48: 0
A49: P9861 | B49: Selecionador de material pétreo | C49: h | F49: 22.4792 | G49: 0
A50: P9864 | B50: Engenheiro de segurança do trabalho | C50: mês | F50: 24956.0135 | G50: 0
A51: P9866 | B51: Motorista de caminhão | C51: h | F51: 29.1252 | G51: 0
A52: P9867 | B52: Técnico especializado - mensalista | C52: mês | F52: 7358.7329 | G52: 0
A53: P9869 | B53: Encarregado de obras de artes especiais | C53: mês | F53: 8281.7942 | G53: 0
A54: P9870 | B54: Motorista de veículo leve | C54: h | F54: 32.5686 | G54: 0
A55: P9871 | B55: Motorista de veículo especial | C55: h | F55: 33.8732 | G55: 0
A56: P9875 | B56: Encarregado de turma | C56: mês | F56: 5996.5848 | G56: 0
A57: P9876 | B57: Técnico de segurança do trabalho | C57: mês | F57: 7792.2539 | G57: 0
A58: P9878 | B58: Secretária | C58: mês | F58: 6830.99 | G58: 0
A59: P9880 | B59: Piloto fluvial | C59: mês | F59: 7686.6716 | G59: 0
A60: P9882 | B60: Técnico especializado | C60: h | F60: 39.832 | G60: 0
A61: P9883 | B61: Chefe do setor administrativo | C61: mês | F61: 7783.947 | G61: 0
A62: P9884 | B62: Encarregado de terraplenagem | C62: mês | F62: 8281.7942 | G62: 0
A63: P9885 | B63: Frentista de túnel | C63: h | F63: 22.9275 | G63: 0
A64: P9889 | B64: Técnico da qualidade | C64: mês | F64: 8089.3862 | G64: 0
A65: P9892 | B65: Auxiliar de blaster | C65: h | F65: 37.107 | G65: 0
A66: P9893 | B66: Encarregado de pavimentação | C66: mês | F66: 8281.7942 | G66: 0
A67: P9896 | B67: Porteiro | C67: mês | F67: 4344.2089 | G67: 0
A68: P9897 | B68: Técnico de meio ambiente | C68: mês | F68: 8048.5412 | G68: 0
A69: P9900 | B69: Comprador | C69: mês | F69: 7519.8298 | G69: 0
A70: P9901 | B70: Encarregado de superestrutura ferroviária | C70: mês | F70: 8281.7942 | G70: 0
A71: P9903 | B71: Auxiliar técnico | C71: mês | F71: 4875.3669 | G71: 0
A72: P9907 | B72: Comandante de longo curso | C72: mês | F72: 20335.0586 | G72: 0
A73: P9908 | B73: Imediato | C73: mês | F73: 16623.3997 | G73: 0
A74: P9909 | B74: Oficial de náutica | C74: mês | F74: 6857.484 | G74: 0
A75: P9910 | B75: Oficial de máquinas | C75: mês | F75: 6653.343 | G75: 0
A76: P9913 | B76: Draguista | C76: mês | F76: 6435.4692 | G76: 0
A77: P9915 | B77: Maquinista | C77: h | F77: 35.0133 | G77: 0
A78: P9916 | B78: Encarregado de conservação rodoviária | C78: mês | F78: 8281.7942 | G78: 0
A79: P9920 | B79: Mestre fluvial | C79: mês | F79: 8372.6355 | G79: 0
A80: P9921 | B80: Mergulhador raso autônomo de emergência | C80: h | F80: 40.5389 | G80: 0
A81: P9922 | B81: Mergulhador raso dependente de emergência | C81: h | F81: 42.3701 | G81: 0
A82: P9924 | B82: Mergulhador raso dependente | C82: h | F82: 58.1127 | G82: 0
A83: P9925 | B83: Mergulhador raso autônomo | C83: h | F83: 54.1204 | G83: 0
A84: P9926 | B84: Mergulhador raso auxiliar de superfície | C84: h | F84: 37.5205 | G84: 0
A85: P9927 | B85: Frentista de túnel com periculosidade | C85: h | F85: 27.4505 | G85: 0
A86: P9930 | B86: Eletricista com periculosidade | C86: h | F86: 35.7069 | G86: 0
A87: P9931 | B87: Operador de equipamento de mergulho | C87: h | F87: 57.7437 | G87: 0
A88: P9932 | B88: Operador de equipamento pesado com periculosidade | C88: h | F88: 42.3108 | G88: 0
A89: P9933 | B89: Supervisor de mergulho raso | C89: mês | F89: 10647.4163 | G89: 0
A90: P9934 | B90: Motorista de veículo especial com periculosidade | C90: h | F90: 41.8408 | G90: 0
A91: P9938 | B91: Operador de equipamento leve com periculosidade | C91: h | F91: 33.7489 | G91: 0
A92: P9939 | B92: Operador de equipamento leve com insalubridade | C92: h | F92: 35.4678 | G92: 0
A93: P9942 | B93: Marinheiro de convés com periculosidade | C93: h | F93: 36.3415 | G93: 0
A94: P9944 | B94: Operador de equipamento especial com periculosidade | C94: h | F94: 54.7914 | G94: 0
A95: P9946 | B95: Engenheiro auxiliar | C95: mês | F95: 24874.8163 | G95: 0
A96: P9947 | B96: Técnico florestal | C96: mês | F96: 8048.5412 | G96: 0
A97: P9948 | B97: Motorista de veículo leve - mensalista | C97: mês | F97: 6008.0336 | G97: 0
A98: P9949 | B98: Topógrafo | C98: mês | F98: 9340.8044 | G98: 0
A99: P9950 | B99: Auxiliar de topografia | C99: mês | F99: 6055.7508 | G99: 0
A100: P9951 | B100: Médico de câmara hiperbárica | C100: mês | F100: 21262.3001 | G100: 0
A101: P9952 | B101: Pedreiro - mensalista | C101: mês | F101: 5136.466 | G101: 0
A102: P9953 | B102: Eletricista - mensalista | C102: mês | F102: 5406.8028 | G102: 0
A103: P9954 | B103: Servente - mensalista | C103: mês | F103: 4093.0918 | G103: 0
A104: P9955 | B104: Engenheiro chefe | C104: mês | F104: 34473.2594 | G104: 0
A105: P9956 | B105: Motorista de caminhão com periculosidade | C105: h | F105: 35.6684 | G105: 0
A106: P9957 | B106: Motorista de ônibus | C106: h | F106: 35.4794 | G106: 0
A107: P9958 | B107: Motorista de ônibus - mensalista | C107: mês | F107: 6684.3694
A108: P9959 | B108: Motorista de veículo especial com periculosidade - mensalista | C108: mês | F108: 7777.9822
A109: P9972 | B109: Técnico de batimetria | C109: mês | F109: 6693.6238

Sheet Equipamentos
A1: CGCIT | B1: SISTEMA DE CUSTOS REFERENCIAIS DE OBRAS - SICRO | K1: DNIT
B2: Piauí - Julho/2025
A3: Código | B3: Descrição | C3: Valor de Aquisição (R$) | D3: Depreciação (R$/h) | E3: Oportunidade de Capital (R$/h) | F3: Seguros e Impostos (R$/h) | G3: Manutenção (R$/h) | H3: Operação (R$/h) | I3: Mão de Obra de Operação (R$/h) | J3: Custo Produtivo (R$/h) | K3: Custo Improdutivo (R$/h)
A4: E9001 | B4: Conjunto vibratório para tubos de concreto com encaixe PB e 3 jogos de fôrmas - D = 0,60 m - 2,20 kW | C4: 72294.1713 | D4: 9.6392 | E4: 1.4869 | F4: 0 | G4: 7.2294 | H4: 0 | I4: 0 | J4: 18.3555 | K4: 11.1261
A5: E9002 | B5: Conjunto vibratório para tubos de concreto com encaixe PB e 3 jogos de fôrmas - D = 0,80 m - 2,20 kW | C5: 94734.1239 | D5: 12.6312 | E5: 1.9484 | F5: 0 | G5: 9.4734 | H5: 0 | I5: 0 | J5: 24.053 | K5: 14.5796
A6: E9003 | B6: Conjunto vibratório para tubos de concreto com encaixe PB e 3 jogos de fôrmas - D = 1,00 m - 2,20 kW | C6: 99059.6987 | D6: 13.208 | E6: 2.0373 | F6: 0 | G6: 9.906 | H6: 0 | I6: 0 | J6: 25.1513 | K6: 15.2453
A7: E9004 | B7: Conjunto vibratório para tubos de concreto com encaixe PB e 3 jogos de fôrmas - D = 1,20 m - 2,20 kW | C7: 124985.1329 | D7: 16.6647 | E7: 2.5705 | F7: 0 | G7: 12.4985 | H7: 0 | I7: 0 | J7: 31.7337 | K7: 19.2352
A8: E9005 | B8: Conjunto vibratório para tubos de concreto com encaixe PB e 3 jogos de fôrmas - D = 1,50 m - 2,20 kW | C8: 147773.2112 | D8: 19.7031 | E8: 3.0392 | F8: 0 | G8: 14.7773 | H8: 0 | I8: 0 | J8: 37.5196 | K8: 22.7423
A9: E9006 | B9: Equipamento para sondagem manual | C9: 5048.1618 | D9: 0.8582 | E9: 0.109 | F9: 0 | G9: 0.5048 | H9: 0 | I9: 0 | J9: 1.472 | K9: 0.9672
A10: E9007 | B10: Bomba de pistão triplex com capacidade de 7,80 m³/h (130 l/min) - 8,20 kW | C10: 166927.9415 | D10: 16.6928 | E10: 3.2186 | F10: 0 | G10: 14.6062 | H10: 8.4313 | I10: 0 | J10: 42.9489 | K10: 19.9114
A11: E9008 | B11: Transportador manual de tubos de concreto com capacidade de 1 t | C11: 1709.1951 | D11: 1.5383 | E11: 0.0791 | F11: 0 | G11: 0.8546 | H11: 0 | I11: 0 | J11: 2.472 | K11: 1.6174
A12: E9009 | B12: Embarcação rebocadora - 268 kW | C12: 667274.0926 | D12: 7.6382 | E12: 3.8357 | F12: 0 | G12: 16.9738 | H12: 275.5587 | I12: 137.197 | J12: 441.2034 | K12: 148.6709
A13: E9010 | B13: Balança plataforma digital à bateria, com mesa de 75 x 75 cm e capacidade de 500 kg | C13: 4932.3271 | D13: 0.7398 | E13: 0.1014 | F13: 0 | G13: 0.411 | H13: 0 | I13: 0 | J13: 1.2522 | K13: 0.8412
A14: E9011 | B14: Carro manual modelo plataforma de 200 x 80 cm com capacidade de 800 kg | C14: 1865.8108 | D14: 0.3358 | E14: 0.0403 | F14: 0 | G14: 0.1866 | H14: 0 | I14: 0 | J14: 0.5627 | K14: 0.3761
A15: E9014 | B15: Deflectômetro de impacto (FWD) instalado em picape com reboque e faixa de carga de 7 a 120 kN - 147 kW | C15: 2296757.399 | D15: 183.7406 | E15: 42.513 | F15: 0 | G15: 114.8379 | H15: 0 | I15: 33.8732 | J15: 374.9647 | K15: 260.1268
A16: E9015 | B16: Elevador de obra com capacidade de 1.000 kg - 9 kW | C16: 68159.6855 | D16: 5.4528 | E16: 1.2616 | F16: 0 | G16: 4.7712 | H16: 0 | I16: 27.6724 | J16: 39.158 | K16: 34.3868
A17: E9016 | B17: Usina misturadora móvel de reciclagem a frio com sistema de espuma de asfalto - 129,40 kW | C17: 10321385.12 | D17: 1444.9939 | E17: 222.8903 | F17: 0 | G17: 1857.8493 | H17: 98.0365 | I17: 43.836 | J17: 3667.606 | K17: 1711.7202
A18: E9017 | B18: Escavadeira hidráulica sobre esteira com capacidade de 0,4 m³ - 64 kW | C18: 721221.9773 | D18: 59.3948 | E18: 13.7425 | F18: 0 | G18: 59.3948 | H18: 45.0245 | I18: 34.2551 | J18: 211.8117 | K18: 107.3924
A19: E9020 | B19: Recicladora a frio - 455 kW | C19: 5769275.826 | D19: 807.6986 | E19: 124.5875 | F19: 0 | G19: 1153.8552 | H19: 492.4556 | I19: 43.836 | J19: 2622.4329 | K19: 976.1221
A20: E9021 | B20: Grupo gerador - 456 kVA | C20: 352736.7054 | D20: 24.6916 | E20: 6.5292 | F20: 0 | G20: 17.6368 | H20: 375.2945 | I20: 0 | J20: 424.1521 | K20: 31.2208
A21: E9022 | B21: Pórtico metálico rolante com capacidade de 25 t - 30 kW | C21: 754463.8377 | D21: 37.7232 | E21: 12.9307 | F21: 0 | G21: 29.3403 | H21: 0 | I21: 27.6724 | J21: 107.6666 | K21: 78.3263
A22: E9023 | B22: Guindaste móvel sobre esteiras com dragline com capacidade de 1,9 a 2,3 m³ - 270 kW | C22: 4030618.957 | D22: 156.7463 | E22: 69.0803 | F22: 0 | G22: 223.9233 | H22: 73.0566 | I22: 43.836 | J22: 566.6425 | K22: 269.6626
A23: E9024 | B23: Misturador de nata cimento - 1,50 kW | C23: 9673.608 | D23: 1.5478 | E23: 0.2089 | F23: 0 | G23: 1.3543 | H23: 0 | I23: 27.6724 | J23: 30.7834 | K23: 29.4291
A24: E9025 | B24: Conjunto bomba e macaco hidráulico para protensão com capacidade de 7.000 kN - 15 kW | C24: 106149.0796 | D24: 6.0657 | E24: 1.8713 | F24: 0 | G24: 6.0657 | H24: 0 | I24: 43.836 | J24: 57.8387 | K24: 51.773
A25: E9026 | B25: Bomba para injeção de nata de cimento com capacidade de 2 MPa - 2,20 kW | C25: 34301.0629 | D25: 3.4301 | E25: 0.6614 | F25: 0 | G25: 3.0013 | H25: 0 | I25: 0 | J25: 7.0928 | K25: 4.0915
A26: E9028 | B26: Bomba de alta pressão para hidrojateamento com capacidade de 18 MPa - 5,20 kW | C26: 5625.84 | D26: 1.1252 | E26: 0.1302 | F26: 0 | G26: 1.2658 | H26: 10.0924 | I26: 27.6724 | J26: 40.286 | K26: 28.9278
A27: E9029 | B27: Conjunto bomba e macaco hidráulico para protensão com capacidade de 8.000 kN - 20 kW | C27: 134980.5378 | D27: 7.7132 | E27: 2.3795 | F27: 0 | G27: 7.7132 | H27: 0 | I27: 43.836 | J27: 61.6419 | K27: 53.9287
A28: E9030 | B28: Bomba de protensão com leitura digital para tensionamento de estais - 3 kW | C28: 14563.1745 | D28: 0.8322 | E28: 0.2567 | F28: 0 | G28: 0.8322 | H28: 0 | I28: 0 | J28: 1.9211 | K28: 1.0889
A29: E9031 | B29: Elevador de cremalheira com cabine simples, com capacidade de 1.500 kg e altura de até 100 m - 15 kW | C29: 338833.8764 | D29: 27.1067 | E29: 6.2718 | F29: 0 | G29: 23.7184 | H29: 0 | I29: 27.6724 | J29: 84.7693 | K29: 61.0509
A30: E9032 | B30: Equipamento para regulagem final de estais com até 37 cordoalhas - D = 15,7 mm - 20 kW | C30: 78505.1596 | D30: 4.486 | E30: 1.3839 | F30: 0 | G30: 4.486 | H30: 0 | I30: 43.836 | J30: 54.1919 | K30: 49.7059
A31: E9033 | B31: Equipamento para regulagem final de estais de 38 a 55 cordoalhas - D = 15,7 mm - 30 kW | C31: 112132.5564 | D31: 6.4076 | E31: 1.9767 | F31: 0 | G31: 6.4076 | H31: 0 | I31: 43.836 | J31: 58.6279 | K31: 52.2203
A32: E9034 | B32: Equipamento para regulagem final de estais de 56 a 73 cordoalhas - D = 15,7 mm - 40 kW | C32: 168146.2696 | D32: 9.6084 | E32: 2.9642 | F32: 0 | G32: 9.6084 | H32: 0 | I32: 43.836 | J32: 66.017 | K32: 56.4086
A33: E9035 | B33: Equipamento para regulagem final de estais de 74 a 91 cordoalhas - D = 15,7 mm - 50 kW | C33: 224160.8948 | D33: 12.8092 | E33: 3.9516 | F33: 0 | G33: 12.8092 | H33: 0 | I33: 43.836 | J33: 73.406 | K33: 60.5968
A34: E9036 | B34: Grua fixa para alturas de 60 a 102 m, com alcance de 60 m com capacidade de 1.500 kg na ponta da lança - 37 kW | C34: 3897646.107 | D34: 151.5751 | E34: 66.8013 | F34: 0 | G34: 173.2287 | H34: 0 | I34: 43.836 | J34: 435.4411 | K34: 262.2124
A35: E9038 | B35: Macaco hidráulico monocordoalha para tensionamento de estais - 3 kW | C35: 18311.0666 | D35: 1.0463 | E35: 0.3228 | F35: 0 | G35: 1.0463 | H35: 0 | I35: 43.836 | J35: 46.2514 | K35: 45.2051
A36: E9039 | B36: Máquina de solda por termofusão para tubos PEAD com gerador de 4 kW | C36: 115635.5139 | D36: 15.4181 | E36: 2.3782 | F36: 0 | G36: 15.4181 | H36: 4.1128 | I36: 43.836 | J36: 81.1632 | K36: 61.6323
A37: E9040 | B37: Serra mármore - 1,45 kW | C37: 483.8052 | D37: 0.0435 | E37: 0.009 | F37: 0 | G37: 0.0242 | H37: 0 | I37: 0 | J37: 0.0767 | K37: 0.0525
A38: E9042 | B38: Trator sobre esteiras com lâmina - 97 kW | C38: 1331380.856 | D38: 116.4958 | E38: 25.6707 | F38: 0 | G38: 166.4226 | H38: 73.4895 | I38: 34.2551 | J38: 416.3337 | K38: 176.4216
A39: E9043 | B39: Embarcação de alumínio com comprimento de 6 m e motor de popa - 18,60 kW | C39: 35099.4888 | D39: 0.4018 | E39: 0.2018 | F39: 0 | G39: 0.4464 | H39: 41.257 | I39: 42.121 | J39: 84.428 | K39: 42.7246
A40: E9044 | B40: Central de concreto com capacidade de 150 m³/h - dosadora e misturadora | C40: 1927981.252 | D40: 192.7981 | E40: 37.1739 | F40: 0 | G40: 168.6984 | H40: 0 | I40: 43.836 | J40: 442.5064 | K40: 273.808
A41: E9045 | B41: Conjunto bomba e macaco hidráulico para elevação com capacidade de 496 kN | C41: 68443.1556 | D41: 5.4755 | E41: 1.2669 | F41: 0 | G41: 5.4755 | H41: 6.3882 | I41: 43.836 | J41: 62.4421 | K41: 50.5784
A42: E9046 | B42: Conjunto bomba e macaco hidráulico para elevação com capacidade de 929 kN | C42: 86540.3694 | D42: 6.9232 | E42: 1.6019 | F42: 0 | G42: 6.9232 | H42: 6.3882 | I42: 43.836 | J42: 65.6725 | K42: 52.3611
A43: E9047 | B43: Conjunto bomba e macaco hidráulico para elevação com capacidade de 1.390 kN | C43: 119334.8915 | D43: 9.5468 | E43: 2.2089 | F43: 0 | G43: 9.5468 | H43: 6.3882 | I43: 43.836 | J43: 71.5267 | K43: 55.5917
A44: E9048 | B44: Conjunto bomba e macaco hidráulico para elevação com capacidade de 1.859 kN | C44: 138147.5928 | D44: 11.0518 | E44: 2.5571 | F44: 0 | G44: 11.0518 | H44: 6.3882 | I44: 43.836 | J44: 74.8849 | K44: 57.4449
A45: E9049 | B45: Bomba de alta pressão para hidrojateamento com capacidade de 250 MPa - 72 kW | C45: 725352.3116 | D45: 145.0705 | E45: 16.7828 | F45: 0 | G45: 163.2043 | H45: 58.4453 | I45: 27.6724 | J45: 411.1753 | K45: 189.5257
A46: E9050 | B46: Guindaste móvel sobre pneus com 2 eixos com capacidade de 18 t - 97 kW | C46: 3242326.045 | D46: 162.1163 | E46: 57.1576 | F46: 0 | G46: 208.4352 | H46: 26.2463 | I46: 33.8732 | J46: 487.8286 | K46: 253.1471
A47: E9051 | B47: Máquina levantadora e posicionadora de via - 7,40 kW | C47: 1058013.046 | D47: 84.641 | E47: 19.5838 | F47: 0 | G47: 74.0609 | H47: 11.4899 | I47: 27.6724 | J47: 217.448 | K47: 131.8972
A48: E9052 | B48: Empilhadeira a diesel com capacidade de 10 t - 82 kW | C48: 783580.8714 | D48: 62.6865 | E48: 14.5041 | F48: 0 | G48: 54.8507 | H48: 66.5627 | I48: 27.6724 | J48: 226.2764 | K48: 104.863
A49: E9053 | B49: Perfuratriz hidráulica montada em flutuante - 32 kW | C49: 610341.1544 | D49: 16.3484 | E49: 5.2676 | F49: 0 | G49: 14.5319 | H49: 17.3171 | I49: 33.7489 | J49: 87.2139 | K49: 55.3649
A50: E9054 | B50: Equipamento sobre forma-trilho para execução e acabamento de pavimento de concreto - 13,40 kW | C50: 1817038.056 | D50: 242.2717 | E50: 37.3704 | F50: 0 | G50: 151.4198 | H50: 20.806 | I50: 27.6724 | J50: 479.5403 | K50: 307.3145
A51: E9055 | B51: Guincho pneumático com capacidade de 2,5 t | C51: 538776.0635 | D51: 53.8776 | E51: 10.1574 | F51: 0 | G51: 29.932 | H51: 0 | I51: 0 | J51: 93.967 | K51: 64.035
A52: E9056 | B52: Plataforma autoelevatória de 12 x 24 m com capacidade de 150 t | C52: 847785.7684 | D52: 9.7045 | E52: 4.8733 | F52: 0 | G52: 21.5656 | H52: 0 | I52: 115.1225 | J52: 151.2659 | K52: 129.7003
A53: E9057 | B53: Batelão sem propulsão com capacidade de 66 m³ | C53: 226710.7539 | D53: 9.7162 | E53: 3.8301 | F53: 0 | G53: 16.1936 | H53: 0 | I53: 29.463 | J53: 59.2029 | K53: 43.0093
A54: E9058 | B54: Plataforma flutuante de 12 x 24 x 1,8 m com capacidade de 150 t | C54: 678053.2946 | D54: 7.7616 | E54: 3.8976 | F54: 0 | G54: 12.936 | H54: 0 | I54: 29.463 | J54: 54.0582 | K54: 41.1222
A55: E9059 | B55: Plataforma autoelevatória de 12 x 24 m montada na obra com capacidade de 150 t | C55: 847785.7684 | D55: 9.7045 | E55: 4.8733 | F55: 0 | G55: 21.5656 | H55: 0 | I55: 115.1225 | J55: 151.2659 | K55: 129.7003
A56: E9060 | B56: Perfuratriz pneumática rotopercussiva montada em flutuante com pressão de 0,70 MPa e capacidade de 2.500 gpm | C56: 41032.2086 | D56: 1.0991 | E56: 0.3541 | F56: 0 | G56: 0.977 | H56: 0 | I56: 67.4978 | J56: 69.928 | K56: 68.951
A57: E9061 | B57: Lixadeira elétrica manual angular - 2 kW | C57: 1399.0614 | D57: 0.1865 | E57: 0.0288 | F57: 0 | G57: 0.1166 | H57: 0 | I57: 0 | J57: 0.3319 | K57: 0.2153
A58: E9062 | B58: Soprador de ar quente manual - 1,60 kW | C58: 5695.6686 | D58: 0.7594 | E58: 0.1171 | F58: 0 | G58: 0.4746 | H58: 0 | I58: 0 | J58: 1.3511 | K58: 0.8765
A59: E9063 | B59: Equipamento de estabilização dinâmica da via - 300 kW | C59: 30084171.71 | D59: 1203.3669 | E59: 510.4532 | F59: 0 | G59: 1203.3669 | H59: 194.8176 | I59: 43.836 | J59: 3155.8406 | K59: 1757.6561
A60: E9064 | B60: Transportador manual gerica com capacidade de 180 l | C60: 1087.9476 | D60: 1.0879 | E60: 0.0503 | F60: 0 | G60: 0.544 | H60: 0 | I60: 0 | J60: 1.6822 | K60: 1.1382
A61: E9065 | B61: Carro controle ferroviário - 186 kW | C61: 32872501.61 | D61: 1314.9001 | E61: 557.7642 | F61: 0 | G61: 1150.5376 | H61: 120.7869 | I61: 43.836 | J61: 3187.8248 | K61: 1916.5003
A62: E9066 | B62: Grupo gerador - 14 kVA | C62: 65836.8302 | D62: 4.6086 | E62: 1.2186 | F62: 0 | G62: 3.2918 | H62: 11.3102 | I62: 0 | J62: 20.4292 | K62: 5.8272
A63: E9067 | B63: Veículo ferroviário para capina química com capacidade de 12.000 l - 115 kW | C63: 1700916.436 | D63: 68.0367 | E63: 28.8603 | F63: 0 | G63: 42.5229 | H63: 74.6801 | I63: 27.6724 | J63: 241.7724 | K63: 124.5694
A64: E9068 | B64: Perfuratriz hidráulica rotopercussiva para CCPH - 123 kW | C64: 5680737.102 | D64: 454.459 | E64: 105.1504 | F64: 0 | G64: 454.459 | H64: 99.844 | I64: 34.2551 | J64: 1148.1675 | K64: 593.8645
A65: E9069 | B65: Vibrador de imersão para concreto - 4,10 kW | C65: 4342.9857 | D65: 0.8686 | E65: 0.1005 | F65: 0 | G65: 0.5429 | H65: 7.9575 | I65: 0 | J65: 9.4695 | K65: 0.9691
A66: E9070 | B66: Ponte rolante com capacidade de 5 t e vão de até 15 m - 10 kW | C66: 414722.1054 | D66: 18.4321 | E66: 7.1079 | F66: 0 | G66: 11.5201 | H66: 0 | I66: 27.6724 | J66: 64.7325 | K66: 53.2124
A67: E9071 | B67: Transportador manual carrinho de mão com capacidade de 80 l | C67: 467.8449 | D67: 0.4678 | E67: 0.0216 | F67: 0 | G67: 0.2339 | H67: 0 | I67: 0 | J67: 0.7233 | K67: 0.4894
A68: E9072 | B68: Martelo hidráulico vibratório com unidade hidráulica - 486 kW | C68: 3419950.775 | D68: 455.9934 | E68: 70.337 | F68: 0 | G68: 398.9943 | H68: 394.5056 | I68: 43.836 | J68: 1363.6663 | K68: 570.1664
A69: E9073 | B69: Bomba de concreto rebocável com capacidade de 30 m³/h - 74 kW | C69: 504181.1401 | D69: 50.4181 | E69: 9.7212 | F69: 0 | G69: 50.4181 | H69: 76.0871 | I69: 27.6724 | J69: 214.3169 | K69: 87.8117
A70: E9074 | B70: Tanque de estocagem de asfalto com agitadores de 60.000 l | C70: 882570.0807 | D70: 117.676 | E70: 18.1515 | F70: 0 | G70: 73.5475 | H70: 0 | I70: 0 | J70: 209.375 | K70: 135.8275
A71: E9075 | B71: Trado cavadeira de 12" | C71: 160.0521 | D71: 0.08 | E71: 0.0049 | F71: 0 | G71: 0.04 | H71: 0 | I71: 0 | J71: 0.1249 | K71: 0.0849
A72: E9076 | B72: Equipamento para pintura eletrostática com cabine dupla de 7,00 kW e estufa de 80.000 kCal | C72: 164067.3587 | D72: 10.5472 | E72: 2.8923 | F72: 0 | G72: 5.8595 | H72: 0 | I72: 27.6724 | J72: 46.9714 | K72: 41.1119
A73: E9077 | B73: Perfuratriz de circulação reversa tipo Wirth ou similar com unidade hidráulica (Power Pack) - 273 kW | C73: 4851582.28 | D73: 388.1266 | E73: 89.8028 | F73: 0 | G73: 388.1266 | H73: 147.7367 | I73: 34.2551 | J73: 1048.0478 | K73: 512.1845
A74: E9078 | B74: Treliça lançadeira com capacidade de carga de 100 a 120 t e vão máximo de 45 m - 110 kW | C74: 3544605.714 | D74: 157.538 | E74: 60.7506 | F74: 0 | G74: 98.4613 | H74: 0 | I74: 43.836 | J74: 360.5859 | K74: 262.1246
A75: E9079 | B75: Bomba submersível com capacidade de 360 m³/h - 23 kW | C75: 179452.2574 | D75: 17.9452 | E75: 3.4601 | F75: 0 | G75: 15.7021 | H75: 0 | I75: 0 | J75: 37.1074 | K75: 21.4053
A76: E9080 | B76: Carrelone com capacidade máxima de 70 t | C76: 1830025.391 | D76: 82.3511 | E76: 31.051 | F76: 0 | G76: 45.7506 | H76: 0 | I76: 27.6724 | J76: 186.8251 | K76: 141.0745
A77: E9081 | B77: Fischietti simples com capacidade de 70 t | C77: 106653.5715 | D77: 4.7994 | E77: 1.8096 | F77: 0 | G77: 2.6663 | H77: 0 | I77: 0 | J77: 9.2753 | K77: 6.609
A78: E9083 | B78: Vagão fechado FLT com capacidade de 99 t | C78: 868455.3013 | D78: 13.7505 | E78: 13.8425 | F78: 0 | G78: 7.2371 | H78: 0 | I78: 0 | J78: 34.8301 | K78: 27.593
A79: E9084 | B79: Vagão tanque convencional TCT com capacidade de 97 t e 103.000 l | C79: 1264142.036 | D79: 20.0156 | E79: 20.1494 | F79: 0 | G79: 10.5345 | H79: 0 | I79: 0 | J79: 50.6995 | K79: 40.165
A80: E9085 | B80: Vagão gôndola GDE com capacidade de 93,5 t / 29 m³ | C80: 637209.8068 | D80: 10.0892 | E80: 10.1566 | F80: 0 | G80: 5.3101 | H80: 0 | I80: 0 | J80: 25.5559 | K80: 20.2458
A81: E9086 | B81: Bomba de concreto rebocável com capacidade de 41 m³/h - 74 kW | C81: 524265.2327 | D81: 52.4265 | E81: 10.1085 | F81: 0 | G81: 52.4265 | H81: 76.0871 | I81: 27.6724 | J81: 218.721 | K81: 90.2074
A82: E9089 | B82: Roçadeira costal - 1,40 kW | C82: 3280.757 | D82: 0.4921 | E82: 0.0675 | F82: 0 | G82: 0.3828 | H82: 8.5398 | I82: 0 | J82: 9.4822 | K82: 0.5596
A83: E9093 | B83: Veículo leve - 53 kW (sem motorista) | C83: 78528.066 | D83: 4.7117 | E83: 1.4536 | F83: 0.589 | G83: 4.7117 | H83: 26.4511 | I83: 0 | J83: 37.9171 | K83: 6.7543
A84: E9094 | B84: Guindaste móvel sobre pneus com 6 eixos com capacidade máxima de 350 t - 450 kW | C84: 21332095.43 | D84: 746.6233 | E84: 361.9523 | F84: 146.6582 | G84: 959.9443 | H84: 121.761 | I84: 33.8732 | J84: 2370.8123 | K84: 1289.107
A85: E9095 | B85: Guindaste móvel sobre pneus com 8 eixos com capacidade máxima de 500 t - 500 kW | C85: 36310858.01 | D85: 1270.88 | E85: 616.1045 | F85: 249.6371 | G85: 1633.9886 | H85: 135.29 | I85: 33.8732 | J85: 3939.7734 | K85: 2170.4948
A86: E9096 | B86: Minicarregadeira de pneus - 45,50 kW | C86: 407727.1291 | D86: 35.6761 | E86: 7.8615 | F86: 0 | G86: 35.6761 | H86: 61.557 | I86: 34.2551 | J86: 175.0258 | K86: 77.7927
A87: E9101 | B87: Removedora de faixas de sinalização viária - 9,69 kW | C87: 50851.893 | D87: 4.0682 | E87: 0.9413 | F87: 0 | G87: 3.5596 | H87: 18.8069 | I87: 0 | J87: 27.376 | K87: 5.0095
A88: E9102 | B88: Extrusora para sarjeta de concreto - 10,44 kW | C88: 82797.1857 | D88: 6.6238 | E88: 1.5326 | F88: 0 | G88: 5.7958 | H88: 8.4746 | I88: 27.6724 | J88: 50.0992 | K88: 35.8288
A89: E9103 | B89: Extrusora para meio-fio de concreto - 10,44 kW | C89: 68010.3198 | D89: 5.4408 | E89: 1.2589 | F89: 0 | G89: 4.7607 | H89: 8.4746 | I89: 27.6724 | J89: 47.6074 | K89: 34.3721
A90: E9105 | B90: Embarcação empurradora multipropósito - 2 x 186 kW | C90: 5421155.127 | D90: 62.0553 | E90: 31.1623 | F90: 0 | G90: 137.9008 | H90: 382.4919 | I90: 137.197 | J90: 750.8073 | K90: 230.4146
A91: E9106 | B91: Balsa de convés com capacidade de 200 t | C91: 1941056.871 | D91: 22.2191 | E91: 11.1577 | F91: 0 | G91: 37.0318 | H91: 0 | I91: 29.463 | J91: 99.8716 | K91: 62.8398
A92: E9107 | B92: Compactador manual com soquete vibratório - 2,24 kW | C92: 11620.2441 | D92: 2.324 | E92: 0.2689 | F92: 0 | G92: 2.324 | H92: 4.3475 | I92: 0 | J92: 9.2644 | K92: 2.5929
A93: E9108 | B93: Soldadora de trilho por caldeamento na via - 400 kW | C93: 10000000 | D93: 160 | E93: 160.42 | F93: 0 | G93: 200 | H93: 259.7568 | I93: 87.672 | J93: 867.8488 | K93: 408.092
A94: E9110 | B94: Escavadeira hidráulica sobre esteiras para rocha com caçamba com capacidade de 1,56 m³ - 118 kW | C94: 1195443.263 | D94: 119.5443 | E94: 23.7082 | F94: 0 | G94: 119.5443 | H94: 121.3281 | I94: 34.2551 | J94: 418.38 | K94: 177.5076
A95: E9111 | B95: Jateador abrasivo úmido com capacidade de 350 kg de abrasivo | C95: 341415.4789 | D95: 61.4548 | E95: 7.3729 | F95: 0 | G95: 61.4548 | H95: 0 | I95: 27.6724 | J95: 157.9549 | K95: 96.5001
A96: E9112 | B96: Sinalizador direcional móvel com sistema fotovoltaico de energia e montado em chassi sobre pneus | C96: 22806.0836 | D96: 2.5657 | E96: 0.4397 | F96: 0 | G96: 1.4254 | H96: 0 | I96: 0 | J96: 4.4308 | K96: 3.0054
A97: E9113 | B97: Painel de Mensagem Variável - PMV móvel, com sistema fotovoltaico de energia e montado em chassi sobre pneus | C97: 171795.5054 | D97: 19.327 | E97: 3.3124 | F97: 0 | G97: 10.7372 | H97: 0 | I97: 0 | J97: 33.3766 | K97: 22.6394
A98: E9116 | B98: Semáforo móvel com 3 lentes e bateria - D = 200 mm | C98: 8109.2439 | D98: 0.9123 | E98: 0.1564 | F98: 0 | G98: 0.5068 | H98: 0 | I98: 0 | J98: 1.5755 | K98: 1.0687
A99: E9117 | B99: Carregadeira de pneus para rocha com capacidade de 2,50 m³ - 105 kW | C99: 1001598.468 | D99: 80.0364 | E99: 18.977 | F99: 0 | G99: 80.0364 | H99: 107.9614 | I99: 34.2551 | J99: 321.2663 | K99: 133.2685
A100: E9118 | B100: Cortadora de pavimento com disco diamantado de 450 a 1.500 mm - 55,40 kW | C100: 488599.2402 | D100: 65.1466 | E100: 10.0489 | F100: 0 | G100: 65.1466 | H100: 44.9704 | I100: 27.6724 | J100: 212.9849 | K100: 102.8679
A101: E9119 | B101: Minicarregadeira sobre pneus com valetadeira - 55,40 kW | C101: 778219.565 | D101: 68.0942 | E101: 15.005 | F101: 0 | G101: 68.0942 | H101: 74.9507 | I101: 34.2551 | J101: 260.3992 | K101: 117.3543
A102: E9120 | B102: Equipamento de cravação sobre esteira para geodreno com haste para profundidade de até 20 m - 258 kW | C102: 2598970.702 | D102: 151.6066 | E102: 46.7706 | F102: 0 | G102: 151.6066 | H102: 181.5051 | I102: 27.6724 | J102: 559.1613 | K102: 226.0496
A103: E9122 | B103: Perfuratriz tipo Bottom Feed para coluna de brita - 194 kW | C103: 7326512.111 | D103: 586.121 | E103: 135.6137 | F103: 0 | G103: 586.121 | H103: 104.985 | I103: 34.2551 | J103: 1447.0958 | K103: 755.9898
A104: E9125 | B104: Veículo tipo van furgão com capacidade de 1,38 t - 100 kW | C104: 227116.4669 | D104: 11.3558 | E104: 4.0872 | F104: 1.6561 | G104: 11.3558 | H104: 27.058 | I104: 32.5686 | J104: 88.0815 | K104: 49.6677
A105: E9126 | B105: Draga backhoe com capacidade de 7 m³ - 1.000 kW | C105: 193174186.1 | D105: 5174.3086 | E105: 1667.2197 | F105: 0 | G105: 11498.4635 | H105: 1028.204 | I105: 64.7277 | J105: 19432.9235 | K105: 6906.256
A106: E9127 | B106: Escavadeira hidráulica com martelo hidráulico de 520 kg - 75 kW | C106: 901312.5766 | D106: 103.0072 | E106: 17.875 | F106: 0 | G106: 128.7589 | H106: 52.7631 | I106: 34.2551 | J106: 336.6593 | K106: 155.1373
A107: E9134 | B107: Miniônibus com capacidade para 30 passageiros - 111 kW | C107: 677579.5759 | D107: 29.0391 | E107: 11.9448 | F107: 4.8399 | G107: 43.5587 | H107: 114.1306 | I107: 35.4794 | J107: 238.9925 | K107: 81.3032
A108: E9141 | B108: Rebarbador hidráulico com bomba manual com capacidade de força de 9.000 kgf | C108: 96017.3452 | D108: 7.6814 | E108: 1.7773 | F108: 0 | G108: 4.8009 | H108: 0 | I108: 0 | J108: 14.2596 | K108: 9.4587
A109: E9144 | B109: Pórtico metálico rolante com talha com capacidade de 5 t - 10 kW | C109: 306730.9664 | D109: 13.6325 | E109: 5.257 | F109: 0 | G109: 8.5203 | H109: 0 | I109: 27.6724 | J109: 55.0822 | K109: 46.5619
A110: E9148 | B110: Macaco de protensão de fios com bomba - 3,72 kW | C110: 100936.2793 | D110: 5.7678 | E110: 1.7794 | F110: 0 | G110: 5.7678 | H110: 0 | I110: 43.836 | J110: 57.151 | K110: 51.3832
A111: E9149 | B111: Máquina de aplicação e extração de grampo elástico tipo Pandrol - 6,70 kW | C111: 273671.9416 | D111: 21.8938 | E111: 5.0657 | F111: 0 | G111: 21.8938 | H111: 10.403 | I111: 0 | J111: 59.2563 | K111: 26.9595
A112: E9151 | B112: Britador de mandíbulas móvel sobre esteiras, sem peneira, com capacidade de 140 m³/h - 170 kW | C112: 2976123.013 | D112: 158.7266 | E112: 52.0276 | F112: 0 | G112: 158.7266 | H112: 165.595 | I112: 43.836 | J112: 578.9118 | K112: 254.5902
A113: E9152 | B113: Ferramenta de fixação à pólvora de ação direta | C113: 1167.5028 | D113: 0.0992 | E113: 0.0216 | F113: 0 | G113: 0.0934 | H113: 0 | I113: 0 | J113: 0.2142 | K113: 0.1208
A114: E9153 | B114: Ferramenta de fixação à pólvora e sistema à pistão | C114: 1074.2545 | D114: 0.0913 | E114: 0.0199 | F114: 0 | G114: 0.0859 | H114: 0 | I114: 0 | J114: 0.1971 | K114: 0.1112
A115: E9154 | B115: Equipamento para selagem com material asfáltico rebocável com capacidade de 370 l - 35 kW | C115: 463653.9426 | D115: 83.4577 | E115: 10.0126 | F115: 0 | G115: 27.8192 | H115: 28.4109 | I115: 27.6724 | J115: 177.3728 | K115: 121.1427
A116: E9155 | B116: Caldeira de asfalto rebocável com capacidade de 600 l - 5,20 kW | C116: 151744.163 | D116: 22.7616 | E116: 3.1209 | F116: 0 | G116: 7.5872 | H116: 3.9396 | I116: 0 | J116: 37.4093 | K116: 25.8825
A117: E9156 | B117: Soprador de ar costal - 2,6 kW | C117: 2620.1593 | D117: 0.4192 | E117: 0.0566 | F117: 0 | G117: 0.3668 | H117: 5.0462 | I117: 0 | J117: 5.8888 | K117: 0.4758
A118: E9157 | B118: Locomotiva diesel-elétrica CC - bitola métrica - 2.237 kW | C118: 8823659.491 | D118: 141.1786 | E118: 141.5491 | F118: 0 | G118: 176.4732 | H118: 1452.6899 | I118: 35.0133 | J118: 1946.9041 | K118: 317.741
A119: E9158 | B119: Locomotiva diesel-elétrica CC - bitola larga - 2.237 kW | C119: 9213768.928 | D119: 147.4203 | E119: 147.8073 | F119: 0 | G119: 184.2754 | H119: 1452.6899 | I119: 35.0133 | J119: 1967.2062 | K119: 330.2409
A120: E9159 | B120: Vagão plataforma PNE com capacidade de 82 t - bitola métrica | C120: 756429.7062 | D120: 11.9768 | E120: 12.0569 | F120: 0 | G120: 6.3036 | H120: 0 | I120: 0 | J120: 30.3373 | K120: 24.0337
A121: E9160 | B121: Vagão plataforma PNT com capacidade de 98 t - bitola larga | C121: 986647.4429 | D121: 15.6219 | E121: 15.7263 | F121: 0 | G121: 8.2221 | H121: 0 | I121: 0 | J121: 39.5703 | K121: 31.3482
A122: E9161 | B122: Vagão fechado com porta para carga e descarga de paletes FLD com capacidade de 64 t - bitola métrica | C122: 750263.1597 | D122: 11.8792 | E122: 11.9586 | F122: 0 | G122: 6.2522 | H122: 0 | I122: 0 | J122: 30.09 | K122: 23.8378
A123: E9162 | B123: Vagão fechado com porta para carga e descarga de paletes FLT com capacidade de 99 t - bitola larga | C123: 868455.3013 | D123: 13.7505 | E123: 13.8425 | F123: 0 | G123: 7.2371 | H123: 0 | I123: 0 | J123: 34.8301 | K123: 27.593
A124: E9163 | B124: Vagão hopper aberto com descarga automática HNE com capacidade de 45 m³ - bitola métrica | C124: 904426.8226 | D124: 14.3201 | E124: 14.4158 | F124: 0 | G124: 7.5369 | H124: 0 | I124: 0 | J124: 36.2728 | K124: 28.7359
A125: E9164 | B125: Vagão hopper aberto com descarga automática HNT com capacidade de 63 m³ - bitola larga | C125: 1162201.389 | D125: 18.4015 | E125: 18.5245 | F125: 0 | G125: 9.685 | H125: 0 | I125: 0 | J125: 46.611 | K125: 36.926
A126: E9167 | B126: Equipamento para carga e descarga de TLS de até 250 m - 90 kW | C126: 2825178.974 | D126: 45.2029 | E126: 45.3215 | F126: 0 | G126: 56.5036 | H126: 58.4453 | I126: 43.836 | J126: 249.3093 | K126: 134.3604
A127: E9168 | B127: Carregadeira de pneus com implemento de garfo - 195 kW | C127: 1497410.452 | D127: 131.0234 | E127: 28.8719 | F127: 0 | G127: 131.0234 | H127: 84.421 | I127: 34.2551 | J127: 409.5948 | K127: 194.1504
A128: E9200 | B128: Carregadeira de pneus para rocha com capacidade de 2,50 m³ - 105 kW com periculosidade | C128: 1001598.468 | D128: 80.0364 | E128: 18.977 | F128: 0 | G128: 80.0364 | H128: 107.9614 | I128: 42.3108 | J128: 329.322 | K128: 141.3242
A129: E9203 | B129: Escavadeira hidráulica com martelo hidráulico de 1.700 kg - 103 kW com periculosidade | C129: 2061350.438 | D129: 235.5829 | E129: 40.881 | F129: 0 | G129: 294.4786 | H129: 72.4613 | I129: 42.3108 | J129: 685.7146 | K129: 318.7747
A130: E9204 | B130: Perfuratriz sobre esteiras - 145 kW com periculosidade | C130: 2035646.55 | D130: 162.8517 | E130: 37.6798 | F130: 0 | G130: 162.8517 | H130: 117.7023 | I130: 42.3108 | J130: 523.3963 | K130: 242.8423
A131: E9205 | B131: Equipamento de corte a plasma CNC - 12.000 x 5.500 mm - 19,5 kW | C131: 1050319.555 | D131: 84.0256 | E131: 19.4414 | F131: 0 | G131: 63.0192 | H131: 0 | I131: 0 | J131: 166.4862 | K131: 103.467
A132: E9206 | B132: Equipamento de solda MIG automática com acessórios - 14,6 kVA | C132: 89120.2863 | D132: 11.8827 | E132: 1.8329 | F132: 0 | G132: 11.8827 | H132: 0 | I132: 0 | J132: 25.5983 | K132: 13.7156
A133: E9207 | B133: Máquina de solda elétrica retificadora 425 A - 18,70 kW | C133: 8151.9548 | D133: 1.0869 | E133: 0.1677 | F133: 0 | G133: 1.0869 | H133: 0 | I133: 0 | J133: 2.3415 | K133: 1.2546
A134: E9209 | B134: Martelete perfurador/rompedor a ar comprimido de 25 kg para rocha, com insalubridade, com capacidade de 2.040 gpm | C134: 25123.6445 | D134: 3.3498 | E134: 0.5167 | F134: 0 | G134: 3.3498 | H134: 0 | I134: 35.4678 | J134: 42.6841 | K134: 39.3343
A135: E9213 | B135: Jumbo eletro-hidráulico com 3 braços - 155 kW/237 kW com periculosidade | C135: 14124149.43 | D135: 807.0943 | E135: 248.9886 | F135: 0 | G135: 1008.8678 | H135: 176.1476 | I135: 54.7914 | J135: 2295.8897 | K135: 1110.8743
A136: E9231 | B136: Maçarico lança-chamas a gás liquefeito de petróleo (GLP) | C136: 84.6749 | D136: 0.0113 | E136: 0.0017 | F136: 0 | G136: 0.0113 | H136: 0 | I136: 0 | J136: 0.0243 | K136: 0.013
A137: E9239 | B137: Miniônibus com capacidade para 30 passageiros - 111 kW (sem motorista) | C137: 677579.5759 | D137: 29.0391 | E137: 11.9448 | F137: 4.8399 | G137: 43.5587 | H137: 114.1306 | I137: 0 | J137: 203.5131 | K137: 45.8238
A138: E9240 | B138: Ônibus com capacidade para 80 passageiros - 175 kW (sem motorista) | C138: 1047824.181 | D138: 44.9068 | E138: 18.4716 | F138: 7.4845 | G138: 67.3601 | H138: 179.9357 | I138: 0 | J138: 318.1587 | K138: 70.8629
A139: E9242 | B139: Estação transmissora de superfície para televisionamento | C139: 15639.0872 | D139: 1.0054 | E139: 0.2757 | F139: 0 | G139: 0.5585 | H139: 0 | I139: 0 | J139: 1.8396 | K139: 1.2811
A140: E9243 | B140: Câmara hiperbárica com filtro, serpentina e reservatório de ar para mergulho raso - D = 1,80 m e H = 2,22 m | C140: 630642.7704 | D140: 11.0362 | E140: 10.214 | F140: 0 | G140: 15.7661 | H140: 0 | I140: 57.7437 | J140: 94.76 | K140: 78.9939
A141: E9244 | B141: Estação transmissora de superfície para comunicação sem fio | C141: 39861.4385 | D141: 2.5625 | E141: 0.7027 | F141: 0 | G141: 1.4236 | H141: 0 | I141: 0 | J141: 4.6888 | K141: 3.2652
A142: E9245 | B142: Estação transmissora de superfície para comunicação com fio | C142: 6680.9669 | D142: 0.4295 | E142: 0.1178 | F142: 0 | G142: 0.2386 | H142: 0 | I142: 0 | J142: 0.7859 | K142: 0.5473
A143: E9246 | B143: Painel de controle de ar com manômetros e pneufatômetros | C143: 12820.8993 | D143: 0.8242 | E143: 0.226 | F143: 0 | G143: 0.4579 | H143: 0 | I143: 0 | J143: 1.5081 | K143: 1.0502
A144: E9247 | B144: Sistema de Sino aberto (sinete) para mergulho até 50 m - 33,50 kW | C144: 397855.5084 | D144: 35.3649 | E144: 7.5007 | F144: 0 | G144: 35.3649 | H144: 0 | I144: 57.7437 | J144: 135.9742 | K144: 100.6093
A145: E9248 | B145: Sistema de ar comprimido para mergulho até 30 m com pressão de trabalho de 1,4 MPa - 7,46 kW | C145: 53973.3534 | D145: 4.3179 | E145: 0.999 | F145: 0 | G145: 4.3179 | H145: 6.863 | I145: 0 | J145: 16.4978 | K145: 5.3169
A146: E9249 | B146: Sistema de ar comprimido para mergulho até 50 m com pressão de trabalho de 1,7 MPa - 16,18 kW | C146: 81337.6374 | D146: 6.507 | E146: 1.5056 | F146: 0 | G146: 6.507 | H146: 14.8851 | I146: 0 | J146: 29.4047 | K146: 8.0126
A147: E9251 | B147: Fonte de plasma para corte manual - 65A - 15 kW | C147: 32637.725 | D147: 4.3517 | E147: 0.6712 | F147: 0 | G147: 4.3517 | H147: 0 | I147: 0 | J147: 9.3746 | K147: 5.0229
A148: E9252 | B148: Serra de esquadria com braço telescópico - D = 250 mm (10") - 1,80 kW | C148: 3975.0475 | D148: 0.3578 | E148: 0.0736 | F148: 0 | G148: 0.1988 | H148: 0 | I148: 0 | J148: 0.6302 | K148: 0.4314
A149: E9253 | B149: Rebordeadeira diâmetro máximo 3,00 m - 4,85 kW | C149: 70660.176 | D149: 2.8264 | E149: 1.1989 | F149: 0 | G149: 2.4731 | H149: 0 | I149: 0 | J149: 6.4984 | K149: 4.0253
A150: E9254 | B150: Dobradeira viradeira manual comprimento máximo de dobra de até 2.000 mm | C150: 18984.9921 | D150: 0.7594 | E150: 0.3221 | F150: 0 | G150: 0.6645 | H150: 0 | I150: 0 | J150: 1.746 | K150: 1.0815
A151: E9255 | B151: Fonte de plasma para corte manual - 45A - 10 kW | C151: 21604.725 | D151: 2.8806 | E151: 0.4443 | F151: 0 | G151: 2.8806 | H151: 0 | I151: 0 | J151: 6.2055 | K151: 3.3249
A152: E9256 | B152: Equipamento para pintura com cal rebocável com dois bicos aplicadores e capacidade de 2.200 l | C152: 62738.9005 | D152: 6.2739 | E152: 1.2097 | F152: 0 | G152: 6.2739 | H152: 0 | I152: 27.6724 | J152: 41.4299 | K152: 35.156
A153: E9259 | B153: Ventilador centrífugo média pressão com capacidade de 38 m³/min - 2,21 kW | C153: 17062.7553 | D153: 1.5356 | E153: 0.3158 | F153: 0 | G153: 1.0238 | H153: 0 | I153: 0 | J153: 2.8752 | K153: 1.8514
A154: E9260 | B154: Detector de gases com bomba elétrica para espaço confinado | C154: 4543 | D154: 0.3634 | E154: 0.0841 | F154: 0 | G154: 0.2272 | H154: 0 | I154: 0 | J154: 0.6747 | K154: 0.4475
A155: E9261 | B155: Equipamento de pintura com pistola airless - 0,90 kW | C155: 2290.6877 | D155: 0.4123 | E155: 0.0495 | F155: 0 | G155: 0.2291 | H155: 0 | I155: 0 | J155: 0.6909 | K155: 0.4618
A156: E9262 | B156: Escova rotativa com cerdas de aço para tratamento de superfície - 0,91 kW | C156: 20886.6219 | D156: 2.7849 | E156: 0.4296 | F156: 0 | G156: 1.7406 | H156: 0 | I156: 27.6724 | J156: 32.6275 | K156: 30.8869
A157: E9263 | B157: Tripé com guincho para espaço confinado | C157: 10081.9153 | D157: 0.8962 | E157: 0.1901 | F157: 0 | G157: 0.6721 | H157: 0 | I157: 0 | J157: 1.7584 | K157: 1.0863
A158: E9264 | B158: Respirador purificador de ar motorizado | C158: 8816.5598 | D158: 0.7053 | E158: 0.1632 | F158: 0 | G158: 0.4408 | H158: 0 | I158: 0 | J158: 1.3093 | K158: 0.8685
A159: E9265 | B159: Respirador de adução de ar tipo linha de ar comprimido para jateamento | C159: 17997.5491 | D159: 1.4398 | E159: 0.3331 | F159: 0 | G159: 0.8999 | H159: 0 | I159: 0 | J159: 2.6728 | K159: 1.7729
A160: E9267 | B160: Exaustor centrífugo alta pressão com capacidade de 35 m³/min - 1,47 kW | C160: 6288.3126 | D160: 0.5659 | E160: 0.1164 | F160: 0 | G160: 0.3773 | H160: 0 | I160: 0 | J160: 1.0596 | K160: 0.6823
A161: E9501 | B161: Ventilador axial para ventilação forçada com velocidade de saída de 32,8 m/s - D = 1.000 mm - 30 kW | C161: 458539.202 | D161: 41.2685 | E161: 8.4876 | F161: 0 | G161: 27.5124 | H161: 0 | I161: 0 | J161: 77.2685 | K161: 49.7561
A162: E9502 | B162: Bate-estaca de gravidade para 6 t - 119 kW | C162: 978437.812 | D162: 130.4584 | E162: 20.1232 | F162: 0 | G162: 97.8438 | H162: 83.7175 | I162: 34.2551 | J162: 366.398 | K162: 184.8367
A163: E9503 | B163: Guilhotina hidráulica 16 x 6.100 mm - 30 kW | C163: 1330089.006 | D163: 53.2036 | E163: 22.5683 | F163: 0 | G163: 46.5531 | H163: 0 | I163: 27.6724 | J163: 149.9974 | K163: 103.4443
A164: E9505 | B164: Prensa dobradeira capacidade 320 t - comprimento até 3.100 mm - 30 kW | C164: 930243.6667 | D164: 37.2097 | E164: 15.7839 | F164: 0 | G164: 32.5585 | H164: 0 | I164: 27.6724 | J164: 113.2245 | K164: 80.666
A165: E9507 | B165: Plotadora de recorte com computador e programa computacional | C165: 95278.0819 | D165: 14.2917 | E165: 1.9596 | F165: 0 | G165: 9.5278 | H165: 0 | I165: 0 | J165: 25.7791 | K165: 16.2513
A166: E9510 | B166: Ventilador centrífugo baixa pressão com capacidade de 58 m³/min - 3,68 kW | C166: 14574.3234 | D166: 1.3117 | E166: 0.2698 | F166: 0 | G166: 0.8745 | H166: 0 | I166: 0 | J166: 2.456 | K166: 1.5815
A167: E9511 | B167: Carregadeira de pneus com capacidade de 3,40 m³ - 195 kW | C167: 2163026.831 | D167: 189.2648 | E167: 41.7059 | F167: 0 | G167: 189.2648 | H167: 84.421 | I167: 34.2551 | J167: 538.9116 | K167: 265.2258
A168: E9512 | B168: Veículo leve - 53 kW | C168: 78528.066 | D168: 4.7117 | E168: 1.4536 | F168: 0.589 | G168: 4.7117 | H168: 26.4511 | I168: 32.5686 | J168: 70.4857 | K168: 39.3229
A169: E9513 | B169: Compressor de ar portátil de 160,46 l/s (340 PCM) - 81 kW | C169: 338802.4809 | D169: 27.1042 | E169: 6.2712 | F169: 0 | G169: 27.1042 | H169: 74.5177 | I169: 0 | J169: 134.9973 | K169: 33.3754
A170: E9514 | B170: Distribuidor de agregados sobre pneus autopropelido - 130 kW | C170: 983003.5212 | D170: 98.3004 | E170: 18.9535 | F170: 0 | G170: 86.0128 | H170: 133.6665 | I170: 34.2551 | J170: 371.1883 | K170: 151.509
A171: E9515 | B171: Escavadeira hidráulica sobre esteiras com caçamba com capacidade de 1,56 m³ - 118 kW | C171: 1195443.263 | D171: 104.6013 | E171: 23.0496 | F171: 0 | G171: 104.6013 | H171: 83.0139 | I171: 34.2551 | J171: 349.5212 | K171: 161.906
A172: E9516 | B172: Perfuratriz hidráulica sobre esteiras - 283 kW | C172: 8085309.792 | D172: 646.8248 | E172: 149.6591 | F172: 0 | G172: 646.8248 | H172: 153.1483 | I172: 34.2551 | J172: 1630.7121 | K172: 830.739
A173: E9518 | B173: Grade de 24 discos rebocável de D = 60 cm (24") | C173: 43054.9309 | D173: 2.7678 | E173: 0.759 | F173: 0 | G173: 1.5377 | H173: 0 | I173: 0 | J173: 5.0645 | K173: 3.5268
A174: E9519 | B174: Betoneira com motor a gasolina com capacidade de 600 l - 10 kW | C174: 40357.0533 | D174: 6.4571 | E174: 0.8715 | F174: 0 | G174: 4.8428 | H174: 19.4086 | I174: 27.6724 | J174: 59.2524 | K174: 35.001
A175: E9521 | B175: Grupo gerador - 3,2 kVA | C175: 3559.3744 | D175: 0.3114 | E175: 0.0686 | F175: 0 | G175: 0.2225 | H175: 4.6137 | I175: 0 | J175: 5.2162 | K175: 0.38
A176: E9522 | B176: Caldeira de asfalto rebocável com capacidade de 1.500 l - 6,5 kW | C176: 212288.6409 | D176: 31.8433 | E176: 4.3661 | F176: 0 | G176: 10.6144 | H176: 4.9246 | I176: 0 | J176: 51.7484 | K176: 36.2094
A177: E9523 | B177: Motoscraper - 304 kW | C177: 6193435.887 | D177: 330.3166 | E177: 108.2716 | F177: 0 | G177: 371.6062 | H177: 263.2202 | I177: 34.2551 | J177: 1107.6697 | K177: 472.8433
A178: E9524 | B178: Motoniveladora - 93 kW | C178: 1301890.862 | D178: 91.1324 | E178: 24.098 | F178: 0 | G178: 117.1702 | H178: 75.4918 | I178: 34.2551 | J178: 342.1475 | K178: 149.4855
A179: E9525 | B179: Ponte rolante com capacidade de 15 t e vão de até 15 m - 20 kW | C179: 3646202.178 | D179: 162.0534 | E179: 62.4919 | F179: 0 | G179: 101.2834 | H179: 0 | I179: 55.3448 | J179: 381.1735 | K179: 279.8901
A180: E9526 | B180: Retroescavadeira de pneus - capacidade da caçamba da pá-carregadeira de 0,76 m³ e da retroescavadeira de 0,29 m³ - 58 kW | C180: 484567.1363 | D180: 35.7049 | E180: 9.048 | F180: 0 | G180: 35.7049 | H180: 40.8035 | I180: 34.2551 | J180: 155.5164 | K180: 79.008
A181: E9527 | B181: Martelete perfurador/rompedor a ar comprimido de 25 kg para rocha com capacidade de 2.040 gpm | C181: 25123.6445 | D181: 3.3498 | E181: 0.5167 | F181: 0 | G181: 3.3498 | H181: 0 | I181: 27.6724 | J181: 34.8887 | K181: 31.5389
A182: E9528 | B182: Empilhadeira a diesel com capacidade de 4 t - 60 kW | C182: 568502.5632 | D182: 45.4802 | E182: 10.523 | F182: 0 | G182: 39.7952 | H182: 48.7044 | I182: 27.6724 | J182: 172.1752 | K182: 83.6756
A183: E9529 | B183: Jateador para estruturas metálicas com transportador a roletes - 22 kW | C183: 5080607.908 | D183: 812.8973 | E183: 109.7157 | F183: 0 | G183: 609.6729 | H183: 0 | I183: 27.6724 | J183: 1559.9583 | K183: 950.2854
A184: E9530 | B184: Rolo compactador liso vibratório autopropelido por pneus de 11 t - 97 kW | C184: 960990.0074 | D184: 76.8792 | E184: 17.7879 | F184: 0 | G184: 76.8792 | H184: 83.988 | I184: 34.2551 | J184: 289.7894 | K184: 128.9222
A185: E9532 | B185: Equipamento de solda MIG com acessórios - 14,6 kVA | C185: 85530.1786 | D185: 11.404 | E185: 1.7591 | F185: 0 | G185: 11.404 | H185: 0 | I185: 0 | J185: 24.5671 | K185: 13.1631
A186: E9535 | B186: Serra circular com bancada - D = 30 cm - 4 kW | C186: 7432.6277 | D186: 0.6689 | E186: 0.1376 | F186: 0 | G186: 0.3716 | H186: 0 | I186: 27.6724 | J186: 28.8505 | K186: 28.4789
A187: E9536 | B187: Embarcação de transporte de pessoal e apoio logístico - 30 kW | C187: 154150.717 | D187: 1.7645 | E187: 0.8861 | F187: 0 | G187: 1.9606 | H187: 66.5436 | I187: 42.121 | J187: 113.2758 | K187: 44.7716
A188: E9538 | B188: Conjunto vibratório para meio tubo de concreto com encaixe PB e 3 jogos de fôrmas - D = 0,30 m - 2,20 kW | C188: 16101.3915 | D188: 2.1469 | E188: 0.3312 | F188: 0 | G188: 1.6101 | H188: 0 | I188: 0 | J188: 4.0882 | K188: 2.4781
A189: E9539 | B189: Equipamento de batimetria monofeixe | C189: 108493.4418 | D189: 4.9666 | E189: 1.8438 | F189: 0 | G189: 2.7592 | H189: 0 | I189: 36.6794 | J189: 46.249 | K189: 43.4898
A190: E9540 | B190: Trator sobre esteiras com lâmina - 127 kW | C190: 1729014.188 | D190: 121.031 | E190: 32.0041 | F190: 0 | G190: 172.9014 | H190: 96.2182 | I190: 34.2551 | J190: 456.4098 | K190: 187.2902
A191: E9541 | B191: Trator sobre esteiras com lâmina - 259 kW | C191: 4841044.354 | D191: 294.6723 | E191: 87.6597 | F191: 0 | G191: 420.9604 | H191: 196.2246 | I191: 34.2551 | J191: 1033.7721 | K191: 416.5871
A192: E9543 | B192: Compressor de ar respirável com capacidade de até 35 MPa e 3,58 l/s - 5,52 kW | C192: 76048.122 | D192: 6.0838 | E192: 1.4077 | F192: 0 | G192: 6.0838 | H192: 0 | I192: 0 | J192: 13.5753 | K192: 7.4915
A193: E9544 | B193: Vassoura mecânica rebocável com largura de 2,44 m | C193: 85352.5326 | D193: 9.6022 | E193: 1.6457 | F193: 0 | G193: 6.4014 | H193: 0 | I193: 0 | J193: 17.6493 | K193: 11.2479
A194: E9545 | B194: Vibroacabadora de asfalto sobre esteiras - 97 kW | C194: 1615926.935 | D194: 141.3936 | E194: 31.1571 | F194: 0 | G194: 181.7918 | H194: 99.7358 | I194: 43.836 | J194: 497.9143 | K194: 216.3867
A195: E9547 | B195: Máquina de solda elétrica transformadora 250 A - 9,20 kW | C195: 1166.0332 | D195: 0.1555 | E195: 0.024 | F195: 0 | G195: 0.1555 | H195: 0 | I195: 0 | J195: 0.335 | K195: 0.1795
A196: E9548 | B196: Bomba centrífuga com capacidade de 7,1 a 22 m³/h - 1,50 kW | C196: 2617.8226 | D196: 0.2618 | E196: 0.0505 | F196: 0 | G196: 0.2291 | H196: 0 | I196: 0 | J196: 0.5414 | K196: 0.3123
A197: E9551 | B197: Obturador mecânico simples com extensão de 12 m | C197: 4901.4301 | D197: 0.4411 | E197: 0.0907 | F197: 0 | G197: 0.2451 | H197: 0 | I197: 0 | J197: 0.7769 | K197: 0.5318
A198: E9552 | B198: Nível ótico com capacidade de aumento de 32x | C198: 15452.7324 | D198: 1.2362 | E198: 0.286 | F198: 0 | G198: 0.7726 | H198: 0 | I198: 0 | J198: 2.2948 | K198: 1.5222
A199: E9553 | B199: Estação total eletrônica com alcance máximo de 3.000 m | C199: 51066.5361 | D199: 4.596 | E199: 0.9452 | F199: 0 | G199: 2.5533 | H199: 0 | I199: 0 | J199: 8.0945 | K199: 5.5412
A200: E9556 | B200: Compactador manual de placa vibratória - 3,00 kW | C200: 10935.4373 | D200: 2.1871 | E200: 0.253 | F200: 0 | G200: 2.1871 | H200: 5.8226 | I200: 0 | J200: 10.4498 | K200: 2.4401
... 344 more rows

Sheet SINTÉTICO SICRO
A1: CGCIT | B1: SISTEMA DE CUSTOS REFERENCIAIS DE OBRAS - SICRO | D1: DNIT
B2: Piauí - Julho/2025
A3: Código | B3: Descrição do Serviço | C3: Unidade | D3: Custo Unitário (R$)
A4: 307731 | B4: Aparelho de apoio de neoprene fretado para estruturas moldadas no local - fornecimento e instalação | C4: dm³ | D4: 150.31
A5: 307732 | B5: Aparelho de apoio de neoprene fretado para estruturas pré-moldadas - fornecimento e instalação | C5: dm³ | D5: 125.05
A6: 308308 | B6: Aparelho de apoio metálico elastomérico fixo com capacidade de 1.500 kN - fornecimento e instalação | C6: un | D6: 5251.05
A7: 308313 | B7: Aparelho de apoio metálico elastomérico fixo com capacidade de 10.000 kN - fornecimento e instalação | C7: un | D7: 32319.84
A8: 308309 | B8: Aparelho de apoio metálico elastomérico fixo com capacidade de 2.500 kN - fornecimento e instalação | C8: un | D8: 8695.57
A9: 308310 | B9: Aparelho de apoio metálico elastomérico fixo com capacidade de 4.000 kN - fornecimento e instalação | C9: un | D9: 11621.52
A10: 308311 | B10: Aparelho de apoio metálico elastomérico fixo com capacidade de 5.500 kN - fornecimento e instalação | C10: un | D10: 16478.47
A11: 308312 | B11: Aparelho de apoio metálico elastomérico fixo com capacidade de 7.500 kN - fornecimento e instalação | C11: un | D11: 23007.01
A12: 308307 | B12: Aparelho de apoio metálico elastomérico fixo com capacidade de 700 kN - fornecimento e instalação | C12: un | D12: 3136.95
A13: 308322 | B13: Aparelho de apoio metálico elastomérico multidirecional com capacidade de 1.500 kN - fornecimento e instalação | C13: un | D13: 4957.11
A14: 308327 | B14: Aparelho de apoio metálico elastomérico multidirecional com capacidade de 10.000 kN - fornecimento e instalação | C14: un | D14: 29828.94
A15: 308323 | B15: Aparelho de apoio metálico elastomérico multidirecional com capacidade de 2.500 kN - fornecimento e instalação | C15: un | D15: 7787.59
A16: 308324 | B16: Aparelho de apoio metálico elastomérico multidirecional com capacidade de 4.000 kN - fornecimento e instalação | C16: un | D16: 11381.74
A17: 308325 | B17: Aparelho de apoio metálico elastomérico multidirecional com capacidade de 5.500 kN - fornecimento e instalação | C17: un | D17: 16035.43
A18: 308326 | B18: Aparelho de apoio metálico elastomérico multidirecional com capacidade de 7.500 kN - fornecimento e instalação | C18: un | D18: 22185.78
A19: 308321 | B19: Aparelho de apoio metálico elastomérico multidirecional com capacidade de 700 kN - fornecimento e instalação | C19: un | D19: 4843.31
A20: 308315 | B20: Aparelho de apoio metálico elastomérico unidirecional com capacidade de 1.500 kN - fornecimento e instalação | C20: un | D20: 6461.89
A21: 308320 | B21: Aparelho de apoio metálico elastomérico unidirecional com capacidade de 10.000 kN - fornecimento e instalação | C21: un | D21: 47220.54
A22: 308316 | B22: Aparelho de apoio metálico elastomérico unidirecional com capacidade de 2.500 kN - fornecimento e instalação | C22: un | D22: 9295.09
A23: 308317 | B23: Aparelho de apoio metálico elastomérico unidirecional com capacidade de 4.000 kN - fornecimento e instalação | C23: un | D23: 18393.64
A24: 308318 | B24: Aparelho de apoio metálico elastomérico unidirecional com capacidade de 5.500 kN - fornecimento e instalação | C24: un | D24: 24257.04
A25: 308319 | B25: Aparelho de apoio metálico elastomérico unidirecional com capacidade de 7.500 kN - fornecimento e instalação | C25: un | D25: 25811.69
A26: 308314 | B26: Aparelho de apoio metálico elastomérico unidirecional com capacidade de 700 kN - fornecimento e instalação | C26: un | D26: 4880.57
A27: 308250 | B27: Aparelho de apoio metálico esférico fixo com capacidade de 1.000 kN - fornecimento e instalação | C27: un | D27: 7723.9
A28: 308251 | B28: Aparelho de apoio metálico esférico fixo com capacidade de 1.500 kN - fornecimento e instalação | C28: un | D28: 12044.93
A29: 308268 | B29: Aparelho de apoio metálico esférico fixo com capacidade de 10.000 kN - fornecimento e instalação | C29: un | D29: 78533.16
A30: 308252 | B30: Aparelho de apoio metálico esférico fixo com capacidade de 2.000 kN - fornecimento e instalação | C30: un | D30: 13900.26
A31: 308253 | B31: Aparelho de apoio metálico esférico fixo com capacidade de 2.500 kN - fornecimento e instalação | C31: un | D31: 16800.29
A32: 308254 | B32: Aparelho de apoio metálico esférico fixo com capacidade de 3.000 kN - fornecimento e instalação | C32: un | D32: 20045.46
A33: 308255 | B33: Aparelho de apoio metálico esférico fixo com capacidade de 3.500 kN - fornecimento e instalação | C33: un | D33: 23158.09
A34: 308256 | B34: Aparelho de apoio metálico esférico fixo com capacidade de 4.000 kN - fornecimento e instalação | C34: un | D34: 31295.69
A35: 308257 | B35: Aparelho de apoio metálico esférico fixo com capacidade de 4.500 kN - fornecimento e instalação | C35: un | D35: 33438.23
A36: 308258 | B36: Aparelho de apoio metálico esférico fixo com capacidade de 5.000 kN - fornecimento e instalação | C36: un | D36: 37268.28
A37: 308259 | B37: Aparelho de apoio metálico esférico fixo com capacidade de 5.500 kN - fornecimento e instalação | C37: un | D37: 39700.12
A38: 308260 | B38: Aparelho de apoio metálico esférico fixo com capacidade de 6.000 kN - fornecimento e instalação | C38: un | D38: 44682.92
A39: 308261 | B39: Aparelho de apoio metálico esférico fixo com capacidade de 6.500 kN - fornecimento e instalação | C39: un | D39: 48246.63
A40: 308262 | B40: Aparelho de apoio metálico esférico fixo com capacidade de 7.000 kN - fornecimento e instalação | C40: un | D40: 57180.59
A41: 308263 | B41: Aparelho de apoio metálico esférico fixo com capacidade de 7.500 kN - fornecimento e instalação | C41: un | D41: 56734.75
A42: 308264 | B42: Aparelho de apoio metálico esférico fixo com capacidade de 8.000 kN - fornecimento e instalação | C42: un | D42: 58209.4
A43: 308265 | B43: Aparelho de apoio metálico esférico fixo com capacidade de 8.500 kN - fornecimento e instalação | C43: un | D43: 59957.62
A44: 308266 | B44: Aparelho de apoio metálico esférico fixo com capacidade de 9.000 kN - fornecimento e instalação | C44: un | D44: 70494.61
A45: 308267 | B45: Aparelho de apoio metálico esférico fixo com capacidade de 9.500 kN - fornecimento e instalação | C45: un | D45: 74783.45
A46: 308288 | B46: Aparelho de apoio metálico esférico multidirecional com capacidade de 1.000 kN - fornecimento e instalação | C46: un | D46: 8643.06
A47: 308289 | B47: Aparelho de apoio metálico esférico multidirecional com capacidade de 1.500 kN - fornecimento e instalação | C47: un | D47: 11976.51
A48: 308306 | B48: Aparelho de apoio metálico esférico multidirecional com capacidade de 10.000 kN - fornecimento e instalação | C48: un | D48: 74734.9
A49: 308290 | B49: Aparelho de apoio metálico esférico multidirecional com capacidade de 2.000 kN - fornecimento e instalação | C49: un | D49: 15693.07
A50: 308291 | B50: Aparelho de apoio metálico esférico multidirecional com capacidade de 2.500 kN - fornecimento e instalação | C50: un | D50: 18768.39
A51: 308292 | B51: Aparelho de apoio metálico esférico multidirecional com capacidade de 3.000 kN - fornecimento e instalação | C51: un | D51: 21670.5
A52: 308293 | B52: Aparelho de apoio metálico esférico multidirecional com capacidade de 3.500 kN - fornecimento e instalação | C52: un | D52: 24501.98
A53: 308294 | B53: Aparelho de apoio metálico esférico multidirecional com capacidade de 4.000 kN - fornecimento e instalação | C53: un | D53: 27776.01
A54: 308295 | B54: Aparelho de apoio metálico esférico multidirecional com capacidade de 4.500 kN - fornecimento e instalação | C54: un | D54: 32053.68
A55: 308296 | B55: Aparelho de apoio metálico esférico multidirecional com capacidade de 5.000 kN - fornecimento e instalação | C55: un | D55: 35689.71
A56: 308297 | B56: Aparelho de apoio metálico esférico multidirecional com capacidade de 5.500 kN - fornecimento e instalação | C56: un | D56: 38636.46
A57: 308298 | B57: Aparelho de apoio metálico esférico multidirecional com capacidade de 6.000 kN - fornecimento e instalação | C57: un | D57: 43733.38
A58: 308299 | B58: Aparelho de apoio metálico esférico multidirecional com capacidade de 6.500 kN - fornecimento e instalação | C58: un | D58: 47232.28
A59: 308300 | B59: Aparelho de apoio metálico esférico multidirecional com capacidade de 7.000 kN - fornecimento e instalação | C59: un | D59: 50820.7
A60: 308301 | B60: Aparelho de apoio metálico esférico multidirecional com capacidade de 7.500 kN - fornecimento e instalação | C60: un | D60: 54808.84
A61: 308302 | B61: Aparelho de apoio metálico esférico multidirecional com capacidade de 8.000 kN - fornecimento e instalação | C61: un | D61: 58302.25
A62: 308303 | B62: Aparelho de apoio metálico esférico multidirecional com capacidade de 8.500 kN - fornecimento e instalação | C62: un | D62: 63499.57
A63: 308304 | B63: Aparelho de apoio metálico esférico multidirecional com capacidade de 9.000 kN - fornecimento e instalação | C63: un | D63: 67114.27
A64: 308305 | B64: Aparelho de apoio metálico esférico multidirecional com capacidade de 9.500 kN - fornecimento e instalação | C64: un | D64: 71187.98
A65: 308269 | B65: Aparelho de apoio metálico esférico unidirecional com capacidade de 1.000 kN - fornecimento e instalação | C65: un | D65: 11585.6
A66: 308270 | B66: Aparelho de apoio metálico esférico unidirecional com capacidade de 1.500 kN - fornecimento e instalação | C66: un | D66: 15578.63
A67: 308287 | B67: Aparelho de apoio metálico esférico unidirecional com capacidade de 10.000 kN - fornecimento e instalação | C67: un | D67: 85472.3
A68: 308271 | B68: Aparelho de apoio metálico esférico unidirecional com capacidade de 2.000 kN - fornecimento e instalação | C68: un | D68: 18984.03
A69: 308272 | B69: Aparelho de apoio metálico esférico unidirecional com capacidade de 2.500 kN - fornecimento e instalação | C69: un | D69: 22534.14
A70: 308273 | B70: Aparelho de apoio metálico esférico unidirecional com capacidade de 3.000 kN - fornecimento e instalação | C70: un | D70: 25766.39
A71: 308274 | B71: Aparelho de apoio metálico esférico unidirecional com capacidade de 3.500 kN - fornecimento e instalação | C71: un | D71: 29868.36
A72: 308275 | B72: Aparelho de apoio metálico esférico unidirecional com capacidade de 4.000 kN - fornecimento e instalação | C72: un | D72: 33445.98
A73: 308276 | B73: Aparelho de apoio metálico esférico unidirecional com capacidade de 4.500 kN - fornecimento e instalação | C73: un | D73: 38321.12
A74: 308277 | B74: Aparelho de apoio metálico esférico unidirecional com capacidade de 5.000 kN - fornecimento e instalação | C74: un | D74: 43719.95
A75: 308278 | B75: Aparelho de apoio metálico esférico unidirecional com capacidade de 5.500 kN - fornecimento e instalação | C75: un | D75: 45865.97
A76: 308279 | B76: Aparelho de apoio metálico esférico unidirecional com capacidade de 6.000 kN - fornecimento e instalação | C76: un | D76: 51240.97
A77: 308280 | B77: Aparelho de apoio metálico esférico unidirecional com capacidade de 6.500 kN - fornecimento e instalação | C77: un | D77: 54922.8
A78: 308281 | B78: Aparelho de apoio metálico esférico unidirecional com capacidade de 7.000 kN - fornecimento e instalação | C78: un | D78: 58997.4
A79: 308282 | B79: Aparelho de apoio metálico esférico unidirecional com capacidade de 7.500 kN - fornecimento e instalação | C79: un | D79: 63316.56
A80: 308283 | B80: Aparelho de apoio metálico esférico unidirecional com capacidade de 8.000 kN - fornecimento e instalação | C80: un | D80: 67294.21
A81: 308284 | B81: Aparelho de apoio metálico esférico unidirecional com capacidade de 8.500 kN - fornecimento e instalação | C81: un | D81: 72495.65
A82: 308285 | B82: Aparelho de apoio metálico esférico unidirecional com capacidade de 9.000 kN - fornecimento e instalação | C82: un | D82: 76750.66
A83: 308286 | B83: Aparelho de apoio metálico esférico unidirecional com capacidade de 9.500 kN - fornecimento e instalação | C83: un | D83: 81162.76
A84: 307733 | B84: Junta de dilatação em elastômero e perfil VV - L = 20 mm e H = 40 mm - fornecimento e instalação | C84: m | D84: 277.9
A85: 307734 | B85: Junta de dilatação em elastômero e perfil VV - L = 25 mm e H = 50 mm - fornecimento e instalação | C85: m | D85: 320.3
A86: 307735 | B86: Junta de dilatação em elastômero e perfil VV - L = 35 mm e H = 60 mm - fornecimento e instalação | C86: m | D86: 420.04
A87: 307736 | B87: Junta de dilatação em elastômero e perfil VV - L = 40 mm e H = 70 mm - fornecimento e instalação | C87: m | D87: 560.1
A88: 307737 | B88: Junta de dilatação em elastômero e perfil VV - L = 50 mm e H = 80 mm - fornecimento e instalação | C88: m | D88: 590.36
A89: 307730 | B89: Junta de dilatação em perfil extrudado de borracha vulcanizada | C89: m | D89: 0
A90: 307084 | B90: Lábios poliméricos em junta de pavimento de concreto - L = 20 mm e H = 30 mm - confecção e assentamento | C90: m | D90: 34.69
A91: 407818 | B91: Armação em aço CA-25 - fornecimento, preparo e colocação | C91: kg | D91: 12.13
A92: 407819 | B92: Armação em aço CA-50 - fornecimento, preparo e colocação | C92: kg | D92: 12.52
A93: 407820 | B93: Armação em aço CA-60 - fornecimento, preparo e colocação | C93: kg | D93: 13.6
A94: 407740 | B94: Chumbador tipo espera em aço CA-25 para fixação de estrutura metálica em concreto - fornecimento e instalação | C94: kg | D94: 15.38
A95: 408037 | B95: Luva de emenda com rosca cônica para aço CA-50 - D = 12,5 mm - fornecimento e instalação | C95: un | D95: 20.71
A96: 408038 | B96: Luva de emenda com rosca cônica para aço CA-50 - D = 16 mm - fornecimento e instalação | C96: un | D96: 31.09
A97: 408039 | B97: Luva de emenda com rosca cônica para aço CA-50 - D = 20 mm - fornecimento e instalação | C97: un | D97: 41.96
A98: 408041 | B98: Luva de emenda com rosca cônica para aço CA-50 - D = 25 mm - fornecimento e instalação | C98: un | D98: 53.04
A99: 408042 | B99: Luva de emenda com rosca cônica para aço CA-50 - D = 32 mm - fornecimento e instalação | C99: un | D99: 79.79
A100: 408031 | B100: Luva de emenda prensada para aço CA-50 - D = 12,5 mm - fornecimento e instalação | C100: un | D100: 21.98
A101: 408032 | B101: Luva de emenda prensada para aço CA-50 - D = 16 mm - fornecimento e instalação | C101: un | D101: 29.86
A102: 408033 | B102: Luva de emenda prensada para aço CA-50 - D = 20 mm - fornecimento e instalação | C102: un | D102: 41.4
A103: 408035 | B103: Luva de emenda prensada para aço CA-50 - D = 25 mm - fornecimento e instalação | C103: un | D103: 70.83
A104: 408036 | B104: Luva de emenda prensada para aço CA-50 - D = 32 mm - fornecimento e instalação | C104: un | D104: 150.55
A105: 408067 | B105: Tela de aço eletrossoldada - fornecimento, preparo e colocação | C105: kg | D105: 10.92
A106: 407743 | B106: Treliça nervurada três barras longitudinais interligadas por duas diagonais sinusoidal - fornecimento e instalação | C106: kg | D106: 11.19
A107: 607137 | B107: Arco metálico galvanizado tipo MP 152S - arco alto - vão = 10,08 m e altura = 6,12 m - aterro rodoviário mínimo = 0,90 m e máximo = 5,00 m - areia e brita comerciais | C107: m | D107: 55910.97
A108: 606785 | B108: Arco metálico galvanizado tipo MP 152S - arco alto - vão = 10,08 m e altura = 6,12 m - aterro rodoviário mínimo = 0,90 m e máximo = 5,00 m - areia extraída e brita produzida | C108: m | D108: 55302.51
A109: 607139 | B109: Arco metálico galvanizado tipo MP 152S - arco alto - vão = 10,31 m e altura = 6,17 m - aterro rodoviário mínimo = 0,90 m e máximo = 4,90 m - areia e brita comerciais | C109: m | D109: 56684.7
A110: 606787 | B110: Arco metálico galvanizado tipo MP 152S - arco alto - vão = 10,31 m e altura = 6,17 m - aterro rodoviário mínimo = 0,90 m e máximo = 4,90 m - areia extraída e brita produzida | C110: m | D110: 55746.34
A111: 607140 | B111: Arco metálico galvanizado tipo MP 152S - arco alto - vão = 10,36 m e altura = 5,38 m - aterro rodoviário mínimo = 1,20 m e máximo = 3,60 m - areia e brita comerciais | C111: m | D111: 51662.32
A112: 606788 | B112: Arco metálico galvanizado tipo MP 152S - arco alto - vão = 10,36 m e altura = 5,38 m - aterro rodoviário mínimo = 1,20 m e máximo = 3,60 m - areia extraída e brita produzida | C112: m | D112: 51445.58
A113: 607141 | B113: Arco metálico galvanizado tipo MP 152S - arco alto - vão = 10,54 m e altura = 6,05 m - aterro rodoviário mínimo = 1,20 m e máximo = 4,20 m - areia e brita comerciais | C113: m | D113: 57751.01
A114: 606789 | B114: Arco metálico galvanizado tipo MP 152S - arco alto - vão = 10,54 m e altura = 6,05 m - aterro rodoviário mínimo = 1,20 m e máximo = 4,20 m - areia extraída e brita produzida | C114: m | D114: 57118.66
A115: 607144 | B115: Arco metálico galvanizado tipo MP 152S - arco alto - vão = 10,57 m e altura = 5,41 m - aterro rodoviário mínimo = 1,20 m e máximo = 4,10 m - areia e brita comerciais | C115: m | D115: 66718.07
A116: 606792 | B116: Arco metálico galvanizado tipo MP 152S - arco alto - vão = 10,57 m e altura = 5,41 m - aterro rodoviário mínimo = 1,20 m e máximo = 4,10 m - areia extraída e brita produzida | C116: m | D116: 66140.49
A117: 607142 | B117: Arco metálico galvanizado tipo MP 152S - arco alto - vão = 10,74 m e altura = 6,48 m - aterro rodoviário mínimo = 1,20 m e máximo = 4,70 m - areia e brita comerciais | C117: m | D117: 60630.54
A118: 606790 | B118: Arco metálico galvanizado tipo MP 152S - arco alto - vão = 10,74 m e altura = 6,48 m - aterro rodoviário mínimo = 1,20 m e máximo = 4,70 m - areia extraída e brita produzida | C118: m | D118: 59950.38
A119: 607145 | B119: Arco metálico galvanizado tipo MP 152S - arco alto - vão = 10,77 m e altura = 6,10 m - aterro rodoviário mínimo = 1,20 m e máximo = 4,70 m - areia e brita comerciais | C119: m | D119: 73828.88
A120: 606793 | B120: Arco metálico galvanizado tipo MP 152S - arco alto - vão = 10,77 m e altura = 6,10 m - aterro rodoviário mínimo = 1,20 m e máximo = 4,70 m - areia extraída e brita produzida | C120: m | D120: 73182.91
A121: 607146 | B121: Arco metálico galvanizado tipo MP 152S - arco alto - vão = 10,97 m e altura = 6,53 m - aterro rodoviário mínimo = 1,20 m e máximo = 4,70 m - areia e brita comerciais | C121: m | D121: 77042.87
A122: 606794 | B122: Arco metálico galvanizado tipo MP 152S - arco alto - vão = 10,97 m e altura = 6,53 m - aterro rodoviário mínimo = 1,20 m e máximo = 4,70 m - areia extraída e brita produzida | C122: m | D122: 76341.76
A123: 607143 | B123: Arco metálico galvanizado tipo MP 152S - arco alto - vão = 11,35 m e altura = 7,12 m - aterro rodoviário mínimo = 1,20 m e máximo = 4,70 m - areia e brita comerciais | C123: m | D123: 65533.96
A124: 606791 | B124: Arco metálico galvanizado tipo MP 152S - arco alto - vão = 11,35 m e altura = 7,12 m - aterro rodoviário mínimo = 1,20 m e máximo = 4,70 m - areia extraída e brita produzida | C124: m | D124: 64750.9
A125: 607147 | B125: Arco metálico galvanizado tipo MP 152S - arco alto - vão = 11,58 m e altura = 7,16 m - aterro rodoviário mínimo = 1,20 m e máximo = 6,40 m - areia e brita comerciais | C125: m | D125: 83171.77
A126: 606795 | B126: Arco metálico galvanizado tipo MP 152S - arco alto - vão = 11,58 m e altura = 7,16 m - aterro rodoviário mínimo = 1,20 m e máximo = 6,40 m - areia extraída e brita produzida | C126: m | D126: 82363.87
A127: 607112 | B127: Arco metálico galvanizado tipo MP 152S - arco alto - vão = 6,12 m e altura = 2,77 m - aterro rodoviário mínimo = 0,75 m e máximo = 5,40 m - areia e brita comerciais | C127: m | D127: 27119.47
A128: 606760 | B128: Arco metálico galvanizado tipo MP 152S - arco alto - vão = 6,12 m e altura = 2,77 m - aterro rodoviário mínimo = 0,75 m e máximo = 5,40 m - areia extraída e brita produzida | C128: m | D128: 26907.69
A129: 607113 | B129: Arco metálico galvanizado tipo MP 152S - arco alto - vão = 6,30 m e altura = 3,68 m - aterro rodoviário mínimo = 0,75 m e máximo = 7,50 m - areia e brita comerciais | C129: m | D129: 31923.06
A130: 606761 | B130: Arco metálico galvanizado tipo MP 152S - arco alto - vão = 6,30 m e altura = 3,68 m - aterro rodoviário mínimo = 0,75 m e máximo = 7,50 m - areia extraída e brita produzida | C130: m | D130: 31679.63
A131: 606762 | B131: Arco metálico galvanizado tipo MP 152S - arco alto - vão = 6,55 m e altura = 3,56 m - aterro rodoviário mínimo = 0,75 m e máximo = 4,9 m - areia extraída e brita produzida | C131: m | D131: 32002.35
A132: 607114 | B132: Arco metálico galvanizado tipo MP 152S - arco alto - vão = 6,55 m e altura = 3,56 m - aterro rodoviário mínimo = 0,75 m e máximo = 4,90 m - areia e brita comerciais | C132: m | D132: 32250.38
A133: 607116 | B133: Arco metálico galvanizado tipo MP 152S - arco alto - vão = 6,78 m e altura = 3,61 m - aterro rodoviário mínimo = 0,75 m e máximo = 4,80 m - areia e brita comerciais | C133: m | D133: 33416.56
A134: 606764 | B134: Arco metálico galvanizado tipo MP 152S - arco alto - vão = 6,78 m e altura = 3,61 m - aterro rodoviário mínimo = 0,75 m e máximo = 4,80 m - areia extraída e brita produzida | C134: m | D134: 33158.08
A135: 607115 | B135: Arco metálico galvanizado tipo MP 152S - arco alto - vão = 6,96 m e altura = 4,42 m - aterro rodoviário mínimo = 0,75 m e máximo = 8,10 m - areia e brita comerciais | C135: m | D135: 37966.45
A136: 606763 | B136: Arco metálico galvanizado tipo MP 152S - arco alto - vão = 6,96 m e altura = 4,42 m - aterro rodoviário mínimo = 0,75 m e máximo = 8,10 m - areia extraída e brita produzida | C136: m | D136: 37655.49
A137: 607117 | B137: Arco metálico galvanizado tipo MP 152S - arco alto - vão = 6,99 m e altura = 4,27 m - aterro rodoviário mínimo = 0,75 m e máximo = 5,70 m - areia e brita comerciais | C137: m | D137: 37970.2
A138: 606765 | B138: Arco metálico galvanizado tipo MP 152S - arco alto - vão = 6,99 m e altura = 4,27 m - aterro rodoviário mínimo = 0,75 m e máximo = 5,70 m - areia extraída e brita produzida | C138: m | D138: 37667.78
A139: 607118 | B139: Arco metálico galvanizado tipo MP 152S - arco alto - vão = 7,01 m e altura = 3,63 m - aterro rodoviário mínimo = 0,75 m e máximo = 4,60 m - areia e brita comerciais | C139: m | D139: 34006.72
A140: 606766 | B140: Arco metálico galvanizado tipo MP 152S - arco alto - vão = 7,01 m e altura = 3,63 m - aterro rodoviário mínimo = 0,75 m e máximo = 4,60 m - areia extraída e brita produzida | C140: m | D140: 33739.88
A141: 607120 | B141: Arco metálico galvanizado tipo MP 152S - arco alto - vão = 7,24 m e altura = 3,68 m - aterro rodoviário mínimo = 0,90 m e máximo = 4,4 m - areia e brita comerciais | C141: m | D141: 34641.03
A142: 606768 | B142: Arco metálico galvanizado tipo MP 152S - arco alto - vão = 7,24 m e altura = 3,68 m - aterro rodoviário mínimo = 0,90 m e máximo = 4,40 m - areia extraída e brita produzida | C142: m | D142: 34360.03
A143: 607119 | B143: Arco metálico galvanizado tipo MP 152S - arco alto - vão = 7,42 m e altura = 4,52 m - aterro rodoviário mínimo = 0,90 m e máximo = 6,40 m - areia e brita comerciais | C143: m | D143: 39865.38
A144: 606767 | B144: Arco metálico galvanizado tipo MP 152S - arco alto - vão = 7,42 m e altura = 4,52 m - aterro rodoviário mínimo = 0,90 m e máximo = 6,40 m - areia extraída e brita produzida | C144: m | D144: 39522.69
A145: 607121 | B145: Arco metálico galvanizado tipo MP 152S - arco alto - vão = 7,47 m e altura = 4,19 m - aterro rodoviário mínimo = 0,90 m e máximo = 4,30 m - areia e brita comerciais | C145: m | D145: 37521.1
A146: 606769 | B146: Arco metálico galvanizado tipo MP 152S - arco alto - vão = 7,47 m e altura = 4,19 m - aterro rodoviário mínimo = 0,90 m e máximo = 4,30 m - areia extraída e brita produzida | C146: m | D146: 37200.73
A147: 607123 | B147: Arco metálico galvanizado tipo MP 152S - arco alto - vão = 7,67 m e altura = 3,99 m - aterro rodoviário mínimo = 0,90 m e máximo = 4,10 m - areia e brita comerciais | C147: m | D147: 37031.76
A148: 606771 | B148: Arco metálico galvanizado tipo MP 152S - arco alto - vão = 7,67 m e altura = 3,99 m - aterro rodoviário mínimo = 0,90 m e máximo = 4,10 m - areia extraída e brita produzida | C148: m | D148: 36712.58
A149: 607122 | B149: Arco metálico galvanizado tipo MP 152S - arco alto - vão = 7,85 m e altura = 4,60 m - aterro rodoviário mínimo = 0,90 m e máximo = 6,00 m - areia e brita comerciais | C149: m | D149: 41125.02
A150: 606770 | B150: Arco metálico galvanizado tipo MP 152S - arco alto - vão = 7,85 m e altura = 4,60 m - aterro rodoviário mínimo = 0,90 m e máximo = 6,00 m - areia extraída e brita produzida | C150: m | D150: 40756.92
A151: 607125 | B151: Arco metálico galvanizado tipo MP 152S - arco alto - vão = 7,90 m e altura = 4,04 m - aterro rodoviário mínimo = 0,90 m e máximo = 4,00 m - areia e brita comerciais | C151: m | D151: 38312.66
A152: 606773 | B152: Arco metálico galvanizado tipo MP 152S - arco alto - vão = 7,90 m e altura = 4,04 m - aterro rodoviário mínimo = 0,90 m e máximo = 4,00 m - areia extraída e brita produzida | C152: m | D152: 37976.84
A153: 607124 | B153: Arco metálico galvanizado tipo MP 152S - arco alto - vão = 8,08 m e altura = 4,65 m - aterro rodoviário mínimo = 0,90 m e máximo = 5,80 m - areia e brita comerciais | C153: m | D153: 41751.94
A154: 606772 | B154: Arco metálico galvanizado tipo MP 152S - arco alto - vão = 8,08 m e altura = 4,65 m - aterro rodoviário mínimo = 0,90 m e máximo = 5,80 m - areia extraída e brita produzida | C154: m | D154: 41372.06
A155: 607126 | B155: Arco metálico galvanizado tipo MP 152S - arco alto - vão = 8,31 m e altura = 4,70 m - aterro rodoviário mínimo = 0,90 m e máximo = 5,60 m - areia e brita comerciais | C155: m | D155: 42928.89
A156: 606774 | B156: Arco metálico galvanizado tipo MP 152S - arco alto - vão = 8,31 m e altura = 4,70 m - aterro rodoviário mínimo = 0,90 m e máximo = 5,60 m - areia extraída e brita produzida | C156: m | D156: 42530.71
A157: 607127 | B157: Arco metálico galvanizado tipo MP 152S - arco alto - vão = 8,36 m e altura = 4,11 m - aterro rodoviário mínimo = 0,90 m e máximo = 3,70 m - areia e brita comerciais | C157: m | D157: 39504.61
A158: 606775 | B158: Arco metálico galvanizado tipo MP 152S - arco alto - vão = 8,36 m e altura = 4,11 m - aterro rodoviário mínimo = 0,90 m e máximo = 3,70 m - areia extraída e brita produzida | C158: m | D158: 39148.61
A159: 607129 | B159: Arco metálico galvanizado tipo MP 152S - arco alto - vão = 8,59 m e altura = 4,39 m - aterro rodoviário mínimo = 0,90 m e máximo = 3,60 m - areia e brita comerciais | C159: m | D159: 41360.15
A160: 606777 | B160: Arco metálico galvanizado tipo MP 152S - arco alto - vão = 8,59 m e altura = 4,39 m - aterro rodoviário mínimo = 0,90 m e máximo = 3,60 m - areia extraída e brita produzida | C160: m | D160: 40970.27
A161: 607128 | B161: Arco metálico galvanizado tipo MP 152S - arco alto - vão = 8,97 m e altura = 5,00 m - aterro rodoviário mínimo = 0,90 m e máximo = 5,80 m - areia e brita comerciais | C161: m | D161: 45538.02
A162: 606776 | B162: Arco metálico galvanizado tipo MP 152S - arco alto - vão = 8,97 m e altura = 5,00 m - aterro rodoviário mínimo = 0,90 m e máximo = 5,80 m - areia extraída e brita produzida | C162: m | D162: 45082.48
A163: 607130 | B163: Arco metálico galvanizado tipo MP 152S - arco alto - vão = 9,17 m e altura = 5,49 m - aterro rodoviário mínimo = 0,90 m e máximo = 5,60 m - areia e brita comerciais | C163: m | D163: 48552.1
A164: 606778 | B164: Arco metálico galvanizado tipo MP 152S - arco alto - vão = 9,17 m e altura = 5,49 m - aterro rodoviário mínimo = 0,90 m e máximo = 5,60 m - areia extraída e brita produzida | C164: m | D164: 48051.38
A165: 607131 | B165: Arco metálico galvanizado tipo MP 152S - arco alto - vão = 9,22 m e altura = 4,70 m - aterro rodoviário mínimo = 0,90 m e máximo = 4,10 m - areia e brita comerciais | C165: m | D165: 45558.6
A166: 606779 | B166: Arco metálico galvanizado tipo MP 152S - arco alto - vão = 9,22 m e altura = 4,70 m - aterro rodoviário mínimo = 0,90 m e máximo = 4,10 m - areia extraída e brita produzida | C166: m | D166: 45115.63
A167: 607133 | B167: Arco metálico galvanizado tipo MP 152S - arco alto - vão = 9,45 m e altura = 4,75 m - aterro rodoviário mínimo = 0,90 m e máximo = 4,00 m - areia e brita comerciais | C167: m | D167: 46260.82
A168: 606781 | B168: Arco metálico galvanizado tipo MP 152S - arco alto - vão = 9,45 m e altura = 4,75 m - aterro rodoviário mínimo = 0,90 m e máximo = 4,00 m - areia extraída e brita produzida | C168: m | D168: 45804.53
A169: 607132 | B169: Arco metálico galvanizado tipo MP 152S - arco alto - vão = 9,63 m e altura = 5,59 m - aterro rodoviário mínimo = 0,90 m e máximo = 5,30 m - areia e brita comerciais | C169: m | D169: 50466.27
A170: 606780 | B170: Arco metálico galvanizado tipo MP 152S - arco alto - vão = 9,63 m e altura = 5,59 m - aterro rodoviário mínimo = 0,90 m e máximo = 5,30 m - areia extraída e brita produzida | C170: m | D170: 49930.45
A171: 607134 | B171: Arco metálico galvanizado tipo MP 152S - arco alto - vão = 9,65 m e altura = 5,41 m - aterro rodoviário mínimo = 0,90 m e máximo = 4,70 m - areia e brita comerciais | C171: m | D171: 49978.68
A172: 606782 | B172: Arco metálico galvanizado tipo MP 152S - arco alto - vão = 9,65 m e altura = 5,41 m - aterro rodoviário mínimo = 0,90 m e máximo = 4,70 m - areia extraída e brita produzida | C172: m | D172: 49455.11
A173: 607136 | B173: Arco metálico galvanizado tipo MP 152S - arco alto - vão = 9,68 m e altura = 5,23 m - aterro rodoviário mínimo = 0,90 m e máximo = 3,90 m - areia e brita comerciais | C173: m | D173: 49297.3
A174: 606784 | B174: Arco metálico galvanizado tipo MP 152S - arco alto - vão = 9,68 m e altura = 5,23 m - aterro rodoviário mínimo = 0,90 m e máximo = 3,90 m - areia extraída e brita produzida | C174: m | D174: 48790.45
A175: 607135 | B175: Arco metálico galvanizado tipo MP 152S - arco alto - vão = 9,86 m e altura = 6,07 m - aterro rodoviário mínimo = 0,90 m e máximo = 5,20 m - areia e brita comerciais | C175: m | D175: 55087.71
A176: 606783 | B176: Arco metálico galvanizado tipo MP 152S - arco alto - vão = 9,86 m e altura = 6,07 m - aterro rodoviário mínimo = 0,90 m e máximo = 5,20 m - areia extraída e brita produzida | C176: m | D176: 54500.14
A177: 607138 | B177: Arco metálico galvanizado tipo MP 152S - arco alto - vão = 9,91 m e altura = 5,28 m - aterro rodoviário mínimo = 0,90 m e máximo = 3,80 m - areia e brita comerciais | C177: m | D177: 50184.62
A178: 606786 | B178: Arco metálico galvanizado tipo MP 152S - arco alto - vão = 9,91 m e altura = 5,28 m - aterro rodoviário mínimo = 0,90 m e máximo = 3,80 m - areia extraída e brita produzida | C178: m | D178: 49644.68
A179: 606842 | B179: Arco metálico galvanizado tipo MP 152S - ovoide - vão = 7,21 m e altura = 7,82 m - aterro rodoviário mínimo = 0,75 m e máximo = 6,70 m - areia e brita comerciais | C179: m | D179: 61766.28
A180: 606832 | B180: Arco metálico galvanizado tipo MP 152S - ovoide - vão = 7,21 m e altura = 7,82 m - aterro rodoviário mínimo = 0,75 m e máximo = 6,70 m - areia extraída e brita produzida | C180: m | D180: 61370.37
A181: 606843 | B181: Arco metálico galvanizado tipo MP 152S - ovoide - vão = 7,31 m e altura = 7,87 m - aterro rodoviário mínimo = 0,90 m e máximo = 6,80 m - areia e brita comerciais | C181: m | D181: 64193.36
A182: 606833 | B182: Arco metálico galvanizado tipo MP 152S - ovoide - vão = 7,31 m e altura = 7,87 m - aterro rodoviário mínimo = 0,90 m e máximo = 6,80 m - areia extraída e brita produzida | C182: m | D182: 63780.9
A183: 606845 | B183: Arco metálico galvanizado tipo MP 152S - ovoide - vão = 7,57 m e altura = 8,44 m - aterro rodoviário mínimo = 0,90 m e máximo = 5,60 m - areia e brita comerciais | C183: m | D183: 66551.74
A184: 606835 | B184: Arco metálico galvanizado tipo MP 152S - ovoide - vão = 7,57 m e altura = 8,44 m - aterro rodoviário mínimo = 0,90 m e máximo = 5,60 m - areia extraída e brita produzida | C184: m | D184: 66137.65
A185: 606844 | B185: Arco metálico galvanizado tipo MP 152S - ovoide - vão = 7,77 m e altura = 7,90 m - aterro rodoviário mínimo = 0,90 m e máximo = 6,80 m - areia e brita comerciais | C185: m | D185: 65174.63
A186: 606834 | B186: Arco metálico galvanizado tipo MP 152S - ovoide - vão = 7,77 m e altura = 7,90 m - aterro rodoviário mínimo = 0,90 m e máximo = 6,80 m - areia extraída e brita produzida | C186: m | D186: 64749.07
A187: 606847 | B187: Arco metálico galvanizado tipo MP 152S - ovoide - vão = 8,13 m e altura = 8,01 m - aterro rodoviário mínimo = 0,90 m e máximo = 3,50 m - areia e brita comerciais | C187: m | D187: 69594.9
A188: 606837 | B188: Arco metálico galvanizado tipo MP 152S - ovoide - vão = 8,13 m e altura = 8,01 m - aterro rodoviário mínimo = 0,90 m e máximo = 3,50 m - areia extraída e brita produzida | C188: m | D188: 69134.95
A189: 606846 | B189: Arco metálico galvanizado tipo MP 152S - ovoide - vão = 8,36 m e altura = 8,23 m - aterro rodoviário mínimo = 0,90 m e máximo = 4,30 m - areia e brita comerciais | C189: m | D189: 71333.95
A190: 606836 | B190: Arco metálico galvanizado tipo MP 152S - ovoide - vão = 8,36 m e altura = 8,23 m - aterro rodoviário mínimo = 0,90 m e máximo = 4,30 m - areia extraída e brita produzida | C190: m | D190: 70867.67
A191: 606848 | B191: Arco metálico galvanizado tipo MP 152S - ovoide - vão = 8,56 m e altura = 8,48 m - aterro rodoviário mínimo = 0,90 m e máximo = 5,30 m - areia e brita comerciais | C191: m | D191: 72173.77
A192: 606838 | B192: Arco metálico galvanizado tipo MP 152S - ovoide - vão = 8,56 m e altura = 8,48 m - aterro rodoviário mínimo = 0,90 m e máximo = 5,30 m - areia extraída e brita produzida | C192: m | D192: 71690.82
A193: 606849 | B193: Arco metálico galvanizado tipo MP 152S - ovoide - vão = 8,71 m e altura = 9,32 m - aterro rodoviário mínimo = 0,90 m e máximo = 6,00 m - areia e brita comerciais | C193: m | D193: 76052.95
A194: 606839 | B194: Arco metálico galvanizado tipo MP 152S - ovoide - vão = 8,71 m e altura = 9,32 m - aterro rodoviário mínimo = 0,90 m e máximo = 6,00 m - areia extraída e brita produzida | C194: m | D194: 75577.76
A195: 606850 | B195: Arco metálico galvanizado tipo MP 152S - ovoide - vão = 9,15 m e altura = 9,04 m - aterro rodoviário mínimo = 0,90 m e máximo = 4,70 m - areia e brita comerciais | C195: m | D195: 76708.28
A196: 606840 | B196: Arco metálico galvanizado tipo MP 152S - ovoide - vão = 9,15 m e altura = 9,04 m - aterro rodoviário mínimo = 0,90 m e máximo = 4,70 m - areia extraída e brita produzida | C196: m | D196: 76193.98
A197: 606851 | B197: Arco metálico galvanizado tipo MP 152S - ovoide - vão = 9,15 m e altura = 9,50 m - aterro rodoviário mínimo = 0,90 m e máximo = 5,70 m - areia e brita comerciais | C197: m | D197: 78942.82
A198: 606841 | B198: Arco metálico galvanizado tipo MP 152S - ovoide - vão = 9,15 m e altura = 9,50 m - aterro rodoviário mínimo = 0,90 m e máximo = 5,70 m - areia extraída e brita produzida | C198: m | D198: 78445.75
A199: 605604 | B199: Argamassa de solo-cimento com 10% de cimento e material de jazida - preparo e injeção em tunnel liner | C199: m³ | D199: 355.11
A200: 605695 | B200: Bueiro metálico com chapas múltiplas MP 100 com revestimento em epóxi - D = 0,60 m - brita comercial | C200: m | D200: 1473.98
... 6297 more rows

Sheet INSUMOS SINAPI
A1: SINAPI - Sistema Nacional de Pesquisa de Custos e Índices da Construção Civil
A2: RELATÓRIO DE PREÇOS DE INSUMOS - ENGARGOS SOCIAIS SEM DESONERAÇÃO
A3: Mês de Referência: | B3: 08/2025 | E3: Encargos sociais sobre a mão de obra:
A4: Data de emissão: | B4: 10/09/2025 | E4: (SEM DESONERAÇÃO) | F4: PI
E5: Localidade | F5: TERESINA
A6: Origem de preço: | B6: C = COLETADO | C6: CR = COEFICIENTE DE REPRESENTATIVIDADE | E6: Horista | F6: 1.1333
A7: Preço em branco para determinado estado significa que não houve coleta mínima de preços no mês de referência | E7: Mensalista | F7: 0.7112
A9: Acessar Fichas de Especificação Técnico dos Insumos | E9: Preços Medianos (R$):
A10: Código do Insumo | B10: Descrição do Insumo | C10: Unidade | D10: Origem de Preço | E10: PI
A11: 45333 | B11: ABERTURA PARA ENCAIXE DE CUBA OU LAVATORIO EM BANCADA DE MARMORE/ GRANITO OU OUTRO TIPO DE PEDRA NATURAL | C11: UN | D11: CR | E11: 177.69
A12: 11270 | B12: ABRACADEIRA DE LATAO PARA FIXACAO DE CABO PARA-RAIO, DIMENSOES 32 X 24 X 24 MM | C12: UN | D12: CR
A13: 412 | B13: ABRACADEIRA DE NYLON PARA AMARRACAO DE CABOS, COMPRIMENTO DE *230* X *7,6* MM | C13: UN | D13: CR | E13: 1.28
A14: 414 | B14: ABRACADEIRA DE NYLON PARA AMARRACAO DE CABOS, COMPRIMENTO DE 100 X 2,5 MM | C14: UN | D14: CR | E14: 0.08
A15: 410 | B15: ABRACADEIRA DE NYLON PARA AMARRACAO DE CABOS, COMPRIMENTO DE 150 X *3,6* MM | C15: UN | D15: CR | E15: 0.19
A16: 411 | B16: ABRACADEIRA DE NYLON PARA AMARRACAO DE CABOS, COMPRIMENTO DE 200 X *4,6* MM | C16: UN | D16: C | E16: 0.25
A17: 408 | B17: ABRACADEIRA DE NYLON PARA AMARRACAO DE CABOS, COMPRIMENTO DE 390 X *4,6* MM | C17: UN | D17: CR | E17: 1.24
A18: 39131 | B18: ABRACADEIRA EM ACO PARA AMARRACAO DE ELETRODUTOS, TIPO D, COM 1 1/2" E CUNHA DE FIXACAO | C18: UN | D18: CR | E18: 5.1
A19: 394 | B19: ABRACADEIRA EM ACO PARA AMARRACAO DE ELETRODUTOS, TIPO D, COM 1 1/2" E PARAFUSO DE FIXACAO | C19: UN | D19: CR | E19: 5.17
A20: 39130 | B20: ABRACADEIRA EM ACO PARA AMARRACAO DE ELETRODUTOS, TIPO D, COM 1 1/4" E CUNHA DE FIXACAO | C20: UN | D20: CR | E20: 4.65
A21: 395 | B21: ABRACADEIRA EM ACO PARA AMARRACAO DE ELETRODUTOS, TIPO D, COM 1 1/4" E PARAFUSO DE FIXACAO | C21: UN | D21: CR | E21: 4.97
A22: 39129 | B22: ABRACADEIRA EM ACO PARA AMARRACAO DE ELETRODUTOS, TIPO D, COM 1" E CUNHA DE FIXACAO | C22: UN | D22: CR | E22: 2.87
A23: 393 | B23: ABRACADEIRA EM ACO PARA AMARRACAO DE ELETRODUTOS, TIPO D, COM 1" E PARAFUSO DE FIXACAO | C23: UN | D23: C | E23: 3
A24: 39127 | B24: ABRACADEIRA EM ACO PARA AMARRACAO DE ELETRODUTOS, TIPO D, COM 1/2" E CUNHA DE FIXACAO | C24: UN | D24: CR | E24: 2.45
A25: 392 | B25: ABRACADEIRA EM ACO PARA AMARRACAO DE ELETRODUTOS, TIPO D, COM 1/2" E PARAFUSO DE FIXACAO | C25: UN | D25: CR | E25: 2.52
A26: 39133 | B26: ABRACADEIRA EM ACO PARA AMARRACAO DE ELETRODUTOS, TIPO D, COM 2 1/2" E CUNHA DE FIXACAO | C26: UN | D26: CR | E26: 6.7
A27: 397 | B27: ABRACADEIRA EM ACO PARA AMARRACAO DE ELETRODUTOS, TIPO D, COM 2 1/2" E PARAFUSO DE FIXACAO | C27: UN | D27: CR | E27: 7.4
A28: 39132 | B28: ABRACADEIRA EM ACO PARA AMARRACAO DE ELETRODUTOS, TIPO D, COM 2" E CUNHA DE FIXACAO | C28: UN | D28: CR | E28: 5.36
A29: 396 | B29: ABRACADEIRA EM ACO PARA AMARRACAO DE ELETRODUTOS, TIPO D, COM 2" E PARAFUSO DE FIXACAO | C29: UN | D29: CR | E29: 5.74
A30: 39135 | B30: ABRACADEIRA EM ACO PARA AMARRACAO DE ELETRODUTOS, TIPO D, COM 3 1/2" E CUNHA DE FIXACAO | C30: UN | D30: CR | E30: 10.72
A31: 39134 | B31: ABRACADEIRA EM ACO PARA AMARRACAO DE ELETRODUTOS, TIPO D, COM 3" E CUNHA DE FIXACAO | C31: UN | D31: CR | E31: 8.93
A32: 398 | B32: ABRACADEIRA EM ACO PARA AMARRACAO DE ELETRODUTOS, TIPO D, COM 3" E PARAFUSO DE FIXACAO | C32: UN | D32: CR | E32: 8.23
A33: 39128 | B33: ABRACADEIRA EM ACO PARA AMARRACAO DE ELETRODUTOS, TIPO D, COM 3/4" E CUNHA DE FIXACAO | C33: UN | D33: CR | E33: 2.68
A34: 400 | B34: ABRACADEIRA EM ACO PARA AMARRACAO DE ELETRODUTOS, TIPO D, COM 3/4" E PARAFUSO DE FIXACAO | C34: UN | D34: CR | E34: 2.61
A35: 39125 | B35: ABRACADEIRA EM ACO PARA AMARRACAO DE ELETRODUTOS, TIPO D, COM 3/8" E PARAFUSO DE FIXACAO | C35: UN | D35: CR | E35: 2.68
A36: 39126 | B36: ABRACADEIRA EM ACO PARA AMARRACAO DE ELETRODUTOS, TIPO D, COM 4" E CUNHA DE FIXACAO | C36: UN | D36: CR | E36: 12.06
A37: 399 | B37: ABRACADEIRA EM ACO PARA AMARRACAO DE ELETRODUTOS, TIPO D, COM 4" E PARAFUSO DE FIXACAO | C37: UN | D37: CR | E37: 10.62
A38: 39158 | B38: ABRACADEIRA EM ACO PARA AMARRACAO DE ELETRODUTOS, TIPO ECONOMICA (GOTA), COM 8" | C38: UN | D38: CR | E38: 28.53
A39: 39141 | B39: ABRACADEIRA EM ACO PARA AMARRACAO DE ELETRODUTOS, TIPO U SIMPLES, COM 1 1/2" | C39: UN | D39: CR | E39: 2.07
A40: 39140 | B40: ABRACADEIRA EM ACO PARA AMARRACAO DE ELETRODUTOS, TIPO U SIMPLES, COM 1 1/4" | C40: UN | D40: CR | E40: 1.88
A41: 39139 | B41: ABRACADEIRA EM ACO PARA AMARRACAO DE ELETRODUTOS, TIPO U SIMPLES, COM 1" | C41: UN | D41: CR | E41: 1.56
A42: 39137 | B42: ABRACADEIRA EM ACO PARA AMARRACAO DE ELETRODUTOS, TIPO U SIMPLES, COM 1/2" | C42: UN | D42: CR | E42: 1.08
A43: 39143 | B43: ABRACADEIRA EM ACO PARA AMARRACAO DE ELETRODUTOS, TIPO U SIMPLES, COM 2 1/2" | C43: UN | D43: CR | E43: 4.27
A44: 39142 | B44: ABRACADEIRA EM ACO PARA AMARRACAO DE ELETRODUTOS, TIPO U SIMPLES, COM 2" | C44: UN | D44: CR | E44: 3.06
A45: 39144 | B45: ABRACADEIRA EM ACO PARA AMARRACAO DE ELETRODUTOS, TIPO U SIMPLES, COM 3" | C45: UN | D45: CR | E45: 4.97
A46: 39138 | B46: ABRACADEIRA EM ACO PARA AMARRACAO DE ELETRODUTOS, TIPO U SIMPLES, COM 3/4" | C46: UN | D46: CR | E46: 1.14
A47: 39136 | B47: ABRACADEIRA EM ACO PARA AMARRACAO DE ELETRODUTOS, TIPO U SIMPLES, COM 3/8" | C47: UN | D47: CR | E47: 0.76
A48: 39145 | B48: ABRACADEIRA EM ACO PARA AMARRACAO DE ELETRODUTOS, TIPO U SIMPLES, COM 4" | C48: UN | D48: CR | E48: 8.2
A49: 12615 | B49: ABRACADEIRA PVC, PARA CALHA PLUVIAL, DIAMETRO ENTRE *80 E 100* MM, PARA DRENAGEM PLUVIAL PREDIAL | C49: UN | D49: CR | E49: 11.68
A50: 11927 | B50: ABRACADEIRA, GALVANIZADA/ZINCADA, ROSCA SEM FIM, PARAFUSO INOX, LARGURA FITA *12,6 A *14 MM, D = 2" A 2 1/2" | C50: UN | D50: CR
A51: 11928 | B51: ABRACADEIRA, GALVANIZADA/ZINCADA, ROSCA SEM FIM, PARAFUSO INOX, LARGURA FITA *12,6 A *14 MM, D = 3" A 3 3/4" | C51: UN | D51: CR
A52: 11929 | B52: ABRACADEIRA, GALVANIZADA/ZINCADA, ROSCA SEM FIM, PARAFUSO INOX, LARGURA FITA *12,6 A *14 MM, D = 4" A 4 3/4" | C52: UN | D52: CR
A53: 36801 | B53: ACABAMENTO DE METAL CROMADO PARA REGISTRO PEQUENO, DE PAREDE, 1/2" OU 3/4" | C53: UN | D53: CR | E53: 41.31
A54: 36246 | B54: ACABAMENTO SIMPLES/CONVENCIONAL PARA FORRO PVC, TIPO "U" OU "C", COR BRANCA, COMPRIMENTO 6 M | C54: M | D54: CR | E54: 4.5
A55: 37600 | B55: ACESSORIO DE LIGACAO NAO ELETRICO PARA CARGAS EXPLOSIVAS, TUBO DE 6 M | C55: UN | D55: CR
A56: 37599 | B56: ACESSORIO INICIADOR NAO ELETRICO, TUBO DE 6 M, TEMPO DE RETARDO DE *160* MS | C56: UN | D56: CR
A57: 1 | B57: ACETILENO - RECARGA DE GAS PARA CILINDRO (NAO INCLUI TROCA/MANUTENCAO DO CILINDRO) | C57: KG | D57: C
A58: 3 | B58: ACIDO CLORIDRICO / ACIDO MURIATICO, DILUICAO 10% A 12% PARA USO EM LIMPEZA | C58: L | D58: CR | E58: 24.24
A59: 43054 | B59: ACO CA-25, 10,0 MM, OU 12,5 MM, OU 16,0 MM, OU 20,0 MM, OU 25,0 MM, VERGALHAO | C59: KG | D59: CR | E59: 7.39
A60: 42402 | B60: ACO CA-25, 16,0 MM, BARRA DE TRANSFERENCIA | C60: KG | D60: CR | E60: 7.06
A61: 42403 | B61: ACO CA-25, 20,0 MM, BARRA DE TRANSFERENCIA | C61: KG | D61: CR | E61: 9.06
A62: 42404 | B62: ACO CA-25, 25,0 MM, BARRA DE TRANSFERENCIA | C62: KG | D62: CR | E62: 9.01
A63: 42405 | B63: ACO CA-25, 32,0 MM, BARRA DE TRANSFERENCIA | C63: KG | D63: CR | E63: 9.6
A64: 34341 | B64: ACO CA-25, 32,0 MM, VERGALHAO | C64: KG | D64: CR | E64: 8.33
A65: 43053 | B65: ACO CA-25, 6,3 MM OU 8,0 MM, VERGALHAO | C65: KG | D65: CR | E65: 6.6
A66: 43058 | B66: ACO CA-50, 10,0 MM, OU 12,5 MM, OU 16,0 MM, OU 20,0 MM, DOBRADO E CORTADO | C66: KG | D66: CR | E66: 6.84
A67: 34 | B67: ACO CA-50, 10,0 MM, VERGALHAO | C67: KG | D67: CR | E67: 6.88
A68: 43055 | B68: ACO CA-50, 12,5 MM OU 16,0 MM, VERGALHAO | C68: KG | D68: C | E68: 5.96
A69: 43056 | B69: ACO CA-50, 20,0 MM OU 25,0 MM, VERGALHAO | C69: KG | D69: CR | E69: 6.87
A70: 43057 | B70: ACO CA-50, 32,0 MM, VERGALHAO | C70: KG | D70: CR | E70: 7.55
A71: 34449 | B71: ACO CA-50, 6,3 MM, DOBRADO E CORTADO | C71: KG | D71: CR | E71: 8.07
A72: 32 | B72: ACO CA-50, 6,3 MM, VERGALHAO | C72: KG | D72: CR | E72: 7.26
A73: 33 | B73: ACO CA-50, 8,0 MM, VERGALHAO | C73: KG | D73: CR | E73: 7.3
A74: 43061 | B74: ACO CA-60, 4,2 MM OU 5,0 MM, DOBRADO E CORTADO | C74: KG | D74: CR | E74: 6.82
A75: 43059 | B75: ACO CA-60, 4,2 MM, OU 5,0 MM, OU 6,0 MM, OU 7,0 MM, VERGALHAO | C75: KG | D75: CR | E75: 6.51
A76: 43062 | B76: ACO CA-60, 6,0 MM OU 7,0 MM, DOBRADO E CORTADO | C76: KG | D76: CR | E76: 7.21
A77: 43060 | B77: ACO CA-60, 8,0 MM OU 9,5 MM, VERGALHAO | C77: KG | D77: CR | E77: 5.67
A78: 40410 | B78: ACOPLAMENTO RIGIDO EM FERRO FUNDIDO PARA SISTEMA DE TUBULACAO RANHURADA, DN 50 MM (2") | C78: UN | D78: C
A79: 40411 | B79: ACOPLAMENTO RIGIDO EM FERRO FUNDIDO PARA SISTEMA DE TUBULACAO RANHURADA, DN 65 MM (2 1/2") | C79: UN | D79: CR
A80: 40412 | B80: ACOPLAMENTO RIGIDO EM FERRO FUNDIDO PARA SISTEMA DE TUBULACAO RANHURADA, DN 80 MM (3") | C80: UN | D80: CR
A81: 44254 | B81: ADAPTADOR CPVC, ROSCAVEL, COM FLANGES E ANEL DE VEDACAO, 15 MM, CAIXA D'AGUA PARA AGUA QUENTE | C81: UN | D81: CR
A82: 44255 | B82: ADAPTADOR CPVC, ROSCAVEL, COM FLANGES E ANEL DE VEDACAO, 22 MM, CAIXA D'AGUA PARA AGUA QUENTE | C82: UN | D82: CR
A83: 44256 | B83: ADAPTADOR CPVC, ROSCAVEL, COM FLANGES E ANEL DE VEDACAO, 28 MM, CAIXA D'AGUA PARA AGUA QUENTE | C83: UN | D83: CR
A84: 44257 | B84: ADAPTADOR CPVC, ROSCAVEL, COM FLANGES E ANEL DE VEDACAO, 35 MM, CAIXA D'AGUA PARA AGUA QUENTE | C84: UN | D84: CR
A85: 44258 | B85: ADAPTADOR CPVC, ROSCAVEL, COM FLANGES E ANEL DE VEDACAO, 42 MM, CAIXA D'AGUA PARA AGUA QUENTE | C85: UN | D85: CR
A86: 44259 | B86: ADAPTADOR CPVC, ROSCAVEL, COM FLANGES E ANEL DE VEDACAO, 54 MM, CAIXA D'AGUA PARA AGUA QUENTE | C86: UN | D86: CR
A87: 37997 | B87: ADAPTADOR CPVC, SOLDAVEL, 15 MM, PARA AGUA QUENTE | C87: UN | D87: CR
A88: 37998 | B88: ADAPTADOR CPVC, SOLDAVEL, 22 MM, PARA AGUA QUENTE | C88: UN | D88: CR
A89: 55 | B89: ADAPTADOR DE COMPRESSAO EM POLIPROPILENO (PP), PARA TUBO EM PEAD, 20 MM X 1/2", PARA LIGACAO PREDIAL DE AGUA (NTS 179) | C89: UN | D89: C
A90: 61 | B90: ADAPTADOR DE COMPRESSAO EM POLIPROPILENO (PP), PARA TUBO EM PEAD, 20 MM X 3/4", PARA LIGACAO PREDIAL DE AGUA (NTS 179) | C90: UN | D90: CR
A91: 62 | B91: ADAPTADOR DE COMPRESSAO EM POLIPROPILENO (PP), PARA TUBO EM PEAD, 32 MM X 1", PARA LIGACAO PREDIAL DE AGUA (NTS 179) | C91: UN | D91: CR
A92: 10899 | B92: ADAPTADOR EM LATAO, ENGATE RAPIDO 2 1/2" X ROSCA INTERNA 5 FIOS 2 1/2", PARA INSTALACAO PREDIAL DE COMBATE A INCENDIO | C92: UN | D92: CR | E92: 74.25
A93: 10900 | B93: ADAPTADOR EM LATAO, ENGATE RAPIDO1 1/2" X ROSCA INTERNA 5 FIOS 2 1/2", PARA INSTALACAO PREDIAL DE COMBATE A INCENDIO | C93: UN | D93: CR | E93: 58.11
A94: 47 | B94: ADAPTADOR PVC PBA, BOLSA/ROSCA, JE, DN 100 / DE 110 MM | C94: UN | D94: CR | E94: 111.36
A95: 48 | B95: ADAPTADOR PVC PBA, BOLSA/ROSCA, JE, DN 50 / DE 60 MM | C95: UN | D95: CR | E95: 29.05
A96: 46 | B96: ADAPTADOR PVC PBA, BOLSA/ROSCA, JE, DN 75 / DE 85 MM | C96: UN | D96: CR | E96: 65.13
A97: 52 | B97: ADAPTADOR PVC PBA, PONTA/ROSCA, JE, DN 50 / DE 60 MM | C97: UN | D97: CR | E97: 22.07
A98: 43 | B98: ADAPTADOR PVC PBA, PONTA/ROSCA, JE, DN 75 / DE 85 MM | C98: UN | D98: CR | E98: 74.48
A99: 103 | B99: ADAPTADOR PVC SOLDAVEL CURTO COM BOLSA E ROSCA, 110 MM X 4", PARA AGUA FRIA | C99: UN | D99: CR | E99: 44.26
A100: 107 | B100: ADAPTADOR PVC SOLDAVEL CURTO COM BOLSA E ROSCA, 20 MM X 1/2", PARA AGUA FRIA | C100: UN | D100: CR | E100: 0.83
A101: 65 | B101: ADAPTADOR PVC SOLDAVEL CURTO COM BOLSA E ROSCA, 25 MM X 3/4", PARA AGUA FRIA | C101: UN | D101: CR | E101: 0.91
A102: 108 | B102: ADAPTADOR PVC SOLDAVEL CURTO COM BOLSA E ROSCA, 32 MM X 1", PARA AGUA FRIA | C102: UN | D102: CR | E102: 1.83
A103: 110 | B103: ADAPTADOR PVC SOLDAVEL CURTO COM BOLSA E ROSCA, 40 MM X 1 1/2", PARA AGUA FRIA | C103: UN | D103: CR | E103: 6.37
A104: 109 | B104: ADAPTADOR PVC SOLDAVEL CURTO COM BOLSA E ROSCA, 40 MM X 1 1/4", PARA AGUA FRIA | C104: UN | D104: CR | E104: 3.79
A105: 111 | B105: ADAPTADOR PVC SOLDAVEL CURTO COM BOLSA E ROSCA, 50 MM X 1 1/4", PARA AGUA FRIA | C105: UN | D105: CR | E105: 8.61
A106: 112 | B106: ADAPTADOR PVC SOLDAVEL CURTO COM BOLSA E ROSCA, 50 MM X1 1/2", PARA AGUA FRIA | C106: UN | D106: CR | E106: 4.56
A107: 113 | B107: ADAPTADOR PVC SOLDAVEL CURTO COM BOLSA E ROSCA, 60 MM X 2", PARA AGUA FRIA | C107: UN | D107: CR | E107: 11.43
A108: 104 | B108: ADAPTADOR PVC SOLDAVEL CURTO COM BOLSA E ROSCA, 75 MM X 2 1/2", PARA AGUA FRIA | C108: UN | D108: CR | E108: 19.89
A109: 102 | B109: ADAPTADOR PVC SOLDAVEL CURTO COM BOLSA E ROSCA, 85 MM X 3", PARA AGUA FRIA | C109: UN | D109: CR | E109: 27.43
A110: 95 | B110: ADAPTADOR PVC SOLDAVEL, COM FLANGE E ANEL DE VEDACAO, 20 MM X 1/2", PARA CAIXA D'AGUA | C110: UN | D110: CR | E110: 11.59
A111: 96 | B111: ADAPTADOR PVC SOLDAVEL, COM FLANGE E ANEL DE VEDACAO, 25 MM X 3/4", PARA CAIXA D'AGUA | C111: UN | D111: CR | E111: 12.61
A112: 97 | B112: ADAPTADOR PVC SOLDAVEL, COM FLANGE E ANEL DE VEDACAO, 32 MM X 1", PARA CAIXA D'AGUA | C112: UN | D112: CR | E112: 18.97
A113: 98 | B113: ADAPTADOR PVC SOLDAVEL, COM FLANGE E ANEL DE VEDACAO, 40 MM X 1 1/4", PARA CAIXA D'AGUA | C113: UN | D113: CR | E113: 28.39
A114: 99 | B114: ADAPTADOR PVC SOLDAVEL, COM FLANGE E ANEL DE VEDACAO, 50 MM X 1 1/2", PARA CAIXA D'AGUA | C114: UN | D114: CR | E114: 26.84
A115: 60 | B115: ADAPTADOR PVC, COM REGISTRO, PARA PEAD, 20 MM X 3/4", PARA LIGACAO PREDIAL DE AGUA | C115: UN | D115: CR
A116: 72 | B116: ADAPTADOR PVC, ROSCAVEL, COM FLANGES E ANEL DE VEDACAO, 1 1/2", PARA CAIXA D'AGUA | C116: UN | D116: CR | E116: 51.47
A117: 71 | B117: ADAPTADOR PVC, ROSCAVEL, COM FLANGES E ANEL DE VEDACAO, 1", PARA CAIXA D'AGUA | C117: UN | D117: CR | E117: 31.79
A118: 67 | B118: ADAPTADOR PVC, ROSCAVEL, COM FLANGES E ANEL DE VEDACAO, 1/2", PARA CAIXA D'AGUA | C118: UN | D118: CR | E118: 16.64
A119: 73 | B119: ADAPTADOR PVC, ROSCAVEL, COM FLANGES E ANEL DE VEDACAO, 3/4", PARA CAIXA D'AGUA | C119: UN | D119: CR | E119: 15.92
A120: 100 | B120: ADAPTADOR PVC, SOLDAVEL, COM FLANGES E ANEL DE VEDACAO, 60 MM X 2", PARA CAIXA D'AGUA | C120: UN | D120: CR | E120: 46.89
A121: 75 | B121: ADAPTADOR PVC, SOLDAVEL, COM FLANGES LIVRES, 110 MM X 4", PARA CAIXA D'AGUA | C121: UN | D121: CR | E121: 273.36
A122: 83 | B122: ADAPTADOR PVC, SOLDAVEL, COM FLANGES LIVRES, 75 MM X 2 1/2", PARA CAIXA D'AGUA | C122: UN | D122: CR | E122: 218.54
A123: 74 | B123: ADAPTADOR PVC, SOLDAVEL, COM FLANGES LIVRES, 85 MM X 3", PARA CAIXA D'AGUA | C123: UN | D123: CR | E123: 312.46
A124: 106 | B124: ADAPTADOR PVC, SOLDAVEL, LONGO, COM FLANGE LIVRE, 110 MM X 4", PARA CAIXA D'AGUA | C124: UN | D124: CR | E124: 395.11
A125: 88 | B125: ADAPTADOR PVC, SOLDAVEL, LONGO, COM FLANGE LIVRE, 32 MM X 1", PARA CAIXA D'AGUA | C125: UN | D125: CR | E125: 11.1
A126: 82 | B126: ADAPTADOR PVC, SOLDAVEL, LONGO, COM FLANGE LIVRE, 75 MM X 2 1/2", PARA CAIXA D'AGUA | C126: UN | D126: CR | E126: 207.93
A127: 105 | B127: ADAPTADOR PVC, SOLDAVEL, LONGO, COM FLANGE LIVRE, 85 MM X 3", PARA CAIXA D'AGUA | C127: UN | D127: CR | E127: 294.63
A128: 39719 | B128: ADESIVO / COLA DE CONTATO LIQUIDO, A BASE DE RESINAS, PARA COLAGEM DE ESPUMA PARA ISOLAMENTO TERMICO FLEXIVEL | C128: L | D128: CR | E128: 177.14
A129: 3410 | B129: ADESIVO / COLA PARA EPS (ISOPOR) E OUTROS MATERIAIS | C129: KG | D129: CR | E129: 39.84
A130: 4791 | B130: ADESIVO ACRILICO DE BASE AQUOSA / COLA DE CONTATO | C130: KG | D130: CR | E130: 47.65
A131: 157 | B131: ADESIVO ESTRUTURAL A BASE DE RESINA EPOXI PARA INJECAO EM TRINCAS, BICOMPONENTE, BAIXA VISCOSIDADE | C131: KG | D131: CR | E131: 232.3
A132: 156 | B132: ADESIVO ESTRUTURAL A BASE DE RESINA EPOXI, BICOMPONENTE, FLUIDO | C132: KG | D132: CR | E132: 82.71
A133: 131 | B133: ADESIVO ESTRUTURAL A BASE DE RESINA EPOXI, BICOMPONENTE, PASTOSO (TIXOTROPICO) | C133: KG | D133: CR | E133: 70.73
A134: 21114 | B134: ADESIVO PARA TUBOS CPVC, *75* G | C134: UN | D134: CR | E134: 34.92
A135: 119 | B135: ADESIVO PLASTICO PARA PVC, BISNAGA COM 75 GR | C135: UN | D135: C | E135: 8.85
A136: 122 | B136: ADESIVO PLASTICO PARA PVC, FRASCO COM *850* GR | C136: UN | D136: CR | E136: 68.09
A137: 20080 | B137: ADESIVO PLASTICO PARA PVC, FRASCO COM 175 GR | C137: UN | D137: CR | E137: 22.22
A138: 124 | B138: ADITIVO ACELERADOR DE PEGA E ENDURECIMENTO PARA ARGAMASSAS E CONCRETOS, LIQUIDO E ISENTO DE CLORETOS | C138: L | D138: CR | E138: 27.28
A139: 7334 | B139: ADITIVO ADESIVO LIQUIDO PARA ARGAMASSAS DE REVESTIMENTOS CIMENTICIOS | C139: L | D139: CR | E139: 20.31
A140: 45146 | B140: ADITIVO IMPERMEABILIZANTE CRISTALIZANTE PARA CONCRETO | C140: KG | D140: CR | E140: 52.3
A141: 123 | B141: ADITIVO IMPERMEABILIZANTE DE PEGA NORMAL PARA ARGAMASSAS E CONCRETOS SEM ARMACAO, LIQUIDO E ISENTO DE CLORETOS | C141: L | D141: C | E141: 11.16
A142: 127 | B142: ADITIVO IMPERMEABILIZANTE DE PEGA ULTRARRAPIDA, LIQUIDO E ISENTO DE CLORETOS | C142: L | D142: CR | E142: 26.64
A143: 133 | B143: ADITIVO LIQUIDO INCORPORADOR DE AR PARA CONCRETO E ARGAMASSA, LIQUIDO E ISENTO DE CLORETOS | C143: L | D143: CR | E143: 11.06
A144: 43617 | B144: ADITIVO PLASTIFICANTE E ESTABILIZADOR PARA ARGAMASSAS DE ASSENTAMENTO E REBOCO, LIQUIDO E ISENTO DE CLORETOS | C144: L | D144: CR | E144: 12.36
A145: 132 | B145: ADITIVO PLASTIFICANTE RETARDADOR DE PEGA E REDUTOR DE AGUA PARA CONCRETO, LIQUIDO E ISENTO DE CLORETOS | C145: L | D145: CR | E145: 11.47
A146: 43618 | B146: ADITIVO SUPERPLASTIFICANTE DE PEGA NORMAL PARA CONCRETO, LIQUIDO E ISENTO DE CLORETOS | C146: KG | D146: CR | E146: 28.88
A147: 37476 | B147: ADUELA/ GALERIA PRE-MOLDADA DE CONCRETO ARMADO, SECAO QUADRADA INTERNA DE 1,50 X 1,50 M (L X A), MISULA DE 20 X 20 CM, C = 1,00 M, ESPESSURA MIN = 15 CM, TB-45 E FCK DO CONCRETO = 30 MPA | C147: UN | D147: CR | E147: 3660.5
A148: 37478 | B148: ADUELA/ GALERIA PRE-MOLDADA DE CONCRETO ARMADO, SECAO RETANGULAR INTERNA DE 2,00 X 2,00 M (L X A), MISULA DE 20 X 20 CM, C = 1,00 M, ESPESSURA MIN = 15 CM, TB-45 E FCK DO CONCRETO = 30 MPA | C148: UN | D148: CR | E148: 4584.87
A149: 37477 | B149: ADUELA/ GALERIA PRE-MOLDADA DE CONCRETO ARMADO, SECAO RETANGULAR INTERNA DE 2,50 X 2,50 M (L X A), MISULA DE 20 X 20 CM, C = 1,00 M, ESPESSURA MIN = 15 CM, TB-45 E FCK DO CONCRETO = 30 MPA | C149: UN | D149: CR | E149: 6211.76
A150: 37479 | B150: ADUELA/ GALERIA PRE-MOLDADA DE CONCRETO ARMADO, SECAO RETANGULAR INTERNA DE 3,00 X 3,00 M (L X A), MISULA DE 20 X 20 CM, C = 1.00 M, ESPESSURA MIN = 20 CM, TB-45 E FCK DO CONCRETO = 30 MPA | C150: UN | D150: CR | E150: 7367.22
A151: 4319 | B151: AFASTADOR PARA TELHA DE FIBROCIMENTO CANALETE 90 OU KALHETAO | C151: UN | D151: CR | E151: 2.43
A152: 42409 | B152: AGENTE DE CURA, PROTETOR DA EVAPORACAO DA AGUA DE HIDRATACAO DO CONCRETO | C152: KG | D152: CR | E152: 18.19
A153: 40553 | B153: AGREGADO RECICLADO, TIPO RACHAO RECICLADO CINZA, CLASSE A | C153: M3 | D153: C
A154: 6114 | B154: AJUDANTE DE ARMADOR (HORISTA) | C154: H | D154: CR | E154: 15.57
A155: 40912 | B155: AJUDANTE DE ARMADOR (MENSALISTA) | C155: MES | D155: CR | E155: 2749.89
A156: 247 | B156: AJUDANTE DE ELETRICISTA (HORISTA) | C156: H | D156: CR | E156: 15.57
A157: 40919 | B157: AJUDANTE DE ELETRICISTA (MENSALISTA) | C157: MES | D157: CR | E157: 2749.89
A158: 44499 | B158: AJUDANTE DE ESTRUTURAS METALICAS (HORISTA) | C158: H | D158: CR | E158: 15.57
A159: 40984 | B159: AJUDANTE DE ESTRUTURAS METALICAS (MENSALISTA) | C159: MES | D159: CR | E159: 2749.89
A160: 248 | B160: AJUDANTE DE OPERACAO EM GERAL (HORISTA) | C160: H | D160: CR | E160: 15.91
A161: 41086 | B161: AJUDANTE DE OPERACAO EM GERAL (MENSALISTA) | C161: MES | D161: CR | E161: 2809.46
A162: 34466 | B162: AJUDANTE DE PINTOR (HORISTA) | C162: H | D162: CR | E162: 15.57
A163: 41083 | B163: AJUDANTE DE PINTOR (MENSALISTA) | C163: MES | D163: CR | E163: 2749.89
A164: 252 | B164: AJUDANTE DE SERRALHEIRO (HORISTA) | C164: H | D164: CR | E164: 15.57
A165: 40909 | B165: AJUDANTE DE SERRALHEIRO (MENSALISTA) | C165: MES | D165: CR | E165: 2749.89
A166: 242 | B166: AJUDANTE ESPECIALIZADO (HORISTA) | C166: H | D166: CR | E166: 15.91
A167: 41085 | B167: AJUDANTE ESPECIALIZADO (MENSALISTA) | C167: MES | D167: CR | E167: 2809.46
A168: 427 | B168: ALCA PREFORMADA DE CONTRA POSTE, EM ACO GALVANIZADO, PARA CABO 3/16", COMPRIMENTO *860* MM | C168: UN | D168: CR | E168: 9.23
A169: 417 | B169: ALCA PREFORMADA DE DISTRIBUICAO, EM ACO GALVANIZADO, PARA CABO DE ALUMINIO DIAMETRO 16 A 25 MM | C169: UN | D169: CR | E169: 4.35
A170: 11273 | B170: ALCA PREFORMADA DE DISTRIBUICAO, EM ACO GALVANIZADO, PARA CONDUTORES DE ALUMINIO AWG 1/0 (CAA 6/1 OU CA 7 FIOS) | C170: UN | D170: CR | E170: 13.5
A171: 11272 | B171: ALCA PREFORMADA DE DISTRIBUICAO, EM ACO GALVANIZADO, PARA CONDUTORES DE ALUMINIO AWG 2 (CAA 6/1 OU CA 7 FIOS) | C171: UN | D171: CR | E171: 8.15
A172: 11275 | B172: ALCA PREFORMADA DE SERVICO, EM ACO GALVANIZADO, PARA CONDUTORES DE ALUMINIO AWG 4 (CAA 6/1) | C172: UN | D172: CR | E172: 3.27
A173: 11274 | B173: ALCA PREFORMADA DE SERVICO, EM ACO GALVANIZADO, PARA CONDUTORES DE ALUMINIO AWG 6 (CAA 6/1) | C173: UN | D173: CR | E173: 2.49
A174: 45208 | B174: ALICATE AMPERIMETRO, TENSAO AC/DC, CAPACIDADE MAXIMA 1000 A | C174: UN | D174: CR
A175: 45250 | B175: ALICATE BICO LONGO (MEIA CANA) 6", COM ISOLAMENTO ATE 1000 V | C175: UN | D175: CR | E175: 66.57
A176: 38470 | B176: ALICATE DE CORTE DIAGONAL 6" COM ISOLAMENTO | C176: UN | D176: CR | E176: 68.15
A177: 38547 | B177: ALICATE DE CRIMPAR RJ11, RJ12 E RJ45, COM CATRACA | C177: UN | D177: CR | E177: 452.42
A178: 38467 | B178: ALICATE DE PRESSAO 11" PARA SOLDA, TIPO C | C178: UN | D178: CR | E178: 146.32
A179: 38468 | B179: ALICATE DE PRESSAO 11" PARA SOLDA, TIPO U | C179: UN | D179: CR | E179: 182.64
A180: 38469 | B180: ALICATE DE PRESSAO PARA SOLDA DE CHAPA 18" | C180: UN | D180: CR | E180: 431.99
A181: 45197 | B181: ALICATE DESENCAPADOR AUTOMATICO 8" | C181: UN | D181: CR | E181: 344.52
A182: 38471 | B182: ALICATE PARA ANEIS DE PISTAO, CAPACIDADE *50* A 100 MM | C182: UN | D182: CR | E182: 462.02
A183: 45206 | B183: ALICATE PROFISSIONAL 8", UNIVERSAL, COM ISOLAMENTO ATE 1000 V | C183: UN | D183: CR | E183: 91.28
A184: 37370 | B184: ALIMENTACAO - HORISTA (COLETADO CAIXA - ENCARGOS COMPLEMENTARES) | C184: H | D184: C | E184: 2.46
A185: 40862 | B185: ALIMENTACAO - MENSALISTA (COLETADO CAIXA - ENCARGOS COMPLEMENTARES) | C185: MES | D185: C | E185: 463.06
A186: 10658 | B186: ALISADORA DE CONCRETO COM MOTOR A GASOLINA DE 5,5 HP, PESO COM MOTOR DE 78 KG, 4 PAS | C186: UN | D186: C
A187: 253 | B187: ALMOXARIFE (HORISTA) | C187: H | D187: C | E187: 20.33
A188: 40809 | B188: ALMOXARIFE (MENSALISTA) | C188: MES | D188: CR | E188: 3587.7
A189: 42428 | B189: ALONGADOR COM TRES ALTURAS, EM TUBO DE ACO CARBONO, PINTURA NO PROCESSO ELETROSTATICO - EQUIPAMENTO DE GINASTICA PARA ACADEMIA AO AR LIVRE / ACADEMIA DA TERCEIRA IDADE - ATI | C189: UN | D189: C
A190: 301 | B190: ANEL BORRACHA PARA TUBO ESGOTO PREDIAL, DN 100 MM (NBR 5688) | C190: UN | D190: C | E190: 3.79
A191: 296 | B191: ANEL BORRACHA PARA TUBO ESGOTO PREDIAL, DN 50 MM (NBR 5688) | C191: UN | D191: CR | E191: 2.14
A192: 297 | B192: ANEL BORRACHA PARA TUBO ESGOTO PREDIAL, DN 75 MM (NBR 5688) | C192: UN | D192: CR | E192: 3.15
A193: 299 | B193: ANEL BORRACHA, DN 100 MM, PARA TUBO SERIE REFORCADA ESGOTO PREDIAL | C193: UN | D193: CR | E193: 4.45
A194: 300 | B194: ANEL BORRACHA, DN 150 MM, PARA TUBO SERIE REFORCADA ESGOTO PREDIAL | C194: UN | D194: CR | E194: 15.38
A195: 20085 | B195: ANEL BORRACHA, DN 50 MM, PARA TUBO SERIE REFORCADA ESGOTO PREDIAL | C195: UN | D195: CR | E195: 2.81
A196: 298 | B196: ANEL BORRACHA, DN 75 MM, PARA TUBO SERIE REFORCADA ESGOTO PREDIAL | C196: UN | D196: CR | E196: 3.42
A197: 311 | B197: ANEL BORRACHA, PARA TUBO PVC DEFOFO, DN 100 MM (NBR 7665) | C197: UN | D197: CR | E197: 12.69
A198: 318 | B198: ANEL BORRACHA, PARA TUBO PVC DEFOFO, DN 150 MM (NBR 7665) | C198: UN | D198: CR | E198: 25.55
A199: 319 | B199: ANEL BORRACHA, PARA TUBO PVC DEFOFO, DN 200 MM (NBR 7665) | C199: UN | D199: CR | E199: 40.06
A200: 303 | B200: ANEL BORRACHA, PARA TUBO PVC, REDE COLETOR ESGOTO, DN 100 MM (NBR 7362) | C200: UN | D200: CR | E200: 4.2
A201: 305 | B201: ANEL BORRACHA, PARA TUBO PVC, REDE COLETOR ESGOTO, DN 150 MM (NBR 7362) | C201: UN | D201: CR | E201: 13.21
... 4702 more rows

Sheet COMP Sint. Sinapi
A1: SINAPI - Sistema Nacional de Pesquisa de Custos e Índices da Construção Civil
A2: RELATÓRIO DE CUSTOS DE COMPOSIÇÕES - ENCARGOS SOCIAIS SEM DESONERAÇÃO
A3: Mês de Referência: | B3: 08/2025 | D3: Encargos sociais sobre a mão de obra:
A4: Data de emissão: | B4: 10/09/2025 | D4: (SEM DESONERAÇÃO) | E4: PI
D5: Localidade | E5: TERESINA
A6: Observação: | B6: %AS (porcentagem Atribuído São Paulo) corresponde a porcentagem do custo total da | D6: Horista | E6: 1.1333
B7: composição que foi obtida utilizando preços de insumos de São Paulo por indisponibilidade | D7: Mensalista | E7: 0.7112
B8: dos preços de insumos necessários à composição no estado em questão. Custo zerado (hífen)
B9: indica que pelo menos um dos itens da composição não tem custo/preço. | E9: PI
A10: Código da Composição | B10: Descrição | C10: Unidade | D10: Custo (R$) | E10: %AS
A11: 104658 | B11: PISO PODOTÁTIL DE ALERTA OU DIRECIONAL, DE CONCRETO, ASSENTADO SOBRE ARGAMASSA. AF_03/2024 | C11: M2 | D11: 136.56 | E11: 0
A12: 105002 | B12: RAMPA DE ACESSIBILIDADE EM CONCRETO MOLDADO IN LOCO, EM CALÇADA NOVA COM LARGURA MAIOR OU IGUAL À 3,00 M, FCK 25MPA, COM PISO PODOTÁTIL. AF_03/2024 | C12: UN | D12: 804.83 | E12: 0
A13: 105004 | B13: RAMPA DE ACESSIBILIDADE EM CONCRETO MOLDADO IN LOCO, EM CALÇADA NOVA COM LARGURA MENOR À 3,00 M, FCK 25MPA, COM PISO PODOTÁTIL. AF_03/2024 | C13: M2 | D13: 138.71 | E13: 0
A14: 105003 | B14: RAMPA DE ACESSIBILIDADE EM CONCRETO MOLDADO IN LOCO, EM CALÇADA PRÉ EXISTENTE COM LARGURA MAIOR OU IGUAL À 3,00 M, FCK 25MPA, COM PISO PODOTÁTIL. AF_03/2024 | C14: UN | D14: 1251.92 | E14: 0.0532
A15: 105005 | B15: RAMPA DE ACESSIBILIDADE EM CONCRETO MOLDADO IN LOCO, EM CALÇADA PRÉ EXISTENTE COM LARGURA MENOR À 3,00 M, FCK 25MPA, COM PISO PODOTÁTIL. AF_03/2024 | C15: M2 | D15: 221.5 | E15: 0.0556
A16: 105006 | B16: RAMPA DE ACESSIBILIDADE EM CONCRETO PRÉ MOLDADO, EM CALÇADA NOVA COM LARGURA MAIOR OU IGUAL À 3,00 M, FCK 25MPA, COM PISO PODOTÁTIL. AF_03/2024 | C16: UN | D16: 0
A17: 104999 | B17: RAMPA DE ACESSIBILIDADE EM CONCRETO PRÉ MOLDADO, EM CALÇADA PRÉ EXISTENTE COM LARGURA MAIOR OU IGUAL À 3,00 M, FCK 25MPA, COM PISO PODOTÁTIL. AF_03/2024 | C17: UN | D17: 0
A18: 105000 | B18: RAMPA DE ACESSIBILIDADE PARA ACESSO A EDIFICAÇÕES COM INCLINAÇÃO DE 8,33% EM CONCRETO MOLDADO IN LOCO, COM LARGURA DE 1,20M, FCK 25MPA, NÃO ARMADA, COM JUNTA A CADA 2M COM CORTE À SECO. AF_03/2024 | C18: M | D18: 1362.66 | E18: 0.4662
A19: 105001 | B19: RAMPA DE ACESSIBILIDADE PARA ACESSO A EDIFICAÇÕES COM INCLINAÇÃO DE 8,33% EM CONCRETO MOLDADO IN LOCO, COM LARGURA DE 1,50M, FCK 25MPA, NÃO ARMADA, COM JUNTA A CADA 2M COM CORTE À SECO. AF_03/2024 | C19: M | D19: 1399.88 | E19: 0.4538
A20: 89306 | B20: ALVENARIA ESTRUTURAL DE BLOCOS CERÂMICOS 14X19X29, (ESPESSURA DE 14 CM), UTILIZANDO COLHER DE PEDREIRO E ARGAMASSA DE ASSENTAMENTO COM PREPARO EM BETONEIRA. AF_03/2023 | C20: M2 | D20: 100.52 | E20: 0
A21: 89307 | B21: ALVENARIA ESTRUTURAL DE BLOCOS CERÂMICOS 14X19X29, (ESPESSURA DE 14 CM), UTILIZANDO COLHER DE PEDREIRO E ARGAMASSA DE ASSENTAMENTO COM PREPARO MANUAL. AF_03/2023 | C21: M2 | D21: 102.36 | E21: 0
A22: 89290 | B22: ALVENARIA ESTRUTURAL DE BLOCOS CERÂMICOS 14X19X29, (ESPESSURA DE 14 CM), UTILIZANDO PALHETA E ARGAMASSA DE ASSENTAMENTO COM PREPARO EM BETONEIRA. AF_03/2023 | C22: M2 | D22: 84.28 | E22: 0
A23: 89291 | B23: ALVENARIA ESTRUTURAL DE BLOCOS CERÂMICOS 14X19X29, (ESPESSURA DE 14 CM), UTILIZANDO PALHETA E ARGAMASSA DE ASSENTAMENTO COM PREPARO MANUAL. AF_03/2023 | C23: M2 | D23: 85.64 | E23: 0
A24: 89298 | B24: ALVENARIA ESTRUTURAL DE BLOCOS CERÂMICOS 14X19X39, (ESPESSURA DE 14 CM), UTILIZANDO COLHER DE PEDREIRO E ARGAMASSA DE ASSENTAMENTO COM PREPARO EM BETONEIRA. AF_03/2023 | C24: M2 | D24: 88.18 | E24: 0
A25: 89299 | B25: ALVENARIA ESTRUTURAL DE BLOCOS CERÂMICOS 14X19X39, (ESPESSURA DE 14 CM), UTILIZANDO COLHER DE PEDREIRO E ARGAMASSA DE ASSENTAMENTO COM PREPARO MANUAL. AF_03/2023 | C25: M2 | D25: 89.82 | E25: 0
A26: 89282 | B26: ALVENARIA ESTRUTURAL DE BLOCOS CERÂMICOS 14X19X39, (ESPESSURA DE 14 CM), UTILIZANDO PALHETA E ARGAMASSA DE ASSENTAMENTO COM PREPARO EM BETONEIRA. AF_03/2023 | C26: M2 | D26: 76.64 | E26: 0
A27: 89283 | B27: ALVENARIA ESTRUTURAL DE BLOCOS CERÂMICOS 14X19X39, (ESPESSURA DE 14 CM), UTILIZANDO PALHETA E ARGAMASSA DE ASSENTAMENTO COM PREPARO MANUAL. AF_03/2023 | C27: M2 | D27: 77.87 | E27: 0
A28: 89480 | B28: ALVENARIA DE BLOCOS DE CONCRETO ESTRUTURAL 14X19X29 CM (ESPESSURA 14 CM), FBK = 14 MPA, UTILIZANDO COLHER DE PEDREIRO. AF_10/2022 | C28: M2 | D28: 142.02 | E28: 0
A29: 89464 | B29: ALVENARIA DE BLOCOS DE CONCRETO ESTRUTURAL 14X19X29 CM (ESPESSURA 14 CM), FBK = 14,0 MPA, UTILIZANDO PALHETA. AF_10/2022 | C29: M2 | D29: 121.81 | E29: 0
A30: 89478 | B30: ALVENARIA DE BLOCOS DE CONCRETO ESTRUTURAL 14X19X29 CM (ESPESSURA 14 CM), FBK = 4,5 MPA, UTILIZANDO COLHER DE PEDREIRO. AF_10/2022 | C30: M2 | D30: 122.76 | E30: 0
A31: 89462 | B31: ALVENARIA DE BLOCOS DE CONCRETO ESTRUTURAL 14X19X29 CM (ESPESSURA 14 CM), FBK = 4,5 MPA, UTILIZANDO PALHETA. AF_10/2022 | C31: M2 | D31: 103.77 | E31: 0
A32: 104444 | B32: ALVENARIA DE BLOCOS DE CONCRETO ESTRUTURAL 14X19X29 CM (ESPESSURA 14 CM), FBK = 8 MPA, UTILIZANDO COLHER DE PEDREIRO. AF_10/2022 | C32: M2 | D32: 0
A33: 104442 | B33: ALVENARIA DE BLOCOS DE CONCRETO ESTRUTURAL 14X19X29 CM (ESPESSURA 14 CM), FBK = 8 MPA, UTILIZANDO PALHETA. AF_10/2022 | C33: M2 | D33: 0
A34: 89472 | B34: ALVENARIA DE BLOCOS DE CONCRETO ESTRUTURAL 14X19X39 CM (ESPESSURA 14 CM), FBK = 14 MPA, UTILIZANDO COLHER DE PEDREIRO. AF_10/2022 | C34: M2 | D34: 107.51 | E34: 0
A35: 89455 | B35: ALVENARIA DE BLOCOS DE CONCRETO ESTRUTURAL 14X19X39 CM (ESPESSURA 14 CM), FBK = 14 MPA, UTILIZANDO PALHETA. AF_10/2022 | C35: M2 | D35: 94.63 | E35: 0
A36: 89470 | B36: ALVENARIA DE BLOCOS DE CONCRETO ESTRUTURAL 14X19X39 CM (ESPESSURA 14 CM), FBK = 4,5 MPA, UTILIZANDO COLHER DE PEDREIRO. AF_10/2022 | C36: M2 | D36: 90.01 | E36: 0
A37: 89453 | B37: ALVENARIA DE BLOCOS DE CONCRETO ESTRUTURAL 14X19X39 CM (ESPESSURA 14 CM), FBK = 4,5 MPA, UTILIZANDO PALHETA. AF_10/2022 | C37: M2 | D37: 78.31 | E37: 0
A38: 104443 | B38: ALVENARIA DE BLOCOS DE CONCRETO ESTRUTURAL 14X19X39 CM (ESPESSURA 14 CM), FBK = 8 MPA, UTILIZANDO COLHER DE PEDREIRO. AF_10/2022 | C38: M2 | D38: 0
A39: 104441 | B39: ALVENARIA DE BLOCOS DE CONCRETO ESTRUTURAL 14X19X39 CM (ESPESSURA 14 CM), FBK = 8 MPA, UTILIZANDO PALHETA. AF_10/2022 | C39: M2 | D39: 0
A40: 103354 | B40: ALVENARIA DE VEDAÇÃO DE BLOCOS CERÂMICOS FURADOS NA HORIZONTAL DE 11,5X14X24 CM (ESPESSURA 11,5 CM) E ARGAMASSA DE ASSENTAMENTO COM PREPARO EM BETONEIRA. AF_12/2021 | C40: M2 | D40: 90.8 | E40: 0.0064
A41: 103355 | B41: ALVENARIA DE VEDAÇÃO DE BLOCOS CERÂMICOS FURADOS NA HORIZONTAL DE 11,5X14X24 CM (ESPESSURA 11,5 CM) E ARGAMASSA DE ASSENTAMENTO COM PREPARO MANUAL. AF_12/2021 | C41: M2 | D41: 91.9 | E41: 0.0063
A42: 103330 | B42: ALVENARIA DE VEDAÇÃO DE BLOCOS CERÂMICOS FURADOS NA HORIZONTAL DE 11,5X19X19 CM (ESPESSURA 11,5 CM) E ARGAMASSA DE ASSENTAMENTO COM PREPARO EM BETONEIRA. AF_12/2021 | C42: M2 | D42: 84.46 | E42: 0.0049
A43: 103331 | B43: ALVENARIA DE VEDAÇÃO DE BLOCOS CERÂMICOS FURADOS NA HORIZONTAL DE 11,5X19X19 CM (ESPESSURA 11,5 CM) E ARGAMASSA DE ASSENTAMENTO COM PREPARO MANUAL. AF_12/2021 | C43: M2 | D43: 85.5 | E43: 0.0048
A44: 103358 | B44: ALVENARIA DE VEDAÇÃO DE BLOCOS CERÂMICOS FURADOS NA HORIZONTAL DE 11,5X19X29 CM (ESPESSURA 11,5 CM) E ARGAMASSA DE ASSENTAMENTO COM PREPARO EM BETONEIRA. AF_12/2021 | C44: M2 | D44: 71.86 | E44: 0.0057
A45: 103359 | B45: ALVENARIA DE VEDAÇÃO DE BLOCOS CERÂMICOS FURADOS NA HORIZONTAL DE 11,5X19X29 CM (ESPESSURA 11,5 CM) E ARGAMASSA DE ASSENTAMENTO COM PREPARO MANUAL. AF_12/2021 | C45: M2 | D45: 72.74 | E45: 0.0056
A46: 103366 | B46: ALVENARIA DE VEDAÇÃO DE BLOCOS CERÂMICOS FURADOS NA HORIZONTAL DE 11,5X19X39 CM (ESPESSURA 11,5 CM) E ARGAMASSA DE ASSENTAMENTO COM PREPARO EM BETONEIRA. AF_12/2021 | C46: M2 | D46: 63.53 | E46: 0.0065
A47: 103367 | B47: ALVENARIA DE VEDAÇÃO DE BLOCOS CERÂMICOS FURADOS NA HORIZONTAL DE 11,5X19X39 CM (ESPESSURA 11,5 CM) E ARGAMASSA DE ASSENTAMENTO COM PREPARO MANUAL. AF_12/2021 | C47: M2 | D47: 64.33 | E47: 0.0064
A48: 103360 | B48: ALVENARIA DE VEDAÇÃO DE BLOCOS CERÂMICOS FURADOS NA HORIZONTAL DE 14X19X29 CM (ESPESSURA 14 CM) E ARGAMASSA DE ASSENTAMENTO COM PREPARO EM BETONEIRA. AF_12/2021 | C48: M2 | D48: 83.85 | E48: 0.0049
A49: 103361 | B49: ALVENARIA DE VEDAÇÃO DE BLOCOS CERÂMICOS FURADOS NA HORIZONTAL DE 14X19X29 CM (ESPESSURA 14 CM) E ARGAMASSA DE ASSENTAMENTO COM PREPARO MANUAL. AF_12/2021 | C49: M2 | D49: 84.97 | E49: 0.0048
A50: 103368 | B50: ALVENARIA DE VEDAÇÃO DE BLOCOS CERÂMICOS FURADOS NA HORIZONTAL DE 14X19X39 CM (ESPESSURA 14 CM) E ARGAMASSA DE ASSENTAMENTO COM PREPARO EM BETONEIRA. AF_12/2021 | C50: M2 | D50: 71.82 | E50: 0.0057
A51: 103369 | B51: ALVENARIA DE VEDAÇÃO DE BLOCOS CERÂMICOS FURADOS NA HORIZONTAL DE 14X19X39 CM (ESPESSURA 14 CM) E ARGAMASSA DE ASSENTAMENTO COM PREPARO MANUAL. AF_12/2021 | C51: M2 | D51: 72.83 | E51: 0.0056
A52: 103334 | B52: ALVENARIA DE VEDAÇÃO DE BLOCOS CERÂMICOS FURADOS NA HORIZONTAL DE 14X9X19 CM (ESPESSURA 14 CM, BLOCO DEITADO) E ARGAMASSA DE ASSENTAMENTO COM PREPARO EM BETONEIRA. AF_12/2021 | C52: M2 | D52: 146.8 | E52: 0.0054
A53: 103335 | B53: ALVENARIA DE VEDAÇÃO DE BLOCOS CERÂMICOS FURADOS NA HORIZONTAL DE 14X9X19 CM (ESPESSURA 14 CM, BLOCO DEITADO) E ARGAMASSA DE ASSENTAMENTO COM PREPARO MANUAL. AF_12/2021 | C53: M2 | D53: 148.74 | E53: 0.0054
A54: 103362 | B54: ALVENARIA DE VEDAÇÃO DE BLOCOS CERÂMICOS FURADOS NA HORIZONTAL DE 19X19X29 CM (ESPESSURA 19 CM) E ARGAMASSA DE ASSENTAMENTO COM PREPARO EM BETONEIRA. AF_12/2021 | C54: M2 | D54: 102.56 | E54: 0.004
A55: 103363 | B55: ALVENARIA DE VEDAÇÃO DE BLOCOS CERÂMICOS FURADOS NA HORIZONTAL DE 19X19X29 CM (ESPESSURA 19 CM) E ARGAMASSA DE ASSENTAMENTO COM PREPARO MANUAL. AF_12/2021 | C55: M2 | D55: 103.82 | E55: 0.0039
A56: 103370 | B56: ALVENARIA DE VEDAÇÃO DE BLOCOS CERÂMICOS FURADOS NA HORIZONTAL DE 19X19X39 CM (ESPESSURA 19 CM) E ARGAMASSA DE ASSENTAMENTO COM PREPARO EM BETONEIRA. AF_12/2021 | C56: M2 | D56: 91.59 | E56: 0.0045
A57: 103371 | B57: ALVENARIA DE VEDAÇÃO DE BLOCOS CERÂMICOS FURADOS NA HORIZONTAL DE 19X19X39 CM (ESPESSURA 19 CM) E ARGAMASSA DE ASSENTAMENTO COM PREPARO MANUAL. AF_12/2021 | C57: M2 | D57: 92.73 | E57: 0.0044
A58: 103332 | B58: ALVENARIA DE VEDAÇÃO DE BLOCOS CERÂMICOS FURADOS NA HORIZONTAL DE 9X14X19 CM (ESPESSURA 9 CM) E ARGAMASSA DE ASSENTAMENTO COM PREPARO EM BETONEIRA. AF_12/2021 | C58: M2 | D58: 120.86 | E58: 0.0023
A59: 103333 | B59: ALVENARIA DE VEDAÇÃO DE BLOCOS CERÂMICOS FURADOS NA HORIZONTAL DE 9X14X19 CM (ESPESSURA 9 CM) E ARGAMASSA DE ASSENTAMENTO COM PREPARO MANUAL. AF_12/2021 | C59: M2 | D59: 121.98 | E59: 0.0023
A60: 103352 | B60: ALVENARIA DE VEDAÇÃO DE BLOCOS CERÂMICOS FURADOS NA HORIZONTAL DE 9X14X24 CM (ESPESSURA 9 CM) E ARGAMASSA DE ASSENTAMENTO COM PREPARO EM BETONEIRA. AF_12/2021 | C60: M2 | D60: 104.21 | E60: 0.0027
A61: 103353 | B61: ALVENARIA DE VEDAÇÃO DE BLOCOS CERÂMICOS FURADOS NA HORIZONTAL DE 9X14X24 CM (ESPESSURA 9 CM) E ARGAMASSA DE ASSENTAMENTO COM PREPARO MANUAL. AF_12/2021 | C61: M2 | D61: 105.24 | E61: 0.0027
A62: 103328 | B62: ALVENARIA DE VEDAÇÃO DE BLOCOS CERÂMICOS FURADOS NA HORIZONTAL DE 9X19X19 CM (ESPESSURA 9 CM) E ARGAMASSA DE ASSENTAMENTO COM PREPARO EM BETONEIRA. AF_12/2021 | C62: M2 | D62: 95.52 | E62: 0.0021
A63: 103329 | B63: ALVENARIA DE VEDAÇÃO DE BLOCOS CERÂMICOS FURADOS NA HORIZONTAL DE 9X19X19 CM (ESPESSURA 9 CM) E ARGAMASSA DE ASSENTAMENTO COM PREPARO MANUAL. AF_12/2021 | C63: M2 | D63: 96.48 | E63: 0.0021
A64: 103356 | B64: ALVENARIA DE VEDAÇÃO DE BLOCOS CERÂMICOS FURADOS NA HORIZONTAL DE 9X19X29 CM (ESPESSURA 9 CM) E ARGAMASSA DE ASSENTAMENTO COM PREPARO EM BETONEIRA. AF_12/2021 | C64: M2 | D64: 63.52 | E64: 0.0031
A65: 103357 | B65: ALVENARIA DE VEDAÇÃO DE BLOCOS CERÂMICOS FURADOS NA HORIZONTAL DE 9X19X29 CM (ESPESSURA 9 CM) E ARGAMASSA DE ASSENTAMENTO COM PREPARO MANUAL. AF_12/2021 | C65: M2 | D65: 64.34 | E65: 0.0031
A66: 103364 | B66: ALVENARIA DE VEDAÇÃO DE BLOCOS CERÂMICOS FURADOS NA HORIZONTAL DE 9X19X39 CM (ESPESSURA 9 CM) E ARGAMASSA DE ASSENTAMENTO COM PREPARO EM BETONEIRA. AF_12/2021 | C66: M2 | D66: 53.31 | E66: 0.0077
A67: 103365 | B67: ALVENARIA DE VEDAÇÃO DE BLOCOS CERÂMICOS FURADOS NA HORIZONTAL DE 9X19X39 CM (ESPESSURA 9 CM) E ARGAMASSA DE ASSENTAMENTO COM PREPARO MANUAL. AF_12/2021 | C67: M2 | D67: 53.83 | E67: 0.0037
A68: 103350 | B68: ALVENARIA DE VEDAÇÃO DE BLOCOS CERÂMICOS FURADOS NA HORIZONTAL DE 9X9X19 CM (ESPESSURA 9 CM) E ARGAMASSA DE ASSENTAMENTO COM PREPARO EM BETONEIRA. AF_12/2021 | C68: M2 | D68: 177.23 | E68: 0.0023
A69: 103351 | B69: ALVENARIA DE VEDAÇÃO DE BLOCOS CERÂMICOS FURADOS NA HORIZONTAL DE 9X9X19 CM (ESPESSURA 9 CM) E ARGAMASSA DE ASSENTAMENTO COM PREPARO MANUAL. AF_12/2021 | C69: M2 | D69: 178.65 | E69: 0.0022
A70: 103344 | B70: ALVENARIA DE VEDAÇÃO DE BLOCOS CERÂMICOS FURADOS NA VERTICAL DE 11,5X19X29 CM (ESPESSURA 11,5 CM) E ARGAMASSA DE ASSENTAMENTO COM PREPARO EM BETONEIRA. AF_12/2021 | C70: M2 | D70: 86.17 | E70: 0.0048
A71: 103345 | B71: ALVENARIA DE VEDAÇÃO DE BLOCOS CERÂMICOS FURADOS NA VERTICAL DE 11,5X19X29 CM (ESPESSURA 11,5 CM) E ARGAMASSA DE ASSENTAMENTO COM PREPARO MANUAL. AF_12/2021 | C71: M2 | D71: 87.47 | E71: 0.0047
A72: 103348 | B72: ALVENARIA DE VEDAÇÃO DE BLOCOS CERÂMICOS FURADOS NA VERTICAL DE 11,5X19X39 CM (ESPESSURA 11,5 CM) E ARGAMASSA DE ASSENTAMENTO COM PREPARO EM BETONEIRA. AF_12/2021 | C72: M2 | D72: 73.18 | E72: 0.0056
A73: 103349 | B73: ALVENARIA DE VEDAÇÃO DE BLOCOS CERÂMICOS FURADOS NA VERTICAL DE 11,5X19X39 CM (ESPESSURA 11,5 CM) E ARGAMASSA DE ASSENTAMENTO COM PREPARO MANUAL. AF_12/2021 | C73: M2 | D73: 74.36 | E73: 0.0055
A74: 103346 | B74: ALVENARIA DE VEDAÇÃO DE BLOCOS CERÂMICOS FURADOS NA VERTICAL DE 14X19X29 CM (ESPESSURA 14 CM) E ARGAMASSA DE ASSENTAMENTO COM PREPARO EM BETONEIRA. AF_12/2021 | C74: M2 | D74: 95.3 | E74: 0.0043
A75: 103347 | B75: ALVENARIA DE VEDAÇÃO DE BLOCOS CERÂMICOS FURADOS NA VERTICAL DE 14X19X29 CM (ESPESSURA 14 CM) E ARGAMASSA DE ASSENTAMENTO COM PREPARO MANUAL. AF_12/2021 | C75: M2 | D75: 96.68 | E75: 0.0042
A76: 103324 | B76: ALVENARIA DE VEDAÇÃO DE BLOCOS CERÂMICOS FURADOS NA VERTICAL DE 14X19X39 CM (ESPESSURA 14 CM) E ARGAMASSA DE ASSENTAMENTO COM PREPARO EM BETONEIRA. AF_12/2021 | C76: M2 | D76: 82.72 | E76: 0.005
A77: 103325 | B77: ALVENARIA DE VEDAÇÃO DE BLOCOS CERÂMICOS FURADOS NA VERTICAL DE 14X19X39 CM (ESPESSURA 14 CM) E ARGAMASSA DE ASSENTAMENTO COM PREPARO MANUAL. AF_12/2021 | C77: M2 | D77: 83.98 | E77: 0.0049
A78: 103326 | B78: ALVENARIA DE VEDAÇÃO DE BLOCOS CERÂMICOS FURADOS NA VERTICAL DE 19X19X39 CM (ESPESSURA 19 CM) E ARGAMASSA DE ASSENTAMENTO COM PREPARO EM BETONEIRA. AF_12/2021 | C78: M2 | D78: 97.61 | E78: 0.0042
A79: 103327 | B79: ALVENARIA DE VEDAÇÃO DE BLOCOS CERÂMICOS FURADOS NA VERTICAL DE 19X19X39 CM (ESPESSURA 19 CM) E ARGAMASSA DE ASSENTAMENTO COM PREPARO MANUAL. AF_12/2021 | C79: M2 | D79: 99.07 | E79: 0.0041
A80: 103322 | B80: ALVENARIA DE VEDAÇÃO DE BLOCOS CERÂMICOS FURADOS NA VERTICAL DE 9X19X39 CM (ESPESSURA 9 CM) E ARGAMASSA DE ASSENTAMENTO COM PREPARO EM BETONEIRA. AF_12/2021 | C80: M2 | D80: 62.29 | E80: 0.0032
A81: 103323 | B81: ALVENARIA DE VEDAÇÃO DE BLOCOS CERÂMICOS FURADOS NA VERTICAL DE 9X19X39 CM (ESPESSURA 9 CM) E ARGAMASSA DE ASSENTAMENTO COM PREPARO MANUAL. AF_12/2021 | C81: M2 | D81: 63.39 | E81: 0.0032
A82: 103338 | B82: ALVENARIA DE VEDAÇÃO DE BLOCOS VAZADOS DE CONCRETO APARENTE DE 14X19X39 CM (ESPESSURA 14 CM) E ARGAMASSA DE ASSENTAMENTO COM PREPARO EM BETONEIRA. AF_12/2021 | C82: M2 | D82: 103.55 | E82: 0.004
A83: 103339 | B83: ALVENARIA DE VEDAÇÃO DE BLOCOS VAZADOS DE CONCRETO APARENTE DE 14X19X39 CM (ESPESSURA 14 CM) E ARGAMASSA DE ASSENTAMENTO COM PREPARO MANUAL. AF_12/2021 | C83: M2 | D83: 104.63 | E83: 0.0039
A84: 103340 | B84: ALVENARIA DE VEDAÇÃO DE BLOCOS VAZADOS DE CONCRETO APARENTE DE 19X19X39 CM (ESPESSURA 19 CM) E ARGAMASSA DE ASSENTAMENTO COM PREPARO EM BETONEIRA. AF_12/2021 | C84: M2 | D84: 124.97 | E84: 0.0033
A85: 103341 | B85: ALVENARIA DE VEDAÇÃO DE BLOCOS VAZADOS DE CONCRETO APARENTE DE 19X19X39 CM (ESPESSURA 19 CM) E ARGAMASSA DE ASSENTAMENTO COM PREPARO MANUAL. AF_12/2021 | C85: M2 | D85: 126.33 | E85: 0.0032
A86: 103336 | B86: ALVENARIA DE VEDAÇÃO DE BLOCOS VAZADOS DE CONCRETO APARENTE DE 9X19X39 CM (ESPESSURA 9 CM) E ARGAMASSA DE ASSENTAMENTO COM PREPARO EM BETONEIRA. AF_12/2021 | C86: M2 | D86: 78.77 | E86: 0.0025
A87: 103337 | B87: ALVENARIA DE VEDAÇÃO DE BLOCOS VAZADOS DE CONCRETO APARENTE DE 9X19X39 CM (ESPESSURA 9 CM) E ARGAMASSA DE ASSENTAMENTO COM PREPARO MANUAL. AF_12/2021 | C87: M2 | D87: 79.69 | E87: 0.0025
A88: 103342 | B88: ALVENARIA DE VEDAÇÃO DE BLOCOS VAZADOS DE CONCRETO DE 14X19X29 CM (ESPESSURA 14 CM) E ARGAMASSA DE ASSENTAMENTO COM PREPARO EM BETONEIRA. AF_12/2021 | C88: M2 | D88: 105.26 | E88: 0.0039
A89: 103343 | B89: ALVENARIA DE VEDAÇÃO DE BLOCOS VAZADOS DE CONCRETO DE 14X19X29 CM (ESPESSURA 14 CM) E ARGAMASSA DE ASSENTAMENTO COM PREPARO MANUAL. AF_12/2021 | C89: M2 | D89: 106.46 | E89: 0.0039
A90: 103318 | B90: ALVENARIA DE VEDAÇÃO DE BLOCOS VAZADOS DE CONCRETO DE 14X19X39 CM (ESPESSURA 14 CM) E ARGAMASSA DE ASSENTAMENTO COM PREPARO EM BETONEIRA. AF_12/2021 | C90: M2 | D90: 90.45 | E90: 0.0045
A91: 103319 | B91: ALVENARIA DE VEDAÇÃO DE BLOCOS VAZADOS DE CONCRETO DE 14X19X39 CM (ESPESSURA 14 CM) E ARGAMASSA DE ASSENTAMENTO COM PREPARO MANUAL. AF_12/2021 | C91: M2 | D91: 91.53 | E91: 0.0045
A92: 103320 | B92: ALVENARIA DE VEDAÇÃO DE BLOCOS VAZADOS DE CONCRETO DE 19X19X39 CM (ESPESSURA 19 CM) E ARGAMASSA DE ASSENTAMENTO COM PREPARO EM BETONEIRA. AF_12/2021 | C92: M2 | D92: 108.57 | E92: 0.0038
A93: 103321 | B93: ALVENARIA DE VEDAÇÃO DE BLOCOS VAZADOS DE CONCRETO DE 19X19X39 CM (ESPESSURA 19 CM) E ARGAMASSA DE ASSENTAMENTO COM PREPARO MANUAL. AF_12/2021 | C93: M2 | D93: 109.93 | E93: 0.0037
A94: 103316 | B94: ALVENARIA DE VEDAÇÃO DE BLOCOS VAZADOS DE CONCRETO DE 9X19X39 CM (ESPESSURA 9 CM) E ARGAMASSA DE ASSENTAMENTO COM PREPARO EM BETONEIRA. AF_12/2021 | C94: M2 | D94: 69.67 | E94: 0.0029
A95: 103317 | B95: ALVENARIA DE VEDAÇÃO DE BLOCOS VAZADOS DE CONCRETO DE 9X19X39 CM (ESPESSURA 9 CM) E ARGAMASSA DE ASSENTAMENTO COM PREPARO MANUAL. AF_12/2021 | C95: M2 | D95: 70.59 | E95: 0.0028
A96: 101166 | B96: ALVENARIA DE EMBASAMENTO COM BLOCO ESTRUTURAL DE CERÂMICA, DE 14X19X29CM E ARGAMASSA DE ASSENTAMENTO COM PREPARO EM BETONEIRA. AF_05/2020 | C96: M3 | D96: 689.37 | E96: 0
A97: 101165 | B97: ALVENARIA DE EMBASAMENTO COM BLOCO ESTRUTURAL DE CONCRETO, DE 14X19X29CM E ARGAMASSA DE ASSENTAMENTO COM PREPARO EM BETONEIRA. AF_05/2020 | C97: M3 | D97: 902.15 | E97: 0
A98: 101163 | B98: ALVENARIA DE VEDAÇÃO COM BLOCO DE VIDRO VAZADO, TIPO VENEZIANA, DE 6X20X20CM E ARGAMASSA DE ASSENTAMENTO COM PREPARO EM BETONEIRA. AF_05/2020 | C98: M2 | D98: 674.19 | E98: 0.7469
A99: 101164 | B99: ALVENARIA DE VEDAÇÃO COM BLOCO DE VIDRO, TIPO CANELADO, DE 8X19X19CM E ARGAMASSA DE ASSENTAMENTO COM PREPARO EM BETONEIRA. AF_05/2020 | C99: M2 | D99: 684.88 | E99: 0.7443
A100: 101162 | B100: ALVENARIA DE VEDAÇÃO COM ELEMENTO VAZADO DE CERÂMICA (COBOGÓ) DE 7X20X20CM E ARGAMASSA DE ASSENTAMENTO COM PREPARO EM BETONEIRA. AF_05/2020 | C100: M2 | D100: 161.77 | E100: 0
A101: 101161 | B101: ALVENARIA DE VEDAÇÃO COM ELEMENTO VAZADO DE CONCRETO (COBOGÓ) DE 7X50X50CM E ARGAMASSA DE ASSENTAMENTO COM PREPARO EM BETONEIRA. AF_05/2020 | C101: M2 | D101: 204.37 | E101: 0
A102: 101160 | B102: ALVENARIA DE VEDAÇÃO DE BLOCO DE SOLO-CIMENTO (TIJOLO ECOLÓGICO) DE 7X15X30CM (ESPESSURA 15CM). AF_05/2020 | C102: M2 | D102: 0
A103: 101159 | B103: ALVENARIA DE VEDAÇÃO DE BLOCOS CERÂMICOS MACIÇOS DE 5X10X20CM (ESPESSURA 10CM) E ARGAMASSA DE ASSENTAMENTO COM PREPARO EM BETONEIRA. AF_05/2020 | C103: M2 | D103: 140.03 | E103: 0
A104: 101154 | B104: ALVENARIA DE VEDAÇÃO DE BLOCOS DE CONCRETO CELULAR DE 10X30X60CM (ESPESSURA 10CM) E ARGAMASSA DE ASSENTAMENTO COM PREPARO EM BETONEIRA. AF_05/2020 | C104: M2 | D104: 130.2 | E104: 0.6763
A105: 101155 | B105: ALVENARIA DE VEDAÇÃO DE BLOCOS DE CONCRETO CELULAR DE 15X30X60CM (ESPESSURA 15CM) E ARGAMASSA DE ASSENTAMENTO COM PREPARO EM BETONEIRA. AF_05/2020 | C105: M2 | D105: 182.51 | E105: 0.7087
A106: 101156 | B106: ALVENARIA DE VEDAÇÃO DE BLOCOS DE CONCRETO CELULAR DE 20X30X60CM (ESPESSURA 20CM) E ARGAMASSA DE ASSENTAMENTO COM PREPARO EM BETONEIRA. AF_05/2020 | C106: M2 | D106: 267.52 | E106: 0.7407
A107: 101158 | B107: ALVENARIA DE VEDAÇÃO DE BLOCOS DE GESSO DE 10X50X66CM (ESPESSURA 10CM). AF_05/2020 | C107: M2 | D107: 86.34 | E107: 0
A108: 101157 | B108: ALVENARIA DE VEDAÇÃO DE BLOCOS DE GESSO DE 7X50X66CM (ESPESSURA 7CM). AF_05/2020 | C108: M2 | D108: 65.92 | E108: 0
A109: 87382 | B109: ARGAMASSA INDUSTRIALIZADA MULTIUSO PARA REVESTIMENTOS E ASSENTAMENTO DA ALVENARIA, PREPARO COM MISTURADOR DE EIXO HORIZONTAL DE 160 KG. AF_08/2019 | C109: M3 | D109: 1656.59 | E109: 0
A110: 87383 | B110: ARGAMASSA INDUSTRIALIZADA MULTIUSO PARA REVESTIMENTOS E ASSENTAMENTO DA ALVENARIA, PREPARO COM MISTURADOR DE EIXO HORIZONTAL DE 300 KG. AF_08/2019 | C110: M3 | D110: 1645.62 | E110: 0
A111: 87384 | B111: ARGAMASSA INDUSTRIALIZADA MULTIUSO PARA REVESTIMENTOS E ASSENTAMENTO DA ALVENARIA, PREPARO COM MISTURADOR DE EIXO HORIZONTAL DE 600 KG. AF_08/2019 | C111: M3 | D111: 1629.05 | E111: 0
A112: 87398 | B112: ARGAMASSA INDUSTRIALIZADA MULTIUSO PARA REVESTIMENTOS E ASSENTAMENTO DA ALVENARIA, PREPARO MANUAL. AF_08/2019 | C112: M3 | D112: 1842.02 | E112: 0
A113: 87395 | B113: ARGAMASSA INDUSTRIALIZADA PARA CHAPISCO COLANTE, PREPARO COM MISTURADOR DE EIXO HORIZONTAL DE 160 KG. AF_08/2019 | C113: M3 | D113: 3199.45 | E113: 0
A114: 87396 | B114: ARGAMASSA INDUSTRIALIZADA PARA CHAPISCO COLANTE, PREPARO COM MISTURADOR DE EIXO HORIZONTAL DE 300 KG. AF_08/2019 | C114: M3 | D114: 3210.11 | E114: 0
A115: 87397 | B115: ARGAMASSA INDUSTRIALIZADA PARA CHAPISCO COLANTE, PREPARO COM MISTURADOR DE EIXO HORIZONTAL DE 600 KG. AF_08/2019 | C115: M3 | D115: 3218.72 | E115: 0
A116: 87402 | B116: ARGAMASSA INDUSTRIALIZADA PARA CHAPISCO COLANTE, PREPARO MANUAL. AF_08/2019 | C116: M3 | D116: 3434.83 | E116: 0
A117: 87391 | B117: ARGAMASSA INDUSTRIALIZADA PARA CHAPISCO ROLADO, PREPARO COM MISTURADOR DE EIXO HORIZONTAL DE 160 KG. AF_08/2019 | C117: M3 | D117: 5037.12 | E117: 0
A118: 87393 | B118: ARGAMASSA INDUSTRIALIZADA PARA CHAPISCO ROLADO, PREPARO COM MISTURADOR DE EIXO HORIZONTAL DE 300 KG. AF_08/2019 | C118: M3 | D118: 5072.47 | E118: 0
A119: 87394 | B119: ARGAMASSA INDUSTRIALIZADA PARA CHAPISCO ROLADO, PREPARO COM MISTURADOR DE EIXO HORIZONTAL DE 600 KG. AF_08/2019 | C119: M3 | D119: 5104.65 | E119: 0
A120: 87401 | B120: ARGAMASSA INDUSTRIALIZADA PARA CHAPISCO ROLADO, PREPARO MANUAL. AF_08/2019 | C120: M3 | D120: 5310.13 | E120: 0
A121: 87407 | B121: ARGAMASSA INDUSTRIALIZADA PARA REVESTIMENTOS, MISTURA E PROJEÇÃO DE 1,5 M³/H DE ARGAMASSA. AF_08/2019 | C121: M3 | D121: 1697.33 | E121: 0
A122: 87408 | B122: ARGAMASSA INDUSTRIALIZADA PARA REVESTIMENTOS, MISTURA E PROJEÇÃO DE 2 M³/H DE ARGAMASSA. AF_08/2019 | C122: M3 | D122: 1677.83 | E122: 0
A123: 87404 | B123: ARGAMASSA PARA REVESTIMENTO DECORATIVO MONOCAMADA (MONOCAPA), MISTURA E PROJEÇÃO DE 1,5 M3/H DE ARGAMASSA. AF_08/2019 | C123: M3 | D123: 4731.26 | E123: 0
A124: 87405 | B124: ARGAMASSA PARA REVESTIMENTO DECORATIVO MONOCAMADA (MONOCAPA), MISTURA E PROJEÇÃO DE 2 M3/H DE ARGAMASSA. AF_08/2019 | C124: M3 | D124: 4729.46 | E124: 0
A125: 87388 | B125: ARGAMASSA PARA REVESTIMENTO DECORATIVO MONOCAMADA (MONOCAPA), PREPARO COM MISTURADOR DE EIXO HORIZONTAL DE 160 KG. AF_08/2019 | C125: M3 | D125: 4526.3 | E125: 0
A126: 87389 | B126: ARGAMASSA PARA REVESTIMENTO DECORATIVO MONOCAMADA (MONOCAPA), PREPARO COM MISTURADOR DE EIXO HORIZONTAL DE 300 KG. AF_08/2019 | C126: M3 | D126: 4535.2 | E126: 0
A127: 87390 | B127: ARGAMASSA PARA REVESTIMENTO DECORATIVO MONOCAMADA (MONOCAPA), PREPARO COM MISTURADOR DE EIXO HORIZONTAL DE 600 KG. AF_08/2019 | C127: M3 | D127: 4548.54 | E127: 0
A128: 87385 | B128: ARGAMASSA PRONTA PARA CONTRAPISO, PREPARO COM MISTURADOR DE EIXO HORIZONTAL DE 160 KG. AF_08/2019 | C128: M3 | D128: 1912.19 | E128: 0
A129: 87386 | B129: ARGAMASSA PRONTA PARA CONTRAPISO, PREPARO COM MISTURADOR DE EIXO HORIZONTAL DE 300 KG. AF_08/2019 | C129: M3 | D129: 1893.86 | E129: 0
A130: 87387 | B130: ARGAMASSA PRONTA PARA CONTRAPISO, PREPARO COM MISTURADOR DE EIXO HORIZONTAL DE 600 KG. AF_08/2019 | C130: M3 | D130: 1878.07 | E130: 0
A131: 87399 | B131: ARGAMASSA PRONTA PARA CONTRAPISO, PREPARO MANUAL. AF_08/2019 | C131: M3 | D131: 2095.53 | E131: 0
A132: 88627 | B132: ARGAMASSA TRAÇO 1:0,5:4,5 (EM VOLUME DE CIMENTO, CAL E AREIA MÉDIA ÚMIDA) PARA ASSENTAMENTO DE ALVENARIA, PREPARO MANUAL. AF_08/2019 | C132: M3 | D132: 727.77 | E132: 0
A133: 100463 | B133: ARGAMASSA TRAÇO 1:0,5:4,5 (EM VOLUME DE CIMENTO, CAL E AREIA MÉDIA ÚMIDA), PREPARO MECÂNICO COM BETONEIRA 250 L. AF_08/2019 | C133: M3 | D133: 0
A134: 88626 | B134: ARGAMASSA TRAÇO 1:0,5:4,5 (EM VOLUME DE CIMENTO, CAL E AREIA MÉDIA ÚMIDA), PREPARO MECÂNICO COM BETONEIRA 400 L. AF_08/2019 | C134: M3 | D134: 645.77 | E134: 0
A135: 100488 | B135: ARGAMASSA TRAÇO 1:0,5:4,5 (EM VOLUME DE CIMENTO, CAL E AREIA MÉDIA ÚMIDA), PREPARO MECÂNICO COM BETONEIRA 600 L. AF_08/2019 | C135: M3 | D135: 631.24 | E135: 0
A136: 100464 | B136: ARGAMASSA TRAÇO 1:0,5:4,5 (EM VOLUME DE CIMENTO, CAL E AREIA MÉDIA ÚMIDA), PREPARO MECÂNICO COM MISTURADOR DE EIXO HORIZONTAL DE 160 KG. AF_08/2019 | C136: M3 | D136: 677.9 | E136: 0
A137: 100465 | B137: ARGAMASSA TRAÇO 1:0,5:4,5 (EM VOLUME DE CIMENTO, CAL E AREIA MÉDIA ÚMIDA), PREPARO MECÂNICO COM MISTURADOR DE EIXO HORIZONTAL DE 300 KG. AF_08/2019 | C137: M3 | D137: 630.63 | E137: 0
A138: 100466 | B138: ARGAMASSA TRAÇO 1:0,5:4,5 (EM VOLUME DE CIMENTO, CAL E AREIA MÉDIA ÚMIDA), PREPARO MECÂNICO COM MISTURADOR DE EIXO HORIZONTAL DE 600 KG. AF_08/2019 | C138: M3 | D138: 604.23 | E138: 0
A139: 87368 | B139: ARGAMASSA TRAÇO 1:1,5:7,5 (EM VOLUME DE CIMENTO, CAL E AREIA MÉDIA ÚMIDA) PARA EMBOÇO/MASSA ÚNICA/ASSENTAMENTO DE ALVENARIA DE VEDAÇÃO, PREPARO MANUAL. AF_08/2019 | C139: M3 | D139: 734.26 | E139: 0
A140: 100450 | B140: ARGAMASSA TRAÇO 1:1,5:7,5 (EM VOLUME DE CIMENTO, CAL E AREIA MÉDIA ÚMIDA) PARA EMBOÇO/MASSA ÚNICA/ASSENTAMENTO DE ALVENARIA DE VEDAÇÃO, PREPARO MECÂNICO COM BETONEIRA 250 L. AF_08/2019 | C140: M3 | D140: 0
A141: 87289 | B141: ARGAMASSA TRAÇO 1:1,5:7,5 (EM VOLUME DE CIMENTO, CAL E AREIA MÉDIA ÚMIDA) PARA EMBOÇO/MASSA ÚNICA/ASSENTAMENTO DE ALVENARIA DE VEDAÇÃO, PREPARO MECÂNICO COM BETONEIRA 400 L. AF_08/2019 | C141: M3 | D141: 633.3 | E141: 0
A142: 87290 | B142: ARGAMASSA TRAÇO 1:1,5:7,5 (EM VOLUME DE CIMENTO, CAL E AREIA MÉDIA ÚMIDA) PARA EMBOÇO/MASSA ÚNICA/ASSENTAMENTO DE ALVENARIA DE VEDAÇÃO, PREPARO MECÂNICO COM BETONEIRA 600 L. AF_08/2019 | C142: M3 | D142: 617.98 | E142: 0
A143: 87333 | B143: ARGAMASSA TRAÇO 1:1,5:7,5 (EM VOLUME DE CIMENTO, CAL E AREIA MÉDIA ÚMIDA) PARA EMBOÇO/MASSA ÚNICA/ASSENTAMENTO DE ALVENARIA DE VEDAÇÃO, PREPARO MECÂNICO COM MISTURADOR DE EIXO HORIZONTAL DE 300 KG. AF_08/2019 | C143: M3 | D143: 640.25 | E143: 0
A144: 87334 | B144: ARGAMASSA TRAÇO 1:1,5:7,5 (EM VOLUME DE CIMENTO, CAL E AREIA MÉDIA ÚMIDA) PARA EMBOÇO/MASSA ÚNICA/ASSENTAMENTO DE ALVENARIA DE VEDAÇÃO, PREPARO MECÂNICO COM MISTURADOR DE EIXO HORIZONTAL DE 600 KG. AF_08/2019 | C144: M3 | D144: 591.02 | E144: 0
A145: 105515 | B145: ARGAMASSA TRAÇO 1:1,93 (EM VOLUME DE CIMENTO E AREIA MÉDIA ÚMIDA), FCK 20MPA, PREPARO MECÂNICO COM MISTURADOR DUPLO HORIZONTAL DE ALTA TURBULÊNCIA. AF_03/2020 | C145: M3 | D145: 991.26 | E145: 0
A146: 87367 | B146: ARGAMASSA TRAÇO 1:1:6 (EM VOLUME DE CIMENTO, CAL E AREIA MÉDIA ÚMIDA) PARA EMBOÇO/MASSA ÚNICA/ASSENTAMENTO DE ALVENARIA DE VEDAÇÃO, PREPARO MANUAL. AF_08/2019 | C146: M3 | D146: 757.91 | E146: 0
A147: 100449 | B147: ARGAMASSA TRAÇO 1:1:6 (EM VOLUME DE CIMENTO, CAL E AREIA MÉDIA ÚMIDA) PARA EMBOÇO/MASSA ÚNICA/ASSENTAMENTO DE ALVENARIA DE VEDAÇÃO, PREPARO MECÂNICO COM BETONEIRA 250 L. AF_08/2019 | C147: M3 | D147: 0
A148: 87286 | B148: ARGAMASSA TRAÇO 1:1:6 (EM VOLUME DE CIMENTO, CAL E AREIA MÉDIA ÚMIDA) PARA EMBOÇO/MASSA ÚNICA/ASSENTAMENTO DE ALVENARIA DE VEDAÇÃO, PREPARO MECÂNICO COM BETONEIRA 400 L. AF_08/2019 | C148: M3 | D148: 662.38 | E148: 0
A149: 87287 | B149: ARGAMASSA TRAÇO 1:1:6 (EM VOLUME DE CIMENTO, CAL E AREIA MÉDIA ÚMIDA) PARA EMBOÇO/MASSA ÚNICA/ASSENTAMENTO DE ALVENARIA DE VEDAÇÃO, PREPARO MECÂNICO COM BETONEIRA 600 L. AF_08/2019 | C149: M3 | D149: 635.84 | E149: 0
A150: 87331 | B150: ARGAMASSA TRAÇO 1:1:6 (EM VOLUME DE CIMENTO, CAL E AREIA MÉDIA ÚMIDA) PARA EMBOÇO/MASSA ÚNICA/ASSENTAMENTO DE ALVENARIA DE VEDAÇÃO, PREPARO MECÂNICO COM MISTURADOR DE EIXO HORIZONTAL DE 300 KG. AF_08/2019 | C150: M3 | D150: 690.06 | E150: 0
A151: 87332 | B151: ARGAMASSA TRAÇO 1:1:6 (EM VOLUME DE CIMENTO, CAL E AREIA MÉDIA ÚMIDA) PARA EMBOÇO/MASSA ÚNICA/ASSENTAMENTO DE ALVENARIA DE VEDAÇÃO, PREPARO MECÂNICO COM MISTURADOR DE EIXO HORIZONTAL DE 600 KG. AF_08/2019 | C151: M3 | D151: 611.44 | E151: 0
A152: 87369 | B152: ARGAMASSA TRAÇO 1:2:8 (EM VOLUME DE CIMENTO, CAL E AREIA MÉDIA ÚMIDA) PARA EMBOÇO/MASSA ÚNICA/ASSENTAMENTO DE ALVENARIA DE VEDAÇÃO, PREPARO MANUAL. AF_08/2019 | C152: M3 | D152: 753.43 | E152: 0
A153: 100451 | B153: ARGAMASSA TRAÇO 1:2:8 (EM VOLUME DE CIMENTO, CAL E AREIA MÉDIA ÚMIDA) PARA EMBOÇO/MASSA ÚNICA/ASSENTAMENTO DE ALVENARIA DE VEDAÇÃO, PREPARO MECÂNICO COM BETONEIRA 250 L. AF_08/2019 | C153: M3 | D153: 0
A154: 87292 | B154: ARGAMASSA TRAÇO 1:2:8 (EM VOLUME DE CIMENTO, CAL E AREIA MÉDIA ÚMIDA) PARA EMBOÇO/MASSA ÚNICA/ASSENTAMENTO DE ALVENARIA DE VEDAÇÃO, PREPARO MECÂNICO COM BETONEIRA 400 L. AF_08/2019 | C154: M3 | D154: 647.36 | E154: 0
A155: 87335 | B155: ARGAMASSA TRAÇO 1:2:8 (EM VOLUME DE CIMENTO, CAL E AREIA MÉDIA ÚMIDA) PARA EMBOÇO/MASSA ÚNICA/ASSENTAMENTO DE ALVENARIA DE VEDAÇÃO, PREPARO MECÂNICO COM MISTURADOR DE EIXO HORIZONTAL DE 300 KG. AF_08/2019 | C155: M3 | D155: 630.99 | E155: 0
A156: 87336 | B156: ARGAMASSA TRAÇO 1:2:8 (EM VOLUME DE CIMENTO, CAL E AREIA MÉDIA ÚMIDA) PARA EMBOÇO/MASSA ÚNICA/ASSENTAMENTO DE ALVENARIA DE VEDAÇÃO, PREPARO MECÂNICO COM MISTURADOR DE EIXO HORIZONTAL DE 600 KG. AF_08/2019 | C156: M3 | D156: 610.86 | E156: 0
A157: 87370 | B157: ARGAMASSA TRAÇO 1:2:9 (EM VOLUME DE CIMENTO, CAL E AREIA MÉDIA ÚMIDA) PARA EMBOÇO/MASSA ÚNICA/ASSENTAMENTO DE ALVENARIA DE VEDAÇÃO, PREPARO MANUAL. AF_08/2019 | C157: M3 | D157: 721.08 | E157: 0
A158: 100452 | B158: ARGAMASSA TRAÇO 1:2:9 (EM VOLUME DE CIMENTO, CAL E AREIA MÉDIA ÚMIDA) PARA EMBOÇO/MASSA ÚNICA/ASSENTAMENTO DE ALVENARIA DE VEDAÇÃO, PREPARO MECÂNICO COM BETONEIRA 250 L. AF_08/2019 | C158: M3 | D158: 0
A159: 88715 | B159: ARGAMASSA TRAÇO 1:2:9 (EM VOLUME DE CIMENTO, CAL E AREIA MÉDIA ÚMIDA) PARA EMBOÇO/MASSA ÚNICA/ASSENTAMENTO DE ALVENARIA DE VEDAÇÃO, PREPARO MECÂNICO COM BETONEIRA 400 L. AF_08/2019 | C159: M3 | D159: 607.05 | E159: 0
A160: 87294 | B160: ARGAMASSA TRAÇO 1:2:9 (EM VOLUME DE CIMENTO, CAL E AREIA MÉDIA ÚMIDA) PARA EMBOÇO/MASSA ÚNICA/ASSENTAMENTO DE ALVENARIA DE VEDAÇÃO, PREPARO MECÂNICO COM BETONEIRA 600 L. AF_08/2019 | C160: M3 | D160: 610.6 | E160: 0
A161: 87337 | B161: ARGAMASSA TRAÇO 1:2:9 (EM VOLUME DE CIMENTO, CAL E AREIA MÉDIA ÚMIDA) PARA EMBOÇO/MASSA ÚNICA/ASSENTAMENTO DE ALVENARIA DE VEDAÇÃO, PREPARO MECÂNICO COM MISTURADOR DE EIXO HORIZONTAL DE 300 KG. AF_08/2019 | C161: M3 | D161: 618.27 | E161: 0
A162: 100487 | B162: ARGAMASSA TRAÇO 1:2:9 (EM VOLUME DE CIMENTO, CAL E AREIA MÉDIA ÚMIDA) PARA EMBOÇO/MASSA ÚNICA/ASSENTAMENTO DE ALVENARIA DE VEDAÇÃO, PREPARO MECÂNICO COM MISTURADOR DE EIXO HORIZONTAL DE 600 KG. AF_08/2019 | C162: M3 | D162: 574.05 | E162: 0
A163: 87380 | B163: ARGAMASSA TRAÇO 1:3 (EM VOLUME DE CIMENTO E AREIA GROSSA ÚMIDA) COM ADIÇÃO DE EMULSÃO POLIMÉRICA PARA CHAPISCO ROLADO, PREPARO MANUAL. AF_08/2019 | C163: M3 | D163: 4483.26 | E163: 0
A164: 100461 | B164: ARGAMASSA TRAÇO 1:3 (EM VOLUME DE CIMENTO E AREIA GROSSA ÚMIDA) COM ADIÇÃO DE EMULSÃO POLIMÉRICA PARA CHAPISCO ROLADO, PREPARO MECÂNICO COM BETONEIRA 250 L. AF_08/2019 | C164: M3 | D164: 0
A165: 87322 | B165: ARGAMASSA TRAÇO 1:3 (EM VOLUME DE CIMENTO E AREIA GROSSA ÚMIDA) COM ADIÇÃO DE EMULSÃO POLIMÉRICA PARA CHAPISCO ROLADO, PREPARO MECÂNICO COM BETONEIRA 400 L. AF_08/2019 | C165: M3 | D165: 4419.27 | E165: 0
A166: 87323 | B166: ARGAMASSA TRAÇO 1:3 (EM VOLUME DE CIMENTO E AREIA GROSSA ÚMIDA) COM ADIÇÃO DE EMULSÃO POLIMÉRICA PARA CHAPISCO ROLADO, PREPARO MECÂNICO COM BETONEIRA 600 L. AF_08/2019 | C166: M3 | D166: 4414.16 | E166: 0
A167: 87360 | B167: ARGAMASSA TRAÇO 1:3 (EM VOLUME DE CIMENTO E AREIA GROSSA ÚMIDA) COM ADIÇÃO DE EMULSÃO POLIMÉRICA PARA CHAPISCO ROLADO, PREPARO MECÂNICO COM MISTURADOR DE EIXO HORIZONTAL DE 160 KG. AF_08/2019 | C167: M3 | D167: 4368.92 | E167: 0
A168: 87361 | B168: ARGAMASSA TRAÇO 1:3 (EM VOLUME DE CIMENTO E AREIA GROSSA ÚMIDA) COM ADIÇÃO DE EMULSÃO POLIMÉRICA PARA CHAPISCO ROLADO, PREPARO MECÂNICO COM MISTURADOR DE EIXO HORIZONTAL DE 300 KG. AF_08/2019 | C168: M3 | D168: 4314.99 | E168: 0
A169: 87362 | B169: ARGAMASSA TRAÇO 1:3 (EM VOLUME DE CIMENTO E AREIA GROSSA ÚMIDA) COM ADIÇÃO DE EMULSÃO POLIMÉRICA PARA CHAPISCO ROLADO, PREPARO MECÂNICO COM MISTURADOR DE EIXO HORIZONTAL DE 600 KG. AF_08/2019 | C169: M3 | D169: 4311.28 | E169: 0
A170: 87377 | B170: ARGAMASSA TRAÇO 1:3 (EM VOLUME DE CIMENTO E AREIA GROSSA ÚMIDA) PARA CHAPISCO CONVENCIONAL, PREPARO MANUAL. AF_08/2019 | C170: M3 | D170: 747.56 | E170: 0
A171: 100458 | B171: ARGAMASSA TRAÇO 1:3 (EM VOLUME DE CIMENTO E AREIA GROSSA ÚMIDA) PARA CHAPISCO CONVENCIONAL, PREPARO MECÂNICO COM BETONEIRA 250 L. AF_08/2019 | C171: M3 | D171: 0
A172: 87313 | B172: ARGAMASSA TRAÇO 1:3 (EM VOLUME DE CIMENTO E AREIA GROSSA ÚMIDA) PARA CHAPISCO CONVENCIONAL, PREPARO MECÂNICO COM BETONEIRA 400 L. AF_08/2019 | C172: M3 | D172: 634.06 | E172: 0
A173: 87314 | B173: ARGAMASSA TRAÇO 1:3 (EM VOLUME DE CIMENTO E AREIA GROSSA ÚMIDA) PARA CHAPISCO CONVENCIONAL, PREPARO MECÂNICO COM BETONEIRA 600 L. AF_08/2019 | C173: M3 | D173: 620.64 | E173: 0
A174: 87352 | B174: ARGAMASSA TRAÇO 1:3 (EM VOLUME DE CIMENTO E AREIA GROSSA ÚMIDA) PARA CHAPISCO CONVENCIONAL, PREPARO MECÂNICO COM MISTURADOR DE EIXO HORIZONTAL DE 160 KG. AF_08/2019 | C174: M3 | D174: 734.1 | E174: 0
A175: 87353 | B175: ARGAMASSA TRAÇO 1:3 (EM VOLUME DE CIMENTO E AREIA GROSSA ÚMIDA) PARA CHAPISCO CONVENCIONAL, PREPARO MECÂNICO COM MISTURADOR DE EIXO HORIZONTAL DE 300 KG. AF_08/2019 | C175: M3 | D175: 639.97 | E175: 0
A176: 87354 | B176: ARGAMASSA TRAÇO 1:3 (EM VOLUME DE CIMENTO E AREIA GROSSA ÚMIDA) PARA CHAPISCO CONVENCIONAL, PREPARO MECÂNICO COM MISTURADOR DE EIXO HORIZONTAL DE 600 KG. AF_08/2019 | C176: M3 | D176: 594.99 | E176: 0
A177: 100480 | B177: ARGAMASSA TRAÇO 1:3 (EM VOLUME DE CIMENTO E AREIA MÉDIA ÚMIDA) COM ADIÇÃO DE IMPERMEABILIZANTE, PREPARO MANUAL. AF_08/2019 | C177: M3 | D177: 991.47 | E177: 0
A178: 100476 | B178: ARGAMASSA TRAÇO 1:3 (EM VOLUME DE CIMENTO E AREIA MÉDIA ÚMIDA) COM ADIÇÃO DE IMPERMEABILIZANTE, PREPARO MECÂNICO COM BETONEIRA 250 L. AF_08/2019 | C178: M3 | D178: 0
A179: 100475 | B179: ARGAMASSA TRAÇO 1:3 (EM VOLUME DE CIMENTO E AREIA MÉDIA ÚMIDA) COM ADIÇÃO DE IMPERMEABILIZANTE, PREPARO MECÂNICO COM BETONEIRA 400 L. AF_08/2019 | C179: M3 | D179: 905.14 | E179: 0
A180: 100491 | B180: ARGAMASSA TRAÇO 1:3 (EM VOLUME DE CIMENTO E AREIA MÉDIA ÚMIDA) COM ADIÇÃO DE IMPERMEABILIZANTE, PREPARO MECÂNICO COM BETONEIRA 600 L. AF_08/2019 | C180: M3 | D180: 900.14 | E180: 0
A181: 100477 | B181: ARGAMASSA TRAÇO 1:3 (EM VOLUME DE CIMENTO E AREIA MÉDIA ÚMIDA) COM ADIÇÃO DE IMPERMEABILIZANTE, PREPARO MECÂNICO COM MISTURADOR DE EIXO HORIZONTAL DE 160 KG. AF_08/2019 | C181: M3 | D181: 980.19 | E181: 0
A182: 100478 | B182: ARGAMASSA TRAÇO 1:3 (EM VOLUME DE CIMENTO E AREIA MÉDIA ÚMIDA) COM ADIÇÃO DE IMPERMEABILIZANTE, PREPARO MECÂNICO COM MISTURADOR DE EIXO HORIZONTAL DE 300 KG. AF_08/2019 | C182: M3 | D182: 887.75 | E182: 0
A183: 100479 | B183: ARGAMASSA TRAÇO 1:3 (EM VOLUME DE CIMENTO E AREIA MÉDIA ÚMIDA) COM ADIÇÃO DE IMPERMEABILIZANTE, PREPARO MECÂNICO COM MISTURADOR DE EIXO HORIZONTAL DE 600 KG. AF_08/2019 | C183: M3 | D183: 865.39 | E183: 0
A184: 87372 | B184: ARGAMASSA TRAÇO 1:3 (EM VOLUME DE CIMENTO E AREIA MÉDIA ÚMIDA) PARA CONTRAPISO, PREPARO MANUAL. AF_08/2019 | C184: M3 | D184: 929.01 | E184: 0
A185: 100453 | B185: ARGAMASSA TRAÇO 1:3 (EM VOLUME DE CIMENTO E AREIA MÉDIA ÚMIDA) PARA CONTRAPISO, PREPARO MECÂNICO COM BETONEIRA 250 L. AF_08/2019 | C185: M3 | D185: 0
A186: 87298 | B186: ARGAMASSA TRAÇO 1:3 (EM VOLUME DE CIMENTO E AREIA MÉDIA ÚMIDA) PARA CONTRAPISO, PREPARO MECÂNICO COM BETONEIRA 400 L. AF_08/2019 | C186: M3 | D186: 811.66 | E186: 0
A187: 87299 | B187: ARGAMASSA TRAÇO 1:3 (EM VOLUME DE CIMENTO E AREIA MÉDIA ÚMIDA) PARA CONTRAPISO, PREPARO MECÂNICO COM BETONEIRA 600 L. AF_08/2019 | C187: M3 | D187: 504.52 | E187: 0
A188: 87339 | B188: ARGAMASSA TRAÇO 1:3 (EM VOLUME DE CIMENTO E AREIA MÉDIA ÚMIDA) PARA CONTRAPISO, PREPARO MECÂNICO COM MISTURADOR DE EIXO HORIZONTAL DE 160 KG. AF_08/2019 | C188: M3 | D188: 961.89 | E188: 0
A189: 87340 | B189: ARGAMASSA TRAÇO 1:3 (EM VOLUME DE CIMENTO E AREIA MÉDIA ÚMIDA) PARA CONTRAPISO, PREPARO MECÂNICO COM MISTURADOR DE EIXO HORIZONTAL DE 300 KG. AF_08/2019 | C189: M3 | D189: 809.3 | E189: 0
A190: 87341 | B190: ARGAMASSA TRAÇO 1:3 (EM VOLUME DE CIMENTO E AREIA MÉDIA ÚMIDA) PARA CONTRAPISO, PREPARO MECÂNICO COM MISTURADOR DE EIXO HORIZONTAL DE 600 KG. AF_08/2019 | C190: M3 | D190: 768.37 | E190: 0
A191: 88629 | B191: ARGAMASSA TRAÇO 1:3 (EM VOLUME DE CIMENTO E AREIA MÉDIA ÚMIDA), PREPARO MANUAL. AF_08/2019 | C191: M3 | D191: 765.31 | E191: 0
A192: 100467 | B192: ARGAMASSA TRAÇO 1:3 (EM VOLUME DE CIMENTO E AREIA MÉDIA ÚMIDA), PREPARO MECÂNICO COM BETONEIRA 250 L. AF_08/2019 | C192: M3 | D192: 0
A193: 88628 | B193: ARGAMASSA TRAÇO 1:3 (EM VOLUME DE CIMENTO E AREIA MÉDIA ÚMIDA), PREPARO MECÂNICO COM BETONEIRA 400 L. AF_08/2019 | C193: M3 | D193: 675.76 | E193: 0
A194: 100489 | B194: ARGAMASSA TRAÇO 1:3 (EM VOLUME DE CIMENTO E AREIA MÉDIA ÚMIDA), PREPARO MECÂNICO COM BETONEIRA 600 L. AF_08/2019 | C194: M3 | D194: 669.96 | E194: 0
A195: 100468 | B195: ARGAMASSA TRAÇO 1:3 (EM VOLUME DE CIMENTO E AREIA MÉDIA ÚMIDA), PREPARO MECÂNICO COM MISTURADOR DE EIXO HORIZONTAL DE 160 KG. AF_08/2019 | C195: M3 | D195: 819.04 | E195: 0
A196: 100469 | B196: ARGAMASSA TRAÇO 1:3 (EM VOLUME DE CIMENTO E AREIA MÉDIA ÚMIDA), PREPARO MECÂNICO COM MISTURADOR DE EIXO HORIZONTAL DE 300 KG. AF_08/2019 | C196: M3 | D196: 663.87 | E196: 0
A197: 100470 | B197: ARGAMASSA TRAÇO 1:3 (EM VOLUME DE CIMENTO E AREIA MÉDIA ÚMIDA), PREPARO MECÂNICO COM MISTURADOR DE EIXO HORIZONTAL DE 600 KG. AF_08/2019 | C197: M3 | D197: 590.64 | E197: 0
A198: 87371 | B198: ARGAMASSA TRAÇO 1:3:12 (EM VOLUME DE CIMENTO, CAL E AREIA MÉDIA ÚMIDA) PARA EMBOÇO/MASSA ÚNICA/ASSENTAMENTO DE ALVENARIA DE VEDAÇÃO, PREPARO MANUAL. AF_08/2019 | C198: M3 | D198: 702.69 | E198: 0
A199: 87295 | B199: ARGAMASSA TRAÇO 1:3:12 (EM VOLUME DE CIMENTO, CAL E AREIA MÉDIA ÚMIDA) PARA EMBOÇO/MASSA ÚNICA/ASSENTAMENTO DE ALVENARIA DE VEDAÇÃO, PREPARO MECÂNICO COM BETONEIRA 400 L. AF_08/2019 | C199: M3 | D199: 625.8 | E199: 0
A200: 87296 | B200: ARGAMASSA TRAÇO 1:3:12 (EM VOLUME DE CIMENTO, CAL E AREIA MÉDIA ÚMIDA) PARA EMBOÇO/MASSA ÚNICA/ASSENTAMENTO DE ALVENARIA DE VEDAÇÃO, PREPARO MECÂNICO COM BETONEIRA 600 L. AF_08/2019 | C200: M3 | D200: 587.09 | E200: 0
... 9584 more rows

Sheet Tabela 1
A1: Código | B1: Categoria | C1: Unid. | D1: Salário | E1: Encargos Sociais | G1: Encargos Complementares | Q1: Encargos Adicionais | W1: Encargos Totais | Y1: Valor Total
G2: Alimentação | I2: EPI | K2: Ferramenta | M2: Transporte | O2: Exame Ocupacional | Q2: Cesta Básica | S2: Assistência Médica | U2: Seguro de Vida
D3: R$ | E3: % | F3: R$ | G3: % | H3: R$ | I3: % | J3: R$ | K3: % | L3: R$ | M3: % | N3: R$ | O3: % | P3: R$ | Q3: % | R3: R$ | S3: % | T3: R$ | U3: % | V3: R$ | W3: % | X3: R$ | Y3: R$
A4: P8001 | B4: Advogado júnior | C4: mês | D4: 5064.07 | E4: 78.11 | F4: 3955.55 | G4: 15.33 | H4: 776.57 | I4: 0.52 | J4: 26.49 | K4: 0 | L4: 0 | M4: 0 | N4: 0 | O4: 0.06 | P4: 3.1 | Q4: 0 | R4: 0 | S4: 6.06 | T4: 306.84 | U4: 0.2 | V4: 9.98 | W4: 100.2855 | X4: 5078.53 | Y4: 10142.6
A5: P8002 | B5: Advogado pleno | C5: mês | D5: 6752.09 | E5: 78.11 | F5: 5274.06 | G5: 11.5 | H5: 776.57 | I5: 0.39 | J5: 26.49 | K5: 0 | L5: 0 | M5: 0 | N5: 0 | O5: 0.05 | P5: 3.1 | Q5: 0 | R5: 0 | S5: 4.54 | T5: 306.84 | U5: 0.15 | V5: 9.98 | W5: 94.7416 | X5: 6397.04 | Y5: 13149.14
A6: P8003 | B6: Advogado sênior | C6: mês | D6: 12224.44 | E6: 78.11 | F6: 9548.51 | G6: 6.35 | H6: 776.57 | I6: 0.22 | J6: 26.49 | K6: 0 | L6: 0 | M6: 0 | N6: 0 | O6: 0.03 | P6: 3.1 | Q6: 0 | R6: 0 | S6: 2.51 | T6: 306.84 | U6: 0.08 | V6: 9.98 | W6: 87.2964 | X6: 10671.49 | Y6: 22895.93
A7: P8007 | B7: Analista de desenvolvimento de sistemas júnior | C7: mês | D7: 4278.79 | E7: 78.23 | F7: 3347.3 | G7: 18.15 | H7: 776.57 | I7: 0 | J7: 0 | K7: 0 | L7: 0 | M7: 0 | N7: 0 | O7: 0.07 | P7: 3.03 | Q7: 0 | R7: 0 | S7: 7.17 | T7: 306.84 | U7: 0.23 | V7: 9.98 | W7: 103.8545 | X7: 4443.72 | Y7: 8722.5
A8: P8008 | B8: Analista de desenvolvimento de sistemas pleno | C8: mês | D8: 5705.05 | E8: 78.23 | F8: 4463.06 | G8: 13.61 | H8: 776.57 | I8: 0 | J8: 0 | K8: 0 | L8: 0 | M8: 0 | N8: 0 | O8: 0.05 | P8: 3.03 | Q8: 0 | R8: 0 | S8: 5.38 | T8: 306.84 | U8: 0.17 | V8: 9.98 | W8: 97.4484 | X8: 5559.48 | Y8: 11264.53
A9: P8009 | B9: Analista de desenvolvimento de sistemas sênior | C9: mês | D9: 10184.53 | E9: 78.23 | F9: 7967.36 | G9: 7.62 | H9: 776.57 | I9: 0 | J9: 0 | K9: 0 | L9: 0 | M9: 0 | N9: 0 | O9: 0.03 | P9: 3.03 | Q9: 0 | R9: 0 | S9: 3.01 | T9: 306.84 | U9: 0.1 | V9: 9.98 | W9: 88.9955 | X9: 9063.78 | Y9: 19248.31
A10: P8013 | B10: Arquiteto júnior | C10: mês | D10: 12443.57 | E10: 78.15 | F10: 9724.65 | G10: 6.24 | H10: 776.57 | I10: 0.21 | J10: 26.49 | K10: 0 | L10: 0 | M10: 0 | N10: 0 | O10: 0.02 | P10: 2.74 | Q10: 0 | R10: 0 | S10: 2.47 | T10: 306.84 | U10: 0.08 | V10: 9.98 | W10: 87.1717 | X10: 10847.27 | Y10: 23290.84
A11: P8014 | B11: Arquiteto pleno | C11: mês | D11: 14617.04 | E11: 78.15 | F11: 11423.22 | G11: 5.31 | H11: 776.57 | I11: 0.18 | J11: 26.49 | K11: 0 | L11: 0 | M11: 0 | N11: 0 | O11: 0.02 | P11: 2.74 | Q11: 0 | R11: 0 | S11: 2.1 | T11: 306.84 | U11: 0.07 | V11: 9.98 | W11: 85.8302 | X11: 12545.84 | Y11: 27162.88
A12: P8015 | B12: Arquiteto sênior | C12: mês | D12: 16790.52 | E12: 78.15 | F12: 13121.79 | G12: 4.63 | H12: 776.57 | I12: 0.16 | J12: 26.49 | K12: 0 | L12: 0 | M12: 0 | N12: 0 | O12: 0.02 | P12: 2.74 | Q12: 0 | R12: 0 | S12: 1.83 | T12: 306.84 | U12: 0.06 | V12: 9.98 | W12: 84.836 | X12: 14244.41 | Y12: 31034.92
A13: P8019 | B13: Assistente social júnior | C13: mês | D13: 3324.84 | E13: 78.8 | F13: 2619.97 | G13: 23.36 | H13: 776.57 | I13: 0.8 | J13: 26.49 | K13: 0 | L13: 0 | M13: 1.49 | N13: 49.41 | O13: 0.13 | P13: 4.32 | Q13: 0 | R13: 0 | S13: 9.23 | T13: 306.84 | U13: 0.3 | V13: 9.98 | W13: 114.0982 | X13: 3793.58 | Y13: 7118.43
A14: P8020 | B14: Assistente social pleno | C14: mês | D14: 4433.12 | E14: 78.8 | F14: 3493.3 | G14: 17.52 | H14: 776.57 | I14: 0.6 | J14: 26.49 | K14: 0 | L14: 0 | M14: 0 | N14: 0 | O14: 0.1 | P14: 4.32 | Q14: 0 | R14: 0 | S14: 6.92 | T14: 306.84 | U14: 0.23 | V14: 9.98 | W14: 104.1591 | X14: 4617.5 | Y14: 9050.62
A15: P8021 | B15: Assistente social sênior | C15: mês | D15: 7555.65 | E15: 78.8 | F15: 5953.86 | G15: 10.28 | H15: 776.57 | I15: 0.35 | J15: 26.49 | K15: 0 | L15: 0 | M15: 0 | N15: 0 | O15: 0.06 | P15: 4.32 | Q15: 0 | R15: 0 | S15: 4.06 | T15: 306.84 | U15: 0.13 | V15: 9.98 | W15: 93.6789 | X15: 7078.06 | Y15: 14633.71
A16: P8025 | B16: Auxiliar | C16: mês | D16: 1706.03 | E16: 80.07 | F16: 1366.02 | G16: 45.52 | H16: 776.57 | I16: 1.89 | J16: 32.25 | K16: 0.1 | L16: 1.65 | M16: 8.59 | N16: 146.54 | O16: 0.27 | P16: 4.63 | Q16: 0 | R16: 0 | S16: 17.99 | T16: 306.84 | U16: 0.58 | V16: 9.98 | W16: 155.0075 | X16: 2644.47 | Y16: 4350.5
A17: P8026 | B17: Auxiliar administrativo | C17: mês | D17: 1977.58 | E17: 78.95 | F17: 1561.3 | G17: 39.27 | H17: 776.57 | I17: 0 | J17: 0 | K17: 0 | L17: 0 | M17: 6.59 | N17: 130.25 | O17: 0.21 | P17: 4.16 | Q17: 0 | R17: 0 | S17: 15.52 | T17: 306.84 | U17: 0.5 | V17: 9.98 | W17: 141.0359 | X17: 2789.1 | Y17: 4766.67
A18: P8027 | B18: Auxiliar de laboratório | C18: mês | D18: 1886.7 | E18: 79.02 | F18: 1490.87 | G18: 41.16 | H18: 776.57 | I18: 1.71 | J18: 32.25 | K18: 0.18 | L18: 3.41 | M18: 7.19 | N18: 135.7 | O18: 0.23 | P18: 4.42 | Q18: 0 | R18: 0 | S18: 16.26 | T18: 306.84 | U18: 0.53 | V18: 9.98 | W18: 146.289 | X18: 2760.03 | Y18: 4646.73
A19: P8028 | B19: Auxiliar de topografia | C19: mês | D19: 1706.03 | E19: 79.13 | F19: 1349.98 | G19: 45.52 | H19: 776.57 | I19: 1.89 | J19: 32.25 | K19: 0.08 | L19: 1.44 | M19: 8.59 | N19: 146.54 | O19: 0.26 | P19: 4.41 | Q19: 0 | R19: 0 | S19: 17.99 | T19: 306.84 | U19: 0.58 | V19: 9.98 | W19: 154.0425 | X19: 2628.01 | Y19: 4334.04
A20: P8032 | B20: Biólogo júnior | C20: mês | D20: 3235.9 | E20: 78.44 | F20: 2538.24 | G20: 24 | H20: 776.57 | I20: 0.82 | J20: 26.49 | K20: 0 | L20: 0 | M20: 1.69 | N20: 54.75 | O20: 0.1 | P20: 3.18 | Q20: 0 | R20: 0 | S20: 9.48 | T20: 306.84 | U20: 0.31 | V20: 9.98 | W20: 114.8381 | X20: 3716.04 | Y20: 6951.94
A21: P8033 | B21: Biólogo pleno | C21: mês | D21: 4314.53 | E21: 78.44 | F21: 3384.32 | G21: 18 | H21: 776.57 | I21: 0.61 | J21: 26.49 | K21: 0 | L21: 0 | M21: 0 | N21: 0 | O21: 0.07 | P21: 3.18 | Q21: 0 | R21: 0 | S21: 7.11 | T21: 306.84 | U21: 0.23 | V21: 9.98 | W21: 104.4697 | X21: 4507.38 | Y21: 8821.9
A22: P8034 | B22: Biólogo sênior | C22: mês | D22: 7874.56 | E22: 78.44 | F22: 6176.8 | G22: 9.86 | H22: 776.57 | I22: 0.34 | J22: 26.49 | K22: 0 | L22: 0 | M22: 0 | N22: 0 | O22: 0.04 | P22: 3.18 | Q22: 0 | R22: 0 | S22: 3.9 | T22: 306.84 | U22: 0.13 | V22: 9.98 | W22: 92.7019 | X22: 7299.86 | Y22: 15174.42
A23: P8038 | B23: Chefe de escritório | C23: mês | D23: 3743.41 | E23: 78.05 | F23: 2921.73 | G23: 20.74 | H23: 776.57 | I23: 0 | J23: 0 | K23: 0 | L23: 0 | M23: 0.65 | N23: 24.3 | O23: 0.06 | P23: 2.19 | Q23: 0 | R23: 0 | S23: 8.2 | T23: 306.84 | U23: 0.27 | V23: 9.98 | W23: 107.966 | X23: 4041.6 | Y23: 7785.01
A24: P8040 | B24: Contador júnior | C24: mês | D24: 4450.31 | E24: 78.12 | F24: 3476.58 | G24: 17.45 | H24: 776.57 | I24: 0 | J24: 0 | K24: 0 | L24: 0 | M24: 0 | N24: 0 | O24: 0.06 | P24: 2.48 | Q24: 0 | R24: 0 | S24: 6.89 | T24: 306.84 | U24: 0.22 | V24: 9.98 | W24: 102.7446 | X24: 4572.45 | Y24: 9022.76
A25: P8041 | B25: Contador pleno | C25: mês | D25: 5933.75 | E25: 78.12 | F25: 4635.44 | G25: 13.09 | H25: 776.57 | I25: 0 | J25: 0 | K25: 0 | L25: 0 | M25: 0 | N25: 0 | O25: 0.04 | P25: 2.48 | Q25: 0 | R25: 0 | S25: 5.17 | T25: 306.84 | U25: 0.17 | V25: 9.98 | W25: 96.5884 | X25: 5731.31 | Y25: 11665.06
A26: P8042 | B26: Contador sênior | C26: mês | D26: 11336.95 | E26: 78.12 | F26: 8856.43 | G26: 6.85 | H26: 776.57 | I26: 0 | J26: 0 | K26: 0 | L26: 0 | M26: 0 | N26: 0 | O26: 0.02 | P26: 2.48 | Q26: 0 | R26: 0 | S26: 2.71 | T26: 306.84 | U26: 0.09 | V26: 9.98 | W26: 87.7864 | X26: 9952.3 | Y26: 21289.25
A27: P8044 | B27: Coordenador ambiental | C27: mês | D27: 19218.44 | E27: 78.6 | F27: 15105.7 | G27: 4.04 | H27: 776.57 | I27: 0.13 | J27: 24.19 | K27: 0 | L27: 0 | M27: 0 | N27: 0 | O27: 0.02 | P27: 3.79 | Q27: 0 | R27: 0 | S27: 1.6 | T27: 306.84 | U27: 0.05 | V27: 9.98 | W27: 84.4349 | X27: 16227.07 | Y27: 35445.51
A28: P8045 | B28: Economista júnior | C28: mês | D28: 4787.47 | E28: 77.45 | F28: 3707.9 | G28: 16.22 | H28: 776.57 | I28: 0 | J28: 0 | K28: 0 | L28: 0 | M28: 0 | N28: 0 | O28: 0.04 | P28: 2.03 | Q28: 0 | R28: 0 | S28: 6.41 | T28: 306.84 | U28: 0.21 | V28: 9.98 | W28: 100.3309 | X28: 4803.31 | Y28: 9590.78
A29: P8046 | B29: Economista pleno | C29: mês | D29: 6383.29 | E29: 77.45 | F29: 4943.86 | G29: 12.17 | H29: 776.57 | I29: 0 | J29: 0 | K29: 0 | L29: 0 | M29: 0 | N29: 0 | O29: 0.03 | P29: 2.03 | Q29: 0 | R29: 0 | S29: 4.81 | T29: 306.84 | U29: 0.16 | V29: 9.98 | W29: 94.6107 | X29: 6039.28 | Y29: 12422.57
A30: P8047 | B30: Economista sênior | C30: mês | D30: 9385.69 | E30: 77.45 | F30: 7269.22 | G30: 8.27 | H30: 776.57 | I30: 0 | J30: 0 | K30: 0 | L30: 0 | M30: 0 | N30: 0 | O30: 0.02 | P30: 2.03 | Q30: 0 | R30: 0 | S30: 3.27 | T30: 306.84 | U30: 0.11 | V30: 9.98 | W30: 89.1211 | X30: 8364.64 | Y30: 17750.33
A31: P8054 | B31: Engenheiro agrônomo júnior | C31: mês | D31: 12443.57 | E31: 78.05 | F31: 9712.21 | G31: 6.24 | H31: 776.57 | I31: 0.21 | J31: 26.49 | K31: 0 | L31: 0 | M31: 0 | N31: 0 | O31: 0.03 | P31: 3.15 | Q31: 0 | R31: 0 | S31: 2.47 | T31: 306.84 | U31: 0.08 | V31: 9.98 | W31: 87.075 | X31: 10835.24 | Y31: 23278.81
A32: P8055 | B32: Engenheiro agrônomo pleno | C32: mês | D32: 13405.28 | E32: 78.05 | F32: 10462.82 | G32: 5.79 | H32: 776.57 | I32: 0.2 | J32: 26.49 | K32: 0 | L32: 0 | M32: 0 | N32: 0 | O32: 0.02 | P32: 3.15 | Q32: 0 | R32: 0 | S32: 2.29 | T32: 306.84 | U32: 0.07 | V32: 9.98 | W32: 86.4275 | X32: 11585.85 | Y32: 24991.14
A33: P8056 | B33: Engenheiro agrônomo sênior | C33: mês | D33: 14367 | E33: 78.05 | F33: 11213.44 | G33: 5.41 | H33: 776.57 | I33: 0.18 | J33: 26.49 | K33: 0 | L33: 0 | M33: 0 | N33: 0 | O33: 0.02 | P33: 3.15 | Q33: 0 | R33: 0 | S33: 2.14 | T33: 306.84 | U33: 0.07 | V33: 9.98 | W33: 85.8667 | X33: 12336.47 | Y33: 26703.47
A34: P8057 | B34: Engenheiro ambiental júnior | C34: mês | D34: 12443.57 | E34: 78.76 | F34: 9800.56 | G34: 6.24 | H34: 776.57 | I34: 0.21 | J34: 26.49 | K34: 0 | L34: 0 | M34: 0 | N34: 0 | O34: 0.03 | P34: 3.41 | Q34: 0 | R34: 0 | S34: 2.47 | T34: 306.84 | U34: 0.08 | V34: 9.98 | W34: 87.787 | X34: 10923.84 | Y34: 23367.41
A35: P8058 | B35: Engenheiro ambiental pleno | C35: mês | D35: 14289.04 | E35: 78.76 | F35: 11254.05 | G35: 5.43 | H35: 776.57 | I35: 0.19 | J35: 26.49 | K35: 0 | L35: 0 | M35: 0 | N35: 0 | O35: 0.02 | P35: 3.41 | Q35: 0 | R35: 0 | S35: 2.15 | T35: 306.84 | U35: 0.07 | V35: 9.98 | W35: 86.6212 | X35: 12377.34 | Y35: 26666.38
A36: P8059 | B36: Engenheiro ambiental sênior | C36: mês | D36: 16134.52 | E36: 78.76 | F36: 12707.55 | G36: 4.81 | H36: 776.57 | I36: 0.16 | J36: 26.49 | K36: 0 | L36: 0 | M36: 0 | N36: 0 | O36: 0.02 | P36: 3.41 | Q36: 0 | R36: 0 | S36: 1.9 | T36: 306.84 | U36: 0.06 | V36: 9.98 | W36: 85.722 | X36: 13830.83 | Y36: 29965.35
A37: P8060 | B37: Engenheiro consultor especial | C37: mês | D37: 23254.78 | E37: 78.41 | F37: 18234.08 | G37: 3.34 | H37: 776.57 | I37: 0.1 | J37: 24.19 | K37: 0 | L37: 0 | M37: 0 | N37: 0 | O37: 0.01 | P37: 3.18 | Q37: 0 | R37: 0 | S37: 1.32 | T37: 306.84 | U37: 0.04 | V37: 9.98 | W37: 83.2295 | X37: 19354.84 | Y37: 42609.63
A38: P8061 | B38: Engenheiro coordenador | C38: mês | D38: 19378.99 | E38: 78.41 | F38: 15195.06 | G38: 4.01 | H38: 776.57 | I38: 0.12 | J38: 24.19 | K38: 0 | L38: 0 | M38: 0 | N38: 0 | O38: 0.02 | P38: 3.18 | Q38: 0 | R38: 0 | S38: 1.58 | T38: 306.84 | U38: 0.05 | V38: 9.98 | W38: 84.1934 | X38: 16315.83 | Y38: 35694.82
A39: P8062 | B39: Engenheiro de pesca júnior | C39: mês | D39: 12443.57 | E39: 78.9 | F39: 9817.98 | G39: 6.24 | H39: 776.57 | I39: 0.21 | J39: 26.49 | K39: 0 | L39: 0 | M39: 0 | N39: 0 | O39: 0.04 | P39: 4.59 | Q39: 0 | R39: 0 | S39: 2.47 | T39: 306.84 | U39: 0.08 | V39: 9.98 | W39: 87.9365 | X39: 10942.44 | Y39: 23386.01
A40: P8063 | B40: Engenheiro de pesca pleno | C40: mês | D40: 14160.98 | E40: 78.9 | F40: 11173.01 | G40: 5.48 | H40: 776.57 | I40: 0.19 | J40: 26.49 | K40: 0 | L40: 0 | M40: 0 | N40: 0 | O40: 0.03 | P40: 4.59 | Q40: 0 | R40: 0 | S40: 2.17 | T40: 306.84 | U40: 0.07 | V40: 9.98 | W40: 86.8406 | X40: 12297.47 | Y40: 26458.45
A41: P8064 | B41: Engenheiro de pesca sênior | C41: mês | D41: 15878.38 | E41: 78.9 | F41: 12528.04 | G41: 4.89 | H41: 776.57 | I41: 0.17 | J41: 26.49 | K41: 0 | L41: 0 | M41: 0 | N41: 0 | O41: 0.03 | P41: 4.59 | Q41: 0 | R41: 0 | S41: 1.93 | T41: 306.84 | U41: 0.06 | V41: 9.98 | W41: 85.9817 | X41: 13652.51 | Y41: 29530.89
A42: P8065 | B42: Engenheiro de projetos júnior | C42: mês | D42: 12443.57 | E42: 78.41 | F42: 9757 | G42: 6.24 | H42: 776.57 | I42: 0.21 | J42: 26.49 | K42: 0 | L42: 0 | M42: 0 | N42: 0 | O42: 0.03 | P42: 3.18 | Q42: 0 | R42: 0 | S42: 2.47 | T42: 306.84 | U42: 0.08 | V42: 9.98 | W42: 87.4352 | X42: 10880.07 | Y42: 23323.64
A43: P8066 | B43: Engenheiro de projetos pleno | C43: mês | D43: 14698.04 | E43: 78.41 | F43: 11524.73 | G43: 5.28 | H43: 776.57 | I43: 0.18 | J43: 26.49 | K43: 0 | L43: 0 | M43: 0 | N43: 0 | O43: 0.02 | P43: 3.18 | Q43: 0 | R43: 0 | S43: 2.09 | T43: 306.84 | U43: 0.07 | V43: 9.98 | W43: 86.0509 | X43: 12647.8 | Y43: 27345.84
A44: P8067 | B44: Engenheiro de projetos sênior | C44: mês | D44: 16952.51 | E44: 78.41 | F44: 13292.46 | G44: 4.58 | H44: 776.57 | I44: 0.16 | J44: 26.49 | K44: 0 | L44: 0 | M44: 0 | N44: 0 | O44: 0.02 | P44: 3.18 | Q44: 0 | R44: 0 | S44: 1.81 | T44: 306.84 | U44: 0.06 | V44: 9.98 | W44: 85.0348 | X44: 14415.53 | Y44: 31368.04
A45: P8068 | B45: Engenheiro florestal júnior | C45: mês | D45: 12443.57 | E45: 78.9 | F45: 9817.98 | G45: 6.24 | H45: 776.57 | I45: 0.21 | J45: 26.49 | K45: 0 | L45: 0 | M45: 0 | N45: 0 | O45: 0.04 | P45: 4.59 | Q45: 0 | R45: 0 | S45: 2.47 | T45: 306.84 | U45: 0.08 | V45: 9.98 | W45: 87.9365 | X45: 10942.44 | Y45: 23386.01
A46: P8069 | B46: Engenheiro florestal pleno | C46: mês | D46: 14160.98 | E46: 78.9 | F46: 11173.01 | G46: 5.48 | H46: 776.57 | I46: 0.19 | J46: 26.49 | K46: 0 | L46: 0 | M46: 0 | N46: 0 | O46: 0.03 | P46: 4.59 | Q46: 0 | R46: 0 | S46: 2.17 | T46: 306.84 | U46: 0.07 | V46: 9.98 | W46: 86.8406 | X46: 12297.47 | Y46: 26458.45
A47: P8070 | B47: Engenheiro florestal sênior | C47: mês | D47: 15878.38 | E47: 78.9 | F47: 12528.04 | G47: 4.89 | H47: 776.57 | I47: 0.17 | J47: 26.49 | K47: 0 | L47: 0 | M47: 0 | N47: 0 | O47: 0.03 | P47: 4.59 | Q47: 0 | R47: 0 | S47: 1.93 | T47: 306.84 | U47: 0.06 | V47: 9.98 | W47: 85.9817 | X47: 13652.51 | Y47: 29530.89
A48: P8080 | B48: Geólogo júnior | C48: mês | D48: 11984.56 | E48: 78.93 | F48: 9459.41 | G48: 6.48 | H48: 776.57 | I48: 0.22 | J48: 26.49 | K48: 0 | L48: 0 | M48: 0 | N48: 0 | O48: 0.04 | P48: 4.54 | Q48: 0 | R48: 0 | S48: 2.56 | T48: 306.84 | U48: 0.08 | V48: 9.98 | W48: 88.3122 | X48: 10583.83 | Y48: 22568.39
